Workbook

Sheet Front
J3: Gold mining tax model for Tanzania
J4: Last updated 5 May 2023
B8: Purpose
B16: Table of contents
B18: Results | C18: The main results of the model are presented in this sheet.
B19: Inputs | C19: The inputs for the model are set out in this sheet, and can be changed by the user.
B20: Model | C20: The calculation of investor returns and government revenues for the modeled project takes place in this sheet. Additional results are also presented here.
B22: Relation to IMF's FARI model
B28: Sources
B32: Disclaimer
K38: This work is licensed under the Creative Commons Attribution 4.0 International License.
K39: To view a copy of this license, visit http://creativecommons.org/licenses/by/4.0/

Sheet Results
B2: Results | K2: Chosen mine profile: | L2: =Inputs!E217 -> Average profit
B5: Summary assumptions | C5: units
B6: Produced reserves | C6: =Inputs!D220 -> ounces | D6: =SUM(Model!G12:BD12) -> 8000000
B7: Production starts | C7: year | D7: =Model!$C$35 -> 5
B8: Production life | C8: year | D8: =MAX(Model!G33:BD33) -> 24
B9: Development costs | C9: $m | D9: =Inputs!B225 -> 450
B10: Production to DEV CAPEX | C10: =Inputs!D220&"/$m" -> ounces/$m | D10: =D6/D9 -> 17777.77778
B11: Mineral Price | C11: ="$/"&Inputs!D220 -> $/ounces | D11: =Inputs!$F$210 -> 1600
B12: Operating cost per unit | C12: ="$/"&Inputs!D220 -> $/ounces | D12: =Inputs!B229 -> 700
B13: Transport and TC/RC | C13: ="$/"&Inputs!D220 -> $/ounces | D13: =((Inputs!B222+Inputs!B221)*1000000)/Inputs!B220 -> 4.35625
B14: C1 cash cost less royalties | C14: ="$/"&Inputs!D220 -> $/ounces | D14: =D13+D12 -> 704.35625
B15: Total C1 cash costs | C15: ="$/"&Inputs!D220 -> $/ounces | D15: =D12+(SUM(Model!C970:C973)*1000000/Model!C12)+D13 -> 821.95625
B16: Government real discount rate | C16: % | D16: =Inputs!E201 -> 0.1
B17: Company real discount rate | C17: % | D17: =Inputs!E200 -> 0.08
B18: Lender real interest rate | C18: % | D18: =Inputs!E198 -> 0.06
B19: Leverage (equity/total assets) | C19: % | D19: =Inputs!E195 -> 0.5
B20: Inflation | C20: % | D20: =Inputs!E202 -> 0.02
B22: Summary results | C22: units
B23: Project pre-tax net cashflow (discounted) | C23: $m | D23: =Model!C28 -> 1773.023883
B24: Pre-tax project IRR | C24: % | D24: =Model!C27 -> 0.4182406531
B25: Post-tax IRR | C25: % | D25: =Model!C943 -> 0.258314876
B26: Investor hurdle | C26: % | D26: =(D17 * D19) + (D18 * (1 - D19)) -> 0.07
B27: IRR above hurdle? | D27: =D25>D26 -> TRUE
B28: Payback period (not discounted) | C28: years | D28: =Model!C839 -> 6.947283728
B29: Payback period (discounted) | C29: years | D29: =Model!C844 -> 7.652726068
B30: AETR (undiscounted) | D30: =Model!G953 -> 0.5739713517
B31: AETR (discounted at 10%) | D31: =Model!I953 -> 0.6306719837
B34: "Press for results" to compare a new selection of fiscal regimes or after changing project assumptions. Use "Select Data" in each graph to adjust axis lengths and selected data fields. For example, to focus on different fiscal regimes.
B36: Overall government take
B78: Timing of revenues
B100: Progressivity as profits change
B142: Tax base simplicity
B164: Tables used to populate charts - DO NOT TOUCH
B166: AETR | E166: Pasted and re-ordered by macro
C167: AETR | F167: AETR
B168: =TRANSPOSE(Model!G1013:Q1013) -> Tanzania w/o sharing | C168: =TRANSPOSE(Model!G1017:Q1017) -> 0.6306719837 | E168: Western Australia | F168: 0.4260570291
B169: Tanzania w 50/50 sharing | C169: 0.5436874743 | E169: Peru | F169: 0.4550475378
B170: Ecuador | C170: 0.627011286 | E170: Tanzania w 50/50 sharing | F170: 0.5436874743
B171: Philippines FTAA | C171: 0.5662075838 | E171: Burkina Faso | F171: 0.5510013809
B172: Burkina Faso | C172: 0.5510013809 | E172: Indonesia | F172: 0.5534448744
B173: DRC | C173: 0.5628223438 | E173: DRC | F173: 0.5628223438
B174: Ghana | C174: 0.5960837921 | E174: Philippines FTAA | F174: 0.5662075838
B175: South Africa (gold) | C175: 0.5804853098 | E175: South Africa (gold) | F175: 0.5804853098
B176: Indonesia | C176: 0.5534448744 | E176: Ghana | F176: 0.5960837921
B177: Peru | C177: 0.4550475378 | E177: Ecuador | F177: 0.627011286
B178: Western Australia | C178: 0.4260570291 | E178: Tanzania w/o sharing | F178: 0.6306719837
B181: METR and break-even price
C182: Breakeven | D182: METR
B183: Peru | C183: 1100.509853 | D183: 0.2965547769
B184: Western Australia | C184: 1131.894764 | D184: 0.3621740595
B185: South Africa (gold) | C185: 1156.08518 | D185: 0.4036844832
B186: Tanzania w 50/50 sharing | C186: 1162.31142 | D186: 0.4133514912 | L186: `
B187: Philippines FTAA | C187: 1164.439418 | D187: 0.4165700927
B188: Burkina Faso | C188: 1168.320883 | D188: 0.4223331771
B189: DRC | C189: 1170.657525 | D189: 0.4257372807
B190: Ghana | C190: 1180.022785 | D190: 0.4389121841
B191: Indonesia | C191: 1188.455565 | D191: 0.4501719983
B192: Ecuador | C192: 1206.672972 | D192: 0.472743919
B193: Tanzania w/o sharing | C193: 1211.272322 | D193: 0.4780967303
B195: Profile of government revenue - comparing regimes (NPV10)
C197: PV | D197: Share
B198: =Model!D969 -> Import duties | C198: =Model!C969 -> 189.125 | D198: =C198/$C$215 -> 0.05680930806
B199: =Model!D970 -> VAT | C199: =Model!C970 -> 0 | D199: 0
B200: =Model!D971 -> Skills development levy | C200: =Model!C971 -> 44.8 | D200: 0.01345700992
B201: =Model!D972 -> Royalty | C201: =Model!C972 -> 896 | D201: 0.2691401984
B202: =Model!D973 -> Variable rate royalty | C202: =Model!C973 -> 0 | D202: 0
B203: =Model!D974 -> South Africa variable royalty | C203: =Model!C974 -> 0 | D203: 0
B204: =Model!D975 -> Operating profit tax | C204: =Model!C975 -> 0 | D204: 0
B205: =Model!D976 -> DRC excess profits tax | C205: =Model!C976 -> 0 | D205: 0
B206: =Model!D978 -> Corporate income tax | C206: =Model!C978 -> 1405.57808 | D206: 0.4222071018
B207: =Model!D979 -> Resource rent tax | C207: =Model!C979 -> 0 | D207: 0
B208: =Model!D980 -> South Africa gold profit tax | C208: =Model!C980 -> 0 | D208: 0
B209: =Model!D981 -> Zimbabwe additional profits tax | C209: =Model!C981 -> 0 | D209: 0
B210: =Model!D982 -> Govt share of repaid loans | C210: =Model!C982 -> 0 | D210: 0
B211: =Model!D983 -> State dividends | C211: =Model!C983 -> 517.4388431 | D211: 0.1554281171
B212: =Model!D984 -> Dividend withholding tax | C212: =Model!C984 -> 271.6553926 | D212: 0.08159976146
B213: =Model!D985 -> Interest withholding tax | C213: =Model!C985 -> 4.522620275 | D213: 0.001358503257
B214: =Model!D986 -> Adjustment to govt benefit share | C214: =Model!C986 -> 0 | D214: 0
B215: =Model!D988 -> Total government revenue | C215: =Model!C988 -> 3329.119936 | D215: 1
C221: Coefficient of variation
B222: Burkina Faso | C222: 0.9680781923
B223: Indonesia | C223: 0.9868389463
B224: Tanzania w/o sharing | C224: 0.9873284799
B225: Western Australia | C225: 0.9875512274
B226: Ghana | C226: 1.006380901
B227: Tanzania w 50/50 sharing | C227: 1.033801049
B228: Ecuador | C228: 1.035178848
B229: DRC | C229: 1.071521633
B230: Philippines FTAA | C230: 1.072656368
B231: Peru | C231: 1.092428692
B232: South Africa (gold) | C232: 1.622381317
C235: Minus 20% ($mm) | D235: Plus 20% ($mm)
B236: Peru | C236: -14.53978839 | D236: 463.0799661
B237: South Africa (gold) | C237: -24.62390751 | D237: 518.0661156
B238: Western Australia | C238: -35.76397978 | D238: 365.649974
B239: DRC | C239: -53.76596725 | D239: 423.9912433
B240: Indonesia | C240: -54.62505194 | D240: 458.2640784
B241: Burkina Faso | C241: -57.08529613 | D241: 392.6372848
B242: Tanzania w 50/50 sharing | C242: -61.70642355 | D242: 377.2165579
B243: Ghana | C243: -71.3713064 | D243: 432.8256377
B244: Ecuador | C244: -72.70285829 | D244: 525.0520623
B245: Tanzania w/o sharing | C245: -99.82583706 | D245: 401.1037535
B246: Philippines FTAA | C246: -100.6091029 | D246: 483.2522815

Sheet Inputs
B2: Inputs
C5: Choose primary mineral
C6: Gold | D6: =MATCH(C6,Lists!$B$3:$B$11,0) -> 1
C7: Choose co-product
C8: Copper | D8: =MATCH(C8,Lists!$B$3:$B$11,0) -> 2
C10: Main components of tax regime
C11: Our current set of tax regimes can be found in a table to the right of this section. Revisions can be made to these regimes, and new regimes added, in this table.
C12: "Select tax regime" of focus from the adjacent table. The other regimes will be used as comparators. To include an alternative regime, type its name into one of the yellow cells (G15:Q15). | U12: TAX REGIMES TO SELECT FROM
L13: --- Fiscal regime comparators in use ---
C14: SELECT TAX REGIME | E14: 1 | G14: 1 | H14: 2 | I14: 3 | J14: 4 | K14: 5 | L14: 6 | M14: 7 | N14: 8 | O14: 9 | P14: 10 | Q14: 11 | AB14: 1 | AC14: 2 | AD14: 3 | AE14: 4 | AF14: 5 | AG14: 6 | AH14: 7 | AI14: 8 | AJ14: 9 | AK14: 10 | AL14: 11 | AM14: 12 | AN14: 13 | AO14: 14 | AP14: 15 | AQ14: 16 | AR14: 17 | AS14: 18 | AT14: 19 | AU14: 20 | AV14: 21 | AW14: 22 | AX14: 23 | AY14: 24 | AZ14: 25 | BA14: 26 | BB14: 27 | BC14: 28 | BD14: 29 | BE14: 30
C15: Regime name | E15: =INDEX(G15:Q15,$E$14) -> Tanzania w/o sharing | G15: Tanzania w/o sharing | H15: Tanzania w 50/50 sharing | I15: Ecuador | J15: Philippines FTAA | K15: Burkina Faso | L15: DRC | M15: Ghana | N15: South Africa (gold) | O15: Indonesia | P15: Peru | Q15: Western Australia | U15: Regime name | AB15: Tanzania w/o sharing | AC15: Tanzania w 50/50 sharing | AD15: Tanzania 50/50 adj. | AE15: Philippines FTAA | AF15: Ecuador | AG15: Burkina Faso | AH15: Cote d'Ivoire | AI15: DRC | AJ15: Ghana | AK15: Guinea | AL15: Mali 2018 | AM15: Mali proposal 2019 | AN15: Senegal | AO15: South Africa (gold) | AP15: Zambia (gold) | AQ15: Zimbabwe (ordinary mining license) | AR15: Zimbabwe (special mining license) | AS15: Brazil | AT15: Chile | AU15: Peru | AV15: Indonesia | AW15: Kazakhstan | AX15: Kyrgyz Republic | AY15: Western Australia
G16: =MATCH(G15,$AB$15:$BE$15,0) -> 1 | H16: =MATCH(H15,$AB$15:$BE$15,0) -> 2 | I16: 5 | J16: 4 | K16: 6 | L16: 8 | M16: 9 | N16: 14 | O16: 21 | P16: 20 | Q16: 24
C17: Input taxes | U17: Input taxes
C18: Import duty rate 1 | D18: % | E18: =INDEX(G18:Q18,Model!$E$1279) -> 0.05 | G18: =INDEX($AB18:$BE18,G$16) -> 0.05 | H18: 0.05 | I18: 0.05 | J18: 0 | K18: 0.025 | L18: 0.05 | M18: 0 | N18: 0.058 | O18: 0.069 | P18: 0 | Q18: 0.05 | U18: Import duty rate 1 | AA18: % | AB18: 0.05 | AC18: 0.05 | AD18: 0.05 | AE18: 0 | AF18: 0.05 | AG18: 0.025 | AH18: 0 | AI18: 0.05 | AJ18: 0 | AK18: 0 | AL18: 0 | AM18: 0 | AN18: 0 | AO18: 0.058 | AP18: 0 | AQ18: 0 | AR18: 0 | AS18: 0.06 | AT18: 0.06 | AU18: 0 | AV18: 0.069 | AW18: 0.05 | AX18: 0.05 | AY18: 0.05
C19: Import duty rate 2 | D19: % | E19: =INDEX(G19:Q19,Model!$E$1279) -> 0 | G19: 0 | H19: 0 | I19: 0 | J19: 0.055 | K19: 0.075 | L19: 0 | M19: 0 | N19: 0 | O19: 0 | P19: 0 | Q19: 0 | U19: Import duty rate 2 | AA19: % | AE19: 0.055 | AG19: 0.075 | AK19: 0.065 | AL19: 0.075 | AM19: 0.075 | AN19: 0.075
C20: Production year that rate changes: where 0 is no rate change | D20: years | E20: =INDEX(G20:Q20,Model!$E$1279) -> 0 | G20: 0 | H20: 0 | I20: 0 | J20: 12 | K20: 1 | L20: 0 | M20: 0 | N20: 0 | O20: 0 | P20: 0 | Q20: 0 | U20: Production year that rate changes | AA20: years | AE20: 12 | AG20: 1 | AK20: 1 | AL20: 4 | AM20: 4 | AN20: 1
C21: VAT on inputs | D21: % | E21: =INDEX(G21:Q21,Model!$E$1279) -> 0 | G21: 0 | H21: 0 | I21: 0 | J21: 0 | K21: 0 | L21: 0 | M21: 0.05 | N21: 0 | O21: 0 | P21: 0 | Q21: 0 | U21: VAT on inputs | AA21: % | AB21: 0 | AC21: 0 | AD21: 0 | AE21: 0 | AF21: 0 | AG21: 0 | AH21: 0 | AI21: 0 | AJ21: 0.05 | AK21: 0 | AL21: 0 | AM21: 0 | AN21: 0 | AO21: 0 | AP21: 0 | AQ21: 0 | AR21: 0 | AS21: 0 | AT21: 0 | AU21: 0 | AV21: 0 | AW21: 0 | AX21: 0 | AY21: 0
C22: Skills development levy rate 1 | D22: % | E22: =INDEX(G22:Q22,Model!$E$1279) -> 0.04 | G22: 0.04 | H22: =INDEX($AB22:$BE22,H$16) -> 0.04 | I22: 0 | J22: 0 | K22: 0 | L22: 0 | M22: 0 | N22: 0.01 | O22: 0 | P22: 0 | Q22: 0 | U22: Skills development levy rate 1 | AA22: % | AB22: 0.04 | AC22: 0.04 | AD22: 0.04 | AE22: 0 | AF22: 0 | AG22: 0 | AH22: 0 | AI22: 0 | AJ22: 0 | AK22: 0 | AL22: 0 | AM22: 0 | AN22: 0 | AO22: 0.01 | AP22: 0.005 | AQ22: 0.01 | AR22: 0.01 | AS22: 0.025 | AT22: 0 | AU22: 0 | AV22: 0 | AW22: 0 | AX22: 0 | AY22: 0
C23: Skills development levy rate 2 | D23: % | E23: =INDEX(G23:Q23,Model!$E$1279) -> 0 | G23: 0 | H23: 0 | I23: 0 | J23: 0 | K23: 0.03 | L23: 0 | M23: 0 | N23: 0 | O23: 0 | P23: 0 | Q23: 0 | U23: Skills development levy rate 2 | AA23: % | AG23: 0.03
C24: Production year that rate changes: where 0 is no rate change | D24: years | E24: =INDEX(G24:Q24,Model!$E$1279) -> 0 | G24: 0 | H24: 0 | I24: 0 | J24: 0 | K24: 8 | L24: 0 | M24: 0 | N24: 0 | O24: 0 | P24: 0 | Q24: 0 | U24: Production year that rate changes | AA24: years | AG24: 8
C25: Sales taxes | U25: Sales taxes
C26: Royalty (gold) | D26: % | E26: =INDEX(G26:Q26,Model!$E$1279) -> 0.06 | G26: 0.06 | H26: 0.06 | I26: 0.05 | J26: 0.07 | K26: 0 | L26: 0.035 | M26: 0.05 | N26: 0 | O26: 0.0375 | P26: 0 | Q26: 0.025 | U26: Royalty (gold) | AA26: % | AB26: 0.06 | AC26: 0.06 | AD26: 0.06 | AE26: 0.07 | AF26: 0.05 | AG26: 0 | AH26: 0 | AI26: 0.035 | AJ26: 0.05 | AK26: 0.05 | AL26: 0.06 | AM26: 0.06 | AN26: 0.05 | AO26: 0 | AP26: 0.06 | AQ26: 0 | AR26: 0 | AS26: 0.015 | AT26: 0 | AU26: 0 | AV26: 0.0375 | AW26: 0.05 | AX26: 0.07 | AY26: 0.025
C27: Royalty (copper) | D27: % | E27: =INDEX(G27:Q27,Model!$E$1279) -> 0.06 | G27: 0.06 | H27: 0.06 | I27: 0.05 | J27: 0.07 | K27: 0.03 | L27: 0.035 | M27: 0.05 | N27: 0 | O27: 0.04 | P27: 0 | Q27: 0.025 | U27: Royalty (copper) | AA27: % | AB27: 0.06 | AC27: 0.06 | AD27: 0.06 | AE27: 0.07 | AF27: 0.05 | AG27: 0.03 | AH27: 0.035 | AI27: 0.035 | AJ27: 0.05 | AK27: 0.03 | AN27: 0.035 | AO27: 0 | AP27: 0 | AQ27: 0.02 | AR27: 0.02 | AS27: 0.02 | AT27: 0 | AU27: 0 | AV27: 0.04 | AW27: 0.05 | AX27: 0.07 | AY27: 0.025
C28: Royalty (cobalt) | D28: % | E28: =INDEX(G28:Q28,Model!$E$1279) -> 0.06 | G28: 0.06 | H28: 0.06 | I28: 0.05 | J28: 0.07 | K28: 0.03 | L28: 0.1 | M28: 0.05 | N28: 0 | O28: 0.04 | P28: 0 | Q28: 0.025 | U28: Royalty (cobalt) | AA28: % | AB28: 0.06 | AC28: 0.06 | AD28: 0.06 | AE28: 0.07 | AF28: 0.05 | AG28: 0.03 | AH28: 0.035 | AI28: 0.1 | AJ28: 0.05 | AK28: 0.03 | AN28: 0.035 | AO28: 0 | AP28: 0.08 | AQ28: 0.02 | AR28: 0.02 | AS28: 0.02 | AT28: 0 | AU28: 0 | AV28: 0.04 | AW28: 0.05 | AX28: 0.05 | AY28: 0.025
C29: Royalty (nickel) | D29: % | E29: =INDEX(G29:Q29,Model!$E$1279) -> 0.06 | G29: 0.06 | H29: 0.06 | I29: 0.05 | J29: 0.07 | K29: 0.03 | L29: 0 | M29: 0.05 | N29: 0 | O29: 0.04 | P29: 0 | Q29: 0.025 | U29: Royalty (nickel) | AA29: % | AB29: 0.06 | AC29: 0.06 | AD29: 0.06 | AE29: 0.07 | AF29: 0.05 | AG29: 0.03 | AH29: 0.035 | AJ29: 0.05 | AN29: 0.035 | AO29: 0 | AP29: 0.05 | AQ29: 0.02 | AR29: 0.02 | AS29: 0.02 | AV29: 0.04 | AW29: 0.05 | AY29: 0.025
C30: Royalty base: netback/gross | D30: switch | E30: =INDEX(G30:Q30,Model!$E$1279) -> gross | G30: gross | H30: gross | I30: net | J30: gross | K30: gross | L30: gross | M30: gross | N30: gross | O30: net | P30: gross | Q30: gross | U30: Royalty base: netback/gross | AA30: switch | AB30: gross | AC30: gross | AD30: gross | AE30: gross | AF30: net | AG30: gross | AH30: net | AI30: gross | AJ30: gross | AK30: gross | AL30: net | AM30: net | AN30: gross | AO30: gross | AP30: gross | AQ30: gross | AR30: gross | AS30: gross | AT30: gross | AU30: gross | AV30: net | AW30: gross | AX30: gross | AY30: gross
C31: Variable rate royalty - revenue based: see schedules 1-8 below, where schedule 1 is no tax | D31: switch | E31: =INDEX(G31:Q31,Model!$E$1279) -> 1 | G31: 1 | H31: 1 | I31: 1 | J31: 1 | K31: 1 | L31: 1 | M31: 1 | N31: 1 | O31: 1 | P31: 1 | Q31: 1 | U31: Variable rate royalty - revenue based: see schedules 1-8 below, where schedule 1 is no tax | AA31: switch | AB31: 1 | AC31: 1 | AD31: 1 | AE31: 1 | AF31: 1 | AG31: 1 | AH31: 1 | AI31: 1 | AJ31: 1 | AK31: 1 | AL31: 1 | AM31: 1 | AN31: 1 | AO31: 1 | AP31: 1 | AQ31: 1 | AR31: 1 | AS31: 1 | AT31: 1 | AU31: 1 | AV31: 1 | AW31: 1 | AX31: 1 | AY31: 1
C32: Variable rate royalty - price based: see schedules 1-8 below, where schedule 1 is no tax | D32: switch | E32: =INDEX(G32:Q32,Model!$E$1279) -> 1 | G32: 1 | H32: 1 | I32: 1 | J32: 1 | K32: 2 | L32: 1 | M32: 1 | N32: 1 | O32: 1 | P32: 1 | Q32: 1 | U32: Variable rate royalty - price based: see schedules 1-8 below, where schedule 1 is no tax | AA32: switch | AB32: 1 | AC32: 1 | AD32: 1 | AE32: 1 | AF32: 1 | AG32: 2 | AH32: 3 | AI32: 1 | AJ32: 1 | AK32: 1 | AL32: 1 | AM32: 1 | AN32: 1 | AO32: 1 | AP32: 1 | AQ32: 5 | AR32: 5 | AS32: 1 | AT32: 1 | AU32: 1 | AV32: 1 | AW32: 1 | AX32: 6 | AY32: 1
C33: Variable rate royalty - price based: not marginal=1, marginal=2 | D33: switch | E33: =INDEX(G33:Q33,Model!$E$1279) -> 1 | G33: 1 | H33: 1 | I33: 1 | J33: 1 | K33: 1 | L33: 1 | M33: 1 | N33: 1 | O33: 1 | P33: 1 | Q33: 1 | U33: Variable rate royalty - price based: not marginal=1, marginal=2 | AA33: switch | AB33: 1 | AC33: 1 | AD33: 1 | AE33: 1 | AF33: 1 | AG33: 1 | AH33: 1 | AI33: 1 | AJ33: 1 | AK33: 1 | AL33: 1 | AM33: 1 | AN33: 1 | AO33: 1 | AP33: 1 | AQ33: 1 | AR33: 1 | AS33: 1 | AT33: 1 | AU33: 1 | AV33: 1 | AW33: 1 | AX33: 1 | AY33: 1
C34: South Africa variable rate royalty: off=0, on=1 | D34: switch | E34: =INDEX(G34:Q34,Model!$E$1279) -> 0 | G34: 0 | H34: 0 | I34: 0 | J34: 0 | K34: 0 | L34: 0 | M34: 0 | N34: 1 | O34: 0 | P34: 0 | Q34: 0 | U34: South Africa variable rate royalty: off=0, on=1 | AA34: switch | AB34: 0 | AC34: 0 | AD34: 0 | AE34: 0 | AF34: 0 | AG34: 0 | AH34: 0 | AI34: 0 | AJ34: 0 | AK34: 0 | AL34: 0 | AM34: 0 | AN34: 0 | AO34: 1 | AP34: 0 | AQ34: 0 | AR34: 0 | AS34: 0 | AT34: 0 | AU34: 0 | AV34: 0 | AW34: 0 | AX34: 0 | AY34: 0
C35: Schedule: schedules 1-3 further below | D35: switch | E35: =INDEX(G35:Q35,Model!$E$1279) -> 1 | G35: 1 | H35: 1 | I35: 1 | J35: 1 | K35: 1 | L35: 1 | M35: 1 | N35: 2 | O35: 1 | P35: 1 | Q35: 1 | U35: Schedule: schedules 1-3 further below | AA35: switch | AB35: 1 | AC35: 1 | AD35: 1 | AE35: 1 | AF35: 1 | AG35: 1 | AH35: 1 | AI35: 1 | AJ35: 1 | AK35: 1 | AL35: 1 | AM35: 1 | AN35: 1 | AO35: 2 | AP35: 1 | AQ35: 1 | AR35: 1 | AS35: 1 | AT35: 1 | AU35: 1 | AV35: 1 | AW35: 1 | AX35: 1 | AY35: 1
C36: Export duty/clearance fee | D36: % | E36: =INDEX(G36:Q36,Model!$E$1279) -> 0.01 | G36: 0.01 | H36: 0.01 | I36: 0 | J36: 0 | K36: 0 | L36: 0 | M36: 0 | N36: 0 | O36: 0 | P36: 0 | Q36: 0 | U36: Export duty/clearance fee | AA36: % | AB36: 0.01 | AC36: 0.01 | AD36: 0.01 | AE36: 0 | AF36: 0 | AG36: 0 | AH36: 0 | AI36: 0 | AJ36: 0 | AK36: 0 | AL36: 0 | AM36: 0 | AN36: 0 | AO36: 0 | AP36: 0.15 | AQ36: 0 | AR36: 0 | AS36: 0 | AT36: 0 | AU36: 0 | AV36: 0 | AW36: 0 | AX36: 0 | AY36: 0
C37: Local development levy | D37: % | E37: =INDEX(G37:Q37,Model!$E$1279) -> 0 | G37: 0 | H37: 0 | I37: 0 | J37: 0 | K37: 0.01 | L37: 0.003 | M37: 0 | N37: 0 | O37: 0 | P37: 0 | Q37: 0 | U37: Local development levy | AA37: % | AG37: 0.01 | AH37: 0.005 | AI37: 0.003 | AK37: 0.01 | AM37: 0.0025 | AN37: 0.005
C38: Operating profit taxes | U38: Operating profit taxes
C39: Operating profit tax: see schedules 1-8 below, where schedule 1 is no tax | D39: switch | E39: =INDEX(G39:Q39,Model!$E$1279) -> 1 | G39: 1 | H39: 1 | I39: 1 | J39: 1 | K39: 1 | L39: 1 | M39: 1 | N39: 1 | O39: 1 | P39: 3 | Q39: 1 | U39: Operating profit tax: see schedules 1-8 below, where schedule 1 is no tax | AA39: switch | AB39: 1 | AC39: 1 | AD39: 1 | AE39: 1 | AF39: 1 | AG39: 1 | AH39: 1 | AI39: 1 | AJ39: 1 | AK39: 1 | AL39: 1 | AM39: 1 | AN39: 1 | AO39: 1 | AP39: 1 | AQ39: 1 | AR39: 1 | AS39: 1 | AT39: 2 | AU39: 3 | AV39: 1 | AW39: 1 | AX39: 1 | AY39: 1
C40: Backstop royalty if OPT below threshold | D40: % | E40: =INDEX(G40:Q40,Model!$E$1279) -> 0 | G40: 0 | H40: 0 | I40: 0 | J40: 0 | K40: 0 | L40: 0 | M40: 0 | N40: 0 | O40: 0 | P40: 0.01 | Q40: 0 | U40: Backstop royalty if OPT below threshold | AA40: % | AU40: 0.01
C41: DRC excess profits tax rate | D41: % | E41: =INDEX(G41:Q41,Model!$E$1279) -> 0 | G41: 0 | H41: 0 | I41: 0 | J41: 0 | K41: 0 | L41: 0.5 | M41: 0 | N41: 0 | O41: 0 | P41: 0 | Q41: 0 | U41: DRC excess profits tax rate | AA41: % | AI41: 0.5
C42: Threshold | D42: % | E42: =INDEX(G42:Q42,Model!$E$1279) -> 0 | G42: 0 | H42: 0 | I42: =INDEX($AB42:$BE42,I$16) -> 0 | J42: 0 | K42: 0 | L42: 0.25 | M42: 0 | N42: 0 | O42: 0 | P42: 0 | Q42: 0 | U42: Threshold | AA42: % | AI42: 0.25
C43: Corporate income tax | U43: Corporate income tax
C44: Corporate income tax rate 1 | D44: % | E44: =INDEX(G44:Q44,Model!$E$1279) -> 0.3 | G44: =INDEX($AB44:$BE44,G$16) -> 0.3 | H44: 0.3 | I44: 0.25 | J44: 0.3 | K44: 0.275 | L44: 0.3 | M44: 0.35 | N44: 0 | O44: 0.25 | P44: 0.295 | Q44: 0.3 | U44: Corporate income tax rate 1 | AA44: % | AB44: 0.3 | AC44: 0.3 | AD44: 0.3 | AE44: 0.3 | AF44: 0.25 | AG44: 0.275 | AH44: 0.25 | AI44: 0.3 | AJ44: 0.35 | AK44: 0.3 | AL44: 0.25 | AM44: 0.25 | AN44: 0.3 | AO44: 0 | AP44: 0.3 | AQ44: 0.28 | AR44: 0.18 | AS44: 0.34 | AT44: 0.25 | AU44: 0.295 | AV44: 0.25 | AW44: 0.2 | AX44: 0 | AY44: 0.3
C45: Corporate income tax rate 2 | D45: % | E45: =INDEX(G45:Q45,Model!$E$1279) -> 0 | G45: 0 | H45: 0 | I45: 0 | J45: 0 | K45: 0 | L45: 0 | M45: 0 | N45: 0 | O45: 0 | P45: 0 | Q45: 0 | U45: Corporate income tax rate 2 | AA45: % | AL45: 0.3 | AM45: 0.3
C46: Production year that rate changes: where 0 is no rate change | D46: years | E46: =INDEX(G46:Q46,Model!$E$1279) -> 0 | G46: 0 | H46: 0 | I46: 0 | J46: 0 | K46: 0 | L46: 0 | M46: 0 | N46: 0 | O46: 0 | P46: 0 | Q46: 0 | U46: Production year that rate changes | AA46: years | AL46: 16 | AM46: 4
C47: Exploration costs (expensed): immediate/deferred | D47: switch | E47: =INDEX(G47:Q47,Model!$E$1279) -> deferred | G47: deferred | H47: deferred | I47: deferred | J47: deferred | K47: deferred | L47: deferred | M47: deferred | N47: deferred | O47: deferred | P47: deferred | Q47: deferred | U47: Exploration costs (expensed): immediate/deferred | AA47: switch | AB47: deferred | AC47: deferred | AD47: deferred | AE47: deferred | AF47: deferred | AG47: deferred | AH47: deferred | AI47: deferred | AJ47: deferred | AK47: deferred | AL47: deferred | AM47: deferred | AN47: deferred | AO47: deferred | AP47: deferred | AQ47: deferred | AR47: deferred | AS47: deferred | AT47: deferred | AU47: deferred | AV47: deferred | AW47: deferred | AY47: deferred
C48: Development costs - intangibles (expensed): immediate/deferred | D48: switch | E48: =INDEX(G48:Q48,Model!$E$1279) -> deferred | G48: deferred | H48: deferred | I48: deferred | J48: deferred | K48: deferred | L48: deferred | M48: deferred | N48: deferred | O48: deferred | P48: deferred | Q48: deferred | U48: Development costs - intangibles (expensed): immediate/deferred | AA48: switch | AB48: deferred | AC48: deferred | AD48: deferred | AE48: deferred | AF48: deferred | AG48: deferred | AH48: deferred | AI48: deferred | AJ48: deferred | AK48: deferred | AL48: deferred | AM48: deferred | AN48: deferred | AO48: deferred | AP48: deferred | AQ48: deferred | AR48: deferred | AS48: deferred | AT48: deferred | AU48: deferred | AV48: deferred | AW48: deferred | AY48: deferred
C49: Development costs - tangibles (depreciated): immediate/deferred | D49: switch | E49: =INDEX(G49:Q49,Model!$E$1279) -> deferred | G49: deferred | H49: deferred | I49: deferred | J49: deferred | K49: deferred | L49: deferred | M49: deferred | N49: deferred | O49: deferred | P49: deferred | Q49: deferred | U49: Development costs - tangibles (depreciated): immediate/deferred | AA49: switch | AB49: deferred | AC49: deferred | AD49: deferred | AE49: deferred | AF49: deferred | AG49: deferred | AH49: deferred | AI49: deferred | AJ49: deferred | AK49: deferred | AL49: deferred | AM49: deferred | AN49: deferred | AO49: deferred | AP49: deferred | AQ49: deferred | AR49: deferred | AS49: deferred | AT49: deferred | AU49: deferred | AV49: deferred | AW49: deferred | AY49: deferred
C50: Depreciation allowance for tangible development costs | D50: years | E50: =INDEX(G50:Q50,Model!$E$1279) -> 5 | G50: 5 | H50: 5 | I50: 10 | J50: 1 | K50: 0 | L50: 10 | M50: 5 | N50: 1 | O50: 16 | P50: 10 | Q50: 10 | U50: Depreciation allowance for tangible development costs | AA50: years | AB50: 5 | AC50: 5 | AD50: 5 | AE50: 1 | AF50: 10 | AH50: 5 | AI50: 10 | AJ50: 5 | AK50: 5 | AO50: 1 | AP50: 4 | AQ50: 1 | AR50: 4 | AS50: 17 | AT50: 10 | AU50: 10 | AV50: 16 | AW50: 4 | AY50: 10
C51: Non-linear depreciation of tangible development costs: off=0, on=1 | D51: switch | E51: =INDEX(G51:Q51,Model!$E$1279) -> 0 | G51: 0 | H51: 0 | I51: 0 | J51: 0 | K51: 1 | L51: 0 | M51: 0 | N51: 0 | O51: 0 | P51: 0 | Q51: 0 | U51: Non-linear depreciation of tangible development costs: off=0, on=1 | AA51: switch | AB51: 0 | AC51: 0 | AD51: 0 | AE51: 0 | AF51: 0 | AG51: 1 | AH51: 0 | AI51: 0 | AJ51: 0 | AK51: 0 | AL51: 1 | AM51: 1 | AN51: 1 | AO51: 0 | AP51: 0 | AQ51: 0 | AR51: 0 | AS51: 0 | AT51: 0 | AU51: 0 | AV51: 0 | AW51: 0 | AY51: 0
C52: Additional allowance for development capital | D52: % | E52: =INDEX(G52:Q52,Model!$E$1279) -> 0 | G52: 0 | H52: 0 | I52: 0 | J52: 0.15 | K52: 0 | L52: 0 | M52: 0 | N52: 0 | O52: 0 | P52: 0 | Q52: 0 | U52: Additional allowance for development capital | AE52: 0.15
C53: Depreciation allowance for replacement capital costs | D53: years | E53: =INDEX(G53:Q53,Model!$E$1279) -> 5 | G53: 5 | H53: 5 | I53: 10 | J53: 5 | K53: 0 | L53: 10 | M53: 5 | N53: 1 | O53: 16 | P53: 10 | Q53: 10 | U53: Depreciation allowance for replacement capital costs | AA53: years | AB53: 5 | AC53: 5 | AD53: 5 | AE53: 5 | AF53: 10 | AH53: 5 | AI53: 10 | AJ53: 5 | AK53: 5 | AO53: 1 | AP53: 4 | AQ53: 1 | AR53: 4 | AS53: 17 | AT53: 10 | AU53: 10 | AV53: 16 | AW53: 4 | AY53: 10
C54: Non-linear depreciation of replacement capital costs: off=0, on=1 | D54: switch | E54: =INDEX(G54:Q54,Model!$E$1279) -> 0 | G54: 0 | H54: 0 | I54: 0 | J54: 0 | K54: 1 | L54: 0 | M54: 0 | N54: 0 | O54: 0 | P54: 0 | Q54: 0 | U54: Non-linear depreciation of replacement capital costs: off=0, on=1 | AA54: switch | AB54: 0 | AC54: 0 | AD54: 0 | AE54: 0 | AF54: 0 | AG54: 1 | AH54: 0 | AI54: 0 | AJ54: 0 | AK54: 0 | AL54: 1 | AM54: 1 | AN54: 1 | AO54: 0 | AP54: 0 | AQ54: 0 | AR54: 0 | AS54: 0 | AT54: 0 | AU54: 0 | AV54: 0 | AW54: 0 | AY54: 0
C55: Additional allowance for replacement capital | D55: % | E55: =INDEX(G55:Q55,Model!$E$1279) -> 0 | G55: 0 | H55: 0 | I55: 0 | J55: 0.2 | K55: =INDEX($AB55:$BE55,K$16) -> 0 | L55: 0 | M55: 0 | N55: 0 | O55: 0 | P55: 0 | Q55: 0 | U55: Additional allowance for replacement capital | AA55: % | AE55: 0.2
C56: Deductibility of royalty: yes=1, no=2 | D56: switch | E56: =INDEX(G56:Q56,Model!$E$1279) -> 1 | G56: 1 | H56: 1 | I56: 1 | J56: 1 | K56: 1 | L56: 1 | M56: 1 | N56: 1 | O56: 1 | P56: 1 | Q56: 1 | U56: Deductibility of royalty: yes=1, no=2 | AA56: switch | AB56: 1 | AC56: 1 | AD56: 1 | AE56: 1 | AF56: 1 | AG56: 1 | AH56: 1 | AI56: 1 | AJ56: 1 | AK56: 1 | AL56: 1 | AM56: 1 | AN56: 1 | AO56: 1 | AP56: 1 | AQ56: 2 | AR56: 2 | AS56: 1 | AT56: 1 | AU56: 1 | AV56: 1 | AW56: 1 | AX56: 1 | AY56: 1
C57: Interest on shareholder loans recognized as project cost: yes=1, no=2 | D57: switch | E57: =INDEX(G57:Q57,Model!$E$1279) -> 1 | G57: 1 | H57: 2 | I57: 1 | J57: 1 | K57: 1 | L57: 1 | M57: =INDEX($AB57:$BE57,M$16) -> 1 | N57: 1 | O57: 1 | P57: 1 | Q57: 1 | U57: Interest on shareholder loans recognized as project cost: yes=1, no=2 | AA57: switch | AB57: 1 | AC57: 2 | AD57: 2 | AE57: 1 | AF57: 1 | AG57: 1 | AH57: 1 | AI57: 1 | AJ57: 1 | AK57: 1 | AL57: 1 | AM57: 1 | AN57: 1 | AO57: 1 | AP57: 1 | AQ57: 1 | AR57: 1 | AS57: 1 | AT57: 1 | AU57: 1 | AV57: 1 | AW57: 1 | AX57: 1 | AY57: 1
C58: Loss carry forward - time period: where 100 is indefinite carry forward | D58: years | E58: =INDEX(G58:Q58,Model!$E$1279) -> 100 | G58: 100 | H58: 100 | I58: 5 | J58: 5 | K58: 100 | L58: 5 | M58: 5 | N58: 100 | O58: 5 | P58: 4 | Q58: 100 | U58: Loss carry forward - time period: where 100 is indefinite carry forward | AA58: years | AB58: 100 | AC58: 100 | AD58: 100 | AE58: 5 | AF58: 5 | AG58: 100 | AH58: 100 | AI58: 5 | AJ58: 5 | AK58: 100 | AL58: 100 | AM58: 100 | AN58: 3 | AO58: 100 | AP58: 10 | AQ58: 100 | AR58: 100 | AS58: 100 | AT58: 100 | AU58: 4 | AV58: 5 | AW58: 10 | AY58: 100
C59: Loss carry forward - annual income that losses can be utilised against | D59: % | E59: =INDEX(G59:Q59,Model!$E$1279) -> 0.7 | G59: 0.7 | H59: 0.7 | I59: 0.25 | J59: 1 | K59: 1 | L59: 1 | M59: 1 | N59: 1 | O59: 1 | P59: 1 | Q59: 1 | U59: Loss carry forward - annual income that losses can be utilised against | AA59: % | AB59: 0.7 | AC59: 0.7 | AD59: 0.7 | AE59: 1 | AF59: 0.25 | AG59: 1 | AH59: 1 | AI59: 1 | AJ59: 1 | AK59: 1 | AL59: 1 | AM59: 1 | AN59: 1 | AO59: 1 | AP59: 0.5 | AQ59: 1 | AR59: 1 | AS59: 0.3 | AT59: 1 | AU59: 1 | AV59: 1 | AW59: 1 | AY59: 1
C60: South Africa gold profit tax: off=0, on=1 | D60: switch | E60: =INDEX(G60:Q60,Model!$E$1279) -> 0 | G60: =INDEX($AB60:$BE60,G$16) -> 0 | H60: 0 | I60: 0 | J60: 0 | K60: 0 | L60: 0 | M60: 0 | N60: 1 | O60: 0 | P60: 0 | Q60: 0 | U60: South Africa gold profit tax: off=0, on=1 | AA60: switch | AB60: 0 | AC60: 0 | AD60: 0 | AE60: 0 | AF60: 0 | AG60: 0 | AH60: 0 | AI60: 0 | AJ60: 0 | AK60: 0 | AL60: 0 | AM60: 0 | AN60: 0 | AO60: 1 | AP60: 0 | AQ60: 0 | AR60: 0 | AS60: 0 | AT60: 0 | AU60: 0 | AV60: 0 | AW60: 0 | AX60: 0 | AY60: 0
C61: Parameter a | E61: =INDEX(G61:Q61,Model!$E$1279) -> 0 | G61: 0 | H61: 0 | I61: 0 | J61: 0 | K61: 0 | L61: 0 | M61: 0 | N61: 34 | O61: 0 | P61: 0 | Q61: 0 | U61: Parameter a | AO61: 34
C62: Parameter b | E62: =INDEX(G62:Q62,Model!$E$1279) -> 0 | G62: 0 | H62: 0 | I62: 0 | J62: 0 | K62: 0 | L62: 0 | M62: 0 | N62: 5 | O62: 0 | P62: 0 | Q62: 0 | U62: Parameter b | AO62: 5
C63: Excess profit taxes | U63: Variable rate profit taxes
C64: Resource rent tax rate | D64: % | E64: =INDEX(G64:Q64,Model!$E$1279) -> 0 | G64: =INDEX($AB64:$BE64,G$16) -> 0 | H64: 0 | I64: 0 | J64: 0 | K64: 0 | L64: 0 | M64: 0 | N64: 0 | O64: 0 | P64: 0 | Q64: 0 | U64: Resource rent tax rate | AA64: %
C65: Threshhold | D65: % | E65: =INDEX(G65:Q65,Model!$E$1279) -> 0 | G65: 0 | H65: 0 | I65: 0 | J65: 0 | K65: 0 | L65: 0 | M65: 0 | N65: 0 | O65: 0 | P65: 0 | Q65: 0 | U65: Threshhold | AA65: %
C66: CIT deductible; yes=1, no=2 | D66: switch | E66: =INDEX(G66:Q66,Model!$E$1279) -> 0 | G66: 0 | H66: 0 | I66: 0 | J66: 0 | K66: 0 | L66: 0 | M66: 0 | N66: 0 | O66: 0 | P66: 0 | Q66: 0 | U66: CIT deductible; yes=1, no=2 | AA66: switch
C67: Zimbabwe additional profits tax: off=0, on=1 | D67: switch | E67: =INDEX(G67:Q67,Model!$E$1279) -> 0 | G67: 0 | H67: 0 | I67: =INDEX($AB67:$BE67,I$16) -> 0 | J67: 0 | K67: 0 | L67: 0 | M67: 0 | N67: 0 | O67: 0 | P67: 0 | Q67: 0 | U67: Zimbabwe additional profits tax: off=0, on=1 | AA67: switch | AB67: 0 | AC67: 0 | AD67: 0 | AE67: 0 | AF67: 0 | AG67: 0 | AH67: 0 | AI67: 0 | AJ67: 0 | AK67: 0 | AL67: 0 | AM67: 0 | AN67: 0 | AO67: 0 | AP67: 0 | AQ67: 0 | AR67: 1 | AS67: 0 | AT67: 0 | AU67: 0 | AV67: 0 | AW67: 0 | AX67: 0 | AY67: 0
C68: Threshold for first accumulated net cash position | D68: % | E68: =INDEX(G68:Q68,Model!$E$1279) -> 0 | G68: 0 | H68: 0 | I68: 0 | J68: 0 | K68: 0 | L68: 0 | M68: 0 | N68: 0 | O68: 0 | P68: 0 | Q68: 0 | U68: Threshold for first accumulated net cash position | AA68: % | AR68: 0.15
C69: Tax rate on first accumulated net cash position | D69: % | E69: =INDEX(G69:Q69,Model!$E$1279) -> 0 | G69: 0 | H69: 0 | I69: 0 | J69: 0 | K69: 0 | L69: 0 | M69: 0 | N69: 0 | O69: 0 | P69: 0 | Q69: 0 | U69: Tax rate on first accumulated net cash position | AA69: % | AR69: 0.2888
C70: Threshold for second accumulated net cash position | D70: % | E70: =INDEX(G70:Q70,Model!$E$1279) -> 0 | G70: 0 | H70: 0 | I70: 0 | J70: 0 | K70: 0 | L70: 0 | M70: 0 | N70: 0 | O70: 0 | P70: 0 | Q70: 0 | U70: Threshold for second accumulated net cash position | AA70: % | AR70: 0.2
C71: Tax rate on second accumulated net cash position | D71: % | E71: =INDEX(G71:Q71,Model!$E$1279) -> 0 | G71: 0 | H71: 0 | I71: 0 | J71: 0 | K71: 0 | L71: 0 | M71: 0 | N71: 0 | O71: 0 | P71: 0 | Q71: 0 | U71: Tax rate on second accumulated net cash position | AA71: % | AR71: 0.27778
C72: Other profit taxes | U72: Other profit taxes
C73: Interest withholding tax | D73: % | E73: =INDEX(G73:Q73,Model!$E$1279) -> 0.1 | G73: =INDEX($AB73:$BE73,G$16) -> 0.1 | H73: =INDEX($AB73:$BE73,H$16) -> 0.1 | I73: 0.25 | J73: 0.2 | K73: 0.0625 | L73: 0 | M73: 0.08 | N73: 0.15 | O73: 0.2 | P73: 0.0499 | Q73: 0.05 | U73: Interest withholding tax | AA73: % | AB73: 0.1 | AC73: 0.1 | AD73: 0.1 | AE73: 0.2 | AF73: 0.25 | AG73: 0.0625 | AH73: 0.18 | AI73: 0 | AJ73: 0.08 | AK73: 0.1 | AL73: 0.09 | AM73: 0.09 | AN73: 0.16 | AO73: 0.15 | AP73: 0.2 | AQ73: 0 | AR73: 0 | AS73: 0.15 | AT73: 0.35 | AU73: 0.0499 | AV73: 0.2 | AW73: 0.15 | AX73: 0.1 | AY73: 0.05
C74: Dividend withholding tax | D74: % | E74: =INDEX(G74:Q74,Model!$E$1279) -> 0.1 | G74: =INDEX($AB74:$BE74,G$16) -> 0.1 | H74: =INDEX($AB74:$BE74,H$16) -> 0.1 | I74: 0.1 | J74: 0.15 | K74: 0.0625 | L74: 0.1 | M74: 0.08 | N74: 0.2 | O74: 0.2 | P74: 0.05 | Q74: 0 | U74: Dividend withholding tax | AA74: % | AB74: 0.1 | AC74: 0.1 | AD74: 0.1 | AE74: 0.15 | AF74: 0.1 | AG74: 0.0625 | AH74: 0.15 | AI74: 0.1 | AJ74: 0.08 | AK74: 0.1 | AL74: 0.1 | AM74: 0.1 | AN74: 0.1 | AO74: 0.2 | AP74: 0.2 | AQ74: 0.15 | AR74: 0.15 | AS74: 0 | AT74: 0.1 | AU74: 0.05 | AV74: 0.2 | AW74: 0.15 | AX74: 0.1 | AY74: 0
C75: Ecuador profit share for workers | D75: % | E75: =INDEX(G75:Q75,Model!$E$1279) -> 0 | G75: =INDEX($AB75:$BE75,G$16) -> 0 | H75: 0 | I75: 0.15 | J75: 0 | K75: 0 | L75: 0 | M75: 0 | N75: 0 | O75: 0 | P75: 0 | Q75: 0 | U75: Ecuador profit share for workers | AA75: % | AF75: 0.15
C76: Portion distributed through government: off=0, on=1 | D76: switch | E76: =INDEX(G76:Q76,Model!$E$1279) -> 0 | G76: 0 | H76: 0 | I76: 0 | J76: 0 | K76: 0 | L76: 0 | M76: 0 | N76: 0 | O76: 0 | P76: 0 | Q76: 0 | U76: Portion distributed through government: off=0, on=1 | AA76: switch | AF76: 0
C77: Portion distributed through government | D77: % | E77: =INDEX(G77:Q77,Model!$E$1279) -> 0 | G77: 0 | H77: 0 | I77: 0.12 | J77: 0 | K77: 0 | L77: 0 | M77: 0 | N77: 0 | O77: 0 | P77: 0 | Q77: 0 | U77: Portion distributed through government | AA77: % | AF77: 0.12
C78: State equity | U78: State equity
C79: State equity share | D79: % | E79: =INDEX(G79:Q79,Model!$E$1279) -> 0.16 | G79: =INDEX($AB79:$BE79,G$16) -> 0.16 | H79: 0.16 | I79: 0 | J79: 0 | K79: 0.1 | L79: 0.1 | M79: 0.1 | N79: 0 | O79: 0 | P79: 0 | Q79: 0 | U79: State equity share | AA79: % | AB79: 0.16 | AC79: 0.16 | AD79: 0.16 | AE79: 0 | AF79: 0 | AG79: 0.1 | AH79: 0.1 | AI79: 0.1 | AJ79: 0.1 | AK79: 0.15 | AL79: 0.1 | AM79: 0.1 | AN79: 0.1 | AO79: 0 | AP79: 0 | AQ79: 0 | AR79: 0 | AS79: 0 | AT79: 0 | AU79: 0 | AV79: 0 | AW79: 0 | AX79: 0 | AY79: 0
C80: Corporate structure: incorporated=1, unincorporated=2 | D80: switch | E80: =INDEX(G80:Q80,Model!$E$1279) -> 1 | G80: 1 | H80: 1 | I80: 1 | J80: 1 | K80: 1 | L80: 1 | M80: 1 | N80: 1 | O80: 1 | P80: 1 | Q80: 1 | U80: Corporate structure: incorporated=1, unincorporated=2 | AA80: switch | AB80: 1 | AC80: 1 | AD80: 1 | AE80: 1 | AF80: 1 | AG80: 1 | AH80: 1 | AI80: 1 | AJ80: 1 | AK80: 1 | AL80: 1 | AM80: 1 | AN80: 1 | AO80: 1 | AP80: 1 | AQ80: 1 | AR80: 1 | AS80: 1 | AT80: 1 | AU80: 1 | AV80: 1 | AW80: 1 | AX80: 1 | AY80: 1
C81: Payment for state equity: paid=1, carried=2, free=3 | D81: switch | E81: =INDEX(G81:Q81,Model!$E$1279) -> 3 | G81: 3 | H81: 3 | I81: 0 | J81: 0 | K81: 3 | L81: 3 | M81: 3 | N81: 0 | O81: 0 | P81: 0 | Q81: 0 | U81: Payment for state equity: paid=1, carried=2, free=3 | AA81: switch | AB81: 3 | AC81: 3 | AD81: 3 | AG81: 3 | AH81: 3 | AI81: 3 | AJ81: 3 | AK81: 3 | AL81: 3 | AM81: 3 | AN81: 3
C82: State equity contribution includes exploration costs: yes=1, no=2 | D82: switch | E82: =INDEX(G82:Q82,Model!$E$1279) -> 2 | G82: 2 | H82: 2 | I82: 2 | J82: 2 | K82: 2 | L82: 2 | M82: 2 | N82: 2 | O82: 2 | P82: 2 | Q82: 2 | U82: State equity contribution includes exploration costs: yes=1, no=2 | AA82: switch | AB82: 2 | AC82: 2 | AD82: 2 | AE82: 2 | AF82: 2 | AG82: 2 | AH82: 2 | AI82: 2 | AJ82: 2 | AK82: 2 | AL82: 2 | AM82: 2 | AN82: 2 | AO82: 2 | AP82: 2 | AQ82: 2 | AR82: 2 | AS82: 2 | AT82: 2 | AU82: 2 | AV82: 2 | AW82: 2 | AX82: 2 | AY82: 2
C83: State equity also provides share of loan repayments: yes=1, no=2 | D83: switch | E83: =INDEX(G83:Q83,Model!$E$1279) -> 2 | G83: 2 | H83: 1 | I83: 2 | J83: 2 | K83: 2 | L83: 2 | M83: 2 | N83: 2 | O83: 2 | P83: 2 | Q83: 2 | U83: State equity also provides share of loan repayments: yes=1, no=2 | AA83: switch | AB83: 2 | AC83: 1 | AD83: 1 | AE83: 2 | AF83: 2 | AG83: 2 | AH83: 2 | AI83: 2 | AJ83: 2 | AK83: 2 | AL83: 2 | AM83: 2 | AN83: 2 | AO83: 2 | AP83: 2 | AQ83: 2 | AR83: 2 | AS83: 2 | AT83: 2 | AU83: 2 | AV83: 2 | AW83: 2 | AX83: 2 | AY83: 2
C84: Ultimate sharing of mine benefits | U84: State equity
C85: Tanzania sharing mechanism: off=0, on=1 | D85: switch | E85: =INDEX(G85:Q85,Model!$E$1279) -> 0 | G85: 0 | H85: 1 | I85: =INDEX($AB85:$BE85,I$16) -> 0 | J85: 0 | K85: 0 | L85: 0 | M85: 0 | N85: 0 | O85: 0 | P85: 0 | Q85: 0 | U85: Tanzania sharing mechanism: off=0, on=1 | AA85: switch | AC85: 1 | AD85: 1
C86: Government share of benefits | D86: % | E86: =INDEX(G86:Q86,Model!$E$1279) -> 0 | G86: 0 | H86: 0.5 | I86: 0 | J86: 0 | K86: 0 | L86: 0 | M86: 0 | N86: 0 | O86: 0 | P86: 0 | Q86: 0 | U86: Government share of benefits | AA86: % | AC86: 0.5 | AD86: 0.58
C87: Benefits before sharing trigger included: yes=1, no=2 | D87: switch | E87: =INDEX(G87:Q87,Model!$E$1279) -> 0 | G87: 0 | H87: 1 | I87: 0 | J87: 0 | K87: 0 | L87: 0 | M87: 0 | N87: 0 | O87: 0 | P87: 0 | Q87: 0 | U87: Benefits before sharing trigger included: yes=1, no=2 | AA87: switch | AC87: 1 | AD87: 1
C88: Includes suggested adjustments: off=0, on=1 | D88: switch | E88: =INDEX(G88:Q88,Model!$E$1279) -> 0 | G88: 0 | H88: 0 | I88: 1 | J88: 0 | K88: 0 | L88: 0 | M88: 0 | N88: 0 | O88: 0 | P88: 0 | Q88: 0 | U88: Includes suggested adjustments: off=0, on=1 | AA88: switch | AD88: 1
C89: Philippines sharing mechanism: off=0, on=1 | D89: switch | E89: =INDEX(G89:Q89,Model!$E$1279) -> 0 | G89: 0 | H89: 0 | I89: 0 | J89: 1 | K89: 0 | L89: 0 | M89: 0 | N89: 0 | O89: 0 | P89: 0 | Q89: 0 | U89: Philippines sharing mechanism: off=0, on=1 | AA89: switch | AE89: 1
C90: Government minimum share of benefits | D90: % | E90: =INDEX(G90:Q90,Model!$E$1279) -> 0 | G90: 0 | H90: 0 | I90: 0 | J90: 0.5 | K90: 0 | L90: 0 | M90: 0 | N90: 0 | O90: 0 | P90: 0 | Q90: 0 | U90: Government minimum share of benefits | AA90: % | AE90: 0.5
C91: Recovery period maximum | D91: years | E91: =INDEX(G91:Q91,Model!$E$1279) -> 0 | G91: 0 | H91: 0 | I91: 0 | J91: 5 | K91: 0 | L91: 0 | M91: 0 | N91: 0 | O91: 0 | P91: 0 | Q91: 0 | U91: Recovery period maximum | AA91: years | AE91: 5
C92: Deduction of pre-production capex after recovery period - as % of annual income | D92: % | E92: =INDEX(G92:Q92,Model!$E$1279) -> 0 | G92: 0 | H92: 0 | I92: 0 | J92: 0.25 | K92: 0 | L92: 0 | M92: 0 | N92: 0 | O92: 0 | P92: 0 | Q92: 0 | U92: Deduction of pre-production capex after recovery period - as % of annual income | AA92: % | AE92: 0.25
C93: Ecuador sharing mechanism: off=0, on=1 | D93: switch | E93: =INDEX(G93:Q93,Model!$E$1279) -> 0 | G93: 0 | H93: 0 | I93: 1 | J93: 0 | K93: 0 | L93: 0 | M93: 0 | N93: 0 | O93: 0 | P93: 0 | Q93: 0 | U93: Ecuador sharing mechanism: off=0, on=1 | AF93: 1
C94: Government minimum share of benefits | D94: % | E94: =INDEX(G94:Q94,Model!$E$1279) -> 0 | G94: 0 | H94: 0 | I94: 0.5 | J94: 0 | K94: 0 | L94: 0 | M94: 0 | N94: 0 | O94: 0 | P94: 0 | Q94: 0 | U94: Government minimum share of benefits | AA94: % | AF94: 0.5
C95: Other provisions | U95: Other provisions
C96: Decommissioning provision: yes=1, no=2 | D96: switch | E96: =INDEX(G96:Q96,Model!$E$1279) -> 1 | G96: =INDEX($AB96:$BE96,G$16) -> 1 | H96: =INDEX($AB96:$BE96,H$16) -> 1 | I96: 1 | J96: 1 | K96: 1 | L96: 1 | M96: 1 | N96: 1 | O96: 1 | P96: 1 | Q96: 1 | U96: Decommissioning provision: yes=1, no=2 | AA96: switch | AB96: 1 | AC96: 1 | AD96: 1 | AE96: 1 | AF96: 1 | AG96: 1 | AH96: 1 | AI96: 1 | AJ96: 1 | AK96: 1 | AL96: 1 | AM96: 1 | AN96: 1 | AO96: 1 | AP96: 1 | AQ96: 1 | AR96: 1 | AS96: 1 | AT96: 1 | AU96: 1 | AV96: 1 | AW96: 1 | AX96: 1 | AY96: 1
C97: Commencement of decommissioning provision | D97: % depletion | E97: =INDEX(G97:Q97,Model!$E$1279) -> 0.6 | G97: =INDEX($AB97:$BE97,G$16) -> 0.6 | H97: =INDEX($AB97:$BE97,H$16) -> 0.6 | I97: 0.6 | J97: 0.6 | K97: 0.6 | L97: =INDEX($AB97:$BE97,L$16) -> 0.6 | M97: 0.6 | N97: 0.6 | O97: 0.6 | P97: 0.6 | Q97: 0.6 | U97: Commencement of decommissioning provision | AA97: % depletion | AB97: 0.6 | AC97: 0.6 | AD97: 0.6 | AE97: 0.6 | AF97: 0.6 | AG97: 0.6 | AH97: 0.6 | AI97: 0.6 | AJ97: 0.6 | AK97: 0.6 | AL97: 0.6 | AM97: 0.6 | AN97: 0.6 | AO97: 0.6 | AP97: 0.6 | AQ97: 0.6 | AR97: 0.6 | AS97: 0.6 | AT97: 0.6 | AU97: 0.6 | AV97: 0.6 | AW97: 0.6 | AX97: 0.6 | AY97: 0.6
U98: Sources
U99: General: | V99: https://taxsummaries.pwc.com/ | AC99: https://www.globenewswire.com/news-release/2019/07/19/1885174/0/en/Recommended-Final-Offer-for-Acacia-Mining-plc-by-Barrick-Gold-Corporation.html | AE99: https://taxreform.dof.gov.ph/tax-reform-packages/package-2plus-mining-taxes/ | AF99: https://www.dentons.com/en/services-and-solutions/global-tax-guide-to-doing-business-in/ecuador | AG99: https://thelawreviews.co.uk/edition/the-mining-law-review-edition-7/1175366/mining-burkina-faso | AH99: https://ferdi.fr/dl/df-biHnjpiNjryLJdpCaH5uv6Yx/article-la-convergence-fiscale-dans-le-secteur-minier-des-pays-de-l-uemoa-_.pdf | AJ99: https://www.pwc.com/gh/en/assets/pdf/2018-tax-facts-and-figures.pdf | AM99: https://www.iied.org/malis-new-mining-law-improvement-fails-artisanal-miners | AN99: https://thelawreviews.co.uk/title/the-mining-law-review/senegal-mining-law | AO99: https://www.imf.org/external/pubs/ft/scr/2015/cr15244.pdf | AP99: https://www.pwc.com/zm/en/assets/pdf/zambia-budget-2019.pdf | AQ99: https://www.ey.com/Publication/vwLUAssets/ey-zimbabwe-budget-and-tax-facts11/$FILE/ey-zimbabwe-budget-and-tax-facts11.pdf | AR99: https://www.ey.com/Publication/vwLUAssets/ey-zimbabwe-budget-and-tax-facts11/$FILE/ey-zimbabwe-budget-and-tax-facts11.pdf | AS99: http://tozzinifreire.com.br/en/boletins/changes-to-the-cfem-the-brazilian-mining-royalty?utm_source=Mondaq&utm_medium=syndication&utm_campaign=View-Original | AT99: https://www2.deloitte.com/content/dam/Deloitte/global/Documents/Tax/dttl-tax-chilehighlights-2018.pdf | AU99: http://www.bergbau-peru.com/fileadmin/ahk_peru_bergbau/PDF/EY-Peru-mining-metals-investment-guide_2017-2018.pdf | AV99: https://www.pwc.com/id/en/energy-utilities-mining/assets/mining/mining-guide-2019.pdf | AW99: https://www2.deloitte.com/content/dam/Deloitte/kz/Documents/tax/other/Kazakhstan_Highlights_2018_To_practice.pdf | AY99: http://taxsummaries.pwc.com/ID/Australia-Corporate-Withholding-taxes
V100: https://www.ey.com/gl/en/services/tax/international-tax/tax-alert-library#country | AE100: https://mgb.gov.ph/attachments/article/79/PFC_FTAA.pdf | AG100: https://eiti.org/sites/default/files/documents/rapport_de_conciliation_itie_burkina_faso_2016_v_signee.pdf | AH100: https://s3.amazonaws.com/rgi-documents/a3a7e2ead5afcbd4626f6a0edeb76e32381b8945.pdf | AJ100: https://iclg.com/practice-areas/mining-laws-and-regulations/ghana#chaptercontent5 | AQ100: http://www.mines.gov.zw/?q=mpd/57 | AR100: http://www.mines.gov.zw/?q=mpd/57 | AS100: https://www2.deloitte.com/content/dam/Deloitte/global/Documents/Tax/dttl-tax-brazilhighlights-2018.pdf | AV100: https://www.pwc.com/gx/en/energy-utilities-mining/publications/pdf/pwc-gx-miining-taxes-and-royalties.pdf
V101: https://fiscalite-miniere.ferdi.fr/en/tax-systems
V102: https://www.export.gov/ccg | AS102: https://www.zimra.co.zw/downloads/category/17-acts?download=181:income-tax-act-chapter-23-06-updated&start=20
C104: Non-linear depreciation schedule
D106: Depreciation year 1 | E106: =INDEX(G106:Q106,Model!$E$1279) -> 0 | G106: =INDEX($AB106:$BE106,G$16) -> 0 | H106: =INDEX($AB106:$BE106,H$16) -> 0 | I106: 0 | J106: 0 | K106: 0.5 | L106: 0 | M106: 0 | N106: 0 | O106: 0 | P106: 0 | Q106: 0 | AA106: Depreciation year 1 | AG106: 0.5 | AL106: 0.5 | AM106: 0.5 | AN106: 0.25
D107: Depreciation year 2 | E107: =INDEX(G107:Q107,Model!$E$1279) -> 0 | G107: 0 | H107: 0 | I107: 0 | J107: 0 | K107: 0.125 | L107: 0 | M107: 0 | N107: 0 | O107: 0 | P107: 0 | Q107: 0 | AA107: Depreciation year 2 | AG107: 0.125 | AL107: 0.125 | AM107: 0.125 | AN107: 0.1875
D108: Depreciation year 3 | E108: =INDEX(G108:Q108,Model!$E$1279) -> 0 | G108: 0 | H108: 0 | I108: 0 | J108: 0 | K108: 0.05357142857 | L108: 0 | M108: 0 | N108: 0 | O108: 0 | P108: 0 | Q108: 0 | AA108: Depreciation year 3 | AG108: 0.05357142857 | AL108: 0.05357142857 | AM108: 0.05357142857 | AN108: 0.140625
D109: Depreciation year 4 | E109: =INDEX(G109:Q109,Model!$E$1279) -> 0 | G109: 0 | H109: 0 | I109: 0 | J109: 0 | K109: 0.05357142857 | L109: 0 | M109: 0 | N109: 0 | O109: 0 | P109: 0 | Q109: 0 | AA109: Depreciation year 4 | AG109: 0.05357142857 | AL109: 0.05357142857 | AM109: 0.05357142857 | AN109: 0.10546875
D110: Depreciation year 5 | E110: =INDEX(G110:Q110,Model!$E$1279) -> 0 | G110: 0 | H110: 0 | I110: 0 | J110: 0 | K110: 0.05357142857 | L110: 0 | M110: 0 | N110: 0 | O110: 0 | P110: 0 | Q110: 0 | AA110: Depreciation year 5 | AG110: 0.05357142857 | AL110: 0.05357142857 | AM110: 0.05357142857 | AN110: 0.052734375
D111: Depreciation year 6 | E111: =INDEX(G111:Q111,Model!$E$1279) -> 0 | G111: 0 | H111: 0 | I111: 0 | J111: 0 | K111: 0.05357142857 | L111: 0 | M111: 0 | N111: 0 | O111: 0 | P111: 0 | Q111: 0 | AA111: Depreciation year 6 | AG111: 0.05357142857 | AL111: 0.05357142857 | AM111: 0.05357142857 | AN111: 0.052734375
D112: Depreciation year 7 | E112: =INDEX(G112:Q112,Model!$E$1279) -> 0 | G112: 0 | H112: 0 | I112: 0 | J112: 0 | K112: 0.05357142857 | L112: 0 | M112: 0 | N112: 0 | O112: 0 | P112: 0 | Q112: 0 | AA112: Depreciation year 7 | AG112: 0.05357142857 | AL112: 0.05357142857 | AM112: 0.05357142857 | AN112: 0.052734375
D113: Depreciation year 8 | E113: =INDEX(G113:Q113,Model!$E$1279) -> 0 | G113: 0 | H113: 0 | I113: 0 | J113: 0 | K113: 0.05357142857 | L113: 0 | M113: 0 | N113: 0 | O113: 0 | P113: 0 | Q113: 0 | AA113: Depreciation year 8 | AG113: 0.05357142857 | AL113: 0.05357142857 | AM113: 0.05357142857 | AN113: 0.052734375
D114: Depreciation year 9 | E114: =INDEX(G114:Q114,Model!$E$1279) -> 0 | G114: 0 | H114: 0 | I114: 0 | J114: 0 | K114: 0.05357142857 | L114: 0 | M114: 0 | N114: 0 | O114: 0 | P114: 0 | Q114: 0 | AA114: Depreciation year 9 | AG114: 0.05357142857 | AL114: 0.05357142857 | AM114: 0.05357142857 | AN114: 0.052734375
D115: Depreciation year 10 | E115: =INDEX(G115:Q115,Model!$E$1279) -> 0 | G115: 0 | H115: 0 | I115: 0 | J115: 0 | K115: 0 | L115: 0 | M115: 0 | N115: 0 | O115: 0 | P115: 0 | Q115: 0 | AA115: Depreciation year 10 | AG115: 0 | AL115: 0 | AM115: 0 | AN115: 0.052734375
D116: Depreciation year 11 | E116: =INDEX(G116:Q116,Model!$E$1279) -> 0 | G116: 0 | H116: 0 | I116: 0 | J116: 0 | K116: 0 | L116: 0 | M116: 0 | N116: 0 | O116: 0 | P116: 0 | Q116: 0 | AA116: Depreciation year 11 | AG116: 0 | AL116: 0 | AM116: 0 | AN116: 0
D117: Depreciation year 12 | E117: =INDEX(G117:Q117,Model!$E$1279) -> 0 | G117: 0 | H117: 0 | I117: 0 | J117: 0 | K117: 0 | L117: 0 | M117: 0 | N117: 0 | O117: 0 | P117: 0 | Q117: 0 | AA117: Depreciation year 12 | AG117: 0 | AL117: 0 | AM117: 0 | AN117: 0
D118: Depreciation year 13 | E118: =INDEX(G118:Q118,Model!$E$1279) -> 0 | G118: 0 | H118: 0 | I118: 0 | J118: 0 | K118: 0 | L118: 0 | M118: 0 | N118: 0 | O118: 0 | P118: 0 | Q118: 0 | AA118: Depreciation year 13 | AG118: 0 | AL118: 0 | AM118: 0 | AN118: 0
D119: Depreciation year 14 | E119: =INDEX(G119:Q119,Model!$E$1279) -> 0 | G119: 0 | H119: 0 | I119: 0 | J119: 0 | K119: 0 | L119: 0 | M119: 0 | N119: 0 | O119: 0 | P119: 0 | Q119: 0 | AA119: Depreciation year 14 | AG119: 0 | AL119: 0 | AM119: 0 | AN119: 0
D120: Depreciation year 15 | E120: =INDEX(G120:Q120,Model!$E$1279) -> 0 | G120: 0 | H120: 0 | I120: 0 | J120: 0 | K120: 0 | L120: 0 | M120: 0 | N120: 0 | O120: 0 | P120: 0 | Q120: 0 | AA120: Depreciation year 15 | AG120: 0 | AL120: 0 | AM120: 0 | AN120: 0
D121: Depreciation year 16 | E121: =INDEX(G121:Q121,Model!$E$1279) -> 0 | G121: 0 | H121: 0 | I121: 0 | J121: 0 | K121: 0 | L121: 0 | M121: 0 | N121: 0 | O121: 0 | P121: 0 | Q121: 0 | AA121: Depreciation year 16 | AG121: 0 | AL121: 0 | AM121: 0 | AN121: 0
D122: Depreciation year 17 | E122: =INDEX(G122:Q122,Model!$E$1279) -> 0 | G122: 0 | H122: =INDEX($AB122:$BE122,H$16) -> 0 | I122: 0 | J122: 0 | K122: 0 | L122: 0 | M122: 0 | N122: 0 | O122: 0 | P122: 0 | Q122: 0 | AA122: Depreciation year 17 | AG122: 0 | AL122: 0 | AM122: 0 | AN122: 0
D123: Depreciation year 18 | E123: =INDEX(G123:Q123,Model!$E$1279) -> 0 | G123: 0 | H123: 0 | I123: 0 | J123: 0 | K123: 0 | L123: 0 | M123: 0 | N123: 0 | O123: 0 | P123: 0 | Q123: 0 | AA123: Depreciation year 18 | AG123: 0 | AL123: 0 | AM123: 0 | AN123: 0
D124: Depreciation year 19 | E124: =INDEX(G124:Q124,Model!$E$1279) -> 0 | G124: 0 | H124: 0 | I124: 0 | J124: 0 | K124: 0 | L124: 0 | M124: 0 | N124: 0 | O124: 0 | P124: 0 | Q124: 0 | AA124: Depreciation year 19 | AG124: 0 | AL124: 0 | AM124: 0 | AN124: 0
D125: Depreciation year 20 | E125: =INDEX(G125:Q125,Model!$E$1279) -> 0 | G125: 0 | H125: 0 | I125: 0 | J125: 0 | K125: 0 | L125: 0 | M125: 0 | N125: 0 | O125: 0 | P125: 0 | Q125: 0 | AA125: Depreciation year 20 | AG125: 0 | AL125: 0 | AM125: 0 | AN125: 0
C127: Variable rate taxes - schedules
C128: "Variable rate taxes" are taxes whose rate depends on some economic measure such as the project's operating margin or commodity price.
D130: Variable rate royalty on revenue | Y130: Variable rate royalty on revenue
G131: =Y131 -> 1 - No VRR | I131: =AA131 -> 2 - Chile: gold | K131: =AC131 -> 3 - Custom | M131: =AE131 -> 4 - Custom | O131: =AG131 -> 5 - Custom | Q131: =AI131 -> 6 - Custom | S131: =AK131 -> 7 - Custom | U131: =AM131 -> 8 - Custom | Y131: 1 - No VRR | AA131: 2 - Chile: gold | AC131: 3 - Custom | AE131: 4 - Custom | AG131: 5 - Custom | AI131: 6 - Custom | AK131: 7 - Custom | AM131: 8 - Custom
C132: Bracket | D132: Upper limit ($mm) | E132: Marginal rate | G132: Upper limit ($mm) | H132: Marginal rate | I132: Upper limit ($mm) | J132: Marginal rate | K132: Upper limit ($mm) | L132: Marginal rate | M132: Upper limit ($mm) | N132: Marginal rate | O132: Upper limit ($mm) | P132: Marginal rate | Q132: Upper limit ($mm) | R132: Marginal rate | S132: Upper limit ($mm) | T132: Marginal rate | U132: Upper limit ($mm) | V132: Marginal rate | Y132: Upper limit ($mm) | Z132: Marginal rate | AA132: Upper limit ($mm) | AB132: Marginal rate | AC132: Upper limit ($mm) | AD132: Marginal rate | AE132: Upper limit ($mm) | AF132: Marginal rate | AG132: Upper limit ($mm) | AH132: Marginal rate | AI132: Upper limit ($mm) | AJ132: Marginal rate | AK132: Upper limit ($mm) | AL132: Marginal rate | AM132: Upper limit ($mm) | AN132: Marginal rate
C133: 1 | D133: =CHOOSE($E$31,G133,I133,K133,M133,O133,Q133,S133,U133) -> 0 | E133: =CHOOSE($E$31,H133,J133,L133,N133,P133,R133,T133,V133) -> 0 | G133: =Y133 -> 0 | H133: =Z133 -> 0 | I133: =AA133 -> 72 | J133: =AB133 -> 0 | K133: =AC133 -> 0 | L133: =AD133 -> 0 | M133: =AE133 -> 0 | N133: =AF133 -> 0 | O133: =AG133 -> 0 | P133: =AH133 -> 0 | Q133: =AI133 -> 0 | R133: =AJ133 -> 0 | S133: =AK133 -> 0 | T133: =AL133 -> 0 | U133: =AM133 -> 0 | V133: =AN133 -> 0 | AA133: =6000*12000/1000000 -> 72 | AB133: 0
C134: 2 | D134: =CHOOSE($E$31,G134,I134,K134,M134,O134,Q134,S134,U134) -> 0 | E134: =CHOOSE($E$31,H134,J134,L134,N134,P134,R134,T134,V134) -> 0 | G134: 0 | H134: 0 | I134: 90 | J134: 0.005 | K134: 0 | L134: 0 | M134: 0 | N134: 0 | O134: 0 | P134: 0 | Q134: 0 | R134: 0 | S134: 0 | T134: 0 | U134: 0 | V134: 0 | AA134: =6000*15000/1000000 -> 90 | AB134: 0.005
C135: 3 | D135: 0 | E135: 0 | G135: 0 | H135: 0 | I135: 120 | J135: 0.01 | K135: 0 | L135: 0 | M135: 0 | N135: 0 | O135: 0 | P135: 0 | Q135: 0 | R135: 0 | S135: 0 | T135: 0 | U135: 0 | V135: 0 | AA135: =6000*20000/1000000 -> 120 | AB135: 0.01
C136: 4 | D136: 0 | E136: 0 | G136: 0 | H136: 0 | I136: 150 | J136: 0.015 | K136: 0 | L136: 0 | M136: 0 | N136: 0 | O136: 0 | P136: 0 | Q136: 0 | R136: 0 | S136: 0 | T136: 0 | U136: 0 | V136: 0 | AA136: =6000*25000/1000000 -> 150 | AB136: 0.015
C137: 5 | D137: 0 | E137: 0 | G137: 0 | H137: 0 | I137: 180 | J137: 0.02 | K137: 0 | L137: 0 | M137: 0 | N137: 0 | O137: 0 | P137: 0 | Q137: 0 | R137: 0 | S137: 0 | T137: 0 | U137: 0 | V137: 0 | AA137: =6000*30000/1000000 -> 180 | AB137: 0.02
C138: 6 | D138: 0 | E138: 0 | G138: 0 | H138: 0 | I138: 210 | J138: 0.025 | K138: 0 | L138: 0 | M138: 0 | N138: 0 | O138: 0 | P138: 0 | Q138: 0 | R138: 0 | S138: 0 | T138: 0 | U138: 0 | V138: 0 | AA138: =6000*35000/1000000 -> 210 | AB138: 0.025
C139: 7 | D139: 0 | E139: 0 | G139: 0 | H139: 0 | I139: 240 | J139: 0.03 | K139: 0 | L139: 0 | M139: 0 | N139: 0 | O139: 0 | P139: 0 | Q139: 0 | R139: 0 | S139: 0 | T139: 0 | U139: 0 | V139: 0 | AA139: =6000*40000/1000000 -> 240 | AB139: 0.03
C140: 8 | D140: 0 | E140: 0 | G140: 0 | H140: 0 | I140: 350 | J140: 0.045 | K140: 0 | L140: 0 | M140: 0 | N140: 0 | O140: 0 | P140: 0 | Q140: 0 | R140: 0 | S140: 0 | T140: 0 | U140: 0 | V140: 0 | AA140: 350 | AB140: 0.045
C141: 9 | D141: 0 | E141: 0 | G141: 0 | H141: 0 | I141: 350 | J141: 0.045 | K141: 0 | L141: 0 | M141: 0 | N141: 0 | O141: 0 | P141: 0 | Q141: 0 | R141: 0 | S141: 0 | T141: 0 | U141: 0 | V141: 0 | AA141: 350 | AB141: 0.045
C142: 10 | D142: =CHOOSE($E$31,G142,I142,K142,M142,O142,Q142,S142,U142) -> 0 | E142: =CHOOSE($E$31,H142,J142,L142,N142,P142,R142,T142,V142) -> 0 | G142: 0 | H142: 0 | I142: 350 | J142: 0.045 | K142: 0 | L142: 0 | M142: 0 | N142: 0 | O142: 0 | P142: 0 | Q142: 0 | R142: 0 | S142: 0 | T142: 0 | U142: 0 | V142: 0 | AA142: 350 | AB142: 0.045
D144: Variable rate royalty on price | Y144: Variable rate royalty on price
G145: =Y145 -> 1 - No VRR | I145: =AA145 -> 2 - Burkina Faso: gold | K145: =AC145 -> 3 - Cote d'Ivoire: gold | M145: =AE145 -> 4 - Zambia: copper | O145: =AG145 -> 5 - Zimbabwe: gold | Q145: =AI145 -> 6 - Kyrgyz Republic: gold | S145: =AK145 -> 7 - Custom | U145: =AM145 -> 8 - Custom | Y145: 1 - No VRR | AA145: 2 - Burkina Faso: gold | AC145: 3 - Cote d'Ivoire: gold | AE145: 4 - Zambia: copper | AG145: 5 - Zimbabwe: gold | AI145: 6 - Kyrgyz Republic: gold | AK145: 7 - Custom | AM145: 8 - Custom
C146: Bracket | D146: =CHOOSE($E$32,G146,I146,K146,M146,O146,Q146) -> Lower limit ($/oz) | E146: Marginal rate | G146: Lower limit ($/oz) | H146: Marginal rate | I146: Lower limit ($/oz) | J146: Marginal rate | K146: Lower limit ($/oz) | L146: Marginal rate | M146: Lower limit ($/oz) | N146: Marginal rate | O146: Lower limit ($/oz) | P146: Marginal rate | Q146: Lower limit ($/oz) | R146: Marginal rate | S146: Lower limit ($/oz) | T146: Marginal rate | U146: Lower limit ($/oz) | V146: Marginal rate | Y146: Lower limit ($/oz) | Z146: Marginal rate | AA146: Lower limit ($/oz) | AB146: Marginal rate | AC146: Lower limit ($/oz) | AD146: Marginal rate | AE146: Lower limit ($/oz) | AF146: Marginal rate | AG146: Lower limit ($/oz) | AH146: Marginal rate | AI146: Lower limit ($/oz) | AJ146: Marginal rate | AK146: Lower limit ($/oz) | AL146: Marginal rate | AM146: Lower limit ($/oz) | AN146: Marginal rate
C147: 1 | D147: =CHOOSE($E$32,G147,I147,K147,M147,O147,Q147,S147,U147) -> 0 | E147: =CHOOSE($E$32,H147,J147,L147,N147,P147,R147,T147,V147) -> 0 | G147: =Y147 -> 0 | H147: =Z147 -> 0 | I147: =AA147 -> 0 | J147: =AB147 -> 0.03 | K147: =AC147 -> 0 | L147: =AD147 -> 0.03 | M147: =AE147 -> 0 | N147: =AF147 -> 0.055 | O147: =AG147 -> 0 | P147: =AH147 -> 0.03 | Q147: =AI147 -> 0 | R147: =AJ147 -> 0.01 | S147: =AK147 -> 0 | T147: =AL147 -> 0 | U147: =AM147 -> 0 | V147: =AN147 -> 0 | AA147: 0 | AB147: 0.03 | AC147: 0 | AD147: 0.03 | AE147: 0 | AF147: 0.055 | AG147: 0 | AH147: 0.03 | AI147: 0 | AJ147: 0.01
C148: 2 | D148: =CHOOSE($E$32,G148,I148,K148,M148,O148,Q148,S148,U148) -> 0 | E148: =CHOOSE($E$32,H148,J148,L148,N148,P148,R148,T148,V148) -> 0 | G148: 0 | H148: 0 | I148: 1000 | J148: 0.04 | K148: 1000 | L148: 0.035 | M148: 4500 | N148: 0.065 | O148: 1200 | P148: 0.05 | Q148: 1300 | R148: 0.03 | S148: 0 | T148: 0 | U148: 0 | V148: 0 | AA148: 1000 | AB148: 0.04 | AC148: 1000 | AD148: 0.035 | AE148: 4500 | AF148: 0.065 | AG148: 1200 | AH148: 0.05 | AI148: 1300 | AJ148: 0.03
C149: 3 | D149: 0 | E149: 0 | G149: 0 | H149: 0 | I149: 1300 | J149: 0.05 | K149: 1300 | L149: 0.04 | M149: 6000 | N149: 0.075 | O149: 1200 | P149: 0.05 | Q149: 1400 | R149: 0.05 | S149: 0 | T149: 0 | U149: 0 | V149: 0 | AA149: 1300 | AB149: 0.05 | AC149: 1300 | AD149: 0.04 | AE149: 6000 | AF149: 0.075 | AG149: 1200 | AH149: 0.05 | AI149: 1400 | AJ149: 0.05
C150: 4 | D150: 0 | E150: 0 | G150: 0 | H150: 0 | I150: 1300 | J150: 0.05 | K150: 1600 | L150: 0.05 | M150: 7500 | N150: 0.1 | O150: 1200 | P150: 0.05 | Q150: 1500 | R150: 0.07 | S150: 0 | T150: 0 | U150: 0 | V150: 0 | AA150: 1300 | AB150: 0.05 | AC150: 1600 | AD150: 0.05 | AE150: 7500 | AF150: 0.1 | AG150: 1200 | AH150: 0.05 | AI150: 1500 | AJ150: 0.07
C151: 5 | D151: 0 | E151: 0 | G151: 0 | H151: 0 | I151: 1300 | J151: 0.05 | K151: 2000 | L151: 0.06 | M151: 7500 | N151: 0.1 | O151: 1200 | P151: 0.05 | Q151: 1600 | R151: 0.1 | S151: 0 | T151: 0 | U151: 0 | V151: 0 | AA151: 1300 | AB151: 0.05 | AC151: 2000 | AD151: 0.06 | AE151: 7500 | AF151: 0.1 | AG151: 1200 | AH151: 0.05 | AI151: 1600 | AJ151: 0.1
C152: 6 | D152: 0 | E152: 0 | G152: 0 | H152: 0 | I152: 1300 | J152: 0.05 | K152: 2000 | L152: 0.06 | M152: 7500 | N152: 0.1 | O152: 1200 | P152: 0.05 | Q152: 1700 | R152: 0.13 | S152: 0 | T152: 0 | U152: 0 | V152: 0 | AA152: 1300 | AB152: 0.05 | AC152: 2000 | AD152: 0.06 | AE152: 7500 | AF152: 0.1 | AG152: 1200 | AH152: 0.05 | AI152: 1700 | AJ152: 0.13
C153: 7 | D153: 0 | E153: 0 | G153: 0 | H153: 0 | I153: 1300 | J153: 0.05 | K153: 2000 | L153: 0.06 | M153: 7500 | N153: 0.1 | O153: 1200 | P153: 0.05 | Q153: 1800 | R153: 0.14 | S153: 0 | T153: 0 | U153: 0 | V153: 0 | AA153: 1300 | AB153: 0.05 | AC153: 2000 | AD153: 0.06 | AE153: 7500 | AF153: 0.1 | AG153: 1200 | AH153: 0.05 | AI153: 1800 | AJ153: 0.14
C154: 8 | D154: 0 | E154: 0 | G154: 0 | H154: 0 | I154: 1300 | J154: 0.05 | K154: 2000 | L154: 0.06 | M154: 7500 | N154: 0.1 | O154: 1200 | P154: 0.05 | Q154: 1900 | R154: 0.15 | S154: 0 | T154: 0 | U154: 0 | V154: 0 | AA154: 1300 | AB154: 0.05 | AC154: 2000 | AD154: 0.06 | AE154: 7500 | AF154: 0.1 | AG154: 1200 | AH154: 0.05 | AI154: 1900 | AJ154: 0.15
C155: 9 | D155: 0 | E155: 0 | G155: 0 | H155: 0 | I155: 1300 | J155: 0.05 | K155: 2000 | L155: 0.06 | M155: 7500 | N155: 0.1 | O155: 1200 | P155: 0.05 | Q155: 2000 | R155: 0.16 | S155: 0 | T155: 0 | U155: 0 | V155: 0 | AA155: 1300 | AB155: 0.05 | AC155: 2000 | AD155: 0.06 | AE155: 7500 | AF155: 0.1 | AG155: 1200 | AH155: 0.05 | AI155: 2000 | AJ155: 0.16
C156: 10 | D156: 0 | E156: 0 | G156: 0 | H156: 0 | I156: 1300 | J156: 0.05 | K156: 2000 | L156: 0.06 | M156: 7500 | N156: 0.1 | O156: 1200 | P156: 0.05 | Q156: 2100 | R156: 0.17 | S156: 0 | T156: 0 | U156: 0 | V156: 0 | AA156: 1300 | AB156: 0.05 | AC156: 2000 | AD156: 0.06 | AE156: 7500 | AF156: 0.1 | AG156: 1200 | AH156: 0.05 | AI156: 2100 | AJ156: 0.17
C157: 11 | D157: 0 | E157: 0 | G157: 0 | H157: 0 | I157: 1300 | J157: 0.05 | K157: 2000 | L157: 0.06 | M157: 7500 | N157: 0.1 | O157: 1200 | P157: 0.05 | Q157: 2200 | R157: 0.18 | S157: 0 | T157: 0 | U157: 0 | V157: 0 | AA157: 1300 | AB157: 0.05 | AC157: 2000 | AD157: 0.06 | AE157: 7500 | AF157: 0.1 | AG157: 1200 | AH157: 0.05 | AI157: 2200 | AJ157: 0.18
C158: 12 | D158: 0 | E158: 0 | G158: 0 | H158: 0 | I158: 1300 | J158: 0.05 | K158: 2000 | L158: 0.06 | M158: 7500 | N158: 0.1 | O158: 1200 | P158: 0.05 | Q158: 2300 | R158: 0.19 | S158: 0 | T158: 0 | U158: 0 | V158: 0 | AA158: 1300 | AB158: 0.05 | AC158: 2000 | AD158: 0.06 | AE158: 7500 | AF158: 0.1 | AG158: 1200 | AH158: 0.05 | AI158: 2300 | AJ158: 0.19
C159: 13 | D159: 0 | E159: 0 | G159: 0 | H159: 0 | I159: 1300 | J159: 0.05 | K159: 2000 | L159: 0.06 | M159: 7500 | N159: 0.1 | O159: 1200 | P159: 0.05 | Q159: 2400 | R159: 0.2 | S159: 0 | T159: 0 | U159: 0 | V159: 0 | AA159: 1300 | AB159: 0.05 | AC159: 2000 | AD159: 0.06 | AE159: 7500 | AF159: 0.1 | AG159: 1200 | AH159: 0.05 | AI159: 2400 | AJ159: 0.2
C160: 14 | D160: =CHOOSE($E$32,G160,I160,K160,M160,O160,Q160,S160,U160) -> 0 | E160: =CHOOSE($E$32,H160,J160,L160,N160,P160,R160,T160,V160) -> 0 | G160: 0 | H160: 0 | I160: 1300 | J160: 0.05 | K160: 2000 | L160: 0.06 | M160: 7500 | N160: 0.1 | O160: 1200 | P160: 0.05 | Q160: 2400 | R160: 0.2 | S160: 0 | T160: 0 | U160: 0 | V160: 0 | AA160: 1300 | AB160: 0.05 | AC160: 2000 | AD160: 0.06 | AE160: 7500 | AF160: 0.1 | AG160: 1200 | AH160: 0.05 | AI160: 2400 | AJ160: 0.2
D162: Operating profit tax | Y162: Operating profit tax
G163: =Y163 -> 1 - No OPT | I163: =AA163 -> 2 - Chile | K163: =AC163 -> 3 - Peru | M163: =AE163 -> 4 - Custom | O163: =AG163 -> 5 - Custom | Q163: =AI163 -> 6 - Custom | S163: =AK163 -> 7 - Custom | U163: =AM163 -> 8 - Custom | Y163: 1 - No OPT | AA163: 2 - Chile | AC163: 3 - Peru | AE163: 4 - Custom | AG163: 5 - Custom | AI163: 6 - Custom | AK163: 7 - Custom | AM163: 8 - Custom
C164: Bracket | D164: Lower limit | E164: Marginal rate | G164: Lower limit | H164: Marginal rate | I164: Lower limit | J164: Marginal rate | K164: Lower limit | L164: Marginal rate | M164: Lower limit | N164: Marginal rate | O164: Lower limit | P164: Marginal rate | Q164: Lower limit | R164: Marginal rate | S164: Lower limit | T164: Marginal rate | U164: Lower limit | V164: Marginal rate | Y164: Lower limit | Z164: Marginal rate | AA164: Lower limit | AB164: Marginal rate | AC164: Lower limit | AD164: Marginal rate | AE164: Lower limit | AF164: Marginal rate | AG164: Lower limit | AH164: Marginal rate | AI164: Lower limit | AJ164: Marginal rate | AK164: Lower limit | AL164: Marginal rate | AM164: Lower limit | AN164: Marginal rate
C165: 1 | D165: =CHOOSE($E$39,G165,I165,K165,M165,O165,Q165,S165,U165) -> 0 | E165: =CHOOSE($E$39,H165,J165,L165,N165,P165,R165,T165,V165) -> 0 | G165: =Y165 -> 0 | H165: =Z165 -> 0 | I165: =AA165 -> 0 | J165: =AB165 -> 0.05 | K165: =AC165 -> 0 | L165: =AD165 -> 0.03 | M165: =AE165 -> 0 | N165: =AF165 -> 0 | O165: =AG165 -> 0 | P165: =AH165 -> 0 | Q165: =AI165 -> 0 | R165: =AJ165 -> 0 | S165: =AK165 -> 0 | T165: =AL165 -> 0 | U165: =AM165 -> 0 | V165: =AN165 -> 0 | AA165: 0 | AB165: 0.05 | AC165: 0 | AD165: 0.03
C166: 2 | D166: =CHOOSE($E$39,G166,I166,K166,M166,O166,Q166,S166,U166) -> 0 | E166: =CHOOSE($E$39,H166,J166,L166,N166,P166,R166,T166,V166) -> 0 | G166: 0 | H166: 0 | I166: 0.35 | J166: 0.08 | K166: 0.1 | L166: 0.0415 | M166: 0 | N166: 0 | O166: 0 | P166: 0 | Q166: 0 | R166: 0 | S166: 0 | T166: 0 | U166: 0 | V166: 0 | AA166: 0.35 | AB166: 0.08 | AC166: 0.1 | AD166: 0.0415
C167: 3 | D167: 0 | E167: 0 | G167: 0 | H167: 0 | I167: 0.4 | J167: 0.105 | K167: 0.15 | L167: 0.053 | M167: 0 | N167: 0 | O167: 0 | P167: 0 | Q167: 0 | R167: 0 | S167: 0 | T167: 0 | U167: 0 | V167: 0 | AA167: 0.4 | AB167: 0.105 | AC167: 0.15 | AD167: 0.053
C168: 4 | D168: 0 | E168: 0 | G168: 0 | H168: 0 | I168: 0.45 | J168: 0.13 | K168: 0.2 | L168: 0.0645 | M168: 0 | N168: 0 | O168: 0 | P168: 0 | Q168: 0 | R168: 0 | S168: 0 | T168: 0 | U168: 0 | V168: 0 | AA168: 0.45 | AB168: 0.13 | AC168: 0.2 | AD168: 0.0645
C169: 5 | D169: 0 | E169: 0 | G169: 0 | H169: 0 | I169: 0.5 | J169: 0.155 | K169: 0.25 | L169: 0.076 | M169: 0 | N169: 0 | O169: 0 | P169: 0 | Q169: 0 | R169: 0 | S169: 0 | T169: 0 | U169: 0 | V169: 0 | AA169: 0.5 | AB169: 0.155 | AC169: 0.25 | AD169: 0.076
C170: 6 | D170: 0 | E170: 0 | G170: 0 | H170: 0 | I170: 0.55 | J170: 0.18 | K170: 0.3 | L170: 0.0875 | M170: 0 | N170: 0 | O170: 0 | P170: 0 | Q170: 0 | R170: 0 | S170: 0 | T170: 0 | U170: 0 | V170: 0 | AA170: 0.55 | AB170: 0.18 | AC170: 0.3 | AD170: 0.0875
C171: 7 | D171: 0 | E171: 0 | G171: 0 | H171: 0 | I171: 0.6 | J171: 0.21 | K171: 0.35 | L171: 0.099 | M171: 0 | N171: 0 | O171: 0 | P171: 0 | Q171: 0 | R171: 0 | S171: 0 | T171: 0 | U171: 0 | V171: 0 | AA171: 0.6 | AB171: 0.21 | AC171: 0.35 | AD171: 0.099
C172: 8 | D172: 0 | E172: 0 | G172: 0 | H172: 0 | I172: 0.65 | J172: 0.24 | K172: 0.4 | L172: 0.1105 | M172: 0 | N172: 0 | O172: 0 | P172: 0 | Q172: 0 | R172: 0 | S172: 0 | T172: 0 | U172: 0 | V172: 0 | AA172: 0.65 | AB172: 0.24 | AC172: 0.4 | AD172: 0.1105
C173: 9 | D173: 0 | E173: 0 | G173: 0 | H173: 0 | I173: 0.7 | J173: 0.275 | K173: 0.45 | L173: 0.122 | M173: 0 | N173: 0 | O173: 0 | P173: 0 | Q173: 0 | R173: 0 | S173: 0 | T173: 0 | U173: 0 | V173: 0 | AA173: 0.7 | AB173: 0.275 | AC173: 0.45 | AD173: 0.122
C174: 10 | D174: 0 | E174: 0 | G174: 0 | H174: 0 | I174: 0.75 | J174: 0.31 | K174: 0.5 | L174: 0.1335 | M174: 0 | N174: 0 | O174: 0 | P174: 0 | Q174: 0 | R174: 0 | S174: 0 | T174: 0 | U174: 0 | V174: 0 | AA174: 0.75 | AB174: 0.31 | AC174: 0.5 | AD174: 0.1335
C175: 11 | D175: 0 | E175: 0 | G175: 0 | H175: 0 | I175: 0.8 | J175: 0.345 | K175: 0.55 | L175: 0.145 | M175: 0 | N175: 0 | O175: 0 | P175: 0 | Q175: 0 | R175: 0 | S175: 0 | T175: 0 | U175: 0 | V175: 0 | AA175: 0.8 | AB175: 0.345 | AC175: 0.55 | AD175: 0.145
C176: 12 | D176: 0 | E176: 0 | G176: 0 | H176: 0 | I176: 0.85 | J176: 0.345 | K176: 0.6 | L176: 0.1565 | M176: 0 | N176: 0 | O176: 0 | P176: 0 | Q176: 0 | R176: 0 | S176: 0 | T176: 0 | U176: 0 | V176: 0 | AA176: 0.85 | AB176: 0.345 | AC176: 0.6 | AD176: 0.1565
C177: 13 | D177: 0 | E177: 0 | G177: 0 | H177: 0 | I177: 0.85 | J177: 0.345 | K177: 0.65 | L177: 0.168 | M177: 0 | N177: 0 | O177: 0 | P177: 0 | Q177: 0 | R177: 0 | S177: 0 | T177: 0 | U177: 0 | V177: 0 | AA177: 0.85 | AB177: 0.345 | AC177: 0.65 | AD177: 0.168
C178: 14 | D178: 0 | E178: 0 | G178: 0 | H178: 0 | I178: 0.85 | J178: 0.345 | K178: 0.7 | L178: 0.1795 | M178: 0 | N178: 0 | O178: 0 | P178: 0 | Q178: 0 | R178: 0 | S178: 0 | T178: 0 | U178: 0 | V178: 0 | AA178: 0.85 | AB178: 0.345 | AC178: 0.7 | AD178: 0.1795
C179: 15 | D179: 0 | E179: 0 | G179: 0 | H179: 0 | I179: 0.85 | J179: 0.345 | K179: 0.75 | L179: 0.191 | M179: 0 | N179: 0 | O179: 0 | P179: 0 | Q179: 0 | R179: 0 | S179: 0 | T179: 0 | U179: 0 | V179: 0 | AA179: 0.85 | AB179: 0.345 | AC179: 0.75 | AD179: 0.191
C180: 16 | D180: 0 | E180: 0 | G180: 0 | H180: 0 | I180: 0.85 | J180: 0.345 | K180: 0.8 | L180: 0.2 | M180: 0 | N180: 0 | O180: 0 | P180: 0 | Q180: 0 | R180: 0 | S180: 0 | T180: 0 | U180: 0 | V180: 0 | AA180: 0.85 | AB180: 0.345 | AC180: 0.8 | AD180: 0.2
C181: 17 | D181: =CHOOSE($E$39,G181,I181,K181,M181,O181,Q181,S181,U181) -> 0 | E181: 0 | G181: 0 | H181: 0 | I181: 0.85 | J181: 0.345 | K181: 0.85 | L181: 0.204 | M181: 0 | N181: 0 | O181: 0 | P181: 0 | Q181: 0 | R181: 0 | S181: 0 | T181: 0 | U181: 0 | V181: 0 | AA181: 0.85 | AB181: 0.345 | AC181: 0.85 | AD181: 0.204
D183: South Africa variable rate royalty | Y183: South Africa variable rate royalty
E184: 1 - Refined | F184: 2 - Unrefined | G184: Alternative | AA184: 1 - Refined | AB184: 2 - Unrefined | AC184: Alternative
C185: Constant | E185: =AA185 -> 0.005 | F185: 0.005 | G185: 0 | Y185: Constant | AA185: 0.005 | AB185: 0.005
C186: Factor | E186: 12.5 | F186: 9 | G186: 0 | Y186: Factor | AA186: 12.5 | AB186: 9
C187: Rate cap | E187: 0.05 | F187: 0.07 | G187: 0 | Y187: Rate cap | AA187: 0.05 | AB187: 0.07
C189: Tax payment assumptions
C191: Tax treaties reduce WHT rates to zero? (1 = statutory WHT rates, 0 = 0% rates) | E191: 1
C193: Economic and financing assumptions
C195: Debt financing | D195: % | E195: 0.5
C196: Portion of debt financing from shareholder loans | D196: % | E196: 0
C197: Repayment period | D197: years | E197: 5
C198: Real interest rate for debt financing | D198: % | E198: 0.06
C199: Real interest rate for state equity carry | D199: % | E199: 0.04
C200: Real discount rate for company | D200: % | E200: 0.08
C201: Real discount rate government | D201: % | E201: 0.1
C202: Inflation rate | D202: % | E202: 0.02
C204: Price assumptions
C206: Primary mineral price | D206: ="$/"&D220 -> $/ounces | E206: 1600
C207: Variable - as determined by user in "Price time series 2" (1 = yes, no = 2) | E207: 2
F209: 1 | G209: 2 | H209: 3 | I209: 4 | J209: 5 | K209: 6 | L209: 7 | M209: 8 | N209: 9 | O209: 10 | P209: 11 | Q209: 12 | R209: 13 | S209: 14 | T209: 15 | U209: 16 | V209: 17 | W209: 18 | X209: 19 | Y209: 20 | Z209: 21 | AA209: 22 | AB209: 23 | AC209: 24 | AD209: 25 | AE209: 26 | AF209: 27 | AG209: 28 | AH209: 29 | AI209: 30 | AJ209: 31 | AK209: 32 | AL209: 33 | AM209: 34 | AN209: 35 | AO209: 36 | AP209: 37 | AQ209: 38 | AR209: 39 | AS209: 40 | AT209: 41 | AU209: 42 | AV209: 43 | AW209: 44 | AX209: 45 | AY209: 46 | AZ209: 47 | BA209: 48 | BB209: 49 | BC209: 50
C210: Price time series 1 | D210: ="$/"&D220 -> $/ounces | F210: =Mineral_price -> 1600 | G210: =Model!$E$1277 -> 1600 | H210: =Model!$E$1277 -> 1600 | I210: =Model!$E$1277 -> 1600 | J210: =Model!$E$1277 -> 1600 | K210: =Model!$E$1277 -> 1600 | L210: =Model!$E$1277 -> 1600 | M210: =Model!$E$1277 -> 1600 | N210: =Model!$E$1277 -> 1600 | O210: =Model!$E$1277 -> 1600 | P210: =Model!$E$1277 -> 1600 | Q210: =Model!$E$1277 -> 1600 | R210: =Model!$E$1277 -> 1600 | S210: =Model!$E$1277 -> 1600 | T210: =Model!$E$1277 -> 1600 | U210: =Model!$E$1277 -> 1600 | V210: =Model!$E$1277 -> 1600 | W210: =Model!$E$1277 -> 1600 | X210: =Model!$E$1277 -> 1600 | Y210: =Model!$E$1277 -> 1600 | Z210: =Model!$E$1277 -> 1600 | AA210: =Model!$E$1277 -> 1600 | AB210: =Model!$E$1277 -> 1600 | AC210: =Model!$E$1277 -> 1600 | AD210: =Model!$E$1277 -> 1600 | AE210: =Model!$E$1277 -> 1600 | AF210: =Model!$E$1277 -> 1600 | AG210: =Model!$E$1277 -> 1600 | AH210: =Model!$E$1277 -> 1600 | AI210: =Model!$E$1277 -> 1600 | AJ210: =Model!$E$1277 -> 1600 | AK210: =Model!$E$1277 -> 1600 | AL210: =Model!$E$1277 -> 1600 | AM210: =Model!$E$1277 -> 1600 | AN210: =Model!$E$1277 -> 1600 | AO210: =Model!$E$1277 -> 1600 | AP210: =Model!$E$1277 -> 1600 | AQ210: =Model!$E$1277 -> 1600 | AR210: =Model!$E$1277 -> 1600 | AS210: =Model!$E$1277 -> 1600 | AT210: =Model!$E$1277 -> 1600 | AU210: =Model!$E$1277 -> 1600 | AV210: =Model!$E$1277 -> 1600 | AW210: =Model!$E$1277 -> 1600 | AX210: =Model!$E$1277 -> 1600 | AY210: =Model!$E$1277 -> 1600 | AZ210: =Model!$E$1277 -> 1600 | BA210: =Model!$E$1277 -> 1600 | BB210: =Model!$E$1277 -> 1600 | BC210: =Model!$E$1277 -> 1600
C211: Price time series 2 | D211: ="$/"&D220 -> $/ounces | F211: =Mineral_price -> 1600 | G211: =Model!$E$1277 -> 1600 | H211: =Model!$E$1277 -> 1600 | I211: =Model!$E$1277 -> 1600 | J211: =Model!$E$1277 -> 1600 | K211: =Model!$E$1277 -> 1600 | L211: =Model!$E$1277 -> 1600 | M211: =Model!$E$1277 -> 1600 | N211: 800 | O211: 800 | P211: 800 | Q211: 800 | R211: =Model!$E$1277 -> 1600 | S211: =Model!$E$1277 -> 1600 | T211: =Model!$E$1277 -> 1600 | U211: =Model!$E$1277 -> 1600 | V211: =Model!$E$1277 -> 1600 | W211: =Model!$E$1277 -> 1600 | X211: =Model!$E$1277 -> 1600 | Y211: =Model!$E$1277 -> 1600 | Z211: =Model!$E$1277 -> 1600 | AA211: =Model!$E$1277 -> 1600 | AB211: =Model!$E$1277 -> 1600 | AC211: =Model!$E$1277 -> 1600 | AD211: =Model!$E$1277 -> 1600 | AE211: =Model!$E$1277 -> 1600 | AF211: =Model!$E$1277 -> 1600 | AG211: =Model!$E$1277 -> 1600 | AH211: =Model!$E$1277 -> 1600 | AI211: =Model!$E$1277 -> 1600 | AJ211: =Model!$E$1277 -> 1600 | AK211: =Model!$E$1277 -> 1600 | AL211: =Model!$E$1277 -> 1600 | AM211: =Model!$E$1277 -> 1600 | AN211: =Model!$E$1277 -> 1600 | AO211: =Model!$E$1277 -> 1600 | AP211: =Model!$E$1277 -> 1600 | AQ211: =Model!$E$1277 -> 1600 | AR211: =Model!$E$1277 -> 1600 | AS211: =Model!$E$1277 -> 1600 | AT211: =Model!$E$1277 -> 1600 | AU211: =Model!$E$1277 -> 1600 | AV211: =Model!$E$1277 -> 1600 | AW211: =Model!$E$1277 -> 1600 | AX211: =Model!$E$1277 -> 1600 | AY211: =Model!$E$1277 -> 1600 | AZ211: =Model!$E$1277 -> 1600 | BA211: =Model!$E$1277 -> 1600 | BB211: =Model!$E$1277 -> 1600 | BC211: =Model!$E$1277 -> 1600
C213: Primary mineral price in DRC feasibility study (for DRC excess profits tax) | D213: ="$/"&D220 -> $/ounces | E213: 1300
C215: Project assumptions
C217: SELECT PROJECT | E217: Average profit | G217: =MATCH(E217,Lists!$D$3:$D$14,0) -> 3
B219: Total | F219: 1 | G219: 2 | H219: 3 | I219: 4 | J219: 5 | K219: 6 | L219: 7 | M219: 8 | N219: 9 | O219: 10 | P219: 11 | Q219: 12 | R219: 13 | S219: 14 | T219: 15 | U219: 16 | V219: 17 | W219: 18 | X219: 19 | Y219: 20 | Z219: 21 | AA219: 22 | AB219: 23 | AC219: 24 | AD219: 25 | AE219: 26 | AF219: 27 | AG219: 28 | AH219: 29 | AI219: 30 | AJ219: 31 | AK219: 32 | AL219: 33 | AM219: 34 | AN219: 35 | AO219: 36 | AP219: 37 | AQ219: 38 | AR219: 39 | AS219: 40 | AT219: 41 | AU219: 42 | AV219: 43 | AW219: 44 | AX219: 45 | AY219: 46 | AZ219: 47 | BA219: 48 | BB219: 49 | BC219: 50
B220: =SUM(F220:BC220) -> 8000000 | C220: =CHOOSE($G$217,C235,C247,C259) -> Production of gold | D220: ounces | F220: =CHOOSE($G$217,F235,F247,F259) -> 0 | G220: 0 | H220: 0 | I220: 0 | J220: 150000 | K220: 350000 | L220: 350000 | M220: 350000 | N220: 350000 | O220: 350000 | P220: 350000 | Q220: 350000 | R220: 350000 | S220: 350000 | T220: 350000 | U220: 350000 | V220: 350000 | W220: 350000 | X220: 350000 | Y220: 350000 | Z220: 350000 | AA220: 350000 | AB220: 350000 | AC220: 350000 | AD220: 350000 | AE220: 350000 | AF220: 350000 | AG220: 150000 | AH220: 0 | AI220: 0 | AJ220: 0 | AK220: 0 | AL220: =CHOOSE($G$217,AL235,AL247,AL259) -> 0 | AM220: 0 | AN220: 0 | AO220: 0 | AP220: 0 | AQ220: 0 | AR220: 0 | AS220: 0 | AT220: 0 | AU220: 0 | AV220: 0 | AW220: 0 | AX220: 0 | AY220: 0 | AZ220: 0 | BA220: 0 | BB220: 0 | BC220: 0
B221: 0 | C221: Transport post-fiscal point | D221: $mm const | F221: =CHOOSE($G$217,F236,F248,F260) -> 0 | G221: 0 | H221: 0 | I221: 0 | J221: 0 | K221: 0 | L221: 0 | M221: 0 | N221: 0 | O221: 0 | P221: 0 | Q221: 0 | R221: 0 | S221: 0 | T221: 0 | U221: 0 | V221: 0 | W221: 0 | X221: 0 | Y221: 0 | Z221: 0 | AA221: 0 | AB221: 0 | AC221: 0 | AD221: 0 | AE221: 0 | AF221: 0 | AG221: 0 | AH221: 0 | AI221: 0 | AJ221: 0 | AK221: 0 | AL221: =CHOOSE($G$217,AL236,AL248,AL260) -> 0 | AM221: 0 | AN221: 0 | AO221: 0 | AP221: 0 | AQ221: 0 | AR221: 0 | AS221: 0 | AT221: 0 | AU221: 0 | AV221: 0 | AW221: 0 | AX221: 0 | AY221: 0 | AZ221: 0 | BA221: 0 | BB221: 0 | BC221: 0
B222: 34.85 | C222: Processing and refining post-fiscal point | D222: $mm const | F222: =CHOOSE($G$217,F237,F249,F261) -> 0 | G222: 0 | H222: 0 | I222: 0 | J222: 0.45 | K222: 1.05 | L222: 1.05 | M222: 1.05 | N222: 1.05 | O222: 1.05 | P222: 1.05 | Q222: 1.05 | R222: 1.05 | S222: 1.05 | T222: 1.05 | U222: 1.05 | V222: 1.05 | W222: 1.05 | X222: 1.05 | Y222: 1.05 | Z222: 1.05 | AA222: 1.05 | AB222: 1.05 | AC222: 3.5 | AD222: 3.5 | AE222: 3.5 | AF222: 3.5 | AG222: 1.5 | AH222: 0 | AI222: 0 | AJ222: 0 | AK222: 0 | AL222: =CHOOSE($G$217,AL237,AL249,AL261) -> 0 | AM222: 0 | AN222: 0 | AO222: 0 | AP222: 0 | AQ222: 0 | AR222: 0 | AS222: 0 | AT222: 0 | AU222: 0 | AV222: 0 | AW222: 0 | AX222: 0 | AY222: 0 | AZ222: 0 | BA222: 0 | BB222: 0 | BC222: 0
... 48 more rows

Sheet Model
B2: Model
A5: Error check:
A6: =AND(A$9:A$1048576) -> TRUE | E6: year | G6: 1 | H6: =G6+1 -> 2 | I6: 3 | J6: 4 | K6: 5 | L6: 6 | M6: 7 | N6: 8 | O6: 9 | P6: 10 | Q6: 11 | R6: 12 | S6: 13 | T6: 14 | U6: 15 | V6: 16 | W6: 17 | X6: 18 | Y6: 19 | Z6: 20 | AA6: 21 | AB6: 22 | AC6: 23 | AD6: 24 | AE6: 25 | AF6: 26 | AG6: 27 | AH6: 28 | AI6: 29 | AJ6: 30 | AK6: 31 | AL6: 32 | AM6: 33 | AN6: =AM6+1 -> 34 | AO6: 35 | AP6: 36 | AQ6: 37 | AR6: 38 | AS6: 39 | AT6: 40 | AU6: 41 | AV6: 42 | AW6: 43 | AX6: 44 | AY6: 45 | AZ6: 46 | BA6: 47 | BB6: 48 | BC6: 49 | BD6: 50
B8: Project cashflow
D11: Project pre-tax cash flow: Real | E11: year | G11: =G$6 -> 1 | H11: 2 | I11: 3 | J11: 4 | K11: 5 | L11: 6 | M11: 7 | N11: 8 | O11: 9 | P11: 10 | Q11: 11 | R11: 12 | S11: 13 | T11: 14 | U11: 15 | V11: 16 | W11: 17 | X11: 18 | Y11: 19 | Z11: 20 | AA11: 21 | AB11: 22 | AC11: 23 | AD11: 24 | AE11: 25 | AF11: 26 | AG11: 27 | AH11: 28 | AI11: 29 | AJ11: 30 | AK11: 31 | AL11: 32 | AM11: =AM$6 -> 33 | AN11: 34 | AO11: 35 | AP11: 36 | AQ11: 37 | AR11: 38 | AS11: 39 | AT11: 40 | AU11: 41 | AV11: 42 | AW11: 43 | AX11: 44 | AY11: 45 | AZ11: 46 | BA11: 47 | BB11: 48 | BC11: 49 | BD11: 50
C12: =SUM(G12:BD12) -> 8000000 | D12: Production | E12: =Inputs!D220 -> ounces | G12: =Inputs!F220 -> 0 | H12: =Inputs!G220 -> 0 | I12: =Inputs!H220 -> 0 | J12: =Inputs!I220 -> 0 | K12: =Inputs!J220 -> 150000 | L12: =Inputs!K220 -> 350000 | M12: =Inputs!L220 -> 350000 | N12: =Inputs!M220 -> 350000 | O12: =Inputs!N220 -> 350000 | P12: =Inputs!O220 -> 350000 | Q12: =Inputs!P220 -> 350000 | R12: =Inputs!Q220 -> 350000 | S12: =Inputs!R220 -> 350000 | T12: =Inputs!S220 -> 350000 | U12: =Inputs!T220 -> 350000 | V12: =Inputs!U220 -> 350000 | W12: =Inputs!V220 -> 350000 | X12: =Inputs!W220 -> 350000 | Y12: =Inputs!X220 -> 350000 | Z12: =Inputs!Y220 -> 350000 | AA12: =Inputs!Z220 -> 350000 | AB12: =Inputs!AA220 -> 350000 | AC12: =Inputs!AB220 -> 350000 | AD12: =Inputs!AC220 -> 350000 | AE12: =Inputs!AD220 -> 350000 | AF12: =Inputs!AE220 -> 350000 | AG12: =Inputs!AF220 -> 350000 | AH12: =Inputs!AG220 -> 150000 | AI12: =Inputs!AH220 -> 0 | AJ12: =Inputs!AI220 -> 0 | AK12: =Inputs!AJ220 -> 0 | AL12: =Inputs!AK220 -> 0 | AM12: =Inputs!AL220 -> 0 | AN12: =Inputs!AM220 -> 0 | AO12: =Inputs!AN220 -> 0 | AP12: =Inputs!AO220 -> 0 | AQ12: =Inputs!AP220 -> 0 | AR12: =Inputs!AQ220 -> 0 | AS12: =Inputs!AR220 -> 0 | AT12: =Inputs!AS220 -> 0 | AU12: =Inputs!AT220 -> 0 | AV12: =Inputs!AU220 -> 0 | AW12: =Inputs!AV220 -> 0 | AX12: =Inputs!AW220 -> 0 | AY12: =Inputs!AX220 -> 0 | AZ12: =Inputs!AY220 -> 0 | BA12: =Inputs!AZ220 -> 0 | BB12: =Inputs!BA220 -> 0 | BC12: =Inputs!BB220 -> 0 | BD12: =Inputs!BC220 -> 0
C13: 12800 | D13: Primary revenue | E13: $mm const | G13: =(G12 * IF(Inputs!$E$207 = 2, Inputs!F210, Inputs!F211)) / 1000000 -> 0 | H13: =(H12 * IF(Inputs!$E$207 = 2, Inputs!G210, Inputs!G211)) / 1000000 -> 0 | I13: =(I12 * IF(Inputs!$E$207 = 2, Inputs!H210, Inputs!H211)) / 1000000 -> 0 | J13: =(J12 * IF(Inputs!$E$207 = 2, Inputs!I210, Inputs!I211)) / 1000000 -> 0 | K13: =(K12 * IF(Inputs!$E$207 = 2, Inputs!J210, Inputs!J211)) / 1000000 -> 240 | L13: =(L12 * IF(Inputs!$E$207 = 2, Inputs!K210, Inputs!K211)) / 1000000 -> 560 | M13: =(M12 * IF(Inputs!$E$207 = 2, Inputs!L210, Inputs!L211)) / 1000000 -> 560 | N13: =(N12 * IF(Inputs!$E$207 = 2, Inputs!M210, Inputs!M211)) / 1000000 -> 560 | O13: =(O12 * IF(Inputs!$E$207 = 2, Inputs!N210, Inputs!N211)) / 1000000 -> 560 | P13: =(P12 * IF(Inputs!$E$207 = 2, Inputs!O210, Inputs!O211)) / 1000000 -> 560 | Q13: =(Q12 * IF(Inputs!$E$207 = 2, Inputs!P210, Inputs!P211)) / 1000000 -> 560 | R13: =(R12 * IF(Inputs!$E$207 = 2, Inputs!Q210, Inputs!Q211)) / 1000000 -> 560 | S13: =(S12 * IF(Inputs!$E$207 = 2, Inputs!R210, Inputs!R211)) / 1000000 -> 560 | T13: =(T12 * IF(Inputs!$E$207 = 2, Inputs!S210, Inputs!S211)) / 1000000 -> 560 | U13: =(U12 * IF(Inputs!$E$207 = 2, Inputs!T210, Inputs!T211)) / 1000000 -> 560 | V13: =(V12 * IF(Inputs!$E$207 = 2, Inputs!U210, Inputs!U211)) / 1000000 -> 560 | W13: =(W12 * IF(Inputs!$E$207 = 2, Inputs!V210, Inputs!V211)) / 1000000 -> 560 | X13: =(X12 * IF(Inputs!$E$207 = 2, Inputs!W210, Inputs!W211)) / 1000000 -> 560 | Y13: =(Y12 * IF(Inputs!$E$207 = 2, Inputs!X210, Inputs!X211)) / 1000000 -> 560 | Z13: =(Z12 * IF(Inputs!$E$207 = 2, Inputs!Y210, Inputs!Y211)) / 1000000 -> 560 | AA13: =(AA12 * IF(Inputs!$E$207 = 2, Inputs!Z210, Inputs!Z211)) / 1000000 -> 560 | AB13: =(AB12 * IF(Inputs!$E$207 = 2, Inputs!AA210, Inputs!AA211)) / 1000000 -> 560 | AC13: =(AC12 * IF(Inputs!$E$207 = 2, Inputs!AB210, Inputs!AB211)) / 1000000 -> 560 | AD13: =(AD12 * IF(Inputs!$E$207 = 2, Inputs!AC210, Inputs!AC211)) / 1000000 -> 560 | AE13: =(AE12 * IF(Inputs!$E$207 = 2, Inputs!AD210, Inputs!AD211)) / 1000000 -> 560 | AF13: =(AF12 * IF(Inputs!$E$207 = 2, Inputs!AE210, Inputs!AE211)) / 1000000 -> 560 | AG13: =(AG12 * IF(Inputs!$E$207 = 2, Inputs!AF210, Inputs!AF211)) / 1000000 -> 560 | AH13: =(AH12 * IF(Inputs!$E$207 = 2, Inputs!AG210, Inputs!AG211)) / 1000000 -> 240 | AI13: =(AI12 * IF(Inputs!$E$207 = 2, Inputs!AH210, Inputs!AH211)) / 1000000 -> 0 | AJ13: =(AJ12 * IF(Inputs!$E$207 = 2, Inputs!AI210, Inputs!AI211)) / 1000000 -> 0 | AK13: =(AK12 * IF(Inputs!$E$207 = 2, Inputs!AJ210, Inputs!AJ211)) / 1000000 -> 0 | AL13: =(AL12 * IF(Inputs!$E$207 = 2, Inputs!AK210, Inputs!AK211)) / 1000000 -> 0 | AM13: =(AM12 * IF(Inputs!$E$207 = 2, Inputs!AL210, Inputs!AL211)) / 1000000 -> 0 | AN13: =(AN12 * IF(Inputs!$E$207 = 2, Inputs!AM210, Inputs!AM211)) / 1000000 -> 0 | AO13: =(AO12 * IF(Inputs!$E$207 = 2, Inputs!AN210, Inputs!AN211)) / 1000000 -> 0 | AP13: =(AP12 * IF(Inputs!$E$207 = 2, Inputs!AO210, Inputs!AO211)) / 1000000 -> 0 | AQ13: =(AQ12 * IF(Inputs!$E$207 = 2, Inputs!AP210, Inputs!AP211)) / 1000000 -> 0 | AR13: =(AR12 * IF(Inputs!$E$207 = 2, Inputs!AQ210, Inputs!AQ211)) / 1000000 -> 0 | AS13: =(AS12 * IF(Inputs!$E$207 = 2, Inputs!AR210, Inputs!AR211)) / 1000000 -> 0 | AT13: =(AT12 * IF(Inputs!$E$207 = 2, Inputs!AS210, Inputs!AS211)) / 1000000 -> 0 | AU13: =(AU12 * IF(Inputs!$E$207 = 2, Inputs!AT210, Inputs!AT211)) / 1000000 -> 0 | AV13: =(AV12 * IF(Inputs!$E$207 = 2, Inputs!AU210, Inputs!AU211)) / 1000000 -> 0 | AW13: =(AW12 * IF(Inputs!$E$207 = 2, Inputs!AV210, Inputs!AV211)) / 1000000 -> 0 | AX13: =(AX12 * IF(Inputs!$E$207 = 2, Inputs!AW210, Inputs!AW211)) / 1000000 -> 0 | AY13: =(AY12 * IF(Inputs!$E$207 = 2, Inputs!AX210, Inputs!AX211)) / 1000000 -> 0 | AZ13: =(AZ12 * IF(Inputs!$E$207 = 2, Inputs!AY210, Inputs!AY211)) / 1000000 -> 0 | BA13: =(BA12 * IF(Inputs!$E$207 = 2, Inputs!AZ210, Inputs!AZ211)) / 1000000 -> 0 | BB13: =(BB12 * IF(Inputs!$E$207 = 2, Inputs!BA210, Inputs!BA211)) / 1000000 -> 0 | BC13: =(BC12 * IF(Inputs!$E$207 = 2, Inputs!BB210, Inputs!BB211)) / 1000000 -> 0 | BD13: =(BD12 * IF(Inputs!$E$207 = 2, Inputs!BC210, Inputs!BC211)) / 1000000 -> 0
C14: 0 | D14: Co-produce revenue | E14: $mm const | G14: =G13 * Inputs!$E$228 -> 0 | H14: =H13 * Inputs!$E$228 -> 0 | I14: =I13 * Inputs!$E$228 -> 0 | J14: =J13 * Inputs!$E$228 -> 0 | K14: =K13 * Inputs!$E$228 -> 0 | L14: =L13 * Inputs!$E$228 -> 0 | M14: =M13 * Inputs!$E$228 -> 0 | N14: =N13 * Inputs!$E$228 -> 0 | O14: =O13 * Inputs!$E$228 -> 0 | P14: =P13 * Inputs!$E$228 -> 0 | Q14: =Q13 * Inputs!$E$228 -> 0 | R14: =R13 * Inputs!$E$228 -> 0 | S14: =S13 * Inputs!$E$228 -> 0 | T14: =T13 * Inputs!$E$228 -> 0 | U14: =U13 * Inputs!$E$228 -> 0 | V14: =V13 * Inputs!$E$228 -> 0 | W14: =W13 * Inputs!$E$228 -> 0 | X14: =X13 * Inputs!$E$228 -> 0 | Y14: =Y13 * Inputs!$E$228 -> 0 | Z14: =Z13 * Inputs!$E$228 -> 0 | AA14: =AA13 * Inputs!$E$228 -> 0 | AB14: =AB13 * Inputs!$E$228 -> 0 | AC14: =AC13 * Inputs!$E$228 -> 0 | AD14: =AD13 * Inputs!$E$228 -> 0 | AE14: =AE13 * Inputs!$E$228 -> 0 | AF14: =AF13 * Inputs!$E$228 -> 0 | AG14: =AG13 * Inputs!$E$228 -> 0 | AH14: =AH13 * Inputs!$E$228 -> 0 | AI14: =AI13 * Inputs!$E$228 -> 0 | AJ14: =AJ13 * Inputs!$E$228 -> 0 | AK14: =AK13 * Inputs!$E$228 -> 0 | AL14: =AL13 * Inputs!$E$228 -> 0 | AM14: =AM13 * Inputs!$E$228 -> 0 | AN14: =AN13 * Inputs!$E$228 -> 0 | AO14: =AO13 * Inputs!$E$228 -> 0 | AP14: =AP13 * Inputs!$E$228 -> 0 | AQ14: =AQ13 * Inputs!$E$228 -> 0 | AR14: =AR13 * Inputs!$E$228 -> 0 | AS14: =AS13 * Inputs!$E$228 -> 0 | AT14: =AT13 * Inputs!$E$228 -> 0 | AU14: =AU13 * Inputs!$E$228 -> 0 | AV14: =AV13 * Inputs!$E$228 -> 0 | AW14: =AW13 * Inputs!$E$228 -> 0 | AX14: =AX13 * Inputs!$E$228 -> 0 | AY14: =AY13 * Inputs!$E$228 -> 0 | AZ14: =AZ13 * Inputs!$E$228 -> 0 | BA14: =BA13 * Inputs!$E$228 -> 0 | BB14: =BB13 * Inputs!$E$228 -> 0 | BC14: =BC13 * Inputs!$E$228 -> 0 | BD14: =BD13 * Inputs!$E$228 -> 0
C15: 12800 | D15: Total gross revenue | E15: $mm const | G15: =SUM(G13:G14) -> 0 | H15: =SUM(H13:H14) -> 0 | I15: 0 | J15: 0 | K15: 240 | L15: 560 | M15: 560 | N15: 560 | O15: 560 | P15: 560 | Q15: 560 | R15: 560 | S15: 560 | T15: 560 | U15: 560 | V15: 560 | W15: 560 | X15: 560 | Y15: 560 | Z15: 560 | AA15: 560 | AB15: 560 | AC15: 560 | AD15: 560 | AE15: 560 | AF15: 560 | AG15: 560 | AH15: 240 | AI15: 0 | AJ15: 0 | AK15: 0 | AL15: 0 | AM15: 0 | AN15: 0 | AO15: 0 | AP15: 0 | AQ15: 0 | AR15: 0 | AS15: 0 | AT15: 0 | AU15: 0 | AV15: 0 | AW15: 0 | AX15: 0 | AY15: 0 | AZ15: 0 | BA15: 0 | BB15: 0 | BC15: 0 | BD15: 0
C16: 34.85 | D16: Transport and processing post-fiscal point | E16: $mm const | G16: =(Inputs!F221 + Inputs!F222) * (1 + Inputs!$E$278) -> 0 | H16: =(Inputs!G221 + Inputs!G222) * (1 + Inputs!$E$278) -> 0 | I16: =(Inputs!H221 + Inputs!H222) * (1 + Inputs!$E$278) -> 0 | J16: =(Inputs!I221 + Inputs!I222) * (1 + Inputs!$E$278) -> 0 | K16: =(Inputs!J221 + Inputs!J222) * (1 + Inputs!$E$278) -> 0.45 | L16: =(Inputs!K221 + Inputs!K222) * (1 + Inputs!$E$278) -> 1.05 | M16: =(Inputs!L221 + Inputs!L222) * (1 + Inputs!$E$278) -> 1.05 | N16: =(Inputs!M221 + Inputs!M222) * (1 + Inputs!$E$278) -> 1.05 | O16: =(Inputs!N221 + Inputs!N222) * (1 + Inputs!$E$278) -> 1.05 | P16: =(Inputs!O221 + Inputs!O222) * (1 + Inputs!$E$278) -> 1.05 | Q16: =(Inputs!P221 + Inputs!P222) * (1 + Inputs!$E$278) -> 1.05 | R16: =(Inputs!Q221 + Inputs!Q222) * (1 + Inputs!$E$278) -> 1.05 | S16: =(Inputs!R221 + Inputs!R222) * (1 + Inputs!$E$278) -> 1.05 | T16: =(Inputs!S221 + Inputs!S222) * (1 + Inputs!$E$278) -> 1.05 | U16: =(Inputs!T221 + Inputs!T222) * (1 + Inputs!$E$278) -> 1.05 | V16: =(Inputs!U221 + Inputs!U222) * (1 + Inputs!$E$278) -> 1.05 | W16: =(Inputs!V221 + Inputs!V222) * (1 + Inputs!$E$278) -> 1.05 | X16: =(Inputs!W221 + Inputs!W222) * (1 + Inputs!$E$278) -> 1.05 | Y16: =(Inputs!X221 + Inputs!X222) * (1 + Inputs!$E$278) -> 1.05 | Z16: =(Inputs!Y221 + Inputs!Y222) * (1 + Inputs!$E$278) -> 1.05 | AA16: =(Inputs!Z221 + Inputs!Z222) * (1 + Inputs!$E$278) -> 1.05 | AB16: =(Inputs!AA221 + Inputs!AA222) * (1 + Inputs!$E$278) -> 1.05 | AC16: =(Inputs!AB221 + Inputs!AB222) * (1 + Inputs!$E$278) -> 1.05 | AD16: =(Inputs!AC221 + Inputs!AC222) * (1 + Inputs!$E$278) -> 3.5 | AE16: =(Inputs!AD221 + Inputs!AD222) * (1 + Inputs!$E$278) -> 3.5 | AF16: =(Inputs!AE221 + Inputs!AE222) * (1 + Inputs!$E$278) -> 3.5 | AG16: =(Inputs!AF221 + Inputs!AF222) * (1 + Inputs!$E$278) -> 3.5 | AH16: =(Inputs!AG221 + Inputs!AG222) * (1 + Inputs!$E$278) -> 1.5 | AI16: =(Inputs!AH221 + Inputs!AH222) * (1 + Inputs!$E$278) -> 0 | AJ16: =(Inputs!AI221 + Inputs!AI222) * (1 + Inputs!$E$278) -> 0 | AK16: =(Inputs!AJ221 + Inputs!AJ222) * (1 + Inputs!$E$278) -> 0 | AL16: =(Inputs!AK221 + Inputs!AK222) * (1 + Inputs!$E$278) -> 0 | AM16: =(Inputs!AL221 + Inputs!AL222) * (1 + Inputs!$E$278) -> 0 | AN16: =(Inputs!AM221 + Inputs!AM222) * (1 + Inputs!$E$278) -> 0 | AO16: =(Inputs!AN221 + Inputs!AN222) * (1 + Inputs!$E$278) -> 0 | AP16: =(Inputs!AO221 + Inputs!AO222) * (1 + Inputs!$E$278) -> 0 | AQ16: =(Inputs!AP221 + Inputs!AP222) * (1 + Inputs!$E$278) -> 0 | AR16: =(Inputs!AQ221 + Inputs!AQ222) * (1 + Inputs!$E$278) -> 0 | AS16: =(Inputs!AR221 + Inputs!AR222) * (1 + Inputs!$E$278) -> 0 | AT16: =(Inputs!AS221 + Inputs!AS222) * (1 + Inputs!$E$278) -> 0 | AU16: =(Inputs!AT221 + Inputs!AT222) * (1 + Inputs!$E$278) -> 0 | AV16: =(Inputs!AU221 + Inputs!AU222) * (1 + Inputs!$E$278) -> 0 | AW16: =(Inputs!AV221 + Inputs!AV222) * (1 + Inputs!$E$278) -> 0 | AX16: =(Inputs!AW221 + Inputs!AW222) * (1 + Inputs!$E$278) -> 0 | AY16: =(Inputs!AX221 + Inputs!AX222) * (1 + Inputs!$E$278) -> 0 | AZ16: =(Inputs!AY221 + Inputs!AY222) * (1 + Inputs!$E$278) -> 0 | BA16: =(Inputs!AZ221 + Inputs!AZ222) * (1 + Inputs!$E$278) -> 0 | BB16: =(Inputs!BA221 + Inputs!BA222) * (1 + Inputs!$E$278) -> 0 | BC16: =(Inputs!BB221 + Inputs!BB222) * (1 + Inputs!$E$278) -> 0 | BD16: =(Inputs!BC221 + Inputs!BC222) * (1 + Inputs!$E$278) -> 0
A17: =ROUND(C17-(C15-C16),5)=0 -> TRUE | C17: =SUM(G17:BD17) -> 12765.15 | D17: Net revenue | E17: $mm const | G17: =G15 - G16 -> 0 | H17: =H15 - H16 -> 0 | I17: 0 | J17: 0 | K17: 239.55 | L17: 558.95 | M17: 558.95 | N17: 558.95 | O17: 558.95 | P17: 558.95 | Q17: 558.95 | R17: 558.95 | S17: 558.95 | T17: 558.95 | U17: 558.95 | V17: 558.95 | W17: 558.95 | X17: 558.95 | Y17: 558.95 | Z17: 558.95 | AA17: 558.95 | AB17: 558.95 | AC17: 558.95 | AD17: 556.5 | AE17: 556.5 | AF17: 556.5 | AG17: 556.5 | AH17: 238.5 | AI17: 0 | AJ17: 0 | AK17: 0 | AL17: 0 | AM17: 0 | AN17: 0 | AO17: 0 | AP17: 0 | AQ17: 0 | AR17: 0 | AS17: 0 | AT17: 0 | AU17: 0 | AV17: 0 | AW17: 0 | AX17: 0 | AY17: 0 | AZ17: 0 | BA17: 0 | BB17: 0 | BC17: 0 | BD17: 0
C18: 40 | D18: Exploration costs (expensed) | E18: $mm const | G18: =Inputs!F223 * (1 + Inputs!$E$278) -> 20 | H18: =Inputs!G223 * (1 + Inputs!$E$278) -> 20 | I18: =Inputs!H223 * (1 + Inputs!$E$278) -> 0 | J18: =Inputs!I223 * (1 + Inputs!$E$278) -> 0 | K18: =Inputs!J223 * (1 + Inputs!$E$278) -> 0 | L18: =Inputs!K223 * (1 + Inputs!$E$278) -> 0 | M18: =Inputs!L223 * (1 + Inputs!$E$278) -> 0 | N18: =Inputs!M223 * (1 + Inputs!$E$278) -> 0 | O18: =Inputs!N223 * (1 + Inputs!$E$278) -> 0 | P18: =Inputs!O223 * (1 + Inputs!$E$278) -> 0 | Q18: =Inputs!P223 * (1 + Inputs!$E$278) -> 0 | R18: =Inputs!Q223 * (1 + Inputs!$E$278) -> 0 | S18: =Inputs!R223 * (1 + Inputs!$E$278) -> 0 | T18: =Inputs!S223 * (1 + Inputs!$E$278) -> 0 | U18: =Inputs!T223 * (1 + Inputs!$E$278) -> 0 | V18: =Inputs!U223 * (1 + Inputs!$E$278) -> 0 | W18: =Inputs!V223 * (1 + Inputs!$E$278) -> 0 | X18: =Inputs!W223 * (1 + Inputs!$E$278) -> 0 | Y18: =Inputs!X223 * (1 + Inputs!$E$278) -> 0 | Z18: =Inputs!Y223 * (1 + Inputs!$E$278) -> 0 | AA18: =Inputs!Z223 * (1 + Inputs!$E$278) -> 0 | AB18: =Inputs!AA223 * (1 + Inputs!$E$278) -> 0 | AC18: =Inputs!AB223 * (1 + Inputs!$E$278) -> 0 | AD18: =Inputs!AC223 * (1 + Inputs!$E$278) -> 0 | AE18: =Inputs!AD223 * (1 + Inputs!$E$278) -> 0 | AF18: =Inputs!AE223 * (1 + Inputs!$E$278) -> 0 | AG18: =Inputs!AF223 * (1 + Inputs!$E$278) -> 0 | AH18: =Inputs!AG223 * (1 + Inputs!$E$278) -> 0 | AI18: =Inputs!AH223 * (1 + Inputs!$E$278) -> 0 | AJ18: =Inputs!AI223 * (1 + Inputs!$E$278) -> 0 | AK18: =Inputs!AJ223 * (1 + Inputs!$E$278) -> 0 | AL18: =Inputs!AK223 * (1 + Inputs!$E$278) -> 0 | AM18: =Inputs!AL223 * (1 + Inputs!$E$278) -> 0 | AN18: =Inputs!AM223 * (1 + Inputs!$E$278) -> 0 | AO18: =Inputs!AN223 * (1 + Inputs!$E$278) -> 0 | AP18: =Inputs!AO223 * (1 + Inputs!$E$278) -> 0 | AQ18: =Inputs!AP223 * (1 + Inputs!$E$278) -> 0 | AR18: =Inputs!AQ223 * (1 + Inputs!$E$278) -> 0 | AS18: =Inputs!AR223 * (1 + Inputs!$E$278) -> 0 | AT18: =Inputs!AS223 * (1 + Inputs!$E$278) -> 0 | AU18: =Inputs!AT223 * (1 + Inputs!$E$278) -> 0 | AV18: =Inputs!AU223 * (1 + Inputs!$E$278) -> 0 | AW18: =Inputs!AV223 * (1 + Inputs!$E$278) -> 0 | AX18: =Inputs!AW223 * (1 + Inputs!$E$278) -> 0 | AY18: =Inputs!AX223 * (1 + Inputs!$E$278) -> 0 | AZ18: =Inputs!AY223 * (1 + Inputs!$E$278) -> 0 | BA18: =Inputs!AZ223 * (1 + Inputs!$E$278) -> 0 | BB18: =Inputs!BA223 * (1 + Inputs!$E$278) -> 0 | BC18: =Inputs!BB223 * (1 + Inputs!$E$278) -> 0 | BD18: =Inputs!BC223 * (1 + Inputs!$E$278) -> 0
C19: 0 | D19: Development costs - intangibles (expensable) | E19: $mm const | G19: =Inputs!F224 * (1 + Inputs!$E$278) -> 0 | H19: =Inputs!G224 * (1 + Inputs!$E$278) -> 0 | I19: =Inputs!H224 * (1 + Inputs!$E$278) -> 0 | J19: =Inputs!I224 * (1 + Inputs!$E$278) -> 0 | K19: =Inputs!J224 * (1 + Inputs!$E$278) -> 0 | L19: =Inputs!K224 * (1 + Inputs!$E$278) -> 0 | M19: =Inputs!L224 * (1 + Inputs!$E$278) -> 0 | N19: =Inputs!M224 * (1 + Inputs!$E$278) -> 0 | O19: =Inputs!N224 * (1 + Inputs!$E$278) -> 0 | P19: =Inputs!O224 * (1 + Inputs!$E$278) -> 0 | Q19: =Inputs!P224 * (1 + Inputs!$E$278) -> 0 | R19: =Inputs!Q224 * (1 + Inputs!$E$278) -> 0 | S19: =Inputs!R224 * (1 + Inputs!$E$278) -> 0 | T19: =Inputs!S224 * (1 + Inputs!$E$278) -> 0 | U19: =Inputs!T224 * (1 + Inputs!$E$278) -> 0 | V19: =Inputs!U224 * (1 + Inputs!$E$278) -> 0 | W19: =Inputs!V224 * (1 + Inputs!$E$278) -> 0 | X19: =Inputs!W224 * (1 + Inputs!$E$278) -> 0 | Y19: =Inputs!X224 * (1 + Inputs!$E$278) -> 0 | Z19: =Inputs!Y224 * (1 + Inputs!$E$278) -> 0 | AA19: =Inputs!Z224 * (1 + Inputs!$E$278) -> 0 | AB19: =Inputs!AA224 * (1 + Inputs!$E$278) -> 0 | AC19: =Inputs!AB224 * (1 + Inputs!$E$278) -> 0 | AD19: =Inputs!AC224 * (1 + Inputs!$E$278) -> 0 | AE19: =Inputs!AD224 * (1 + Inputs!$E$278) -> 0 | AF19: =Inputs!AE224 * (1 + Inputs!$E$278) -> 0 | AG19: =Inputs!AF224 * (1 + Inputs!$E$278) -> 0 | AH19: =Inputs!AG224 * (1 + Inputs!$E$278) -> 0 | AI19: =Inputs!AH224 * (1 + Inputs!$E$278) -> 0 | AJ19: =Inputs!AI224 * (1 + Inputs!$E$278) -> 0 | AK19: =Inputs!AJ224 * (1 + Inputs!$E$278) -> 0 | AL19: =Inputs!AK224 * (1 + Inputs!$E$278) -> 0 | AM19: =Inputs!AL224 * (1 + Inputs!$E$278) -> 0 | AN19: =Inputs!AM224 * (1 + Inputs!$E$278) -> 0 | AO19: =Inputs!AN224 * (1 + Inputs!$E$278) -> 0 | AP19: =Inputs!AO224 * (1 + Inputs!$E$278) -> 0 | AQ19: =Inputs!AP224 * (1 + Inputs!$E$278) -> 0 | AR19: =Inputs!AQ224 * (1 + Inputs!$E$278) -> 0 | AS19: =Inputs!AR224 * (1 + Inputs!$E$278) -> 0 | AT19: =Inputs!AS224 * (1 + Inputs!$E$278) -> 0 | AU19: =Inputs!AT224 * (1 + Inputs!$E$278) -> 0 | AV19: =Inputs!AU224 * (1 + Inputs!$E$278) -> 0 | AW19: =Inputs!AV224 * (1 + Inputs!$E$278) -> 0 | AX19: =Inputs!AW224 * (1 + Inputs!$E$278) -> 0 | AY19: =Inputs!AX224 * (1 + Inputs!$E$278) -> 0 | AZ19: =Inputs!AY224 * (1 + Inputs!$E$278) -> 0 | BA19: =Inputs!AZ224 * (1 + Inputs!$E$278) -> 0 | BB19: =Inputs!BA224 * (1 + Inputs!$E$278) -> 0 | BC19: =Inputs!BB224 * (1 + Inputs!$E$278) -> 0 | BD19: =Inputs!BC224 * (1 + Inputs!$E$278) -> 0
C20: 450 | D20: Development costs - tangibles (depreciable) | E20: $mm const | G20: =Inputs!F225 * (1 + Inputs!$E$278) -> 0 | H20: =Inputs!G225 * (1 + Inputs!$E$278) -> 0 | I20: =Inputs!H225 * (1 + Inputs!$E$278) -> 75 | J20: =Inputs!I225 * (1 + Inputs!$E$278) -> 300 | K20: =Inputs!J225 * (1 + Inputs!$E$278) -> 75 | L20: =Inputs!K225 * (1 + Inputs!$E$278) -> 0 | M20: =Inputs!L225 * (1 + Inputs!$E$278) -> 0 | N20: =Inputs!M225 * (1 + Inputs!$E$278) -> 0 | O20: =Inputs!N225 * (1 + Inputs!$E$278) -> 0 | P20: =Inputs!O225 * (1 + Inputs!$E$278) -> 0 | Q20: =Inputs!P225 * (1 + Inputs!$E$278) -> 0 | R20: =Inputs!Q225 * (1 + Inputs!$E$278) -> 0 | S20: =Inputs!R225 * (1 + Inputs!$E$278) -> 0 | T20: =Inputs!S225 * (1 + Inputs!$E$278) -> 0 | U20: =Inputs!T225 * (1 + Inputs!$E$278) -> 0 | V20: =Inputs!U225 * (1 + Inputs!$E$278) -> 0 | W20: =Inputs!V225 * (1 + Inputs!$E$278) -> 0 | X20: =Inputs!W225 * (1 + Inputs!$E$278) -> 0 | Y20: =Inputs!X225 * (1 + Inputs!$E$278) -> 0 | Z20: =Inputs!Y225 * (1 + Inputs!$E$278) -> 0 | AA20: =Inputs!Z225 * (1 + Inputs!$E$278) -> 0 | AB20: =Inputs!AA225 * (1 + Inputs!$E$278) -> 0 | AC20: =Inputs!AB225 * (1 + Inputs!$E$278) -> 0 | AD20: =Inputs!AC225 * (1 + Inputs!$E$278) -> 0 | AE20: =Inputs!AD225 * (1 + Inputs!$E$278) -> 0 | AF20: =Inputs!AE225 * (1 + Inputs!$E$278) -> 0 | AG20: =Inputs!AF225 * (1 + Inputs!$E$278) -> 0 | AH20: =Inputs!AG225 * (1 + Inputs!$E$278) -> 0 | AI20: =Inputs!AH225 * (1 + Inputs!$E$278) -> 0 | AJ20: =Inputs!AI225 * (1 + Inputs!$E$278) -> 0 | AK20: =Inputs!AJ225 * (1 + Inputs!$E$278) -> 0 | AL20: =Inputs!AK225 * (1 + Inputs!$E$278) -> 0 | AM20: =Inputs!AL225 * (1 + Inputs!$E$278) -> 0 | AN20: =Inputs!AM225 * (1 + Inputs!$E$278) -> 0 | AO20: =Inputs!AN225 * (1 + Inputs!$E$278) -> 0 | AP20: =Inputs!AO225 * (1 + Inputs!$E$278) -> 0 | AQ20: =Inputs!AP225 * (1 + Inputs!$E$278) -> 0 | AR20: =Inputs!AQ225 * (1 + Inputs!$E$278) -> 0 | AS20: =Inputs!AR225 * (1 + Inputs!$E$278) -> 0 | AT20: =Inputs!AS225 * (1 + Inputs!$E$278) -> 0 | AU20: =Inputs!AT225 * (1 + Inputs!$E$278) -> 0 | AV20: =Inputs!AU225 * (1 + Inputs!$E$278) -> 0 | AW20: =Inputs!AV225 * (1 + Inputs!$E$278) -> 0 | AX20: =Inputs!AW225 * (1 + Inputs!$E$278) -> 0 | AY20: =Inputs!AX225 * (1 + Inputs!$E$278) -> 0 | AZ20: =Inputs!AY225 * (1 + Inputs!$E$278) -> 0 | BA20: =Inputs!AZ225 * (1 + Inputs!$E$278) -> 0 | BB20: =Inputs!BA225 * (1 + Inputs!$E$278) -> 0 | BC20: =Inputs!BB225 * (1 + Inputs!$E$278) -> 0 | BD20: =Inputs!BC225 * (1 + Inputs!$E$278) -> 0
C21: 860 | D21: Replacement capital costs (depreciable) | E21: $mm const | G21: =Inputs!F226 * (1 + Inputs!$E$278) -> 0 | H21: =Inputs!G226 * (1 + Inputs!$E$278) -> 0 | I21: =Inputs!H226 * (1 + Inputs!$E$278) -> 0 | J21: =Inputs!I226 * (1 + Inputs!$E$278) -> 0 | K21: =Inputs!J226 * (1 + Inputs!$E$278) -> 0 | L21: =Inputs!K226 * (1 + Inputs!$E$278) -> 40 | M21: =Inputs!L226 * (1 + Inputs!$E$278) -> 40 | N21: =Inputs!M226 * (1 + Inputs!$E$278) -> 40 | O21: =Inputs!N226 * (1 + Inputs!$E$278) -> 40 | P21: =Inputs!O226 * (1 + Inputs!$E$278) -> 40 | Q21: =Inputs!P226 * (1 + Inputs!$E$278) -> 40 | R21: =Inputs!Q226 * (1 + Inputs!$E$278) -> 40 | S21: =Inputs!R226 * (1 + Inputs!$E$278) -> 40 | T21: =Inputs!S226 * (1 + Inputs!$E$278) -> 40 | U21: =Inputs!T226 * (1 + Inputs!$E$278) -> 40 | V21: =Inputs!U226 * (1 + Inputs!$E$278) -> 40 | W21: =Inputs!V226 * (1 + Inputs!$E$278) -> 40 | X21: =Inputs!W226 * (1 + Inputs!$E$278) -> 40 | Y21: =Inputs!X226 * (1 + Inputs!$E$278) -> 40 | Z21: =Inputs!Y226 * (1 + Inputs!$E$278) -> 40 | AA21: =Inputs!Z226 * (1 + Inputs!$E$278) -> 40 | AB21: =Inputs!AA226 * (1 + Inputs!$E$278) -> 40 | AC21: =Inputs!AB226 * (1 + Inputs!$E$278) -> 40 | AD21: =Inputs!AC226 * (1 + Inputs!$E$278) -> 40 | AE21: =Inputs!AD226 * (1 + Inputs!$E$278) -> 40 | AF21: =Inputs!AE226 * (1 + Inputs!$E$278) -> 40 | AG21: =Inputs!AF226 * (1 + Inputs!$E$278) -> 20 | AH21: =Inputs!AG226 * (1 + Inputs!$E$278) -> 0 | AI21: =Inputs!AH226 * (1 + Inputs!$E$278) -> 0 | AJ21: =Inputs!AI226 * (1 + Inputs!$E$278) -> 0 | AK21: =Inputs!AJ226 * (1 + Inputs!$E$278) -> 0 | AL21: =Inputs!AK226 * (1 + Inputs!$E$278) -> 0 | AM21: =Inputs!AL226 * (1 + Inputs!$E$278) -> 0 | AN21: =Inputs!AM226 * (1 + Inputs!$E$278) -> 0 | AO21: =Inputs!AN226 * (1 + Inputs!$E$278) -> 0 | AP21: =Inputs!AO226 * (1 + Inputs!$E$278) -> 0 | AQ21: =Inputs!AP226 * (1 + Inputs!$E$278) -> 0 | AR21: =Inputs!AQ226 * (1 + Inputs!$E$278) -> 0 | AS21: =Inputs!AR226 * (1 + Inputs!$E$278) -> 0 | AT21: =Inputs!AS226 * (1 + Inputs!$E$278) -> 0 | AU21: =Inputs!AT226 * (1 + Inputs!$E$278) -> 0 | AV21: =Inputs!AU226 * (1 + Inputs!$E$278) -> 0 | AW21: =Inputs!AV226 * (1 + Inputs!$E$278) -> 0 | AX21: =Inputs!AW226 * (1 + Inputs!$E$278) -> 0 | AY21: =Inputs!AX226 * (1 + Inputs!$E$278) -> 0 | AZ21: =Inputs!AY226 * (1 + Inputs!$E$278) -> 0 | BA21: =Inputs!AZ226 * (1 + Inputs!$E$278) -> 0 | BB21: =Inputs!BA226 * (1 + Inputs!$E$278) -> 0 | BC21: =Inputs!BB226 * (1 + Inputs!$E$278) -> 0 | BD21: =Inputs!BC226 * (1 + Inputs!$E$278) -> 0
C22: =SUM(G22:BD22) -> 5600 | D22: Operating costs | E22: $mm const | G22: =(($E$1278 * G$12) / 1000000) * (1 + Inputs!$E$278) -> 0 | H22: =(($E$1278 * H$12) / 1000000) * (1 + Inputs!$E$278) -> 0 | I22: =(($E$1278 * I$12) / 1000000) * (1 + Inputs!$E$278) -> 0 | J22: =(($E$1278 * J$12) / 1000000) * (1 + Inputs!$E$278) -> 0 | K22: =(($E$1278 * K$12) / 1000000) * (1 + Inputs!$E$278) -> 105 | L22: =(($E$1278 * L$12) / 1000000) * (1 + Inputs!$E$278) -> 245 | M22: =(($E$1278 * M$12) / 1000000) * (1 + Inputs!$E$278) -> 245 | N22: =(($E$1278 * N$12) / 1000000) * (1 + Inputs!$E$278) -> 245 | O22: =(($E$1278 * O$12) / 1000000) * (1 + Inputs!$E$278) -> 245 | P22: =(($E$1278 * P$12) / 1000000) * (1 + Inputs!$E$278) -> 245 | Q22: =(($E$1278 * Q$12) / 1000000) * (1 + Inputs!$E$278) -> 245 | R22: =(($E$1278 * R$12) / 1000000) * (1 + Inputs!$E$278) -> 245 | S22: =(($E$1278 * S$12) / 1000000) * (1 + Inputs!$E$278) -> 245 | T22: =(($E$1278 * T$12) / 1000000) * (1 + Inputs!$E$278) -> 245 | U22: =(($E$1278 * U$12) / 1000000) * (1 + Inputs!$E$278) -> 245 | V22: =(($E$1278 * V$12) / 1000000) * (1 + Inputs!$E$278) -> 245 | W22: =(($E$1278 * W$12) / 1000000) * (1 + Inputs!$E$278) -> 245 | X22: =(($E$1278 * X$12) / 1000000) * (1 + Inputs!$E$278) -> 245 | Y22: =(($E$1278 * Y$12) / 1000000) * (1 + Inputs!$E$278) -> 245 | Z22: =(($E$1278 * Z$12) / 1000000) * (1 + Inputs!$E$278) -> 245 | AA22: =(($E$1278 * AA$12) / 1000000) * (1 + Inputs!$E$278) -> 245 | AB22: =(($E$1278 * AB$12) / 1000000) * (1 + Inputs!$E$278) -> 245 | AC22: =(($E$1278 * AC$12) / 1000000) * (1 + Inputs!$E$278) -> 245 | AD22: =(($E$1278 * AD$12) / 1000000) * (1 + Inputs!$E$278) -> 245 | AE22: =(($E$1278 * AE$12) / 1000000) * (1 + Inputs!$E$278) -> 245 | AF22: =(($E$1278 * AF$12) / 1000000) * (1 + Inputs!$E$278) -> 245 | AG22: =(($E$1278 * AG$12) / 1000000) * (1 + Inputs!$E$278) -> 245 | AH22: =(($E$1278 * AH$12) / 1000000) * (1 + Inputs!$E$278) -> 105 | AI22: =(($E$1278 * AI$12) / 1000000) * (1 + Inputs!$E$278) -> 0 | AJ22: =(($E$1278 * AJ$12) / 1000000) * (1 + Inputs!$E$278) -> 0 | AK22: =(($E$1278 * AK$12) / 1000000) * (1 + Inputs!$E$278) -> 0 | AL22: =(($E$1278 * AL$12) / 1000000) * (1 + Inputs!$E$278) -> 0 | AM22: =(($E$1278 * AM$12) / 1000000) * (1 + Inputs!$E$278) -> 0 | AN22: =(($E$1278 * AN$12) / 1000000) * (1 + Inputs!$E$278) -> 0 | AO22: =(($E$1278 * AO$12) / 1000000) * (1 + Inputs!$E$278) -> 0 | AP22: =(($E$1278 * AP$12) / 1000000) * (1 + Inputs!$E$278) -> 0 | AQ22: =(($E$1278 * AQ$12) / 1000000) * (1 + Inputs!$E$278) -> 0 | AR22: =(($E$1278 * AR$12) / 1000000) * (1 + Inputs!$E$278) -> 0 | AS22: =(($E$1278 * AS$12) / 1000000) * (1 + Inputs!$E$278) -> 0 | AT22: =(($E$1278 * AT$12) / 1000000) * (1 + Inputs!$E$278) -> 0 | AU22: =(($E$1278 * AU$12) / 1000000) * (1 + Inputs!$E$278) -> 0 | AV22: =(($E$1278 * AV$12) / 1000000) * (1 + Inputs!$E$278) -> 0 | AW22: =(($E$1278 * AW$12) / 1000000) * (1 + Inputs!$E$278) -> 0 | AX22: =(($E$1278 * AX$12) / 1000000) * (1 + Inputs!$E$278) -> 0 | AY22: =(($E$1278 * AY$12) / 1000000) * (1 + Inputs!$E$278) -> 0 | AZ22: =(($E$1278 * AZ$12) / 1000000) * (1 + Inputs!$E$278) -> 0 | BA22: =(($E$1278 * BA$12) / 1000000) * (1 + Inputs!$E$278) -> 0 | BB22: =(($E$1278 * BB$12) / 1000000) * (1 + Inputs!$E$278) -> 0 | BC22: =(($E$1278 * BC$12) / 1000000) * (1 + Inputs!$E$278) -> 0 | BD22: =(($E$1278 * BD$12) / 1000000) * (1 + Inputs!$E$278) -> 0
C23: 15 | D23: Decommissioning costs | E23: $mm const | G23: =Inputs!F227 -> 0 | H23: =Inputs!G227 -> 0 | I23: =Inputs!H227 -> 0 | J23: =Inputs!I227 -> 0 | K23: =Inputs!J227 -> 0 | L23: =Inputs!K227 -> 0 | M23: =Inputs!L227 -> 0 | N23: =Inputs!M227 -> 0 | O23: =Inputs!N227 -> 0 | P23: =Inputs!O227 -> 0 | Q23: =Inputs!P227 -> 0 | R23: =Inputs!Q227 -> 0 | S23: =Inputs!R227 -> 0 | T23: =Inputs!S227 -> 0 | U23: =Inputs!T227 -> 0 | V23: =Inputs!U227 -> 0 | W23: =Inputs!V227 -> 0 | X23: =Inputs!W227 -> 0 | Y23: =Inputs!X227 -> 0 | Z23: =Inputs!Y227 -> 0 | AA23: =Inputs!Z227 -> 0 | AB23: =Inputs!AA227 -> 0 | AC23: =Inputs!AB227 -> 0 | AD23: =Inputs!AC227 -> 0 | AE23: =Inputs!AD227 -> 0 | AF23: =Inputs!AE227 -> 0 | AG23: =Inputs!AF227 -> 0 | AH23: =Inputs!AG227 -> 0 | AI23: =Inputs!AH227 -> 15 | AJ23: =Inputs!AI227 -> 0 | AK23: =Inputs!AJ227 -> 0 | AL23: =Inputs!AK227 -> 0 | AM23: =Inputs!AL227 -> 0 | AN23: =Inputs!AM227 -> 0 | AO23: =Inputs!AN227 -> 0 | AP23: =Inputs!AO227 -> 0 | AQ23: =Inputs!AP227 -> 0 | AR23: =Inputs!AQ227 -> 0 | AS23: =Inputs!AR227 -> 0 | AT23: =Inputs!AS227 -> 0 | AU23: =Inputs!AT227 -> 0 | AV23: =Inputs!AU227 -> 0 | AW23: =Inputs!AV227 -> 0 | AX23: =Inputs!AW227 -> 0 | AY23: =Inputs!AX227 -> 0 | AZ23: =Inputs!AY227 -> 0 | BA23: =Inputs!AZ227 -> 0 | BB23: =Inputs!BA227 -> 0 | BC23: =Inputs!BB227 -> 0 | BD23: =Inputs!BC227 -> 0
C24: =SUM(G24:BD24) -> 6965 | D24: Total costs | E24: $mm const | G24: =SUM(G18:G23) -> 20 | H24: =SUM(H18:H23) -> 20 | I24: 75 | J24: 300 | K24: 180 | L24: 285 | M24: 285 | N24: 285 | O24: 285 | P24: 285 | Q24: 285 | R24: 285 | S24: 285 | T24: 285 | U24: 285 | V24: 285 | W24: 285 | X24: 285 | Y24: 285 | Z24: 285 | AA24: 285 | AB24: 285 | AC24: 285 | AD24: 285 | AE24: 285 | AF24: 285 | AG24: 265 | AH24: 105 | AI24: 15 | AJ24: 0 | AK24: 0 | AL24: 0 | AM24: 0 | AN24: 0 | AO24: 0 | AP24: 0 | AQ24: 0 | AR24: 0 | AS24: 0 | AT24: 0 | AU24: 0 | AV24: 0 | AW24: 0 | AX24: 0 | AY24: 0 | AZ24: 0 | BA24: 0 | BB24: 0 | BC24: 0 | BD24: 0
A25: =ROUND(C25-(C17-SUM(C18:C23)),5)=0 -> TRUE | C25: =SUM(G25:BD25) -> 5800.15 | D25: Project pre-tax cash flow | E25: $mm const | G25: =G17-G24 -> -20 | H25: -20 | I25: -75 | J25: -300 | K25: 59.55 | L25: 273.95 | M25: 273.95 | N25: 273.95 | O25: 273.95 | P25: 273.95 | Q25: 273.95 | R25: 273.95 | S25: 273.95 | T25: 273.95 | U25: 273.95 | V25: 273.95 | W25: 273.95 | X25: 273.95 | Y25: 273.95 | Z25: 273.95 | AA25: 273.95 | AB25: 273.95 | AC25: 273.95 | AD25: 271.5 | AE25: 271.5 | AF25: 271.5 | AG25: 291.5 | AH25: 133.5 | AI25: -15 | AJ25: 0 | AK25: 0 | AL25: 0 | AM25: =AM17-AM24 -> 0 | AN25: 0 | AO25: 0 | AP25: 0 | AQ25: 0 | AR25: 0 | AS25: 0 | AT25: 0 | AU25: 0 | AV25: 0 | AW25: 0 | AX25: 0 | AY25: 0 | AZ25: 0 | BA25: 0 | BB25: 0 | BC25: 0 | BD25: 0
C27: =IFERROR(IRR($G25:BD25),0) -> 0.4182406531 | D27: Internal rate of return (real) | E27: % | G27: =IFERROR(IRR($G25:G25),"--") -> -- | H27: =IFERROR(IRR($G25:H25),"--") -> -- | I27: =IFERROR(IRR($G25:I25),"--") -> -- | J27: =IFERROR(IRR($G25:J25),"--") -> -- | K27: =IFERROR(IRR($G25:K25),"--") -> -- | L27: =IFERROR(IRR($G25:L25),"--") -> -0.09375933971 | M27: =IFERROR(IRR($G25:M25),"--") -> 0.1462388999 | N27: =IFERROR(IRR($G25:N25),"--") -> 0.259333626 | O27: =IFERROR(IRR($G25:O25),"--") -> 0.3201509268 | P27: =IFERROR(IRR($G25:P25),"--") -> 0.3554860323 | Q27: =IFERROR(IRR($G25:Q25),"--") -> 0.3770896992 | R27: =IFERROR(IRR($G25:R25),"--") -> 0.3907787925 | S27: =IFERROR(IRR($G25:S25),"--") -> 0.399681298 | T27: =IFERROR(IRR($G25:T25),"--") -> 0.4055839415 | U27: =IFERROR(IRR($G25:U25),"--") -> 0.409555071 | V27: =IFERROR(IRR($G25:V25),"--") -> 0.4122565378 | W27: =IFERROR(IRR($G25:W25),"--") -> 0.414109936 | X27: =IFERROR(IRR($G25:X25),"--") -> 0.4153897898 | Y27: =IFERROR(IRR($G25:Y25),"--") -> 0.4162780004 | Z27: =IFERROR(IRR($G25:Z25),"--") -> 0.4168967701 | AA27: =IFERROR(IRR($G25:AA25),"--") -> 0.4173290945 | AB27: =IFERROR(IRR($G25:AB25),"--") -> 0.4176318258 | AC27: =IFERROR(IRR($G25:AC25),"--") -> 0.4178441702 | AD27: =IFERROR(IRR($G25:AD25),"--") -> 0.4179919747 | AE27: =IFERROR(IRR($G25:AE25),"--") -> 0.4180958862 | AF27: =IFERROR(IRR($G25:AF25),"--") -> 0.4181689925 | AG27: =IFERROR(IRR($G25:AG25),"--") -> 0.4182242421 | AH27: =IFERROR(IRR($G25:AH25),"--") -> 0.4182420647 | AI27: =IFERROR(IRR($G25:AI25),"--") -> 0.4182406531 | AJ27: =IFERROR(IRR($G25:AJ25),"--") -> 0.4182406531 | AK27: =IFERROR(IRR($G25:AK25),"--") -> 0.4182406531 | AL27: =IFERROR(IRR($G25:AL25),"--") -> 0.4182406531 | AM27: =IFERROR(IRR($G25:AM25),"--") -> 0.4182406531 | AN27: =IFERROR(IRR($G25:AN25),"--") -> 0.4182406531 | AO27: =IFERROR(IRR($G25:AO25),"--") -> 0.4182406531 | AP27: =IFERROR(IRR($G25:AP25),"--") -> 0.4182406531 | AQ27: =IFERROR(IRR($G25:AQ25),"--") -> 0.4182406531 | AR27: =IFERROR(IRR($G25:AR25),"--") -> 0.4182406531 | AS27: =IFERROR(IRR($G25:AS25),"--") -> 0.4182406531 | AT27: =IFERROR(IRR($G25:AT25),"--") -> 0.4182406531 | AU27: =IFERROR(IRR($G25:AU25),"--") -> 0.4182406531 | AV27: =IFERROR(IRR($G25:AV25),"--") -> 0.4182406531 | AW27: =IFERROR(IRR($G25:AW25),"--") -> 0.4182406531 | AX27: =IFERROR(IRR($G25:AX25),"--") -> 0.4182406531 | AY27: =IFERROR(IRR($G25:AY25),"--") -> 0.4182406531 | AZ27: =IFERROR(IRR($G25:AZ25),"--") -> 0.4182406531 | BA27: =IFERROR(IRR($G25:BA25),"--") -> 0.4182406531 | BB27: =IFERROR(IRR($G25:BB25),"--") -> 0.4182406531 | BC27: =IFERROR(IRR($G25:BC25),"--") -> 0.4182406531 | BD27: =IFERROR(IRR($G25:BD25),"--") -> 0.4182406531
C28: =NPV(Inputs!$E$200,$H$25:$BD$25)+$G$25 -> 1773.023883 | D28: ="Project pre-tax cash flows NPV"&Inputs!$E$200*100 -> Project pre-tax cash flows NPV8 | E28: $mm const
D30: Flags
C31: =MAX(G31:BD31) -> 50 | D31: Project years | E31: years | G31: =(SUM($G$12:G24)>0)*1+F31 -> 1 | H31: =(SUM($G$12:H24)>0)*1+G31 -> 2 | I31: =(SUM($G$12:I24)>0)*1+H31 -> 3 | J31: =(SUM($G$12:J24)>0)*1+I31 -> 4 | K31: =(SUM($G$12:K24)>0)*1+J31 -> 5 | L31: =(SUM($G$12:L24)>0)*1+K31 -> 6 | M31: =(SUM($G$12:M24)>0)*1+L31 -> 7 | N31: =(SUM($G$12:N24)>0)*1+M31 -> 8 | O31: =(SUM($G$12:O24)>0)*1+N31 -> 9 | P31: =(SUM($G$12:P24)>0)*1+O31 -> 10 | Q31: =(SUM($G$12:Q24)>0)*1+P31 -> 11 | R31: =(SUM($G$12:R24)>0)*1+Q31 -> 12 | S31: =(SUM($G$12:S24)>0)*1+R31 -> 13 | T31: =(SUM($G$12:T24)>0)*1+S31 -> 14 | U31: =(SUM($G$12:U24)>0)*1+T31 -> 15 | V31: =(SUM($G$12:V24)>0)*1+U31 -> 16 | W31: =(SUM($G$12:W24)>0)*1+V31 -> 17 | X31: =(SUM($G$12:X24)>0)*1+W31 -> 18 | Y31: =(SUM($G$12:Y24)>0)*1+X31 -> 19 | Z31: =(SUM($G$12:Z24)>0)*1+Y31 -> 20 | AA31: =(SUM($G$12:AA24)>0)*1+Z31 -> 21 | AB31: =(SUM($G$12:AB24)>0)*1+AA31 -> 22 | AC31: =(SUM($G$12:AC24)>0)*1+AB31 -> 23 | AD31: =(SUM($G$12:AD24)>0)*1+AC31 -> 24 | AE31: =(SUM($G$12:AE24)>0)*1+AD31 -> 25 | AF31: =(SUM($G$12:AF24)>0)*1+AE31 -> 26 | AG31: =(SUM($G$12:AG24)>0)*1+AF31 -> 27 | AH31: =(SUM($G$12:AH24)>0)*1+AG31 -> 28 | AI31: =(SUM($G$12:AI24)>0)*1+AH31 -> 29 | AJ31: =(SUM($G$12:AJ24)>0)*1+AI31 -> 30 | AK31: =(SUM($G$12:AK24)>0)*1+AJ31 -> 31 | AL31: =(SUM($G$12:AL24)>0)*1+AK31 -> 32 | AM31: =(SUM($G$12:AM24)>0)*1+AL31 -> 33 | AN31: =(SUM($G$12:AN24)>0)*1+AM31 -> 34 | AO31: =(SUM($G$12:AO24)>0)*1+AN31 -> 35 | AP31: =(SUM($G$12:AP24)>0)*1+AO31 -> 36 | AQ31: =(SUM($G$12:AQ24)>0)*1+AP31 -> 37 | AR31: =(SUM($G$12:AR24)>0)*1+AQ31 -> 38 | AS31: =(SUM($G$12:AS24)>0)*1+AR31 -> 39 | AT31: =(SUM($G$12:AT24)>0)*1+AS31 -> 40 | AU31: =(SUM($G$12:AU24)>0)*1+AT31 -> 41 | AV31: =(SUM($G$12:AV24)>0)*1+AU31 -> 42 | AW31: =(SUM($G$12:AW24)>0)*1+AV31 -> 43 | AX31: =(SUM($G$12:AX24)>0)*1+AW31 -> 44 | AY31: =(SUM($G$12:AY24)>0)*1+AX31 -> 45 | AZ31: =(SUM($G$12:AZ24)>0)*1+AY31 -> 46 | BA31: =(SUM($G$12:BA24)>0)*1+AZ31 -> 47 | BB31: =(SUM($G$12:BB24)>0)*1+BA31 -> 48 | BC31: =(SUM($G$12:BC24)>0)*1+BB31 -> 49 | BD31: =(SUM($G$12:BD24)>0)*1+BC31 -> 50
C32: =MAX(G32:BD32) -> 1 | D32: Production | E32: flag | G32: =(G12 > 0) * 1 -> 0 | H32: =(H12 > 0) * 1 -> 0 | I32: 0 | J32: 0 | K32: 1 | L32: 1 | M32: 1 | N32: 1 | O32: 1 | P32: 1 | Q32: 1 | R32: 1 | S32: 1 | T32: 1 | U32: 1 | V32: 1 | W32: 1 | X32: 1 | Y32: 1 | Z32: 1 | AA32: 1 | AB32: 1 | AC32: 1 | AD32: 1 | AE32: 1 | AF32: 1 | AG32: 1 | AH32: 1 | AI32: 0 | AJ32: 0 | AK32: 0 | AL32: 0 | AM32: 0 | AN32: 0 | AO32: 0 | AP32: 0 | AQ32: 0 | AR32: 0 | AS32: 0 | AT32: 0 | AU32: 0 | AV32: 0 | AW32: 0 | AX32: 0 | AY32: 0 | AZ32: 0 | BA32: 0 | BB32: 0 | BC32: 0 | BD32: 0
C33: =MAX(G33:BD33) -> 24 | D33: Production year | E33: years | G33: =OR(G12>0,AND(SUM($G$12:G12)>0,SUM(H12:$BD$12)>0))*(1+F33) -> 0 | H33: =OR(H12>0,AND(SUM($G$12:H12)>0,SUM(I12:$BD$12)>0))*(1+G33) -> 0 | I33: =OR(I12>0,AND(SUM($G$12:I12)>0,SUM(J12:$BD$12)>0))*(1+H33) -> 0 | J33: =OR(J12>0,AND(SUM($G$12:J12)>0,SUM(K12:$BD$12)>0))*(1+I33) -> 0 | K33: =OR(K12>0,AND(SUM($G$12:K12)>0,SUM(L12:$BD$12)>0))*(1+J33) -> 1 | L33: =OR(L12>0,AND(SUM($G$12:L12)>0,SUM(M12:$BD$12)>0))*(1+K33) -> 2 | M33: =OR(M12>0,AND(SUM($G$12:M12)>0,SUM(N12:$BD$12)>0))*(1+L33) -> 3 | N33: =OR(N12>0,AND(SUM($G$12:N12)>0,SUM(O12:$BD$12)>0))*(1+M33) -> 4 | O33: =OR(O12>0,AND(SUM($G$12:O12)>0,SUM(P12:$BD$12)>0))*(1+N33) -> 5 | P33: =OR(P12>0,AND(SUM($G$12:P12)>0,SUM(Q12:$BD$12)>0))*(1+O33) -> 6 | Q33: =OR(Q12>0,AND(SUM($G$12:Q12)>0,SUM(R12:$BD$12)>0))*(1+P33) -> 7 | R33: =OR(R12>0,AND(SUM($G$12:R12)>0,SUM(S12:$BD$12)>0))*(1+Q33) -> 8 | S33: =OR(S12>0,AND(SUM($G$12:S12)>0,SUM(T12:$BD$12)>0))*(1+R33) -> 9 | T33: =OR(T12>0,AND(SUM($G$12:T12)>0,SUM(U12:$BD$12)>0))*(1+S33) -> 10 | U33: =OR(U12>0,AND(SUM($G$12:U12)>0,SUM(V12:$BD$12)>0))*(1+T33) -> 11 | V33: =OR(V12>0,AND(SUM($G$12:V12)>0,SUM(W12:$BD$12)>0))*(1+U33) -> 12 | W33: =OR(W12>0,AND(SUM($G$12:W12)>0,SUM(X12:$BD$12)>0))*(1+V33) -> 13 | X33: =OR(X12>0,AND(SUM($G$12:X12)>0,SUM(Y12:$BD$12)>0))*(1+W33) -> 14 | Y33: =OR(Y12>0,AND(SUM($G$12:Y12)>0,SUM(Z12:$BD$12)>0))*(1+X33) -> 15 | Z33: =OR(Z12>0,AND(SUM($G$12:Z12)>0,SUM(AA12:$BD$12)>0))*(1+Y33) -> 16 | AA33: =OR(AA12>0,AND(SUM($G$12:AA12)>0,SUM(AB12:$BD$12)>0))*(1+Z33) -> 17 | AB33: =OR(AB12>0,AND(SUM($G$12:AB12)>0,SUM(AC12:$BD$12)>0))*(1+AA33) -> 18 | AC33: =OR(AC12>0,AND(SUM($G$12:AC12)>0,SUM(AD12:$BD$12)>0))*(1+AB33) -> 19 | AD33: =OR(AD12>0,AND(SUM($G$12:AD12)>0,SUM(AE12:$BD$12)>0))*(1+AC33) -> 20 | AE33: =OR(AE12>0,AND(SUM($G$12:AE12)>0,SUM(AF12:$BD$12)>0))*(1+AD33) -> 21 | AF33: =OR(AF12>0,AND(SUM($G$12:AF12)>0,SUM(AG12:$BD$12)>0))*(1+AE33) -> 22 | AG33: =OR(AG12>0,AND(SUM($G$12:AG12)>0,SUM(AH12:$BD$12)>0))*(1+AF33) -> 23 | AH33: =OR(AH12>0,AND(SUM($G$12:AH12)>0,SUM(AI12:$BD$12)>0))*(1+AG33) -> 24 | AI33: =OR(AI12>0,AND(SUM($G$12:AI12)>0,SUM(AJ12:$BD$12)>0))*(1+AH33) -> 0 | AJ33: =OR(AJ12>0,AND(SUM($G$12:AJ12)>0,SUM(AK12:$BD$12)>0))*(1+AI33) -> 0 | AK33: =OR(AK12>0,AND(SUM($G$12:AK12)>0,SUM(AL12:$BD$12)>0))*(1+AJ33) -> 0 | AL33: =OR(AL12>0,AND(SUM($G$12:AL12)>0,SUM(AM12:$BD$12)>0))*(1+AK33) -> 0 | AM33: =OR(AM12>0,AND(SUM($G$12:AM12)>0,SUM(AN12:$BD$12)>0))*(1+AL33) -> 0 | AN33: =OR(AN12>0,AND(SUM($G$12:AN12)>0,SUM(AO12:$BD$12)>0))*(1+AM33) -> 0 | AO33: =OR(AO12>0,AND(SUM($G$12:AO12)>0,SUM(AP12:$BD$12)>0))*(1+AN33) -> 0 | AP33: =OR(AP12>0,AND(SUM($G$12:AP12)>0,SUM(AQ12:$BD$12)>0))*(1+AO33) -> 0 | AQ33: =OR(AQ12>0,AND(SUM($G$12:AQ12)>0,SUM(AR12:$BD$12)>0))*(1+AP33) -> 0 | AR33: =OR(AR12>0,AND(SUM($G$12:AR12)>0,SUM(AS12:$BD$12)>0))*(1+AQ33) -> 0 | AS33: =OR(AS12>0,AND(SUM($G$12:AS12)>0,SUM(AT12:$BD$12)>0))*(1+AR33) -> 0 | AT33: =OR(AT12>0,AND(SUM($G$12:AT12)>0,SUM(AU12:$BD$12)>0))*(1+AS33) -> 0 | AU33: =OR(AU12>0,AND(SUM($G$12:AU12)>0,SUM(AV12:$BD$12)>0))*(1+AT33) -> 0 | AV33: =OR(AV12>0,AND(SUM($G$12:AV12)>0,SUM(AW12:$BD$12)>0))*(1+AU33) -> 0 | AW33: =OR(AW12>0,AND(SUM($G$12:AW12)>0,SUM(AX12:$BD$12)>0))*(1+AV33) -> 0 | AX33: =OR(AX12>0,AND(SUM($G$12:AX12)>0,SUM(AY12:$BD$12)>0))*(1+AW33) -> 0 | AY33: =OR(AY12>0,AND(SUM($G$12:AY12)>0,SUM(AZ12:$BD$12)>0))*(1+AX33) -> 0 | AZ33: =OR(AZ12>0,AND(SUM($G$12:AZ12)>0,SUM(BA12:$BD$12)>0))*(1+AY33) -> 0 | BA33: =OR(BA12>0,AND(SUM($G$12:BA12)>0,SUM(BB12:$BD$12)>0))*(1+AZ33) -> 0 | BB33: =OR(BB12>0,AND(SUM($G$12:BB12)>0,SUM(BC12:$BD$12)>0))*(1+BA33) -> 0 | BC33: =OR(BC12>0,AND(SUM($G$12:BC12)>0,SUM(BD12:$BD$12)>0))*(1+BB33) -> 0 | BD33: =OR(BD12>0,AND(SUM($G$12:BD12)>0,SUM($BD12:BE$12)>0))*(1+BC33) -> 0
C34: =MAX(G34:BD34) -> 24 | D34: Remaining production years | E34: years | G34: =($C$33-G33+1)*(G12>0) -> 0 | H34: 0 | I34: 0 | J34: 0 | K34: 24 | L34: 23 | M34: 22 | N34: 21 | O34: 20 | P34: 19 | Q34: 18 | R34: 17 | S34: 16 | T34: 15 | U34: =($C$33-U33+1)*(U12>0) -> 14 | V34: 13 | W34: 12 | X34: 11 | Y34: 10 | Z34: 9 | AA34: 8 | AB34: 7 | AC34: 6 | AD34: 5 | AE34: 4 | AF34: 3 | AG34: 2 | AH34: 1 | AI34: 0 | AJ34: 0 | AK34: 0 | AL34: 0 | AM34: =($C$33-AM33+1)*(AM12>0) -> 0 | AN34: 0 | AO34: 0 | AP34: 0 | AQ34: 0 | AR34: 0 | AS34: 0 | AT34: 0 | AU34: 0 | AV34: 0 | AW34: 0 | AX34: 0 | AY34: 0 | AZ34: 0 | BA34: 0 | BB34: 0 | BC34: 0 | BD34: 0
C35: =SUM(G35:BD35) -> 5 | D35: Year production starts | E35: years | G35: =IF(G33=1,G31,0) -> 0 | H35: =IF(H33=1,H31,0) -> 0 | I35: 0 | J35: 0 | K35: 5 | L35: 0 | M35: 0 | N35: 0 | O35: 0 | P35: 0 | Q35: 0 | R35: 0 | S35: 0 | T35: 0 | U35: 0 | V35: 0 | W35: 0 | X35: 0 | Y35: 0 | Z35: 0 | AA35: 0 | AB35: 0 | AC35: 0 | AD35: 0 | AE35: 0 | AF35: 0 | AG35: 0 | AH35: 0 | AI35: 0 | AJ35: 0 | AK35: 0 | AL35: 0 | AM35: 0 | AN35: 0 | AO35: 0 | AP35: 0 | AQ35: 0 | AR35: 0 | AS35: 0 | AT35: 0 | AU35: 0 | AV35: 0 | AW35: 0 | AX35: 0 | AY35: 0 | AZ35: 0 | BA35: 0 | BB35: 0 | BC35: 0 | BD35: 0
C36: =SUM(G36:BD36) -> 28 | D36: Year production ends | E36: years | G36: =IF(AND(G33 > 0, SUM(H33:$BD$33) = 0), G31, 0) -> 0 | H36: =IF(AND(H33 > 0, SUM(I33:$BD$33) = 0), H31, 0) -> 0 | I36: =IF(AND(I33 > 0, SUM(J33:$BD$33) = 0), I31, 0) -> 0 | J36: =IF(AND(J33 > 0, SUM(K33:$BD$33) = 0), J31, 0) -> 0 | K36: =IF(AND(K33 > 0, SUM(L33:$BD$33) = 0), K31, 0) -> 0 | L36: =IF(AND(L33 > 0, SUM(M33:$BD$33) = 0), L31, 0) -> 0 | M36: =IF(AND(M33 > 0, SUM(N33:$BD$33) = 0), M31, 0) -> 0 | N36: =IF(AND(N33 > 0, SUM(O33:$BD$33) = 0), N31, 0) -> 0 | O36: =IF(AND(O33 > 0, SUM(P33:$BD$33) = 0), O31, 0) -> 0 | P36: =IF(AND(P33 > 0, SUM(Q33:$BD$33) = 0), P31, 0) -> 0 | Q36: =IF(AND(Q33 > 0, SUM(R33:$BD$33) = 0), Q31, 0) -> 0 | R36: =IF(AND(R33 > 0, SUM(S33:$BD$33) = 0), R31, 0) -> 0 | S36: =IF(AND(S33 > 0, SUM(T33:$BD$33) = 0), S31, 0) -> 0 | T36: =IF(AND(T33 > 0, SUM(U33:$BD$33) = 0), T31, 0) -> 0 | U36: =IF(AND(U33 > 0, SUM(V33:$BD$33) = 0), U31, 0) -> 0 | V36: =IF(AND(V33 > 0, SUM(W33:$BD$33) = 0), V31, 0) -> 0 | W36: =IF(AND(W33 > 0, SUM(X33:$BD$33) = 0), W31, 0) -> 0 | X36: =IF(AND(X33 > 0, SUM(Y33:$BD$33) = 0), X31, 0) -> 0 | Y36: =IF(AND(Y33 > 0, SUM(Z33:$BD$33) = 0), Y31, 0) -> 0 | Z36: =IF(AND(Z33 > 0, SUM(AA33:$BD$33) = 0), Z31, 0) -> 0 | AA36: =IF(AND(AA33 > 0, SUM(AB33:$BD$33) = 0), AA31, 0) -> 0 | AB36: =IF(AND(AB33 > 0, SUM(AC33:$BD$33) = 0), AB31, 0) -> 0 | AC36: =IF(AND(AC33 > 0, SUM(AD33:$BD$33) = 0), AC31, 0) -> 0 | AD36: =IF(AND(AD33 > 0, SUM(AE33:$BD$33) = 0), AD31, 0) -> 0 | AE36: =IF(AND(AE33 > 0, SUM(AF33:$BD$33) = 0), AE31, 0) -> 0 | AF36: =IF(AND(AF33 > 0, SUM(AG33:$BD$33) = 0), AF31, 0) -> 0 | AG36: =IF(AND(AG33 > 0, SUM(AH33:$BD$33) = 0), AG31, 0) -> 0 | AH36: =IF(AND(AH33 > 0, SUM(AI33:$BD$33) = 0), AH31, 0) -> 28 | AI36: =IF(AND(AI33 > 0, SUM(AJ33:$BD$33) = 0), AI31, 0) -> 0 | AJ36: =IF(AND(AJ33 > 0, SUM(AK33:$BD$33) = 0), AJ31, 0) -> 0 | AK36: =IF(AND(AK33 > 0, SUM(AL33:$BD$33) = 0), AK31, 0) -> 0 | AL36: =IF(AND(AL33 > 0, SUM(AM33:$BD$33) = 0), AL31, 0) -> 0 | AM36: =IF(AND(AM33 > 0, SUM(AN33:$BD$33) = 0), AM31, 0) -> 0 | AN36: =IF(AND(AN33 > 0, SUM(AO33:$BD$33) = 0), AN31, 0) -> 0 | AO36: =IF(AND(AO33 > 0, SUM(AP33:$BD$33) = 0), AO31, 0) -> 0 | AP36: =IF(AND(AP33 > 0, SUM(AQ33:$BD$33) = 0), AP31, 0) -> 0 | AQ36: =IF(AND(AQ33 > 0, SUM(AR33:$BD$33) = 0), AQ31, 0) -> 0 | AR36: =IF(AND(AR33 > 0, SUM(AS33:$BD$33) = 0), AR31, 0) -> 0 | AS36: =IF(AND(AS33 > 0, SUM(AT33:$BD$33) = 0), AS31, 0) -> 0 | AT36: =IF(AND(AT33 > 0, SUM(AU33:$BD$33) = 0), AT31, 0) -> 0 | AU36: =IF(AND(AU33 > 0, SUM(AV33:$BD$33) = 0), AU31, 0) -> 0 | AV36: =IF(AND(AV33 > 0, SUM(AW33:$BD$33) = 0), AV31, 0) -> 0 | AW36: =IF(AND(AW33 > 0, SUM(AX33:$BD$33) = 0), AW31, 0) -> 0 | AX36: =IF(AND(AX33 > 0, SUM(AY33:$BD$33) = 0), AX31, 0) -> 0 | AY36: =IF(AND(AY33 > 0, SUM(AZ33:$BD$33) = 0), AY31, 0) -> 0 | AZ36: =IF(AND(AZ33 > 0, SUM(BA33:$BD$33) = 0), AZ31, 0) -> 0 | BA36: =IF(AND(BA33 > 0, SUM(BB33:$BD$33) = 0), BA31, 0) -> 0 | BB36: =IF(AND(BB33 > 0, SUM(BC33:$BD$33) = 0), BB31, 0) -> 0 | BC36: =IF(AND(BC33 > 0, SUM(BD33:$BD$33) = 0), BC31, 0) -> 0 | BD36: =IF(AND(BD33 > 0, SUM($BD33:BE$33) = 0), BD31, 0) -> 0
D38: Payback period
C39: =MAX(G39:BD39) -> 291.5 | D39: Project pre-tax cash flow | E39: $mm const | G39: =G25 -> -20 | H39: -20 | I39: -75 | J39: -300 | K39: 59.55 | L39: 273.95 | M39: 273.95 | N39: 273.95 | O39: 273.95 | P39: 273.95 | Q39: 273.95 | R39: 273.95 | S39: 273.95 | T39: 273.95 | U39: 273.95 | V39: 273.95 | W39: 273.95 | X39: 273.95 | Y39: 273.95 | Z39: 273.95 | AA39: 273.95 | AB39: 273.95 | AC39: 273.95 | AD39: 271.5 | AE39: 271.5 | AF39: 271.5 | AG39: 291.5 | AH39: 133.5 | AI39: -15 | AJ39: 0 | AK39: 0 | AL39: 0 | AM39: =AM25 -> 0 | AN39: 0 | AO39: 0 | AP39: 0 | AQ39: 0 | AR39: 0 | AS39: 0 | AT39: 0 | AU39: 0 | AV39: 0 | AW39: 0 | AX39: 0 | AY39: 0 | AZ39: 0 | BA39: 0 | BB39: 0 | BC39: 0 | BD39: 0
C40: =MAX(G40:BD40) -> 5815.15 | D40: Cumulative project pre-tax cash flow | E40: $mm const | G40: =G39+F40 -> -20 | H40: -40 | I40: -115 | J40: -415 | K40: -355.45 | L40: -81.5 | M40: 192.45 | N40: 466.4 | O40: 740.35 | P40: 1014.3 | Q40: 1288.25 | R40: 1562.2 | S40: 1836.15 | T40: 2110.1 | U40: 2384.05 | V40: 2658 | W40: 2931.95 | X40: 3205.9 | Y40: 3479.85 | Z40: 3753.8 | AA40: 4027.75 | AB40: 4301.7 | AC40: 4575.65 | AD40: 4847.15 | AE40: 5118.65 | AF40: 5390.15 | AG40: 5681.65 | AH40: 5815.15 | AI40: 5800.15 | AJ40: 5800.15 | AK40: 5800.15 | AL40: 5800.15 | AM40: =AM39+AL40 -> 5800.15 | AN40: 5800.15 | AO40: 5800.15 | AP40: 5800.15 | AQ40: 5800.15 | AR40: 5800.15 | AS40: 5800.15 | AT40: 5800.15 | AU40: 5800.15 | AV40: 5800.15 | AW40: 5800.15 | AX40: 5800.15 | AY40: 5800.15 | AZ40: 5800.15 | BA40: 5800.15 | BB40: 5800.15 | BC40: 5800.15 | BD40: 5800.15
C41: =MAX(G41:BD41) -> 6.297499544 | D41: Payback period | E41: years | G41: =IF(AND(G40<=0,H40>0),G31+(-G40/H39),0) -> 0 | H41: 0 | I41: 0 | J41: 0 | K41: 0 | L41: 6.297499544 | M41: 0 | N41: 0 | O41: 0 | P41: 0 | Q41: 0 | R41: 0 | S41: 0 | T41: 0 | U41: 0 | V41: 0 | W41: 0 | X41: 0 | Y41: 0 | Z41: 0 | AA41: 0 | AB41: 0 | AC41: 0 | AD41: 0 | AE41: 0 | AF41: 0 | AG41: 0 | AH41: 0 | AI41: 0 | AJ41: 0 | AK41: 0 | AL41: 0 | AM41: =IF(AND(AM40<=0,AN40>0),AM31+(-AM40/AN39),0) -> 0 | AN41: 0 | AO41: 0 | AP41: 0 | AQ41: 0 | AR41: 0 | AS41: 0 | AT41: 0 | AU41: 0 | AV41: 0 | AW41: 0 | AX41: 0 | AY41: 0 | AZ41: 0 | BA41: 0 | BB41: 0 | BC41: 0 | BD41: 0
D43: Inflation
D44: Inflation index | E44: index | G44: =IF(Inputs!F$219=1,1,(1+Inputs!$E$202)^(Inputs!F$219-1)) -> 1 | H44: =IF(Inputs!G$219=1,1,(1+Inputs!$E$202)^(Inputs!G$219-1)) -> 1.02 | I44: =IF(Inputs!H$219=1,1,(1+Inputs!$E$202)^(Inputs!H$219-1)) -> 1.0404 | J44: =IF(Inputs!I$219=1,1,(1+Inputs!$E$202)^(Inputs!I$219-1)) -> 1.061208 | K44: =IF(Inputs!J$219=1,1,(1+Inputs!$E$202)^(Inputs!J$219-1)) -> 1.08243216 | L44: =IF(Inputs!K$219=1,1,(1+Inputs!$E$202)^(Inputs!K$219-1)) -> 1.104080803 | M44: =IF(Inputs!L$219=1,1,(1+Inputs!$E$202)^(Inputs!L$219-1)) -> 1.126162419 | N44: =IF(Inputs!M$219=1,1,(1+Inputs!$E$202)^(Inputs!M$219-1)) -> 1.148685668 | O44: =IF(Inputs!N$219=1,1,(1+Inputs!$E$202)^(Inputs!N$219-1)) -> 1.171659381 | P44: =IF(Inputs!O$219=1,1,(1+Inputs!$E$202)^(Inputs!O$219-1)) -> 1.195092569 | Q44: =IF(Inputs!P$219=1,1,(1+Inputs!$E$202)^(Inputs!P$219-1)) -> 1.21899442 | R44: =IF(Inputs!Q$219=1,1,(1+Inputs!$E$202)^(Inputs!Q$219-1)) -> 1.243374308 | S44: =IF(Inputs!R$219=1,1,(1+Inputs!$E$202)^(Inputs!R$219-1)) -> 1.268241795 | T44: =IF(Inputs!S$219=1,1,(1+Inputs!$E$202)^(Inputs!S$219-1)) -> 1.29360663 | U44: =IF(Inputs!T$219=1,1,(1+Inputs!$E$202)^(Inputs!T$219-1)) -> 1.319478763 | V44: =IF(Inputs!U$219=1,1,(1+Inputs!$E$202)^(Inputs!U$219-1)) -> 1.345868338 | W44: =IF(Inputs!V$219=1,1,(1+Inputs!$E$202)^(Inputs!V$219-1)) -> 1.372785705 | X44: =IF(Inputs!W$219=1,1,(1+Inputs!$E$202)^(Inputs!W$219-1)) -> 1.400241419 | Y44: =IF(Inputs!X$219=1,1,(1+Inputs!$E$202)^(Inputs!X$219-1)) -> 1.428246248 | Z44: =IF(Inputs!Y$219=1,1,(1+Inputs!$E$202)^(Inputs!Y$219-1)) -> 1.456811173 | AA44: =IF(Inputs!Z$219=1,1,(1+Inputs!$E$202)^(Inputs!Z$219-1)) -> 1.485947396 | AB44: =IF(Inputs!AA$219=1,1,(1+Inputs!$E$202)^(Inputs!AA$219-1)) -> 1.515666344 | AC44: =IF(Inputs!AB$219=1,1,(1+Inputs!$E$202)^(Inputs!AB$219-1)) -> 1.545979671 | AD44: =IF(Inputs!AC$219=1,1,(1+Inputs!$E$202)^(Inputs!AC$219-1)) -> 1.576899264 | AE44: =IF(Inputs!AD$219=1,1,(1+Inputs!$E$202)^(Inputs!AD$219-1)) -> 1.608437249 | AF44: =IF(Inputs!AE$219=1,1,(1+Inputs!$E$202)^(Inputs!AE$219-1)) -> 1.640605994 | AG44: =IF(Inputs!AF$219=1,1,(1+Inputs!$E$202)^(Inputs!AF$219-1)) -> 1.673418114 | AH44: =IF(Inputs!AG$219=1,1,(1+Inputs!$E$202)^(Inputs!AG$219-1)) -> 1.706886477 | AI44: =IF(Inputs!AH$219=1,1,(1+Inputs!$E$202)^(Inputs!AH$219-1)) -> 1.741024206 | AJ44: =IF(Inputs!AI$219=1,1,(1+Inputs!$E$202)^(Inputs!AI$219-1)) -> 1.77584469 | AK44: =IF(Inputs!AJ$219=1,1,(1+Inputs!$E$202)^(Inputs!AJ$219-1)) -> 1.811361584 | AL44: =IF(Inputs!AK$219=1,1,(1+Inputs!$E$202)^(Inputs!AK$219-1)) -> 1.847588816 | AM44: =IF(Inputs!AL$219=1,1,(1+Inputs!$E$202)^(Inputs!AL$219-1)) -> 1.884540592 | AN44: =IF(Inputs!AM$219=1,1,(1+Inputs!$E$202)^(Inputs!AM$219-1)) -> 1.922231404 | AO44: =IF(Inputs!AN$219=1,1,(1+Inputs!$E$202)^(Inputs!AN$219-1)) -> 1.960676032 | AP44: =IF(Inputs!AO$219=1,1,(1+Inputs!$E$202)^(Inputs!AO$219-1)) -> 1.999889553 | AQ44: =IF(Inputs!AP$219=1,1,(1+Inputs!$E$202)^(Inputs!AP$219-1)) -> 2.039887344 | AR44: =IF(Inputs!AQ$219=1,1,(1+Inputs!$E$202)^(Inputs!AQ$219-1)) -> 2.080685091 | AS44: =IF(Inputs!AR$219=1,1,(1+Inputs!$E$202)^(Inputs!AR$219-1)) -> 2.122298792 | AT44: =IF(Inputs!AS$219=1,1,(1+Inputs!$E$202)^(Inputs!AS$219-1)) -> 2.164744768 | AU44: =IF(Inputs!AT$219=1,1,(1+Inputs!$E$202)^(Inputs!AT$219-1)) -> 2.208039664 | AV44: =IF(Inputs!AU$219=1,1,(1+Inputs!$E$202)^(Inputs!AU$219-1)) -> 2.252200457 | AW44: =IF(Inputs!AV$219=1,1,(1+Inputs!$E$202)^(Inputs!AV$219-1)) -> 2.297244466 | AX44: =IF(Inputs!AW$219=1,1,(1+Inputs!$E$202)^(Inputs!AW$219-1)) -> 2.343189355 | AY44: =IF(Inputs!AX$219=1,1,(1+Inputs!$E$202)^(Inputs!AX$219-1)) -> 2.390053142 | AZ44: =IF(Inputs!AY$219=1,1,(1+Inputs!$E$202)^(Inputs!AY$219-1)) -> 2.437854205 | BA44: =IF(Inputs!AZ$219=1,1,(1+Inputs!$E$202)^(Inputs!AZ$219-1)) -> 2.486611289 | BB44: =IF(Inputs!BA$219=1,1,(1+Inputs!$E$202)^(Inputs!BA$219-1)) -> 2.536343515 | BC44: =IF(Inputs!BB$219=1,1,(1+Inputs!$E$202)^(Inputs!BB$219-1)) -> 2.587070385 | BD44: =IF(Inputs!BC$219=1,1,(1+Inputs!$E$202)^(Inputs!BC$219-1)) -> 2.638811793
D46: Project pre-tax cash flow: Nominal | E46: year | G46: =G$6 -> 1 | H46: 2 | I46: 3 | J46: 4 | K46: 5 | L46: 6 | M46: 7 | N46: 8 | O46: 9 | P46: 10 | Q46: 11 | R46: 12 | S46: 13 | T46: 14 | U46: 15 | V46: 16 | W46: 17 | X46: 18 | Y46: 19 | Z46: 20 | AA46: 21 | AB46: 22 | AC46: 23 | AD46: 24 | AE46: 25 | AF46: 26 | AG46: 27 | AH46: 28 | AI46: 29 | AJ46: 30 | AK46: 31 | AL46: 32 | AM46: =AM$6 -> 33 | AN46: 34 | AO46: 35 | AP46: 36 | AQ46: 37 | AR46: 38 | AS46: 39 | AT46: 40 | AU46: 41 | AV46: 42 | AW46: 43 | AX46: 44 | AY46: 45 | AZ46: 46 | BA46: 47 | BB46: 48 | BC46: 49 | BD46: 50
C47: =SUM(G47:BD47) -> 17547.99533 | D47: Primary revenue | E47: $mm nominal | G47: =G13*G$44 -> 0 | H47: 0 | I47: 0 | J47: 0 | K47: 259.7837184 | L47: 618.2852498 | M47: 630.6509548 | N47: 643.2639739 | O47: 656.1292534 | P47: 669.2518384 | Q47: 682.6368752 | R47: 696.2896127 | S47: 710.215405 | T47: 724.4197131 | U47: 738.9081073 | V47: 753.6862695 | W47: 768.7599949 | X47: 784.1351947 | Y47: 799.8178986 | Z47: 815.8142566 | AA47: 832.1305417 | AB47: 848.7731526 | AC47: 865.7486156 | AD47: 883.0635879 | AE47: 900.7248597 | AF47: 918.7393569 | AG47: 937.114144 | AH47: 409.6527544 | AI47: 0 | AJ47: 0 | AK47: 0 | AL47: 0 | AM47: =AM13*AM$44 -> 0 | AN47: 0 | AO47: 0 | AP47: 0 | AQ47: 0 | AR47: 0 | AS47: 0 | AT47: 0 | AU47: 0 | AV47: 0 | AW47: 0 | AX47: 0 | AY47: 0 | AZ47: 0 | BA47: 0 | BB47: 0 | BC47: 0 | BD47: 0
C48: =SUM(G48:BD48) -> 0 | D48: Co-produce revenue | E48: $mm nominal | G48: =G14*G$44 -> 0 | H48: 0 | I48: 0 | J48: 0 | K48: 0 | L48: 0 | M48: 0 | N48: 0 | O48: 0 | P48: 0 | Q48: 0 | R48: 0 | S48: 0 | T48: 0 | U48: 0 | V48: 0 | W48: 0 | X48: 0 | Y48: 0 | Z48: 0 | AA48: 0 | AB48: 0 | AC48: 0 | AD48: 0 | AE48: 0 | AF48: 0 | AG48: 0 | AH48: 0 | AI48: 0 | AJ48: 0 | AK48: 0 | AL48: 0 | AM48: =AM14*AM$44 -> 0 | AN48: 0 | AO48: 0 | AP48: 0 | AQ48: 0 | AR48: 0 | AS48: 0 | AT48: 0 | AU48: 0 | AV48: 0 | AW48: 0 | AX48: 0 | AY48: 0 | AZ48: 0 | BA48: 0 | BB48: 0 | BC48: 0 | BD48: 0
C49: =SUM(G49:BD49) -> 17547.99533 | D49: Total gross revenue | E49: $mm nominal | G49: =G15*G$44 -> 0 | H49: 0 | I49: 0 | J49: 0 | K49: 259.7837184 | L49: 618.2852498 | M49: 630.6509548 | N49: 643.2639739 | O49: 656.1292534 | P49: 669.2518384 | Q49: 682.6368752 | R49: 696.2896127 | S49: 710.215405 | T49: 724.4197131 | U49: 738.9081073 | V49: 753.6862695 | W49: 768.7599949 | X49: 784.1351947 | Y49: 799.8178986 | Z49: 815.8142566 | AA49: 832.1305417 | AB49: 848.7731526 | AC49: 865.7486156 | AD49: 883.0635879 | AE49: 900.7248597 | AF49: 918.7393569 | AG49: 937.114144 | AH49: 409.6527544 | AI49: 0 | AJ49: 0 | AK49: 0 | AL49: 0 | AM49: =AM15*AM$44 -> 0 | AN49: 0 | AO49: 0 | AP49: 0 | AQ49: 0 | AR49: 0 | AS49: 0 | AT49: 0 | AU49: 0 | AV49: 0 | AW49: 0 | AX49: 0 | AY49: 0 | AZ49: 0 | BA49: 0 | BB49: 0 | BC49: 0 | BD49: 0
C50: =SUM(G50:BD50) -> 50.61815557 | D50: Transport and processing post-fiscal point | E50: $mm nominal | G50: =G16*G$44 -> 0 | H50: 0 | I50: 0 | J50: 0 | K50: 0.487094472 | L50: 1.159284843 | M50: 1.18247054 | N50: 1.206119951 | O50: 1.23024235 | P50: 1.254847197 | Q50: 1.279944141 | R50: 1.305543024 | S50: 1.331653884 | T50: 1.358286962 | U50: 1.385452701 | V50: 1.413161755 | W50: 1.44142499 | X50: 1.47025349 | Y50: 1.49965856 | Z50: 1.529651731 | AA50: 1.560244766 | AB50: 1.591449661 | AC50: 1.623278654 | AD50: 5.519147425 | AE50: 5.629530373 | AF50: 5.742120981 | AG50: 5.8569634 | AH50: 2.560329715 | AI50: 0 | AJ50: 0 | AK50: 0 | AL50: 0 | AM50: =AM16*AM$44 -> 0 | AN50: 0 | AO50: 0 | AP50: 0 | AQ50: 0 | AR50: 0 | AS50: 0 | AT50: 0 | AU50: 0 | AV50: 0 | AW50: 0 | AX50: 0 | AY50: 0 | AZ50: 0 | BA50: 0 | BB50: 0 | BC50: 0 | BD50: 0
A51: =ROUND(C51-(C49-C50),5)=0 -> TRUE | C51: =SUM(G51:BD51) -> 17497.37717 | D51: Net revenue | E51: $mm nominal | G51: =G17*G$44 -> 0 | H51: 0 | I51: 0 | J51: 0 | K51: 259.2966239 | L51: 617.1259649 | M51: 629.4684842 | N51: 642.0578539 | O51: 654.899011 | P51: 667.9969912 | Q51: 681.3569311 | R51: 694.9840697 | S51: 708.8837511 | T51: 723.0614261 | U51: 737.5226546 | V51: 752.2731077 | W51: 767.3185699 | X51: 782.6649413 | Y51: 798.3182401 | Z51: 814.2846049 | AA51: 830.570297 | AB51: 847.1817029 | AC51: 864.125337 | AD51: 877.5444405 | AE51: 895.0953293 | AF51: 912.9972359 | AG51: 931.2571806 | AH51: 407.0924247 | AI51: 0 | AJ51: 0 | AK51: 0 | AL51: 0 | AM51: =AM17*AM$44 -> 0 | AN51: 0 | AO51: 0 | AP51: 0 | AQ51: 0 | AR51: 0 | AS51: 0 | AT51: 0 | AU51: 0 | AV51: 0 | AW51: 0 | AX51: 0 | AY51: 0 | AZ51: 0 | BA51: 0 | BB51: 0 | BC51: 0 | BD51: 0
C52: 40.4 | D52: Exploration costs (expensed) | E52: $mm nominal | G52: =G18*G$44 -> 20 | H52: 20.4 | I52: 0 | J52: 0 | K52: 0 | L52: 0 | M52: 0 | N52: 0 | O52: 0 | P52: 0 | Q52: 0 | R52: 0 | S52: 0 | T52: 0 | U52: 0 | V52: 0 | W52: 0 | X52: 0 | Y52: 0 | Z52: 0 | AA52: 0 | AB52: 0 | AC52: 0 | AD52: 0 | AE52: 0 | AF52: 0 | AG52: 0 | AH52: 0 | AI52: 0 | AJ52: 0 | AK52: 0 | AL52: 0 | AM52: =AM18*AM$44 -> 0 | AN52: 0 | AO52: 0 | AP52: 0 | AQ52: 0 | AR52: 0 | AS52: 0 | AT52: 0 | AU52: 0 | AV52: 0 | AW52: 0 | AX52: 0 | AY52: 0 | AZ52: 0 | BA52: 0 | BB52: 0 | BC52: 0 | BD52: 0
C53: 0 | D53: Development costs - intangibles (expensed) | E53: $mm nominal | G53: =G19*G$44 -> 0 | H53: 0 | I53: 0 | J53: 0 | K53: 0 | L53: 0 | M53: 0 | N53: 0 | O53: 0 | P53: 0 | Q53: 0 | R53: 0 | S53: 0 | T53: 0 | U53: 0 | V53: 0 | W53: 0 | X53: 0 | Y53: 0 | Z53: 0 | AA53: 0 | AB53: 0 | AC53: 0 | AD53: 0 | AE53: 0 | AF53: 0 | AG53: 0 | AH53: 0 | AI53: 0 | AJ53: 0 | AK53: 0 | AL53: 0 | AM53: =AM19*AM$44 -> 0 | AN53: 0 | AO53: 0 | AP53: 0 | AQ53: 0 | AR53: 0 | AS53: 0 | AT53: 0 | AU53: 0 | AV53: 0 | AW53: 0 | AX53: 0 | AY53: 0 | AZ53: 0 | BA53: 0 | BB53: 0 | BC53: 0 | BD53: 0
C54: 477.574812 | D54: Development costs - tangibles (depreciable) | E54: $mm nominal | G54: =G20*G$44 -> 0 | H54: 0 | I54: 78.03 | J54: 318.3624 | K54: 81.182412 | L54: 0 | M54: 0 | N54: 0 | O54: 0 | P54: 0 | Q54: 0 | R54: 0 | S54: 0 | T54: 0 | U54: 0 | V54: 0 | W54: 0 | X54: 0 | Y54: 0 | Z54: 0 | AA54: 0 | AB54: 0 | AC54: 0 | AD54: 0 | AE54: 0 | AF54: 0 | AG54: 0 | AH54: 0 | AI54: 0 | AJ54: 0 | AK54: 0 | AL54: 0 | AM54: =AM20*AM$44 -> 0 | AN54: 0 | AO54: 0 | AP54: 0 | AQ54: 0 | AR54: 0 | AS54: 0 | AT54: 0 | AU54: 0 | AV54: 0 | AW54: 0 | AX54: 0 | AY54: 0 | AZ54: 0 | BA54: 0 | BB54: 0 | BC54: 0 | BD54: 0
C55: 1172.142985 | D55: Replacement capital costs (depreciable) | E55: $mm nominal | G55: =G21*G$44 -> 0 | H55: 0 | I55: 0 | J55: 0 | K55: 0 | L55: 44.16323213 | M55: 45.04649677 | N55: 45.94742671 | O55: 46.86637524 | P55: 47.80370274 | Q55: 48.7597768 | R55: 49.73497234 | S55: 50.72967178 | T55: 51.74426522 | U55: 52.77915052 | V55: 53.83473353 | W55: 54.9114282 | X55: 56.00965677 | Y55: 57.1298499 | Z55: 58.2724469 | AA55: 59.43789584 | AB55: 60.62665376 | AC55: 61.83918683 | AD55: 63.07597057 | AE55: 64.33748998 | AF55: 65.62423978 | AG55: 33.46836229 | AH55: 0 | AI55: 0 | AJ55: 0 | AK55: 0 | AL55: 0 | AM55: =AM21*AM$44 -> 0 | AN55: 0 | AO55: 0 | AP55: 0 | AQ55: 0 | AR55: 0 | AS55: 0 | AT55: 0 | AU55: 0 | AV55: 0 | AW55: 0 | AX55: 0 | AY55: 0 | AZ55: 0 | BA55: 0 | BB55: 0 | BC55: 0 | BD55: 0
C56: =SUM(G56:BD56) -> 7677.247957 | D56: Operating costs | E56: $mm nominal | G56: =G22*G$44 -> 0 | H56: 0 | I56: 0 | J56: 0 | K56: 113.6553768 | L56: 270.4997968 | M56: 275.9097927 | N56: 281.4279886 | O56: 287.0565483 | P56: 292.7976793 | Q56: 298.6536329 | R56: 304.6267056 | S56: 310.7192397 | T56: 316.9336245 | U56: 323.272297 | V56: 329.7377429 | W56: 336.3324977 | X56: 343.0591477 | Y56: 349.9203307 | Z56: 356.9187373 | AA56: 364.057112 | AB56: 371.3382543 | AC56: 378.7650193 | AD56: 386.3403197 | AE56: 394.0671261 | AF56: 401.9484686 | AG56: 409.987438 | AH56: 179.22308 | AI56: 0 | AJ56: 0 | AK56: 0 | AL56: 0 | AM56: =AM22*AM$44 -> 0 | AN56: 0 | AO56: 0 | AP56: 0 | AQ56: 0 | AR56: 0 | AS56: 0 | AT56: 0 | AU56: 0 | AV56: 0 | AW56: 0 | AX56: 0 | AY56: 0 | AZ56: 0 | BA56: 0 | BB56: 0 | BC56: 0 | BD56: 0
C57: 26.11536309 | D57: Decommissioning costs | E57: $mm nominal | G57: =G23*G$44 -> 0 | H57: 0 | I57: 0 | J57: 0 | K57: 0 | L57: 0 | M57: 0 | N57: 0 | O57: 0 | P57: 0 | Q57: 0 | R57: 0 | S57: 0 | T57: 0 | U57: 0 | V57: 0 | W57: 0 | X57: 0 | Y57: 0 | Z57: 0 | AA57: 0 | AB57: 0 | AC57: 0 | AD57: 0 | AE57: 0 | AF57: 0 | AG57: 0 | AH57: 0 | AI57: 26.11536309 | AJ57: 0 | AK57: 0 | AL57: 0 | AM57: =AM23*AM$44 -> 0 | AN57: 0 | AO57: 0 | AP57: 0 | AQ57: 0 | AR57: 0 | AS57: 0 | AT57: 0 | AU57: 0 | AV57: 0 | AW57: 0 | AX57: 0 | AY57: 0 | AZ57: 0 | BA57: 0 | BB57: 0 | BC57: 0 | BD57: 0
C58: =SUM(G58:BD58) -> 9393.481116 | D58: Total costs | E58: $mm nominal | G58: =SUM(G52:G57) -> 20 | H58: 20.4 | I58: 78.03 | J58: 318.3624 | K58: 194.8377888 | L58: 314.6630289 | M58: 320.9562895 | N58: 327.3754153 | O58: 333.9229236 | P58: 340.6013821 | Q58: 347.4134097 | R58: 354.3616779 | S58: 361.4489115 | T58: 368.6778897 | U58: 376.0514475 | V58: 383.5724764 | W58: 391.243926 | X58: 399.0688045 | Y58: 407.0501806 | Z58: 415.1911842 | AA58: 423.4950079 | AB58: 431.964908 | AC58: 440.6042062 | AD58: 449.4162903 | AE58: 458.4046161 | AF58: 467.5727084 | AG58: 443.4558003 | AH58: 179.22308 | AI58: 26.11536309 | AJ58: 0 | AK58: 0 | AL58: 0 | AM58: =SUM(AM52:AM57) -> 0 | AN58: 0 | AO58: 0 | AP58: 0 | AQ58: 0 | AR58: 0 | AS58: 0 | AT58: 0 | AU58: 0 | AV58: 0 | AW58: 0 | AX58: 0 | AY58: 0 | AZ58: 0 | BA58: 0 | BB58: 0 | BC58: 0 | BD58: 0
A59: =ROUND(C59-(C51-SUM(C52:C57)),5)=0 -> TRUE | C59: =SUM(G59:BD59) -> 8103.896057 | D59: Project pre-tax cash flow | E59: $mm nominal | G59: =G51-G58 -> -20 | H59: -20.4 | I59: -78.03 | J59: -318.3624 | K59: 64.45883513 | L59: 302.462936 | M59: 308.5121948 | N59: 314.6824387 | O59: 320.9760874 | P59: 327.3956092 | Q59: 333.9435214 | R59: 340.6223918 | S59: 347.4348396 | T59: 354.3835364 | U59: 361.4712071 | V59: 368.7006313 | W59: 376.0746439 | X59: 383.5961368 | Y59: 391.2680595 | Z59: 399.0934207 | AA59: 407.0752891 | AB59: 415.2167949 | AC59: 423.5211308 | AD59: 428.1281502 | AE59: 436.6907132 | AF59: 445.4245275 | AG59: 487.8013803 | AH59: 227.8693446 | AI59: -26.11536309 | AJ59: 0 | AK59: 0 | AL59: 0 | AM59: =AM51-AM58 -> 0 | AN59: 0 | AO59: 0 | AP59: 0 | AQ59: 0 | AR59: 0 | AS59: 0 | AT59: 0 | AU59: 0 | AV59: 0 | AW59: 0 | AX59: 0 | AY59: 0 | AZ59: 0 | BA59: 0 | BB59: 0 | BC59: 0 | BD59: 0
C61: =IFERROR(IRR($G59:BD59),0) -> 0.4466054661 | D61: Internal rate of return (nominal) | E61: % | G61: =IFERROR(IRR($G59:G59),"--") -> -- | H61: =IFERROR(IRR($G59:H59),"--") -> -- | I61: =IFERROR(IRR($G59:I59),"--") -> -- | J61: =IFERROR(IRR($G59:J59),"--") -> -- | K61: =IFERROR(IRR($G59:K59),"--") -> -- | L61: =IFERROR(IRR($G59:L59),"--") -> -0.0756345265 | M61: =IFERROR(IRR($G59:M59),"--") -> 0.1691636779 | N61: =IFERROR(IRR($G59:N59),"--") -> 0.2845202985 | O61: =IFERROR(IRR($G59:O59),"--") -> 0.3465539453 | P61: =IFERROR(IRR($G59:P59),"--") -> 0.3825957529 | Q61: =IFERROR(IRR($G59:Q59),"--") -> 0.4046314932 | R61: =IFERROR(IRR($G59:R59),"--") -> 0.4185943683 | S61: =IFERROR(IRR($G59:S59),"--") -> 0.427674924 | T61: =IFERROR(IRR($G59:T59),"--") -> 0.4336956203 | U61: =IFERROR(IRR($G59:U59),"--") -> 0.4377461724 | V61: =IFERROR(IRR($G59:V59),"--") -> 0.4405016686 | W61: =IFERROR(IRR($G59:W59),"--") -> 0.4423921347 | X61: =IFERROR(IRR($G59:X59),"--") -> 0.4436975856 | Y61: =IFERROR(IRR($G59:Y59),"--") -> 0.4446035604 | Z61: =IFERROR(IRR($G59:Z59),"--") -> 0.4452347055 | AA61: =IFERROR(IRR($G59:AA59),"--") -> 0.4456756764 | AB61: =IFERROR(IRR($G59:AB59),"--") -> 0.4459844623 | AC61: =IFERROR(IRR($G59:AC59),"--") -> 0.4462010536 | AD61: =IFERROR(IRR($G59:AD59),"--") -> 0.4463518142 | AE61: =IFERROR(IRR($G59:AE59),"--") -> 0.4464578039 | AF61: =IFERROR(IRR($G59:AF59),"--") -> 0.4465323724 | AG61: =IFERROR(IRR($G59:AG59),"--") -> 0.4465887269 | AH61: =IFERROR(IRR($G59:AH59),"--") -> 0.446606906 | AI61: =IFERROR(IRR($G59:AI59),"--") -> 0.4466054661 | AJ61: =IFERROR(IRR($G59:AJ59),"--") -> 0.4466054661 | AK61: =IFERROR(IRR($G59:AK59),"--") -> 0.4466054661 | AL61: =IFERROR(IRR($G59:AL59),"--") -> 0.4466054661 | AM61: =IFERROR(IRR($G59:AM59),"--") -> 0.4466054661 | AN61: =IFERROR(IRR($G59:AN59),"--") -> 0.4466054661 | AO61: =IFERROR(IRR($G59:AO59),"--") -> 0.4466054661 | AP61: =IFERROR(IRR($G59:AP59),"--") -> 0.4466054661 | AQ61: =IFERROR(IRR($G59:AQ59),"--") -> 0.4466054661 | AR61: =IFERROR(IRR($G59:AR59),"--") -> 0.4466054661 | AS61: =IFERROR(IRR($G59:AS59),"--") -> 0.4466054661 | AT61: =IFERROR(IRR($G59:AT59),"--") -> 0.4466054661 | AU61: =IFERROR(IRR($G59:AU59),"--") -> 0.4466054661 | AV61: =IFERROR(IRR($G59:AV59),"--") -> 0.4466054661 | AW61: =IFERROR(IRR($G59:AW59),"--") -> 0.4466054661 | AX61: =IFERROR(IRR($G59:AX59),"--") -> 0.4466054661 | AY61: =IFERROR(IRR($G59:AY59),"--") -> 0.4466054661 | AZ61: =IFERROR(IRR($G59:AZ59),"--") -> 0.4466054661 | BA61: =IFERROR(IRR($G59:BA59),"--") -> 0.4466054661 | BB61: =IFERROR(IRR($G59:BB59),"--") -> 0.4466054661 | BC61: =IFERROR(IRR($G59:BC59),"--") -> 0.4466054661 | BD61: =IFERROR(IRR($G59:BD59),"--") -> 0.4466054661
C62: =NPV(Inputs!$E$200 + Inputs!$E$202,$H$59:$BD$59)+$G$59 -> 1810.534077 | D62: ="Project pre-tax cash flows NPV"&(Inputs!$E$200 + Inputs!$E$202)*100 -> Project pre-tax cash flows NPV10 | E62: $mm nominal
D64: Decommissioning
C65: =SUM(G65:BD65) -> 29 | D65: Decommissioning year | E65: years | G65: =G31*(G57>0) -> 0 | H65: 0 | I65: 0 | J65: 0 | K65: 0 | L65: 0 | M65: 0 | N65: 0 | O65: 0 | P65: 0 | Q65: 0 | R65: 0 | S65: 0 | T65: 0 | U65: 0 | V65: 0 | W65: 0 | X65: 0 | Y65: 0 | Z65: 0 | AA65: 0 | AB65: 0 | AC65: 0 | AD65: 0 | AE65: 0 | AF65: 0 | AG65: 0 | AH65: 0 | AI65: 29 | AJ65: 0 | AK65: 0 | AL65: 0 | AM65: =AM31*(AM57>0) -> 0 | AN65: 0 | AO65: 0 | AP65: 0 | AQ65: 0 | AR65: 0 | AS65: 0 | AT65: 0 | AU65: 0 | AV65: 0 | AW65: 0 | AX65: 0 | AY65: 0 | AZ65: 0 | BA65: 0 | BB65: 0 | BC65: 0 | BD65: 0
C66: =SUM(G66:BD66) -> 26.11536309 | D66: Decommissioning costs spent | E66: $mm nominal | G66: =G57 -> 0 | H66: 0 | I66: 0 | J66: 0 | K66: 0 | L66: 0 | M66: 0 | N66: 0 | O66: 0 | P66: 0 | Q66: 0 | R66: 0 | S66: 0 | T66: 0 | U66: 0 | V66: 0 | W66: 0 | X66: 0 | Y66: 0 | Z66: 0 | AA66: 0 | AB66: 0 | AC66: 0 | AD66: 0 | AE66: 0 | AF66: 0 | AG66: 0 | AH66: 0 | AI66: 26.11536309 | AJ66: 0 | AK66: 0 | AL66: 0 | AM66: =AM57 -> 0 | AN66: 0 | AO66: 0 | AP66: 0 | AQ66: 0 | AR66: 0 | AS66: 0 | AT66: 0 | AU66: 0 | AV66: 0 | AW66: 0 | AX66: 0 | AY66: 0 | AZ66: 0 | BA66: 0 | BB66: 0 | BC66: 0 | BD66: 0
C67: =SUM(G67:BD67) -> 15 | D67: Decommissioning costs spent, real | E67: $mm const | G67: =G66/G44 -> 0 | H67: 0 | I67: 0 | J67: 0 | K67: 0 | L67: 0 | M67: 0 | N67: 0 | O67: 0 | P67: 0 | Q67: 0 | R67: 0 | S67: 0 | T67: 0 | U67: 0 | V67: 0 | W67: 0 | X67: 0 | Y67: 0 | Z67: 0 | AA67: 0 | AB67: 0 | AC67: 0 | AD67: 0 | AE67: 0 | AF67: 0 | AG67: 0 | AH67: 0 | AI67: 15 | AJ67: 0 | AK67: 0 | AL67: 0 | AM67: =AM66/AM44 -> 0 | AN67: 0 | AO67: 0 | AP67: 0 | AQ67: 0 | AR67: 0 | AS67: 0 | AT67: 0 | AU67: 0 | AV67: 0 | AW67: 0 | AX67: 0 | AY67: 0 | AZ67: 0 | BA67: 0 | BB67: 0 | BC67: 0 | BD67: 0
D68: Decommissioning costs escalated | E68: $mm nominal | G68: =$C$67*G44*(G31<=$C$65) -> 15 | H68: =$C$67*H44*(H31<=$C$65) -> 15.3 | I68: 15.606 | J68: 15.91812 | K68: 16.2364824 | L68: 16.56121205 | M68: 16.89243629 | N68: 17.23028501 | O68: 17.57489072 | P68: 17.92638853 | Q68: 18.2849163 | R68: 18.65061463 | S68: 19.02362692 | T68: 19.40409946 | U68: 19.79218145 | V68: 20.18802507 | W68: 20.59178558 | X68: 21.00362129 | Y68: 21.42369371 | Z68: 21.85216759 | AA68: 22.28921094 | AB68: 22.73499516 | AC68: 23.18969506 | AD68: 23.65348896 | AE68: 24.12655874 | AF68: 24.60908992 | AG68: 25.10127172 | AH68: 25.60329715 | AI68: 26.11536309 | AJ68: 0 | AK68: 0 | AL68: 0 | AM68: 0 | AN68: 0 | AO68: 0 | AP68: 0 | AQ68: 0 | AR68: 0 | AS68: 0 | AT68: 0 | AU68: 0 | AV68: 0 | AW68: 0 | AX68: 0 | AY68: 0 | AZ68: 0 | BA68: 0 | BB68: 0 | BC68: 0 | BD68: 0
D70: % reserves produced, end of year | E70: % | G70: =SUM($G$12:G12)/$C$12 -> 0 | H70: =SUM($G$12:H12)/$C$12 -> 0 | I70: =SUM($G$12:I12)/$C$12 -> 0 | J70: =SUM($G$12:J12)/$C$12 -> 0 | K70: =SUM($G$12:K12)/$C$12 -> 0.01875 | L70: =SUM($G$12:L12)/$C$12 -> 0.0625 | M70: =SUM($G$12:M12)/$C$12 -> 0.10625 | N70: =SUM($G$12:N12)/$C$12 -> 0.15 | O70: =SUM($G$12:O12)/$C$12 -> 0.19375 | P70: =SUM($G$12:P12)/$C$12 -> 0.2375 | Q70: =SUM($G$12:Q12)/$C$12 -> 0.28125 | R70: =SUM($G$12:R12)/$C$12 -> 0.325 | S70: =SUM($G$12:S12)/$C$12 -> 0.36875 | T70: =SUM($G$12:T12)/$C$12 -> 0.4125 | U70: =SUM($G$12:U12)/$C$12 -> 0.45625 | V70: =SUM($G$12:V12)/$C$12 -> 0.5 | W70: =SUM($G$12:W12)/$C$12 -> 0.54375 | X70: =SUM($G$12:X12)/$C$12 -> 0.5875 | Y70: =SUM($G$12:Y12)/$C$12 -> 0.63125 | Z70: =SUM($G$12:Z12)/$C$12 -> 0.675 | AA70: =SUM($G$12:AA12)/$C$12 -> 0.71875 | AB70: =SUM($G$12:AB12)/$C$12 -> 0.7625 | AC70: =SUM($G$12:AC12)/$C$12 -> 0.80625 | AD70: =SUM($G$12:AD12)/$C$12 -> 0.85 | AE70: =SUM($G$12:AE12)/$C$12 -> 0.89375 | AF70: =SUM($G$12:AF12)/$C$12 -> 0.9375 | AG70: =SUM($G$12:AG12)/$C$12 -> 0.98125 | AH70: =SUM($G$12:AH12)/$C$12 -> 1 | AI70: =SUM($G$12:AI12)/$C$12 -> 1 | AJ70: =SUM($G$12:AJ12)/$C$12 -> 1 | AK70: =SUM($G$12:AK12)/$C$12 -> 1 | AL70: =SUM($G$12:AL12)/$C$12 -> 1 | AM70: =SUM($G$12:AM12)/$C$12 -> 1 | AN70: =SUM($G$12:AN12)/$C$12 -> 1 | AO70: =SUM($G$12:AO12)/$C$12 -> 1 | AP70: =SUM($G$12:AP12)/$C$12 -> 1 | AQ70: =SUM($G$12:AQ12)/$C$12 -> 1 | AR70: =SUM($G$12:AR12)/$C$12 -> 1 | AS70: =SUM($G$12:AS12)/$C$12 -> 1 | AT70: =SUM($G$12:AT12)/$C$12 -> 1 | AU70: =SUM($G$12:AU12)/$C$12 -> 1 | AV70: =SUM($G$12:AV12)/$C$12 -> 1 | AW70: =SUM($G$12:AW12)/$C$12 -> 1 | AX70: =SUM($G$12:AX12)/$C$12 -> 1 | AY70: =SUM($G$12:AY12)/$C$12 -> 1 | AZ70: =SUM($G$12:AZ12)/$C$12 -> 1 | BA70: =SUM($G$12:BA12)/$C$12 -> 1 | BB70: =SUM($G$12:BB12)/$C$12 -> 1 | BC70: =SUM($G$12:BC12)/$C$12 -> 1 | BD70: =SUM($G$12:BD12)/$C$12 -> 1
D71: Remaining recoverable reserves, end of year | E71: =Inputs!D220 -> ounces | G71: =$C$12-SUM($G$12:G12) -> 8000000 | H71: =$C$12-SUM($G$12:H12) -> 8000000 | I71: =$C$12-SUM($G$12:I12) -> 8000000 | J71: =$C$12-SUM($G$12:J12) -> 8000000 | K71: =$C$12-SUM($G$12:K12) -> 7850000 | L71: =$C$12-SUM($G$12:L12) -> 7500000 | M71: =$C$12-SUM($G$12:M12) -> 7150000 | N71: =$C$12-SUM($G$12:N12) -> 6800000 | O71: =$C$12-SUM($G$12:O12) -> 6450000 | P71: =$C$12-SUM($G$12:P12) -> 6100000 | Q71: =$C$12-SUM($G$12:Q12) -> 5750000 | R71: =$C$12-SUM($G$12:R12) -> 5400000 | S71: =$C$12-SUM($G$12:S12) -> 5050000 | T71: =$C$12-SUM($G$12:T12) -> 4700000 | U71: =$C$12-SUM($G$12:U12) -> 4350000 | V71: =$C$12-SUM($G$12:V12) -> 4000000 | W71: =$C$12-SUM($G$12:W12) -> 3650000 | X71: =$C$12-SUM($G$12:X12) -> 3300000 | Y71: =$C$12-SUM($G$12:Y12) -> 2950000 | Z71: =$C$12-SUM($G$12:Z12) -> 2600000 | AA71: =$C$12-SUM($G$12:AA12) -> 2250000 | AB71: =$C$12-SUM($G$12:AB12) -> 1900000 | AC71: =$C$12-SUM($G$12:AC12) -> 1550000 | AD71: =$C$12-SUM($G$12:AD12) -> 1200000 | AE71: =$C$12-SUM($G$12:AE12) -> 850000 | AF71: =$C$12-SUM($G$12:AF12) -> 500000 | AG71: =$C$12-SUM($G$12:AG12) -> 150000 | AH71: =$C$12-SUM($G$12:AH12) -> 0 | AI71: =$C$12-SUM($G$12:AI12) -> 0 | AJ71: =$C$12-SUM($G$12:AJ12) -> 0 | AK71: =$C$12-SUM($G$12:AK12) -> 0 | AL71: =$C$12-SUM($G$12:AL12) -> 0 | AM71: =$C$12-SUM($G$12:AM12) -> 0 | AN71: =$C$12-SUM($G$12:AN12) -> 0 | AO71: =$C$12-SUM($G$12:AO12) -> 0 | AP71: =$C$12-SUM($G$12:AP12) -> 0 | AQ71: =$C$12-SUM($G$12:AQ12) -> 0 | AR71: =$C$12-SUM($G$12:AR12) -> 0 | AS71: =$C$12-SUM($G$12:AS12) -> 0 | AT71: =$C$12-SUM($G$12:AT12) -> 0 | AU71: =$C$12-SUM($G$12:AU12) -> 0 | AV71: =$C$12-SUM($G$12:AV12) -> 0 | AW71: =$C$12-SUM($G$12:AW12) -> 0 | AX71: =$C$12-SUM($G$12:AX12) -> 0 | AY71: =$C$12-SUM($G$12:AY12) -> 0 | AZ71: =$C$12-SUM($G$12:AZ12) -> 0 | BA71: =$C$12-SUM($G$12:BA12) -> 0 | BB71: =$C$12-SUM($G$12:BB12) -> 0 | BC71: =$C$12-SUM($G$12:BC12) -> 0 | BD71: =$C$12-SUM($G$12:BD12) -> 0
D72: Decommissioning fund flag | E72: flag | G72: =1*(G70>Inputs!$E$97)*(G12>0) -> 0 | H72: =1*(H70>Inputs!$E$97)*(H12>0) -> 0 | I72: =1*(I70>Inputs!$E$97)*(I12>0) -> 0 | J72: =1*(J70>Inputs!$E$97)*(J12>0) -> 0 | K72: =1*(K70>Inputs!$E$97)*(K12>0) -> 0 | L72: =1*(L70>Inputs!$E$97)*(L12>0) -> 0 | M72: =1*(M70>Inputs!$E$97)*(M12>0) -> 0 | N72: =1*(N70>Inputs!$E$97)*(N12>0) -> 0 | O72: =1*(O70>Inputs!$E$97)*(O12>0) -> 0 | P72: =1*(P70>Inputs!$E$97)*(P12>0) -> 0 | Q72: =1*(Q70>Inputs!$E$97)*(Q12>0) -> 0 | R72: =1*(R70>Inputs!$E$97)*(R12>0) -> 0 | S72: =1*(S70>Inputs!$E$97)*(S12>0) -> 0 | T72: =1*(T70>Inputs!$E$97)*(T12>0) -> 0 | U72: =1*(U70>Inputs!$E$97)*(U12>0) -> 0 | V72: =1*(V70>Inputs!$E$97)*(V12>0) -> 0 | W72: =1*(W70>Inputs!$E$97)*(W12>0) -> 0 | X72: =1*(X70>Inputs!$E$97)*(X12>0) -> 0 | Y72: =1*(Y70>Inputs!$E$97)*(Y12>0) -> 1 | Z72: =1*(Z70>Inputs!$E$97)*(Z12>0) -> 1 | AA72: =1*(AA70>Inputs!$E$97)*(AA12>0) -> 1 | AB72: =1*(AB70>Inputs!$E$97)*(AB12>0) -> 1 | AC72: =1*(AC70>Inputs!$E$97)*(AC12>0) -> 1 | AD72: =1*(AD70>Inputs!$E$97)*(AD12>0) -> 1 | AE72: =1*(AE70>Inputs!$E$97)*(AE12>0) -> 1 | AF72: =1*(AF70>Inputs!$E$97)*(AF12>0) -> 1 | AG72: =1*(AG70>Inputs!$E$97)*(AG12>0) -> 1 | AH72: =1*(AH70>Inputs!$E$97)*(AH12>0) -> 1 | AI72: =1*(AI70>Inputs!$E$97)*(AI12>0) -> 0 | AJ72: =1*(AJ70>Inputs!$E$97)*(AJ12>0) -> 0 | AK72: =1*(AK70>Inputs!$E$97)*(AK12>0) -> 0 | AL72: =1*(AL70>Inputs!$E$97)*(AL12>0) -> 0 | AM72: =1*(AM70>Inputs!$E$97)*(AM12>0) -> 0 | AN72: =1*(AN70>Inputs!$E$97)*(AN12>0) -> 0 | AO72: =1*(AO70>Inputs!$E$97)*(AO12>0) -> 0 | AP72: =1*(AP70>Inputs!$E$97)*(AP12>0) -> 0 | AQ72: =1*(AQ70>Inputs!$E$97)*(AQ12>0) -> 0 | AR72: =1*(AR70>Inputs!$E$97)*(AR12>0) -> 0 | AS72: =1*(AS70>Inputs!$E$97)*(AS12>0) -> 0 | AT72: =1*(AT70>Inputs!$E$97)*(AT12>0) -> 0 | AU72: =1*(AU70>Inputs!$E$97)*(AU12>0) -> 0 | AV72: =1*(AV70>Inputs!$E$97)*(AV12>0) -> 0 | AW72: =1*(AW70>Inputs!$E$97)*(AW12>0) -> 0 | AX72: =1*(AX70>Inputs!$E$97)*(AX12>0) -> 0 | AY72: =1*(AY70>Inputs!$E$97)*(AY12>0) -> 0 | AZ72: =1*(AZ70>Inputs!$E$97)*(AZ12>0) -> 0 | BA72: =1*(BA70>Inputs!$E$97)*(BA12>0) -> 0 | BB72: =1*(BB70>Inputs!$E$97)*(BB12>0) -> 0 | BC72: =1*(BC70>Inputs!$E$97)*(BC12>0) -> 0 | BD72: =1*(BD70>Inputs!$E$97)*(BD12>0) -> 0
D74: Production during decommissioning period | E74: =Inputs!D220 -> ounces | G74: =G72*G12 -> 0 | H74: =H72*Inputs!G220 -> 0 | I74: =I72*Inputs!H220 -> 0 | J74: =J72*Inputs!I220 -> 0 | K74: =K72*Inputs!J220 -> 0 | L74: =L72*Inputs!K220 -> 0 | M74: =M72*Inputs!L220 -> 0 | N74: =N72*Inputs!M220 -> 0 | O74: =O72*Inputs!N220 -> 0 | P74: =P72*Inputs!O220 -> 0 | Q74: =Q72*Inputs!P220 -> 0 | R74: =R72*Inputs!Q220 -> 0 | S74: =S72*Inputs!R220 -> 0 | T74: =T72*Inputs!S220 -> 0 | U74: =U72*Inputs!T220 -> 0 | V74: =V72*Inputs!U220 -> 0 | W74: =W72*Inputs!V220 -> 0 | X74: =X72*Inputs!W220 -> 0 | Y74: =Y72*Inputs!X220 -> 350000 | Z74: =Z72*Inputs!Y220 -> 350000 | AA74: =AA72*Inputs!Z220 -> 350000 | AB74: =AB72*Inputs!AA220 -> 350000 | AC74: =AC72*Inputs!AB220 -> 350000 | AD74: =AD72*Inputs!AC220 -> 350000 | AE74: =AE72*Inputs!AD220 -> 350000 | AF74: =AF72*Inputs!AE220 -> 350000 | AG74: =AG72*Inputs!AF220 -> 350000 | AH74: =AH72*Inputs!AG220 -> 150000 | AI74: =AI72*Inputs!AH220 -> 0 | AJ74: =AJ72*Inputs!AI220 -> 0 | AK74: =AK72*Inputs!AJ220 -> 0 | AL74: =AL72*Inputs!AK220 -> 0 | AM74: =AM72*Inputs!AL220 -> 0 | AN74: =AN72*Inputs!AM220 -> 0 | AO74: =AO72*Inputs!AN220 -> 0 | AP74: =AP72*Inputs!AO220 -> 0 | AQ74: =AQ72*Inputs!AP220 -> 0 | AR74: =AR72*Inputs!AQ220 -> 0 | AS74: =AS72*Inputs!AR220 -> 0 | AT74: =AT72*Inputs!AS220 -> 0 | AU74: =AU72*Inputs!AT220 -> 0 | AV74: =AV72*Inputs!AU220 -> 0 | AW74: =AW72*Inputs!AV220 -> 0 | AX74: =AX72*Inputs!AW220 -> 0 | AY74: =AY72*Inputs!AX220 -> 0 | AZ74: =AZ72*Inputs!AY220 -> 0 | BA74: =BA72*Inputs!AZ220 -> 0 | BB74: =BB72*Inputs!BA220 -> 0 | BC74: =BC72*Inputs!BB220 -> 0 | BD74: =BD72*Inputs!BC220 -> 0
D75: Cumulative production during decommissioning period | E75: =Inputs!D220 -> ounces | G75: =SUM($G$74:G74)*G72 -> 0 | H75: =SUM($G$74:H74)*H72 -> 0 | I75: =SUM($G$74:I74)*I72 -> 0 | J75: =SUM($G$74:J74)*J72 -> 0 | K75: =SUM($G$74:K74)*K72 -> 0 | L75: =SUM($G$74:L74)*L72 -> 0 | M75: =SUM($G$74:M74)*M72 -> 0 | N75: =SUM($G$74:N74)*N72 -> 0 | O75: =SUM($G$74:O74)*O72 -> 0 | P75: =SUM($G$74:P74)*P72 -> 0 | Q75: =SUM($G$74:Q74)*Q72 -> 0 | R75: =SUM($G$74:R74)*R72 -> 0 | S75: =SUM($G$74:S74)*S72 -> 0 | T75: =SUM($G$74:T74)*T72 -> 0 | U75: =SUM($G$74:U74)*U72 -> 0 | V75: =SUM($G$74:V74)*V72 -> 0 | W75: =SUM($G$74:W74)*W72 -> 0 | X75: =SUM($G$74:X74)*X72 -> 0 | Y75: =SUM($G$74:Y74)*Y72 -> 350000 | Z75: =SUM($G$74:Z74)*Z72 -> 700000 | AA75: =SUM($G$74:AA74)*AA72 -> 1050000 | AB75: =SUM($G$74:AB74)*AB72 -> 1400000 | AC75: =SUM($G$74:AC74)*AC72 -> 1750000 | AD75: =SUM($G$74:AD74)*AD72 -> 2100000 | AE75: =SUM($G$74:AE74)*AE72 -> 2450000 | AF75: =SUM($G$74:AF74)*AF72 -> 2800000 | AG75: =SUM($G$74:AG74)*AG72 -> 3150000 | AH75: =SUM($G$74:AH74)*AH72 -> 3300000 | AI75: =SUM($G$74:AI74)*AI72 -> 0 | AJ75: =SUM($G$74:AJ74)*AJ72 -> 0 | AK75: =SUM($G$74:AK74)*AK72 -> 0 | AL75: =SUM($G$74:AL74)*AL72 -> 0 | AM75: =SUM($G$74:AM74)*AM72 -> 0 | AN75: =SUM($G$74:AN74)*AN72 -> 0 | AO75: =SUM($G$74:AO74)*AO72 -> 0 | AP75: =SUM($G$74:AP74)*AP72 -> 0 | AQ75: =SUM($G$74:AQ74)*AQ72 -> 0 | AR75: =SUM($G$74:AR74)*AR72 -> 0 | AS75: =SUM($G$74:AS74)*AS72 -> 0 | AT75: =SUM($G$74:AT74)*AT72 -> 0 | AU75: =SUM($G$74:AU74)*AU72 -> 0 | AV75: =SUM($G$74:AV74)*AV72 -> 0 | AW75: =SUM($G$74:AW74)*AW72 -> 0 | AX75: =SUM($G$74:AX74)*AX72 -> 0 | AY75: =SUM($G$74:AY74)*AY72 -> 0 | AZ75: =SUM($G$74:AZ74)*AZ72 -> 0 | BA75: =SUM($G$74:BA74)*BA72 -> 0 | BB75: =SUM($G$74:BB74)*BB72 -> 0 | BC75: =SUM($G$74:BC74)*BC72 -> 0 | BD75: =SUM($G$74:BD74)*BD72 -> 0
D77: Decommissioning fund opening balance | E77: $mm nominal | G77: =F81 -> 0 | H77: =G81 -> 0 | I77: =H81 -> 0 | J77: =I81 -> 0 | K77: 0 | L77: 0 | M77: 0 | N77: 0 | O77: 0 | P77: =O81 -> 0 | Q77: 0 | R77: 0 | S77: 0 | T77: 0 | U77: 0 | V77: 0 | W77: 0 | X77: 0 | Y77: 0 | Z77: 2.272209939 | AA77: 4.595255762 | AB77: 6.977134344 | AC77: 9.428357137 | AD77: 11.96334044 | AE77: 14.6030514 | AF77: 17.38074104 | AG77: 20.35711999 | AH77: 23.6780262 | AI77: 25.60329715 | AJ77: 0 | AK77: 0 | AL77: 0 | AM77: =AL81 -> 0 | AN77: 0 | AO77: 0 | AP77: 0 | AQ77: 0 | AR77: 0 | AS77: 0 | AT77: 0 | AU77: 0 | AV77: 0 | AW77: 0 | AX77: 0 | AY77: 0 | AZ77: 0 | BA77: 0 | BB77: 0 | BC77: 0 | BD77: 0
C78: =SUM(G78:BD78) -> 25.60329715 | D78: Deposit required | E78: $mm nominal | G78: =IF(AND(G72<>0,SUM(G34:$BD$34)>0),(G68-G77)*IFERROR(G74/F71,1)*(Inputs!$E$96=1),0) -> 0 | H78: =IF(AND(H72<>0,SUM(H34:$BD$34)>0),(H68-H77)*IFERROR(H74/G71,1)*(Inputs!$E$96=1),0) -> 0 | I78: =IF(AND(I72<>0,SUM(I34:$BD$34)>0),(I68-I77)*IFERROR(I74/H71,1)*(Inputs!$E$96=1),0) -> 0 | J78: =IF(AND(J72<>0,SUM(J34:$BD$34)>0),(J68-J77)*IFERROR(J74/I71,1)*(Inputs!$E$96=1),0) -> 0 | K78: =IF(AND(K72<>0,SUM(K34:$BD$34)>0),(K68-K77)*IFERROR(K74/J71,1)*(Inputs!$E$96=1),0) -> 0 | L78: =IF(AND(L72<>0,SUM(L34:$BD$34)>0),(L68-L77)*IFERROR(L74/K71,1)*(Inputs!$E$96=1),0) -> 0 | M78: =IF(AND(M72<>0,SUM(M34:$BD$34)>0),(M68-M77)*IFERROR(M74/L71,1)*(Inputs!$E$96=1),0) -> 0 | N78: =IF(AND(N72<>0,SUM(N34:$BD$34)>0),(N68-N77)*IFERROR(N74/M71,1)*(Inputs!$E$96=1),0) -> 0 | O78: =IF(AND(O72<>0,SUM(O34:$BD$34)>0),(O68-O77)*IFERROR(O74/N71,1)*(Inputs!$E$96=1),0) -> 0 | P78: =IF(AND(P72<>0,SUM(P34:$BD$34)>0),(P68-P77)*IFERROR(P74/O71,1)*(Inputs!$E$96=1),0) -> 0 | Q78: =IF(AND(Q72<>0,SUM(Q34:$BD$34)>0),(Q68-Q77)*IFERROR(Q74/P71,1)*(Inputs!$E$96=1),0) -> 0 | R78: =IF(AND(R72<>0,SUM(R34:$BD$34)>0),(R68-R77)*IFERROR(R74/Q71,1)*(Inputs!$E$96=1),0) -> 0 | S78: =IF(AND(S72<>0,SUM(S34:$BD$34)>0),(S68-S77)*IFERROR(S74/R71,1)*(Inputs!$E$96=1),0) -> 0 | T78: =IF(AND(T72<>0,SUM(T34:$BD$34)>0),(T68-T77)*IFERROR(T74/S71,1)*(Inputs!$E$96=1),0) -> 0 | U78: =IF(AND(U72<>0,SUM(U34:$BD$34)>0),(U68-U77)*IFERROR(U74/T71,1)*(Inputs!$E$96=1),0) -> 0 | V78: =IF(AND(V72<>0,SUM(V34:$BD$34)>0),(V68-V77)*IFERROR(V74/U71,1)*(Inputs!$E$96=1),0) -> 0 | W78: =IF(AND(W72<>0,SUM(W34:$BD$34)>0),(W68-W77)*IFERROR(W74/V71,1)*(Inputs!$E$96=1),0) -> 0 | X78: =IF(AND(X72<>0,SUM(X34:$BD$34)>0),(X68-X77)*IFERROR(X74/W71,1)*(Inputs!$E$96=1),0) -> 0 | Y78: =IF(AND(Y72<>0,SUM(Y34:$BD$34)>0),(Y68-Y77)*IFERROR(Y74/X71,1)*(Inputs!$E$96=1),0) -> 2.272209939 | Z78: =IF(AND(Z72<>0,SUM(Z34:$BD$34)>0),(Z68-Z77)*IFERROR(Z74/Y71,1)*(Inputs!$E$96=1),0) -> 2.323045823 | AA78: =IF(AND(AA72<>0,SUM(AA34:$BD$34)>0),(AA68-AA77)*IFERROR(AA74/Z71,1)*(Inputs!$E$96=1),0) -> 2.381878582 | AB78: =IF(AND(AB72<>0,SUM(AB34:$BD$34)>0),(AB68-AB77)*IFERROR(AB74/AA71,1)*(Inputs!$E$96=1),0) -> 2.451222793 | AC78: =IF(AND(AC72<>0,SUM(AC34:$BD$34)>0),(AC68-AC77)*IFERROR(AC74/AB71,1)*(Inputs!$E$96=1),0) -> 2.534983302 | AD78: =IF(AND(AD72<>0,SUM(AD34:$BD$34)>0),(AD68-AD77)*IFERROR(AD74/AC71,1)*(Inputs!$E$96=1),0) -> 2.639710957 | AE78: =IF(AND(AE72<>0,SUM(AE34:$BD$34)>0),(AE68-AE77)*IFERROR(AE74/AD71,1)*(Inputs!$E$96=1),0) -> 2.777689643 | AF78: =IF(AND(AF72<>0,SUM(AF34:$BD$34)>0),(AF68-AF77)*IFERROR(AF74/AE71,1)*(Inputs!$E$96=1),0) -> 2.97637895 | AG78: =IF(AND(AG72<>0,SUM(AG34:$BD$34)>0),(AG68-AG77)*IFERROR(AG74/AF71,1)*(Inputs!$E$96=1),0) -> 3.320906209 | AH78: =IF(AND(AH72<>0,SUM(AH34:$BD$34)>0),(AH68-AH77)*IFERROR(AH74/AG71,1)*(Inputs!$E$96=1),0) -> 1.925270952 | AI78: =IF(AND(AI72<>0,SUM(AI34:$BD$34)>0),(AI68-AI77)*IFERROR(AI74/AH71,1)*(Inputs!$E$96=1),0) -> 0 | AJ78: =IF(AND(AJ72<>0,SUM(AJ34:$BD$34)>0),(AJ68-AJ77)*IFERROR(AJ74/AI71,1)*(Inputs!$E$96=1),0) -> 0 | AK78: =IF(AND(AK72<>0,SUM(AK34:$BD$34)>0),(AK68-AK77)*IFERROR(AK74/AJ71,1)*(Inputs!$E$96=1),0) -> 0 | AL78: =IF(AND(AL72<>0,SUM(AL34:$BD$34)>0),(AL68-AL77)*IFERROR(AL74/AK71,1)*(Inputs!$E$96=1),0) -> 0 | AM78: =IF(AND(AM72<>0,SUM(AM34:$BD$34)>0),(AM68-AM77)*IFERROR(AM74/AL71,1)*(Inputs!$E$96=1),0) -> 0 | AN78: =IF(AND(AN72<>0,SUM(AN34:$BD$34)>0),(AN68-AN77)*IFERROR(AN74/AM71,1)*(Inputs!$E$96=1),0) -> 0 | AO78: =IF(AND(AO72<>0,SUM(AO34:$BD$34)>0),(AO68-AO77)*IFERROR(AO74/AN71,1)*(Inputs!$E$96=1),0) -> 0 | AP78: =IF(AND(AP72<>0,SUM(AP34:$BD$34)>0),(AP68-AP77)*IFERROR(AP74/AO71,1)*(Inputs!$E$96=1),0) -> 0 | AQ78: =IF(AND(AQ72<>0,SUM(AQ34:$BD$34)>0),(AQ68-AQ77)*IFERROR(AQ74/AP71,1)*(Inputs!$E$96=1),0) -> 0 | AR78: =IF(AND(AR72<>0,SUM(AR34:$BD$34)>0),(AR68-AR77)*IFERROR(AR74/AQ71,1)*(Inputs!$E$96=1),0) -> 0 | AS78: =IF(AND(AS72<>0,SUM(AS34:$BD$34)>0),(AS68-AS77)*IFERROR(AS74/AR71,1)*(Inputs!$E$96=1),0) -> 0 | AT78: =IF(AND(AT72<>0,SUM(AT34:$BD$34)>0),(AT68-AT77)*IFERROR(AT74/AS71,1)*(Inputs!$E$96=1),0) -> 0 | AU78: =IF(AND(AU72<>0,SUM(AU34:$BD$34)>0),(AU68-AU77)*IFERROR(AU74/AT71,1)*(Inputs!$E$96=1),0) -> 0 | AV78: =IF(AND(AV72<>0,SUM(AV34:$BD$34)>0),(AV68-AV77)*IFERROR(AV74/AU71,1)*(Inputs!$E$96=1),0) -> 0 | AW78: =IF(AND(AW72<>0,SUM(AW34:$BD$34)>0),(AW68-AW77)*IFERROR(AW74/AV71,1)*(Inputs!$E$96=1),0) -> 0 | AX78: =IF(AND(AX72<>0,SUM(AX34:$BD$34)>0),(AX68-AX77)*IFERROR(AX74/AW71,1)*(Inputs!$E$96=1),0) -> 0 | AY78: =IF(AND(AY72<>0,SUM(AY34:$BD$34)>0),(AY68-AY77)*IFERROR(AY74/AX71,1)*(Inputs!$E$96=1),0) -> 0 | AZ78: =IF(AND(AZ72<>0,SUM(AZ34:$BD$34)>0),(AZ68-AZ77)*IFERROR(AZ74/AY71,1)*(Inputs!$E$96=1),0) -> 0 | BA78: =IF(AND(BA72<>0,SUM(BA34:$BD$34)>0),(BA68-BA77)*IFERROR(BA74/AZ71,1)*(Inputs!$E$96=1),0) -> 0 | BB78: =IF(AND(BB72<>0,SUM(BB34:$BD$34)>0),(BB68-BB77)*IFERROR(BB74/BA71,1)*(Inputs!$E$96=1),0) -> 0 | BC78: =IF(AND(BC72<>0,SUM(BC34:$BD$34)>0),(BC68-BC77)*IFERROR(BC74/BB71,1)*(Inputs!$E$96=1),0) -> 0 | BD78: =IF(AND(BD72<>0,SUM(BD34:$BD$34)>0),(BD68-BD77)*IFERROR(BD74/BC71,1)*(Inputs!$E$96=1),0) -> 0
C79: -25.60329715 | D79: Withdrawal to meet decommissioning costs | E79: $mm nominal | G79: =MIN(G66,F81)*-1 -> 0 | H79: 0 | I79: 0 | J79: =MIN(J66,I81)*-1 -> 0 | K79: 0 | L79: 0 | M79: 0 | N79: 0 | O79: 0 | P79: =MIN(P66,O81)*-1 -> 0 | Q79: 0 | R79: 0 | S79: 0 | T79: =MIN(T66,S81)*-1 -> 0 | U79: =MIN(U66,T81)*-1 -> 0 | V79: =MIN(V66,U81)*-1 -> 0 | W79: 0 | X79: 0 | Y79: 0 | Z79: 0 | AA79: 0 | AB79: 0 | AC79: 0 | AD79: 0 | AE79: 0 | AF79: 0 | AG79: 0 | AH79: 0 | AI79: -25.60329715 | AJ79: 0 | AK79: 0 | AL79: 0 | AM79: =MIN(AM66,AL81)*-1 -> 0 | AN79: 0 | AO79: 0 | AP79: 0 | AQ79: 0 | AR79: 0 | AS79: 0 | AT79: 0 | AU79: 0 | AV79: 0 | AW79: 0 | AX79: 0 | AY79: 0 | AZ79: 0 | BA79: 0 | BB79: 0 | BC79: 0 | BD79: 0
C80: 0 | D80: Surplus balance | E80: $mm nominal | G80: =AND(G79<>0,SUM(H34:$BD$34)=0)*(G77+G79)*-1 -> 0 | H80: =AND(H79<>0,SUM(I34:$BD$34)=0)*(H77+H79)*-1 -> 0 | I80: =AND(I79<>0,SUM(J34:$BD$34)=0)*(I77+I79)*-1 -> 0 | J80: =AND(J79<>0,SUM(K34:$BD$34)=0)*(J77+J79)*-1 -> 0 | K80: =AND(K79<>0,SUM(L34:$BD$34)=0)*(K77+K79)*-1 -> 0 | L80: =AND(L79<>0,SUM(M34:$BD$34)=0)*(L77+L79)*-1 -> 0 | M80: =AND(M79<>0,SUM(N34:$BD$34)=0)*(M77+M79)*-1 -> 0 | N80: =AND(N79<>0,SUM(O34:$BD$34)=0)*(N77+N79)*-1 -> 0 | O80: =AND(O79<>0,SUM(P34:$BD$34)=0)*(O77+O79)*-1 -> 0 | P80: =AND(P79<>0,SUM(Q34:$BD$34)=0)*(P77+P79)*-1 -> 0 | Q80: =AND(Q79<>0,SUM(R34:$BD$34)=0)*(Q77+Q79)*-1 -> 0 | R80: =AND(R79<>0,SUM(S34:$BD$34)=0)*(R77+R79)*-1 -> 0 | S80: =AND(S79<>0,SUM(T34:$BD$34)=0)*(S77+S79)*-1 -> 0 | T80: =AND(T79<>0,SUM(U34:$BD$34)=0)*(T77+T79)*-1 -> 0 | U80: =AND(U79<>0,SUM(V34:$BD$34)=0)*(U77+U79)*-1 -> 0 | V80: =AND(V79<>0,SUM(W34:$BD$34)=0)*(V77+V79)*-1 -> 0 | W80: =AND(W79<>0,SUM(X34:$BD$34)=0)*(W77+W79)*-1 -> 0 | X80: =AND(X79<>0,SUM(Y34:$BD$34)=0)*(X77+X79)*-1 -> 0 | Y80: =AND(Y79<>0,SUM(Z34:$BD$34)=0)*(Y77+Y79)*-1 -> 0 | Z80: =AND(Z79<>0,SUM(AA34:$BD$34)=0)*(Z77+Z79)*-1 -> 0 | AA80: =AND(AA79<>0,SUM(AB34:$BD$34)=0)*(AA77+AA79)*-1 -> 0 | AB80: =AND(AB79<>0,SUM(AC34:$BD$34)=0)*(AB77+AB79)*-1 -> 0 | AC80: =AND(AC79<>0,SUM(AD34:$BD$34)=0)*(AC77+AC79)*-1 -> 0 | AD80: =AND(AD79<>0,SUM(AE34:$BD$34)=0)*(AD77+AD79)*-1 -> 0 | AE80: =AND(AE79<>0,SUM(AF34:$BD$34)=0)*(AE77+AE79)*-1 -> 0 | AF80: =AND(AF79<>0,SUM(AG34:$BD$34)=0)*(AF77+AF79)*-1 -> 0 | AG80: =AND(AG79<>0,SUM(AH34:$BD$34)=0)*(AG77+AG79)*-1 -> 0 | AH80: =AND(AH79<>0,SUM(AI34:$BD$34)=0)*(AH77+AH79)*-1 -> 0 | AI80: =AND(AI79<>0,SUM(AJ34:$BD$34)=0)*(AI77+AI79)*-1 -> 0 | AJ80: =AND(AJ79<>0,SUM(AK34:$BD$34)=0)*(AJ77+AJ79)*-1 -> 0 | AK80: =AND(AK79<>0,SUM(AL34:$BD$34)=0)*(AK77+AK79)*-1 -> 0 | AL80: =AND(AL79<>0,SUM(AM34:$BD$34)=0)*(AL77+AL79)*-1 -> 0 | AM80: =AND(AM79<>0,SUM(AN34:$BD$34)=0)*(AM77+AM79)*-1 -> 0 | AN80: =AND(AN79<>0,SUM(AO34:$BD$34)=0)*(AN77+AN79)*-1 -> 0 | AO80: =AND(AO79<>0,SUM(AP34:$BD$34)=0)*(AO77+AO79)*-1 -> 0 | AP80: =AND(AP79<>0,SUM(AQ34:$BD$34)=0)*(AP77+AP79)*-1 -> 0 | AQ80: =AND(AQ79<>0,SUM(AR34:$BD$34)=0)*(AQ77+AQ79)*-1 -> 0 | AR80: =AND(AR79<>0,SUM(AS34:$BD$34)=0)*(AR77+AR79)*-1 -> 0 | AS80: =AND(AS79<>0,SUM(AT34:$BD$34)=0)*(AS77+AS79)*-1 -> 0 | AT80: =AND(AT79<>0,SUM(AU34:$BD$34)=0)*(AT77+AT79)*-1 -> 0 | AU80: =AND(AU79<>0,SUM(AV34:$BD$34)=0)*(AU77+AU79)*-1 -> 0 | AV80: =AND(AV79<>0,SUM(AW34:$BD$34)=0)*(AV77+AV79)*-1 -> 0 | AW80: =AND(AW79<>0,SUM(AX34:$BD$34)=0)*(AW77+AW79)*-1 -> 0 | AX80: =AND(AX79<>0,SUM(AY34:$BD$34)=0)*(AX77+AX79)*-1 -> 0 | AY80: =AND(AY79<>0,SUM(AZ34:$BD$34)=0)*(AY77+AY79)*-1 -> 0 | AZ80: =AND(AZ79<>0,SUM(BA34:$BD$34)=0)*(AZ77+AZ79)*-1 -> 0 | BA80: =AND(BA79<>0,SUM(BB34:$BD$34)=0)*(BA77+BA79)*-1 -> 0 | BB80: =AND(BB79<>0,SUM(BC34:$BD$34)=0)*(BB77+BB79)*-1 -> 0 | BC80: =AND(BC79<>0,SUM(BD34:$BD$34)=0)*(BC77+BC79)*-1 -> 0 | BD80: =AND(BD79<>0,SUM($BD34:BE$34)=0)*(BD77+BD79)*-1 -> 0
D81: Closing balance | E81: $mm nominal | G81: =SUM(G77:G80) -> 0 | H81: 0 | I81: =SUM(I77:I80) -> 0 | J81: 0 | K81: 0 | L81: 0 | M81: 0 | N81: 0 | O81: 0 | P81: =SUM(P77:P80) -> 0 | Q81: 0 | R81: 0 | S81: 0 | T81: =SUM(T77:T80) -> 0 | U81: 0 | V81: 0 | W81: 0 | X81: 0 | Y81: 2.272209939 | Z81: 4.595255762 | AA81: 6.977134344 | AB81: 9.428357137 | AC81: 11.96334044 | AD81: 14.6030514 | AE81: 17.38074104 | AF81: 20.35711999 | AG81: 23.6780262 | AH81: 25.60329715 | AI81: 0 | AJ81: 0 | AK81: 0 | AL81: 0 | AM81: =SUM(AM77:AM80) -> 0 | AN81: 0 | AO81: 0 | AP81: 0 | AQ81: 0 | AR81: 0 | AS81: 0 | AT81: 0 | AU81: 0 | AV81: 0 | AW81: 0 | AX81: 0 | AY81: 0 | AZ81: 0 | BA81: 0 | BB81: 0 | BC81: 0 | BD81: 0
D83: Debt financing | E83: year | G83: =G$6 -> 1 | H83: 2 | I83: 3 | J83: 4 | K83: 5 | L83: 6 | M83: 7 | N83: 8 | O83: 9 | P83: 10 | Q83: 11 | R83: 12 | S83: 13 | T83: 14 | U83: 15 | V83: 16 | W83: 17 | X83: 18 | Y83: 19 | Z83: 20 | AA83: 21 | AB83: 22 | AC83: 23 | AD83: 24 | AE83: 25 | AF83: 26 | AG83: 27 | AH83: 28 | AI83: 29 | AJ83: 30 | AK83: 31 | AL83: 32 | AM83: 33 | AN83: 34 | AO83: 35 | AP83: 36 | AQ83: 37 | AR83: 38 | AS83: 39 | AT83: 40 | AU83: 41 | AV83: 42 | AW83: 43 | AX83: 44 | AY83: 45 | AZ83: 46 | BA83: 47 | BB83: 48 | BC83: 49 | BD83: 50
C84: =SUM(G84:BD84) -> 1 | D84: Project pre-tax cash flow turn positive | G84: =AND(G59 > 0, (SUM($F84:F84) = 0)) * 1 -> 0 | H84: =AND(H59 > 0, (SUM($F84:G84) = 0)) * 1 -> 0 | I84: =AND(I59 > 0, (SUM($F84:H84) = 0)) * 1 -> 0 | J84: =AND(J59 > 0, (SUM($F84:I84) = 0)) * 1 -> 0 | K84: =AND(K59 > 0, (SUM($F84:J84) = 0)) * 1 -> 1 | L84: =AND(L59 > 0, (SUM($F84:K84) = 0)) * 1 -> 0 | M84: =AND(M59 > 0, (SUM($F84:L84) = 0)) * 1 -> 0 | N84: =AND(N59 > 0, (SUM($F84:M84) = 0)) * 1 -> 0 | O84: =AND(O59 > 0, (SUM($F84:N84) = 0)) * 1 -> 0 | P84: =AND(P59 > 0, (SUM($F84:O84) = 0)) * 1 -> 0 | Q84: =AND(Q59 > 0, (SUM($F84:P84) = 0)) * 1 -> 0 | R84: =AND(R59 > 0, (SUM($F84:Q84) = 0)) * 1 -> 0 | S84: =AND(S59 > 0, (SUM($F84:R84) = 0)) * 1 -> 0 | T84: =AND(T59 > 0, (SUM($F84:S84) = 0)) * 1 -> 0 | U84: =AND(U59 > 0, (SUM($F84:T84) = 0)) * 1 -> 0 | V84: =AND(V59 > 0, (SUM($F84:U84) = 0)) * 1 -> 0 | W84: =AND(W59 > 0, (SUM($F84:V84) = 0)) * 1 -> 0 | X84: =AND(X59 > 0, (SUM($F84:W84) = 0)) * 1 -> 0 | Y84: =AND(Y59 > 0, (SUM($F84:X84) = 0)) * 1 -> 0 | Z84: =AND(Z59 > 0, (SUM($F84:Y84) = 0)) * 1 -> 0 | AA84: =AND(AA59 > 0, (SUM($F84:Z84) = 0)) * 1 -> 0 | AB84: =AND(AB59 > 0, (SUM($F84:AA84) = 0)) * 1 -> 0 | AC84: =AND(AC59 > 0, (SUM($F84:AB84) = 0)) * 1 -> 0 | AD84: =AND(AD59 > 0, (SUM($F84:AC84) = 0)) * 1 -> 0 | AE84: =AND(AE59 > 0, (SUM($F84:AD84) = 0)) * 1 -> 0 | AF84: =AND(AF59 > 0, (SUM($F84:AE84) = 0)) * 1 -> 0 | AG84: =AND(AG59 > 0, (SUM($F84:AF84) = 0)) * 1 -> 0 | AH84: =AND(AH59 > 0, (SUM($F84:AG84) = 0)) * 1 -> 0 | AI84: =AND(AI59 > 0, (SUM($F84:AH84) = 0)) * 1 -> 0 | AJ84: =AND(AJ59 > 0, (SUM($F84:AI84) = 0)) * 1 -> 0 | AK84: =AND(AK59 > 0, (SUM($F84:AJ84) = 0)) * 1 -> 0 | AL84: =AND(AL59 > 0, (SUM($F84:AK84) = 0)) * 1 -> 0 | AM84: =AND(AM59 > 0, (SUM($F84:AL84) = 0)) * 1 -> 0 | AN84: =AND(AN59 > 0, (SUM($F84:AM84) = 0)) * 1 -> 0 | AO84: =AND(AO59 > 0, (SUM($F84:AN84) = 0)) * 1 -> 0 | AP84: =AND(AP59 > 0, (SUM($F84:AO84) = 0)) * 1 -> 0 | AQ84: =AND(AQ59 > 0, (SUM($F84:AP84) = 0)) * 1 -> 0 | AR84: =AND(AR59 > 0, (SUM($F84:AQ84) = 0)) * 1 -> 0 | AS84: =AND(AS59 > 0, (SUM($F84:AR84) = 0)) * 1 -> 0 | AT84: =AND(AT59 > 0, (SUM($F84:AS84) = 0)) * 1 -> 0 | AU84: =AND(AU59 > 0, (SUM($F84:AT84) = 0)) * 1 -> 0 | AV84: =AND(AV59 > 0, (SUM($F84:AU84) = 0)) * 1 -> 0 | AW84: =AND(AW59 > 0, (SUM($F84:AV84) = 0)) * 1 -> 0 | AX84: =AND(AX59 > 0, (SUM($F84:AW84) = 0)) * 1 -> 0 | AY84: =AND(AY59 > 0, (SUM($F84:AX84) = 0)) * 1 -> 0 | AZ84: =AND(AZ59 > 0, (SUM($F84:AY84) = 0)) * 1 -> 0 | BA84: =AND(BA59 > 0, (SUM($F84:AZ84) = 0)) * 1 -> 0 | BB84: =AND(BB59 > 0, (SUM($F84:BA84) = 0)) * 1 -> 0 | BC84: =AND(BC59 > 0, (SUM($F84:BB84) = 0)) * 1 -> 0 | BD84: =AND(BD59 > 0, (SUM($F84:BC84) = 0)) * 1 -> 0
C85: =SUM(G85:BD85) -> 4 | D85: Financing period | G85: =(SUM(H84:$BD84) > 0) * 1 -> 1 | H85: =(SUM(I84:$BD84) > 0) * 1 -> 1 | I85: =(SUM(J84:$BD84) > 0) * 1 -> 1 | J85: =(SUM(K84:$BD84) > 0) * 1 -> 1 | K85: =(SUM(L84:$BD84) > 0) * 1 -> 0 | L85: =(SUM(M84:$BD84) > 0) * 1 -> 0 | M85: =(SUM(N84:$BD84) > 0) * 1 -> 0 | N85: =(SUM(O84:$BD84) > 0) * 1 -> 0 | O85: =(SUM(P84:$BD84) > 0) * 1 -> 0 | P85: =(SUM(Q84:$BD84) > 0) * 1 -> 0 | Q85: =(SUM(R84:$BD84) > 0) * 1 -> 0 | R85: =(SUM(S84:$BD84) > 0) * 1 -> 0 | S85: =(SUM(T84:$BD84) > 0) * 1 -> 0 | T85: =(SUM(U84:$BD84) > 0) * 1 -> 0 | U85: =(SUM(V84:$BD84) > 0) * 1 -> 0 | V85: =(SUM(W84:$BD84) > 0) * 1 -> 0 | W85: =(SUM(X84:$BD84) > 0) * 1 -> 0 | X85: =(SUM(Y84:$BD84) > 0) * 1 -> 0 | Y85: =(SUM(Z84:$BD84) > 0) * 1 -> 0 | Z85: =(SUM(AA84:$BD84) > 0) * 1 -> 0 | AA85: =(SUM(AB84:$BD84) > 0) * 1 -> 0 | AB85: =(SUM(AC84:$BD84) > 0) * 1 -> 0 | AC85: =(SUM(AD84:$BD84) > 0) * 1 -> 0 | AD85: =(SUM(AE84:$BD84) > 0) * 1 -> 0 | AE85: =(SUM(AF84:$BD84) > 0) * 1 -> 0 | AF85: =(SUM(AG84:$BD84) > 0) * 1 -> 0 | AG85: =(SUM(AH84:$BD84) > 0) * 1 -> 0 | AH85: =(SUM(AI84:$BD84) > 0) * 1 -> 0 | AI85: =(SUM(AJ84:$BD84) > 0) * 1 -> 0 | AJ85: =(SUM(AK84:$BD84) > 0) * 1 -> 0 | AK85: =(SUM(AL84:$BD84) > 0) * 1 -> 0 | AL85: =(SUM(AM84:$BD84) > 0) * 1 -> 0 | AM85: =(SUM(AN84:$BD84) > 0) * 1 -> 0 | AN85: =(SUM(AO84:$BD84) > 0) * 1 -> 0 | AO85: =(SUM(AP84:$BD84) > 0) * 1 -> 0 | AP85: =(SUM(AQ84:$BD84) > 0) * 1 -> 0 | AQ85: =(SUM(AR84:$BD84) > 0) * 1 -> 0 | AR85: =(SUM(AS84:$BD84) > 0) * 1 -> 0 | AS85: =(SUM(AT84:$BD84) > 0) * 1 -> 0 | AT85: =(SUM(AU84:$BD84) > 0) * 1 -> 0 | AU85: =(SUM(AV84:$BD84) > 0) * 1 -> 0 | AV85: =(SUM(AW84:$BD84) > 0) * 1 -> 0 | AW85: =(SUM(AX84:$BD84) > 0) * 1 -> 0 | AX85: =(SUM(AY84:$BD84) > 0) * 1 -> 0 | AY85: =(SUM(AZ84:$BD84) > 0) * 1 -> 0 | AZ85: =(SUM(BA84:$BD84) > 0) * 1 -> 0 | BA85: =(SUM(BB84:$BD84) > 0) * 1 -> 0 | BB85: =(SUM(BC84:$BD84) > 0) * 1 -> 0 | BC85: =(SUM(BD84:$BD84) > 0) * 1 -> 0 | BD85: =(SUM($BD84:BE84) > 0) * 1 -> 0
D86: Post-financing production period | G86: =G32 * (G85 = 0) -> 0 | H86: =H32 * (H85 = 0) -> 0 | I86: 0 | J86: 0 | K86: 1 | L86: 1 | M86: 1 | N86: 1 | O86: 1 | P86: 1 | Q86: 1 | R86: 1 | S86: 1 | T86: 1 | U86: 1 | V86: 1 | W86: 1 | X86: 1 | Y86: 1 | Z86: 1 | AA86: 1 | AB86: 1 | AC86: 1 | AD86: 1 | AE86: 1 | AF86: 1 | AG86: 1 | AH86: 1 | AI86: 0 | AJ86: 0 | AK86: 0 | AL86: 0 | AM86: 0 | AN86: 0 | AO86: 0 | AP86: 0 | AQ86: 0 | AR86: 0 | AS86: 0 | AT86: 0 | AU86: 0 | AV86: 0 | AW86: 0 | AX86: 0 | AY86: 0 | AZ86: 0 | BA86: 0 | BB86: 0 | BC86: 0 | BD86: 0
D87: Post-financing production years | G87: =(G86 = 1) * (1 + F87) -> 0 | H87: =(H86 = 1) * (1 + G87) -> 0 | I87: 0 | J87: 0 | K87: 1 | L87: 2 | M87: 3 | N87: 4 | O87: 5 | P87: 6 | Q87: 7 | R87: 8 | S87: 9 | T87: 10 | U87: 11 | V87: 12 | W87: 13 | X87: 14 | Y87: 15 | Z87: 16 | AA87: 17 | AB87: 18 | AC87: 19 | AD87: 20 | AE87: 21 | AF87: 22 | AG87: 23 | AH87: 24 | AI87: 0 | AJ87: 0 | AK87: 0 | AL87: 0 | AM87: 0 | AN87: 0 | AO87: 0 | AP87: 0 | AQ87: 0 | AR87: 0 | AS87: 0 | AT87: 0 | AU87: 0 | AV87: 0 | AW87: 0 | AX87: 0 | AY87: 0 | AZ87: 0 | BA87: 0 | BB87: 0 | BC87: 0 | BD87: 0
C89: =SUM(G89:BD89) -> 198.1962 | D89: Loan amount | G89: =SUM(G53:G54) * G85 * Inputs!$E$195 -> 0 | H89: =SUM(H53:H54) * H85 * Inputs!$E$195 -> 0 | I89: =SUM(I53:I54) * I85 * Inputs!$E$195 -> 39.015 | J89: =SUM(J53:J54) * J85 * Inputs!$E$195 -> 159.1812 | K89: =SUM(K53:K54) * K85 * Inputs!$E$195 -> 0 | L89: =SUM(L53:L54) * L85 * Inputs!$E$195 -> 0 | M89: =SUM(M53:M54) * M85 * Inputs!$E$195 -> 0 | N89: =SUM(N53:N54) * N85 * Inputs!$E$195 -> 0 | O89: =SUM(O53:O54) * O85 * Inputs!$E$195 -> 0 | P89: =SUM(P53:P54) * P85 * Inputs!$E$195 -> 0 | Q89: =SUM(Q53:Q54) * Q85 * Inputs!$E$195 -> 0 | R89: =SUM(R53:R54) * R85 * Inputs!$E$195 -> 0 | S89: =SUM(S53:S54) * S85 * Inputs!$E$195 -> 0 | T89: =SUM(T53:T54) * T85 * Inputs!$E$195 -> 0 | U89: =SUM(U53:U54) * U85 * Inputs!$E$195 -> 0 | V89: =SUM(V53:V54) * V85 * Inputs!$E$195 -> 0 | W89: =SUM(W53:W54) * W85 * Inputs!$E$195 -> 0 | X89: =SUM(X53:X54) * X85 * Inputs!$E$195 -> 0 | Y89: =SUM(Y53:Y54) * Y85 * Inputs!$E$195 -> 0 | Z89: =SUM(Z53:Z54) * Z85 * Inputs!$E$195 -> 0 | AA89: =SUM(AA53:AA54) * AA85 * Inputs!$E$195 -> 0 | AB89: =SUM(AB53:AB54) * AB85 * Inputs!$E$195 -> 0 | AC89: =SUM(AC53:AC54) * AC85 * Inputs!$E$195 -> 0 | AD89: =SUM(AD53:AD54) * AD85 * Inputs!$E$195 -> 0 | AE89: =SUM(AE53:AE54) * AE85 * Inputs!$E$195 -> 0 | AF89: =SUM(AF53:AF54) * AF85 * Inputs!$E$195 -> 0 | AG89: =SUM(AG53:AG54) * AG85 * Inputs!$E$195 -> 0 | AH89: =SUM(AH53:AH54) * AH85 * Inputs!$E$195 -> 0 | AI89: =SUM(AI53:AI54) * AI85 * Inputs!$E$195 -> 0 | AJ89: =SUM(AJ53:AJ54) * AJ85 * Inputs!$E$195 -> 0 | AK89: =SUM(AK53:AK54) * AK85 * Inputs!$E$195 -> 0 | AL89: =SUM(AL53:AL54) * AL85 * Inputs!$E$195 -> 0 | AM89: =SUM(AM53:AM54) * AM85 * Inputs!$E$195 -> 0 | AN89: =SUM(AN53:AN54) * AN85 * Inputs!$E$195 -> 0 | AO89: =SUM(AO53:AO54) * AO85 * Inputs!$E$195 -> 0 | AP89: =SUM(AP53:AP54) * AP85 * Inputs!$E$195 -> 0 | AQ89: =SUM(AQ53:AQ54) * AQ85 * Inputs!$E$195 -> 0 | AR89: =SUM(AR53:AR54) * AR85 * Inputs!$E$195 -> 0 | AS89: =SUM(AS53:AS54) * AS85 * Inputs!$E$195 -> 0 | AT89: =SUM(AT53:AT54) * AT85 * Inputs!$E$195 -> 0 | AU89: =SUM(AU53:AU54) * AU85 * Inputs!$E$195 -> 0 | AV89: =SUM(AV53:AV54) * AV85 * Inputs!$E$195 -> 0 | AW89: =SUM(AW53:AW54) * AW85 * Inputs!$E$195 -> 0 | AX89: =SUM(AX53:AX54) * AX85 * Inputs!$E$195 -> 0 | AY89: =SUM(AY53:AY54) * AY85 * Inputs!$E$195 -> 0 | AZ89: =SUM(AZ53:AZ54) * AZ85 * Inputs!$E$195 -> 0 | BA89: =SUM(BA53:BA54) * BA85 * Inputs!$E$195 -> 0 | BB89: =SUM(BB53:BB54) * BB85 * Inputs!$E$195 -> 0 | BC89: =SUM(BC53:BC54) * BC85 * Inputs!$E$195 -> 0 | BD89: =SUM(BD53:BD54) * BD85 * Inputs!$E$195 -> 0
C90: =SUM(G90:BD90) -> 5 | D90: Repayment period | G90: =AND(G87 > 0, G87 <= Inputs!$E$197) * 1 -> 0 | H90: =AND(H87 > 0, H87 <= Inputs!$E$197) * 1 -> 0 | I90: =AND(I87 > 0, I87 <= Inputs!$E$197) * 1 -> 0 | J90: =AND(J87 > 0, J87 <= Inputs!$E$197) * 1 -> 0 | K90: =AND(K87 > 0, K87 <= Inputs!$E$197) * 1 -> 1 | L90: =AND(L87 > 0, L87 <= Inputs!$E$197) * 1 -> 1 | M90: =AND(M87 > 0, M87 <= Inputs!$E$197) * 1 -> 1 | N90: =AND(N87 > 0, N87 <= Inputs!$E$197) * 1 -> 1 | O90: =AND(O87 > 0, O87 <= Inputs!$E$197) * 1 -> 1 | P90: =AND(P87 > 0, P87 <= Inputs!$E$197) * 1 -> 0 | Q90: =AND(Q87 > 0, Q87 <= Inputs!$E$197) * 1 -> 0 | R90: =AND(R87 > 0, R87 <= Inputs!$E$197) * 1 -> 0 | S90: =AND(S87 > 0, S87 <= Inputs!$E$197) * 1 -> 0 | T90: =AND(T87 > 0, T87 <= Inputs!$E$197) * 1 -> 0 | U90: =AND(U87 > 0, U87 <= Inputs!$E$197) * 1 -> 0 | V90: =AND(V87 > 0, V87 <= Inputs!$E$197) * 1 -> 0 | W90: =AND(W87 > 0, W87 <= Inputs!$E$197) * 1 -> 0 | X90: =AND(X87 > 0, X87 <= Inputs!$E$197) * 1 -> 0 | Y90: =AND(Y87 > 0, Y87 <= Inputs!$E$197) * 1 -> 0 | Z90: =AND(Z87 > 0, Z87 <= Inputs!$E$197) * 1 -> 0 | AA90: =AND(AA87 > 0, AA87 <= Inputs!$E$197) * 1 -> 0 | AB90: =AND(AB87 > 0, AB87 <= Inputs!$E$197) * 1 -> 0 | AC90: =AND(AC87 > 0, AC87 <= Inputs!$E$197) * 1 -> 0 | AD90: =AND(AD87 > 0, AD87 <= Inputs!$E$197) * 1 -> 0 | AE90: =AND(AE87 > 0, AE87 <= Inputs!$E$197) * 1 -> 0 | AF90: =AND(AF87 > 0, AF87 <= Inputs!$E$197) * 1 -> 0 | AG90: =AND(AG87 > 0, AG87 <= Inputs!$E$197) * 1 -> 0 | AH90: =AND(AH87 > 0, AH87 <= Inputs!$E$197) * 1 -> 0 | AI90: =AND(AI87 > 0, AI87 <= Inputs!$E$197) * 1 -> 0 | AJ90: =AND(AJ87 > 0, AJ87 <= Inputs!$E$197) * 1 -> 0 | AK90: =AND(AK87 > 0, AK87 <= Inputs!$E$197) * 1 -> 0 | AL90: =AND(AL87 > 0, AL87 <= Inputs!$E$197) * 1 -> 0 | AM90: =AND(AM87 > 0, AM87 <= Inputs!$E$197) * 1 -> 0 | AN90: =AND(AN87 > 0, AN87 <= Inputs!$E$197) * 1 -> 0 | AO90: =AND(AO87 > 0, AO87 <= Inputs!$E$197) * 1 -> 0 | AP90: =AND(AP87 > 0, AP87 <= Inputs!$E$197) * 1 -> 0 | AQ90: =AND(AQ87 > 0, AQ87 <= Inputs!$E$197) * 1 -> 0 | AR90: =AND(AR87 > 0, AR87 <= Inputs!$E$197) * 1 -> 0 | AS90: =AND(AS87 > 0, AS87 <= Inputs!$E$197) * 1 -> 0 | AT90: =AND(AT87 > 0, AT87 <= Inputs!$E$197) * 1 -> 0 | AU90: =AND(AU87 > 0, AU87 <= Inputs!$E$197) * 1 -> 0 | AV90: =AND(AV87 > 0, AV87 <= Inputs!$E$197) * 1 -> 0 | AW90: =AND(AW87 > 0, AW87 <= Inputs!$E$197) * 1 -> 0 | AX90: =AND(AX87 > 0, AX87 <= Inputs!$E$197) * 1 -> 0 | AY90: =AND(AY87 > 0, AY87 <= Inputs!$E$197) * 1 -> 0 | AZ90: =AND(AZ87 > 0, AZ87 <= Inputs!$E$197) * 1 -> 0 | BA90: =AND(BA87 > 0, BA87 <= Inputs!$E$197) * 1 -> 0 | BB90: =AND(BB87 > 0, BB87 <= Inputs!$E$197) * 1 -> 0 | BC90: =AND(BC87 > 0, BC87 <= Inputs!$E$197) * 1 -> 0 | BD90: =AND(BD87 > 0, BD87 <= Inputs!$E$197) * 1 -> 0
D91: Proportion of remaining loan balance to be paid | G91: =IFERROR(G90 / SUM(G90:$BD90), 0) -> 0 | H91: =IFERROR(H90 / SUM(H90:$BD90), 0) -> 0 | I91: =IFERROR(I90 / SUM(I90:$BD90), 0) -> 0 | J91: =IFERROR(J90 / SUM(J90:$BD90), 0) -> 0 | K91: =IFERROR(K90 / SUM(K90:$BD90), 0) -> 0.2 | L91: =IFERROR(L90 / SUM(L90:$BD90), 0) -> 0.25 | M91: =IFERROR(M90 / SUM(M90:$BD90), 0) -> 0.3333333333 | N91: =IFERROR(N90 / SUM(N90:$BD90), 0) -> 0.5 | O91: =IFERROR(O90 / SUM(O90:$BD90), 0) -> 1 | P91: =IFERROR(P90 / SUM(P90:$BD90), 0) -> 0 | Q91: =IFERROR(Q90 / SUM(Q90:$BD90), 0) -> 0 | R91: =IFERROR(R90 / SUM(R90:$BD90), 0) -> 0 | S91: =IFERROR(S90 / SUM(S90:$BD90), 0) -> 0 | T91: =IFERROR(T90 / SUM(T90:$BD90), 0) -> 0 | U91: =IFERROR(U90 / SUM(U90:$BD90), 0) -> 0 | V91: =IFERROR(V90 / SUM(V90:$BD90), 0) -> 0 | W91: =IFERROR(W90 / SUM(W90:$BD90), 0) -> 0 | X91: =IFERROR(X90 / SUM(X90:$BD90), 0) -> 0 | Y91: =IFERROR(Y90 / SUM(Y90:$BD90), 0) -> 0 | Z91: =IFERROR(Z90 / SUM(Z90:$BD90), 0) -> 0 | AA91: =IFERROR(AA90 / SUM(AA90:$BD90), 0) -> 0 | AB91: =IFERROR(AB90 / SUM(AB90:$BD90), 0) -> 0 | AC91: =IFERROR(AC90 / SUM(AC90:$BD90), 0) -> 0 | AD91: =IFERROR(AD90 / SUM(AD90:$BD90), 0) -> 0 | AE91: =IFERROR(AE90 / SUM(AE90:$BD90), 0) -> 0 | AF91: =IFERROR(AF90 / SUM(AF90:$BD90), 0) -> 0 | AG91: =IFERROR(AG90 / SUM(AG90:$BD90), 0) -> 0 | AH91: =IFERROR(AH90 / SUM(AH90:$BD90), 0) -> 0 | AI91: =IFERROR(AI90 / SUM(AI90:$BD90), 0) -> 0 | AJ91: =IFERROR(AJ90 / SUM(AJ90:$BD90), 0) -> 0 | AK91: =IFERROR(AK90 / SUM(AK90:$BD90), 0) -> 0 | AL91: =IFERROR(AL90 / SUM(AL90:$BD90), 0) -> 0 | AM91: =IFERROR(AM90 / SUM(AM90:$BD90), 0) -> 0 | AN91: =IFERROR(AN90 / SUM(AN90:$BD90), 0) -> 0 | AO91: =IFERROR(AO90 / SUM(AO90:$BD90), 0) -> 0 | AP91: =IFERROR(AP90 / SUM(AP90:$BD90), 0) -> 0 | AQ91: =IFERROR(AQ90 / SUM(AQ90:$BD90), 0) -> 0 | AR91: =IFERROR(AR90 / SUM(AR90:$BD90), 0) -> 0 | AS91: =IFERROR(AS90 / SUM(AS90:$BD90), 0) -> 0 | AT91: =IFERROR(AT90 / SUM(AT90:$BD90), 0) -> 0 | AU91: =IFERROR(AU90 / SUM(AU90:$BD90), 0) -> 0 | AV91: =IFERROR(AV90 / SUM(AV90:$BD90), 0) -> 0 | AW91: =IFERROR(AW90 / SUM(AW90:$BD90), 0) -> 0 | AX91: =IFERROR(AX90 / SUM(AX90:$BD90), 0) -> 0 | AY91: =IFERROR(AY90 / SUM(AY90:$BD90), 0) -> 0 | AZ91: =IFERROR(AZ90 / SUM(AZ90:$BD90), 0) -> 0 | BA91: =IFERROR(BA90 / SUM(BA90:$BD90), 0) -> 0 | BB91: =IFERROR(BB90 / SUM(BB90:$BD90), 0) -> 0 | BC91: =IFERROR(BC90 / SUM(BC90:$BD90), 0) -> 0 | BD91: =IFERROR(BD90 / SUM(BD90:$BD90), 0) -> 0
D93: Loan account opening balance | G93: =F99 -> 0 | H93: =G99 -> 0 | I93: 0 | J93: 40.5756 | K93: 209.370096 | L93: 167.4960768 | M93: 125.6220576 | N93: 83.7480384 | O93: 41.8740192 | P93: 0 | Q93: 0 | R93: 0 | S93: 0 | T93: 0 | U93: 0 | V93: 0 | W93: 0 | X93: 0 | Y93: 0 | Z93: 0 | AA93: 0 | AB93: 0 | AC93: 0 | AD93: 0 | AE93: 0 | AF93: 0 | AG93: 0 | AH93: 0 | AI93: 0 | AJ93: 0 | AK93: 0 | AL93: 0 | AM93: 0 | AN93: 0 | AO93: 0 | AP93: 0 | AQ93: 0 | AR93: 0 | AS93: 0 | AT93: 0 | AU93: 0 | AV93: 0 | AW93: 0 | AX93: 0 | AY93: 0 | AZ93: 0 | BA93: 0 | BB93: 0 | BC93: 0 | BD93: 0
C94: 198.1962 | D94: Loan drawdowns (mid-period) | G94: =G89 -> 0 | H94: =H89 -> 0 | I94: 39.015 | J94: 159.1812 | K94: 0 | L94: 0 | M94: 0 | N94: 0 | O94: 0 | P94: 0 | Q94: 0 | R94: 0 | S94: 0 | T94: 0 | U94: 0 | V94: 0 | W94: 0 | X94: 0 | Y94: 0 | Z94: 0 | AA94: 0 | AB94: 0 | AC94: 0 | AD94: 0 | AE94: 0 | AF94: 0 | AG94: 0 | AH94: 0 | AI94: 0 | AJ94: 0 | AK94: 0 | AL94: 0 | AM94: 0 | AN94: 0 | AO94: 0 | AP94: 0 | AQ94: 0 | AR94: 0 | AS94: 0 | AT94: 0 | AU94: 0 | AV94: 0 | AW94: 0 | AX94: 0 | AY94: 0 | AZ94: 0 | BA94: 0 | BB94: 0 | BC94: 0 | BD94: 0
C95: 61.42271904 | D95: Interest charged | G95: =(G93 + (G94 / 2)) * (Inputs!$E$198 + Inputs!$E$202) -> 0 | H95: =(H93 + (H94 / 2)) * (Inputs!$E$198 + Inputs!$E$202) -> 0 | I95: =(I93 + (I94 / 2)) * (Inputs!$E$198 + Inputs!$E$202) -> 1.5606 | J95: =(J93 + (J94 / 2)) * (Inputs!$E$198 + Inputs!$E$202) -> 9.613296 | K95: =(K93 + (K94 / 2)) * (Inputs!$E$198 + Inputs!$E$202) -> 16.74960768 | L95: =(L93 + (L94 / 2)) * (Inputs!$E$198 + Inputs!$E$202) -> 13.39968614 | M95: =(M93 + (M94 / 2)) * (Inputs!$E$198 + Inputs!$E$202) -> 10.04976461 | N95: =(N93 + (N94 / 2)) * (Inputs!$E$198 + Inputs!$E$202) -> 6.699843072 | O95: =(O93 + (O94 / 2)) * (Inputs!$E$198 + Inputs!$E$202) -> 3.349921536 | P95: =(P93 + (P94 / 2)) * (Inputs!$E$198 + Inputs!$E$202) -> 0 | Q95: =(Q93 + (Q94 / 2)) * (Inputs!$E$198 + Inputs!$E$202) -> 0 | R95: =(R93 + (R94 / 2)) * (Inputs!$E$198 + Inputs!$E$202) -> 0 | S95: =(S93 + (S94 / 2)) * (Inputs!$E$198 + Inputs!$E$202) -> 0 | T95: =(T93 + (T94 / 2)) * (Inputs!$E$198 + Inputs!$E$202) -> 0 | U95: =(U93 + (U94 / 2)) * (Inputs!$E$198 + Inputs!$E$202) -> 0 | V95: =(V93 + (V94 / 2)) * (Inputs!$E$198 + Inputs!$E$202) -> 0 | W95: =(W93 + (W94 / 2)) * (Inputs!$E$198 + Inputs!$E$202) -> 0 | X95: =(X93 + (X94 / 2)) * (Inputs!$E$198 + Inputs!$E$202) -> 0 | Y95: =(Y93 + (Y94 / 2)) * (Inputs!$E$198 + Inputs!$E$202) -> 0 | Z95: =(Z93 + (Z94 / 2)) * (Inputs!$E$198 + Inputs!$E$202) -> 0 | AA95: =(AA93 + (AA94 / 2)) * (Inputs!$E$198 + Inputs!$E$202) -> 0 | AB95: =(AB93 + (AB94 / 2)) * (Inputs!$E$198 + Inputs!$E$202) -> 0 | AC95: =(AC93 + (AC94 / 2)) * (Inputs!$E$198 + Inputs!$E$202) -> 0 | AD95: =(AD93 + (AD94 / 2)) * (Inputs!$E$198 + Inputs!$E$202) -> 0 | AE95: =(AE93 + (AE94 / 2)) * (Inputs!$E$198 + Inputs!$E$202) -> 0 | AF95: =(AF93 + (AF94 / 2)) * (Inputs!$E$198 + Inputs!$E$202) -> 0 | AG95: =(AG93 + (AG94 / 2)) * (Inputs!$E$198 + Inputs!$E$202) -> 0 | AH95: =(AH93 + (AH94 / 2)) * (Inputs!$E$198 + Inputs!$E$202) -> 0 | AI95: =(AI93 + (AI94 / 2)) * (Inputs!$E$198 + Inputs!$E$202) -> 0 | AJ95: =(AJ93 + (AJ94 / 2)) * (Inputs!$E$198 + Inputs!$E$202) -> 0 | AK95: =(AK93 + (AK94 / 2)) * (Inputs!$E$198 + Inputs!$E$202) -> 0 | AL95: =(AL93 + (AL94 / 2)) * (Inputs!$E$198 + Inputs!$E$202) -> 0 | AM95: =(AM93 + (AM94 / 2)) * (Inputs!$E$198 + Inputs!$E$202) -> 0 | AN95: =(AN93 + (AN94 / 2)) * (Inputs!$E$198 + Inputs!$E$202) -> 0 | AO95: =(AO93 + (AO94 / 2)) * (Inputs!$E$198 + Inputs!$E$202) -> 0 | AP95: =(AP93 + (AP94 / 2)) * (Inputs!$E$198 + Inputs!$E$202) -> 0 | AQ95: =(AQ93 + (AQ94 / 2)) * (Inputs!$E$198 + Inputs!$E$202) -> 0 | AR95: =(AR93 + (AR94 / 2)) * (Inputs!$E$198 + Inputs!$E$202) -> 0 | AS95: =(AS93 + (AS94 / 2)) * (Inputs!$E$198 + Inputs!$E$202) -> 0 | AT95: =(AT93 + (AT94 / 2)) * (Inputs!$E$198 + Inputs!$E$202) -> 0 | AU95: =(AU93 + (AU94 / 2)) * (Inputs!$E$198 + Inputs!$E$202) -> 0 | AV95: =(AV93 + (AV94 / 2)) * (Inputs!$E$198 + Inputs!$E$202) -> 0 | AW95: =(AW93 + (AW94 / 2)) * (Inputs!$E$198 + Inputs!$E$202) -> 0 | AX95: =(AX93 + (AX94 / 2)) * (Inputs!$E$198 + Inputs!$E$202) -> 0 | AY95: =(AY93 + (AY94 / 2)) * (Inputs!$E$198 + Inputs!$E$202) -> 0 | AZ95: =(AZ93 + (AZ94 / 2)) * (Inputs!$E$198 + Inputs!$E$202) -> 0 | BA95: =(BA93 + (BA94 / 2)) * (Inputs!$E$198 + Inputs!$E$202) -> 0 | BB95: =(BB93 + (BB94 / 2)) * (Inputs!$E$198 + Inputs!$E$202) -> 0 | BC95: =(BC93 + (BC94 / 2)) * (Inputs!$E$198 + Inputs!$E$202) -> 0 | BD95: =(BD93 + (BD94 / 2)) * (Inputs!$E$198 + Inputs!$E$202) -> 0
C96: 50.24882304 | D96: Interest payments | G96: =G95 * G90 -> 0 | H96: =H95 * H90 -> 0 | I96: 0 | J96: 0 | K96: 16.74960768 | L96: 13.39968614 | M96: 10.04976461 | N96: 6.699843072 | O96: 3.349921536 | P96: 0 | Q96: 0 | R96: 0 | S96: 0 | T96: 0 | U96: 0 | V96: 0 | W96: 0 | X96: 0 | Y96: 0 | Z96: 0 | AA96: 0 | AB96: 0 | AC96: 0 | AD96: 0 | AE96: 0 | AF96: 0 | AG96: 0 | AH96: 0 | AI96: 0 | AJ96: 0 | AK96: 0 | AL96: 0 | AM96: 0 | AN96: 0 | AO96: 0 | AP96: 0 | AQ96: 0 | AR96: 0 | AS96: 0 | AT96: 0 | AU96: 0 | AV96: 0 | AW96: 0 | AX96: 0 | AY96: 0 | AZ96: 0 | BA96: 0 | BB96: 0 | BC96: 0 | BD96: 0
D97: Loan balance to be paid | G97: =G93 + G94 + G95 - G96 -> 0 | H97: =H93 + H94 + H95 - H96 -> 0 | I97: 40.5756 | J97: 209.370096 | K97: 209.370096 | L97: 167.4960768 | M97: 125.6220576 | N97: 83.7480384 | O97: 41.8740192 | P97: 0 | Q97: 0 | R97: 0 | S97: 0 | T97: 0 | U97: 0 | V97: 0 | W97: 0 | X97: 0 | Y97: 0 | Z97: 0 | AA97: 0 | AB97: 0 | AC97: 0 | AD97: 0 | AE97: 0 | AF97: 0 | AG97: 0 | AH97: 0 | AI97: 0 | AJ97: 0 | AK97: 0 | AL97: 0 | AM97: 0 | AN97: 0 | AO97: 0 | AP97: 0 | AQ97: 0 | AR97: 0 | AS97: 0 | AT97: 0 | AU97: 0 | AV97: 0 | AW97: 0 | AX97: 0 | AY97: 0 | AZ97: 0 | BA97: 0 | BB97: 0 | BC97: 0 | BD97: 0
C98: 209.370096 | D98: Principal repayments | G98: =G97 * G91 -> 0 | H98: =H97 * H91 -> 0 | I98: 0 | J98: 0 | K98: 41.8740192 | L98: 41.8740192 | M98: 41.8740192 | N98: 41.8740192 | O98: 41.8740192 | P98: 0 | Q98: 0 | R98: 0 | S98: 0 | T98: 0 | U98: 0 | V98: 0 | W98: 0 | X98: 0 | Y98: 0 | Z98: 0 | AA98: 0 | AB98: 0 | AC98: 0 | AD98: 0 | AE98: 0 | AF98: 0 | AG98: 0 | AH98: 0 | AI98: 0 | AJ98: 0 | AK98: 0 | AL98: 0 | AM98: 0 | AN98: 0 | AO98: 0 | AP98: 0 | AQ98: 0 | AR98: 0 | AS98: 0 | AT98: 0 | AU98: 0 | AV98: 0 | AW98: 0 | AX98: 0 | AY98: 0 | AZ98: 0 | BA98: 0 | BB98: 0 | BC98: 0 | BD98: 0
D99: Loan closing balance | G99: =G97 - G98 -> 0 | H99: =H97 - H98 -> 0 | I99: 40.5756 | J99: 209.370096 | K99: 167.4960768 | L99: 125.6220576 | M99: 83.7480384 | N99: 41.8740192 | O99: 0 | P99: 0 | Q99: 0 | R99: 0 | S99: 0 | T99: 0 | U99: 0 | V99: 0 | W99: 0 | X99: 0 | Y99: 0 | Z99: 0 | AA99: 0 | AB99: 0 | AC99: 0 | AD99: 0 | AE99: 0 | AF99: 0 | AG99: 0 | AH99: 0 | AI99: 0 | AJ99: 0 | AK99: 0 | AL99: 0 | AM99: 0 | AN99: 0 | AO99: 0 | AP99: 0 | AQ99: 0 | AR99: 0 | AS99: 0 | AT99: 0 | AU99: 0 | AV99: 0 | AW99: 0 | AX99: 0 | AY99: 0 | AZ99: 0 | BA99: 0 | BB99: 0 | BC99: 0 | BD99: 0
C101: =SUM(G101:BD101) -> 61.42271904 | D101: Lender net cash flow | E101: $mm nominal | G101: =-G94 + G96 + G98 -> 0 | H101: =-H94 + H96 + H98 -> 0 | I101: -39.015 | J101: -159.1812 | K101: 58.62362688 | L101: 55.27370534 | M101: 51.92378381 | N101: 48.57386227 | O101: 45.22394074 | P101: 0 | Q101: 0 | R101: 0 | S101: 0 | T101: 0 | U101: 0 | V101: 0 | W101: 0 | X101: 0 | Y101: 0 | Z101: 0 | AA101: 0 | AB101: 0 | AC101: 0 | AD101: 0 | AE101: 0 | AF101: 0 | AG101: 0 | AH101: 0 | AI101: 0 | AJ101: 0 | AK101: 0 | AL101: 0 | AM101: 0 | AN101: 0 | AO101: 0 | AP101: 0 | AQ101: 0 | AR101: 0 | AS101: 0 | AT101: 0 | AU101: 0 | AV101: 0 | AW101: 0 | AX101: 0 | AY101: 0 | AZ101: 0 | BA101: 0 | BB101: 0 | BC101: 0 | BD101: 0
B103: Tax calculations
D105: ROYALTIES
D107: Royalty
C108: =SUM(G108:BD108) -> 17547.99533 | D108: Primary gross revenue | E108: $mm nominal | G108: =G47 -> 0 | H108: 0 | I108: 0 | J108: 0 | K108: 259.7837184 | L108: 618.2852498 | M108: 630.6509548 | N108: 643.2639739 | O108: 656.1292534 | P108: 669.2518384 | Q108: 682.6368752 | R108: 696.2896127 | S108: 710.215405 | T108: 724.4197131 | U108: 738.9081073 | V108: 753.6862695 | W108: 768.7599949 | X108: 784.1351947 | Y108: 799.8178986 | Z108: 815.8142566 | AA108: 832.1305417 | AB108: 848.7731526 | AC108: 865.7486156 | AD108: 883.0635879 | AE108: 900.7248597 | AF108: 918.7393569 | AG108: 937.114144 | AH108: 409.6527544 | AI108: 0 | AJ108: 0 | AK108: 0 | AL108: 0 | AM108: =AM47 -> 0 | AN108: 0 | AO108: 0 | AP108: 0 | AQ108: 0 | AR108: 0 | AS108: 0 | AT108: 0 | AU108: 0 | AV108: 0 | AW108: 0 | AX108: 0 | AY108: 0 | AZ108: 0 | BA108: 0 | BB108: 0 | BC108: 0 | BD108: 0
C109: =SUM(G109:BD109) -> 17497.37717 | D109: Net revenue (net backed) | E109: $mm nominal | G109: =G51*(1-Inputs!$E$228) -> 0 | H109: =H51*(1-Inputs!$E$228) -> 0 | I109: =I51*(1-Inputs!$E$228) -> 0 | J109: =J51*(1-Inputs!$E$228) -> 0 | K109: =K51*(1-Inputs!$E$228) -> 259.2966239 | L109: =L51*(1-Inputs!$E$228) -> 617.1259649 | M109: =M51*(1-Inputs!$E$228) -> 629.4684842 | N109: =N51*(1-Inputs!$E$228) -> 642.0578539 | O109: =O51*(1-Inputs!$E$228) -> 654.899011 | P109: =P51*(1-Inputs!$E$228) -> 667.9969912 | Q109: =Q51*(1-Inputs!$E$228) -> 681.3569311 | R109: =R51*(1-Inputs!$E$228) -> 694.9840697 | S109: =S51*(1-Inputs!$E$228) -> 708.8837511 | T109: =T51*(1-Inputs!$E$228) -> 723.0614261 | U109: =U51*(1-Inputs!$E$228) -> 737.5226546 | V109: =V51*(1-Inputs!$E$228) -> 752.2731077 | W109: =W51*(1-Inputs!$E$228) -> 767.3185699 | X109: =X51*(1-Inputs!$E$228) -> 782.6649413 | Y109: =Y51*(1-Inputs!$E$228) -> 798.3182401 | Z109: =Z51*(1-Inputs!$E$228) -> 814.2846049 | AA109: =AA51*(1-Inputs!$E$228) -> 830.570297 | AB109: =AB51*(1-Inputs!$E$228) -> 847.1817029 | AC109: =AC51*(1-Inputs!$E$228) -> 864.125337 | AD109: =AD51*(1-Inputs!$E$228) -> 877.5444405 | AE109: =AE51*(1-Inputs!$E$228) -> 895.0953293 | AF109: =AF51*(1-Inputs!$E$228) -> 912.9972359 | AG109: =AG51*(1-Inputs!$E$228) -> 931.2571806 | AH109: =AH51*(1-Inputs!$E$228) -> 407.0924247 | AI109: =AI51*(1-Inputs!$E$228) -> 0 | AJ109: =AJ51*(1-Inputs!$E$228) -> 0 | AK109: =AK51*(1-Inputs!$E$228) -> 0 | AL109: =AL51*(1-Inputs!$E$228) -> 0 | AM109: =AM51*(1-Inputs!$E$228) -> 0 | AN109: =AN51*(1-Inputs!$E$228) -> 0 | AO109: =AO51*(1-Inputs!$E$228) -> 0 | AP109: =AP51*(1-Inputs!$E$228) -> 0 | AQ109: =AQ51*(1-Inputs!$E$228) -> 0 | AR109: =AR51*(1-Inputs!$E$228) -> 0 | AS109: =AS51*(1-Inputs!$E$228) -> 0 | AT109: =AT51*(1-Inputs!$E$228) -> 0 | AU109: =AU51*(1-Inputs!$E$228) -> 0 | AV109: =AV51*(1-Inputs!$E$228) -> 0 | AW109: =AW51*(1-Inputs!$E$228) -> 0 | AX109: =AX51*(1-Inputs!$E$228) -> 0 | AY109: =AY51*(1-Inputs!$E$228) -> 0 | AZ109: =AZ51*(1-Inputs!$E$228) -> 0 | BA109: =BA51*(1-Inputs!$E$228) -> 0 | BB109: =BB51*(1-Inputs!$E$228) -> 0 | BC109: =BC51*(1-Inputs!$E$228) -> 0 | BD109: =BD51*(1-Inputs!$E$228) -> 0
C110: =SUM(G110:BD110) -> 17547.99533 | D110: Royalty base | E110: $mm nominal | G110: =IF(G$33=0,0,IF(Inputs!$E$30="gross",G108,G109)) -> 0 | H110: =IF(H$33=0,0,IF(Inputs!$E$30="gross",H108,H109)) -> 0 | I110: =IF(I$33=0,0,IF(Inputs!$E$30="gross",I108,I109)) -> 0 | J110: =IF(J$33=0,0,IF(Inputs!$E$30="gross",J108,J109)) -> 0 | K110: =IF(K$33=0,0,IF(Inputs!$E$30="gross",K108,K109)) -> 259.7837184 | L110: =IF(L$33=0,0,IF(Inputs!$E$30="gross",L108,L109)) -> 618.2852498 | M110: =IF(M$33=0,0,IF(Inputs!$E$30="gross",M108,M109)) -> 630.6509548 | N110: =IF(N$33=0,0,IF(Inputs!$E$30="gross",N108,N109)) -> 643.2639739 | O110: =IF(O$33=0,0,IF(Inputs!$E$30="gross",O108,O109)) -> 656.1292534 | P110: =IF(P$33=0,0,IF(Inputs!$E$30="gross",P108,P109)) -> 669.2518384 | Q110: =IF(Q$33=0,0,IF(Inputs!$E$30="gross",Q108,Q109)) -> 682.6368752 | R110: =IF(R$33=0,0,IF(Inputs!$E$30="gross",R108,R109)) -> 696.2896127 | S110: =IF(S$33=0,0,IF(Inputs!$E$30="gross",S108,S109)) -> 710.215405 | T110: =IF(T$33=0,0,IF(Inputs!$E$30="gross",T108,T109)) -> 724.4197131 | U110: =IF(U$33=0,0,IF(Inputs!$E$30="gross",U108,U109)) -> 738.9081073 | V110: =IF(V$33=0,0,IF(Inputs!$E$30="gross",V108,V109)) -> 753.6862695 | W110: =IF(W$33=0,0,IF(Inputs!$E$30="gross",W108,W109)) -> 768.7599949 | X110: =IF(X$33=0,0,IF(Inputs!$E$30="gross",X108,X109)) -> 784.1351947 | Y110: =IF(Y$33=0,0,IF(Inputs!$E$30="gross",Y108,Y109)) -> 799.8178986 | Z110: =IF(Z$33=0,0,IF(Inputs!$E$30="gross",Z108,Z109)) -> 815.8142566 | AA110: =IF(AA$33=0,0,IF(Inputs!$E$30="gross",AA108,AA109)) -> 832.1305417 | AB110: =IF(AB$33=0,0,IF(Inputs!$E$30="gross",AB108,AB109)) -> 848.7731526 | AC110: =IF(AC$33=0,0,IF(Inputs!$E$30="gross",AC108,AC109)) -> 865.7486156 | AD110: =IF(AD$33=0,0,IF(Inputs!$E$30="gross",AD108,AD109)) -> 883.0635879 | AE110: =IF(AE$33=0,0,IF(Inputs!$E$30="gross",AE108,AE109)) -> 900.7248597 | AF110: =IF(AF$33=0,0,IF(Inputs!$E$30="gross",AF108,AF109)) -> 918.7393569 | AG110: =IF(AG$33=0,0,IF(Inputs!$E$30="gross",AG108,AG109)) -> 937.114144 | AH110: =IF(AH$33=0,0,IF(Inputs!$E$30="gross",AH108,AH109)) -> 409.6527544 | AI110: =IF(AI$33=0,0,IF(Inputs!$E$30="gross",AI108,AI109)) -> 0 | AJ110: =IF(AJ$33=0,0,IF(Inputs!$E$30="gross",AJ108,AJ109)) -> 0 | AK110: =IF(AK$33=0,0,IF(Inputs!$E$30="gross",AK108,AK109)) -> 0 | AL110: =IF(AL$33=0,0,IF(Inputs!$E$30="gross",AL108,AL109)) -> 0 | AM110: =IF(AM$33=0,0,IF(Inputs!$E$30="gross",AM108,AM109)) -> 0 | AN110: =IF(AN$33=0,0,IF(Inputs!$E$30="gross",AN108,AN109)) -> 0 | AO110: =IF(AO$33=0,0,IF(Inputs!$E$30="gross",AO108,AO109)) -> 0 | AP110: =IF(AP$33=0,0,IF(Inputs!$E$30="gross",AP108,AP109)) -> 0 | AQ110: =IF(AQ$33=0,0,IF(Inputs!$E$30="gross",AQ108,AQ109)) -> 0 | AR110: =IF(AR$33=0,0,IF(Inputs!$E$30="gross",AR108,AR109)) -> 0 | AS110: =IF(AS$33=0,0,IF(Inputs!$E$30="gross",AS108,AS109)) -> 0 | AT110: =IF(AT$33=0,0,IF(Inputs!$E$30="gross",AT108,AT109)) -> 0 | AU110: =IF(AU$33=0,0,IF(Inputs!$E$30="gross",AU108,AU109)) -> 0 | AV110: =IF(AV$33=0,0,IF(Inputs!$E$30="gross",AV108,AV109)) -> 0 | AW110: =IF(AW$33=0,0,IF(Inputs!$E$30="gross",AW108,AW109)) -> 0 | AX110: =IF(AX$33=0,0,IF(Inputs!$E$30="gross",AX108,AX109)) -> 0 | AY110: =IF(AY$33=0,0,IF(Inputs!$E$30="gross",AY108,AY109)) -> 0 | AZ110: =IF(AZ$33=0,0,IF(Inputs!$E$30="gross",AZ108,AZ109)) -> 0 | BA110: =IF(BA$33=0,0,IF(Inputs!$E$30="gross",BA108,BA109)) -> 0 | BB110: =IF(BB$33=0,0,IF(Inputs!$E$30="gross",BB108,BB109)) -> 0 | BC110: =IF(BC$33=0,0,IF(Inputs!$E$30="gross",BC108,BC109)) -> 0 | BD110: =IF(BD$33=0,0,IF(Inputs!$E$30="gross",BD108,BD109)) -> 0
D111: Rate | E111: % | G111: =CHOOSE(Inputs!$D$6,Inputs!$E$26,Inputs!$E$27,Inputs!$E$28,Inputs!$E$29)+Inputs!$E$36+Inputs!$E$37 -> 0.07 | H111: =CHOOSE(Inputs!$D$6,Inputs!$E$26,Inputs!$E$27,Inputs!$E$28,Inputs!$E$29)+Inputs!$E$36+Inputs!$E$37 -> 0.07 | I111: =CHOOSE(Inputs!$D$6,Inputs!$E$26,Inputs!$E$27,Inputs!$E$28,Inputs!$E$29)+Inputs!$E$36+Inputs!$E$37 -> 0.07 | J111: =CHOOSE(Inputs!$D$6,Inputs!$E$26,Inputs!$E$27,Inputs!$E$28,Inputs!$E$29)+Inputs!$E$36+Inputs!$E$37 -> 0.07 | K111: =CHOOSE(Inputs!$D$6,Inputs!$E$26,Inputs!$E$27,Inputs!$E$28,Inputs!$E$29)+Inputs!$E$36+Inputs!$E$37 -> 0.07 | L111: =CHOOSE(Inputs!$D$6,Inputs!$E$26,Inputs!$E$27,Inputs!$E$28,Inputs!$E$29)+Inputs!$E$36+Inputs!$E$37 -> 0.07 | M111: =CHOOSE(Inputs!$D$6,Inputs!$E$26,Inputs!$E$27,Inputs!$E$28,Inputs!$E$29)+Inputs!$E$36+Inputs!$E$37 -> 0.07 | N111: =CHOOSE(Inputs!$D$6,Inputs!$E$26,Inputs!$E$27,Inputs!$E$28,Inputs!$E$29)+Inputs!$E$36+Inputs!$E$37 -> 0.07 | O111: =CHOOSE(Inputs!$D$6,Inputs!$E$26,Inputs!$E$27,Inputs!$E$28,Inputs!$E$29)+Inputs!$E$36+Inputs!$E$37 -> 0.07 | P111: =CHOOSE(Inputs!$D$6,Inputs!$E$26,Inputs!$E$27,Inputs!$E$28,Inputs!$E$29)+Inputs!$E$36+Inputs!$E$37 -> 0.07 | Q111: =CHOOSE(Inputs!$D$6,Inputs!$E$26,Inputs!$E$27,Inputs!$E$28,Inputs!$E$29)+Inputs!$E$36+Inputs!$E$37 -> 0.07 | R111: =CHOOSE(Inputs!$D$6,Inputs!$E$26,Inputs!$E$27,Inputs!$E$28,Inputs!$E$29)+Inputs!$E$36+Inputs!$E$37 -> 0.07 | S111: =CHOOSE(Inputs!$D$6,Inputs!$E$26,Inputs!$E$27,Inputs!$E$28,Inputs!$E$29)+Inputs!$E$36+Inputs!$E$37 -> 0.07 | T111: =CHOOSE(Inputs!$D$6,Inputs!$E$26,Inputs!$E$27,Inputs!$E$28,Inputs!$E$29)+Inputs!$E$36+Inputs!$E$37 -> 0.07 | U111: =CHOOSE(Inputs!$D$6,Inputs!$E$26,Inputs!$E$27,Inputs!$E$28,Inputs!$E$29)+Inputs!$E$36+Inputs!$E$37 -> 0.07 | V111: =CHOOSE(Inputs!$D$6,Inputs!$E$26,Inputs!$E$27,Inputs!$E$28,Inputs!$E$29)+Inputs!$E$36+Inputs!$E$37 -> 0.07 | W111: =CHOOSE(Inputs!$D$6,Inputs!$E$26,Inputs!$E$27,Inputs!$E$28,Inputs!$E$29)+Inputs!$E$36+Inputs!$E$37 -> 0.07 | X111: =CHOOSE(Inputs!$D$6,Inputs!$E$26,Inputs!$E$27,Inputs!$E$28,Inputs!$E$29)+Inputs!$E$36+Inputs!$E$37 -> 0.07 | Y111: =CHOOSE(Inputs!$D$6,Inputs!$E$26,Inputs!$E$27,Inputs!$E$28,Inputs!$E$29)+Inputs!$E$36+Inputs!$E$37 -> 0.07 | Z111: =CHOOSE(Inputs!$D$6,Inputs!$E$26,Inputs!$E$27,Inputs!$E$28,Inputs!$E$29)+Inputs!$E$36+Inputs!$E$37 -> 0.07 | AA111: =CHOOSE(Inputs!$D$6,Inputs!$E$26,Inputs!$E$27,Inputs!$E$28,Inputs!$E$29)+Inputs!$E$36+Inputs!$E$37 -> 0.07 | AB111: =CHOOSE(Inputs!$D$6,Inputs!$E$26,Inputs!$E$27,Inputs!$E$28,Inputs!$E$29)+Inputs!$E$36+Inputs!$E$37 -> 0.07 | AC111: =CHOOSE(Inputs!$D$6,Inputs!$E$26,Inputs!$E$27,Inputs!$E$28,Inputs!$E$29)+Inputs!$E$36+Inputs!$E$37 -> 0.07 | AD111: =CHOOSE(Inputs!$D$6,Inputs!$E$26,Inputs!$E$27,Inputs!$E$28,Inputs!$E$29)+Inputs!$E$36+Inputs!$E$37 -> 0.07 | AE111: =CHOOSE(Inputs!$D$6,Inputs!$E$26,Inputs!$E$27,Inputs!$E$28,Inputs!$E$29)+Inputs!$E$36+Inputs!$E$37 -> 0.07 | AF111: =CHOOSE(Inputs!$D$6,Inputs!$E$26,Inputs!$E$27,Inputs!$E$28,Inputs!$E$29)+Inputs!$E$36+Inputs!$E$37 -> 0.07 | AG111: =CHOOSE(Inputs!$D$6,Inputs!$E$26,Inputs!$E$27,Inputs!$E$28,Inputs!$E$29)+Inputs!$E$36+Inputs!$E$37 -> 0.07 | AH111: =CHOOSE(Inputs!$D$6,Inputs!$E$26,Inputs!$E$27,Inputs!$E$28,Inputs!$E$29)+Inputs!$E$36+Inputs!$E$37 -> 0.07 | AI111: =CHOOSE(Inputs!$D$6,Inputs!$E$26,Inputs!$E$27,Inputs!$E$28,Inputs!$E$29)+Inputs!$E$36+Inputs!$E$37 -> 0.07 | AJ111: =CHOOSE(Inputs!$D$6,Inputs!$E$26,Inputs!$E$27,Inputs!$E$28,Inputs!$E$29)+Inputs!$E$36+Inputs!$E$37 -> 0.07 | AK111: =CHOOSE(Inputs!$D$6,Inputs!$E$26,Inputs!$E$27,Inputs!$E$28,Inputs!$E$29)+Inputs!$E$36+Inputs!$E$37 -> 0.07 | AL111: =CHOOSE(Inputs!$D$6,Inputs!$E$26,Inputs!$E$27,Inputs!$E$28,Inputs!$E$29)+Inputs!$E$36+Inputs!$E$37 -> 0.07 | AM111: =CHOOSE(Inputs!$D$6,Inputs!$E$26,Inputs!$E$27,Inputs!$E$28,Inputs!$E$29)+Inputs!$E$36+Inputs!$E$37 -> 0.07 | AN111: =CHOOSE(Inputs!$D$6,Inputs!$E$26,Inputs!$E$27,Inputs!$E$28,Inputs!$E$29)+Inputs!$E$36+Inputs!$E$37 -> 0.07 | AO111: =CHOOSE(Inputs!$D$6,Inputs!$E$26,Inputs!$E$27,Inputs!$E$28,Inputs!$E$29)+Inputs!$E$36+Inputs!$E$37 -> 0.07 | AP111: =CHOOSE(Inputs!$D$6,Inputs!$E$26,Inputs!$E$27,Inputs!$E$28,Inputs!$E$29)+Inputs!$E$36+Inputs!$E$37 -> 0.07 | AQ111: =CHOOSE(Inputs!$D$6,Inputs!$E$26,Inputs!$E$27,Inputs!$E$28,Inputs!$E$29)+Inputs!$E$36+Inputs!$E$37 -> 0.07 | AR111: =CHOOSE(Inputs!$D$6,Inputs!$E$26,Inputs!$E$27,Inputs!$E$28,Inputs!$E$29)+Inputs!$E$36+Inputs!$E$37 -> 0.07 | AS111: =CHOOSE(Inputs!$D$6,Inputs!$E$26,Inputs!$E$27,Inputs!$E$28,Inputs!$E$29)+Inputs!$E$36+Inputs!$E$37 -> 0.07 | AT111: =CHOOSE(Inputs!$D$6,Inputs!$E$26,Inputs!$E$27,Inputs!$E$28,Inputs!$E$29)+Inputs!$E$36+Inputs!$E$37 -> 0.07 | AU111: =CHOOSE(Inputs!$D$6,Inputs!$E$26,Inputs!$E$27,Inputs!$E$28,Inputs!$E$29)+Inputs!$E$36+Inputs!$E$37 -> 0.07 | AV111: =CHOOSE(Inputs!$D$6,Inputs!$E$26,Inputs!$E$27,Inputs!$E$28,Inputs!$E$29)+Inputs!$E$36+Inputs!$E$37 -> 0.07 | AW111: =CHOOSE(Inputs!$D$6,Inputs!$E$26,Inputs!$E$27,Inputs!$E$28,Inputs!$E$29)+Inputs!$E$36+Inputs!$E$37 -> 0.07 | AX111: =CHOOSE(Inputs!$D$6,Inputs!$E$26,Inputs!$E$27,Inputs!$E$28,Inputs!$E$29)+Inputs!$E$36+Inputs!$E$37 -> 0.07 | AY111: =CHOOSE(Inputs!$D$6,Inputs!$E$26,Inputs!$E$27,Inputs!$E$28,Inputs!$E$29)+Inputs!$E$36+Inputs!$E$37 -> 0.07 | AZ111: =CHOOSE(Inputs!$D$6,Inputs!$E$26,Inputs!$E$27,Inputs!$E$28,Inputs!$E$29)+Inputs!$E$36+Inputs!$E$37 -> 0.07 | BA111: =CHOOSE(Inputs!$D$6,Inputs!$E$26,Inputs!$E$27,Inputs!$E$28,Inputs!$E$29)+Inputs!$E$36+Inputs!$E$37 -> 0.07 | BB111: =CHOOSE(Inputs!$D$6,Inputs!$E$26,Inputs!$E$27,Inputs!$E$28,Inputs!$E$29)+Inputs!$E$36+Inputs!$E$37 -> 0.07 | BC111: =CHOOSE(Inputs!$D$6,Inputs!$E$26,Inputs!$E$27,Inputs!$E$28,Inputs!$E$29)+Inputs!$E$36+Inputs!$E$37 -> 0.07 | BD111: =CHOOSE(Inputs!$D$6,Inputs!$E$26,Inputs!$E$27,Inputs!$E$28,Inputs!$E$29)+Inputs!$E$36+Inputs!$E$37 -> 0.07
C112: =SUM(G112:BD112) -> 1228.359673 | D112: Royalty payable (primary mineral) | E112: $mm nominal | G112: =G110*G111 -> 0 | H112: =H110*H111 -> 0 | I112: =I110*I111 -> 0 | J112: =J110*J111 -> 0 | K112: 18.18486029 | L112: 43.27996749 | M112: 44.14556684 | N112: 45.02847817 | O112: 45.92904774 | P112: 46.84762869 | Q112: 47.78458126 | R112: 48.74027289 | S112: 49.71507835 | T112: 50.70937991 | U112: 51.72356751 | V112: 52.75803886 | W112: 53.81319964 | X112: 54.88946363 | Y112: 55.9872529 | Z112: 57.10699796 | AA112: 58.24913792 | AB112: 59.41412068 | AC112: 60.60240309 | AD112: 61.81445116 | AE112: 63.05074018 | AF112: 64.31175498 | AG112: 65.59799008 | AH112: 28.67569281 | AI112: 0 | AJ112: 0 | AK112: 0 | AL112: 0 | AM112: =AM110*AM111 -> 0 | AN112: 0 | AO112: 0 | AP112: 0 | AQ112: 0 | AR112: 0 | AS112: 0 | AT112: 0 | AU112: 0 | AV112: 0 | AW112: 0 | AX112: 0 | AY112: 0 | AZ112: 0 | BA112: 0 | BB112: 0 | BC112: 0 | BD112: 0
C115: =SUM(G115:BD115) -> 0 | D115: Co-product gross revenue | E115: $mm nominal | G115: =G48 -> 0 | H115: 0 | I115: 0 | J115: 0 | K115: 0 | L115: 0 | M115: 0 | N115: 0 | O115: 0 | P115: 0 | Q115: 0 | R115: 0 | S115: 0 | T115: 0 | U115: 0 | V115: 0 | W115: 0 | X115: 0 | Y115: 0 | Z115: 0 | AA115: 0 | AB115: 0 | AC115: 0 | AD115: 0 | AE115: 0 | AF115: 0 | AG115: 0 | AH115: 0 | AI115: 0 | AJ115: 0 | AK115: 0 | AL115: 0 | AM115: =AM48 -> 0 | AN115: 0 | AO115: 0 | AP115: 0 | AQ115: 0 | AR115: 0 | AS115: 0 | AT115: 0 | AU115: 0 | AV115: 0 | AW115: 0 | AX115: 0 | AY115: 0 | AZ115: 0 | BA115: 0 | BB115: 0 | BC115: 0 | BD115: 0
C116: =SUM(G116:BD116) -> 0 | D116: Net revenue (net backed) | E116: $mm nominal | G116: =G50*Inputs!$E$228 -> 0 | H116: =H50*Inputs!$E$228 -> 0 | I116: =I50*Inputs!$E$228 -> 0 | J116: =J50*Inputs!$E$228 -> 0 | K116: =K50*Inputs!$E$228 -> 0 | L116: =L50*Inputs!$E$228 -> 0 | M116: =M50*Inputs!$E$228 -> 0 | N116: =N50*Inputs!$E$228 -> 0 | O116: =O50*Inputs!$E$228 -> 0 | P116: =P50*Inputs!$E$228 -> 0 | Q116: =Q50*Inputs!$E$228 -> 0 | R116: =R50*Inputs!$E$228 -> 0 | S116: =S50*Inputs!$E$228 -> 0 | T116: =T50*Inputs!$E$228 -> 0 | U116: =U50*Inputs!$E$228 -> 0 | V116: =V50*Inputs!$E$228 -> 0 | W116: =W50*Inputs!$E$228 -> 0 | X116: =X50*Inputs!$E$228 -> 0 | Y116: =Y50*Inputs!$E$228 -> 0 | Z116: =Z50*Inputs!$E$228 -> 0 | AA116: =AA50*Inputs!$E$228 -> 0 | AB116: =AB50*Inputs!$E$228 -> 0 | AC116: =AC50*Inputs!$E$228 -> 0 | AD116: =AD50*Inputs!$E$228 -> 0 | AE116: =AE50*Inputs!$E$228 -> 0 | AF116: =AF50*Inputs!$E$228 -> 0 | AG116: =AG50*Inputs!$E$228 -> 0 | AH116: =AH50*Inputs!$E$228 -> 0 | AI116: =AI50*Inputs!$E$228 -> 0 | AJ116: =AJ50*Inputs!$E$228 -> 0 | AK116: =AK50*Inputs!$E$228 -> 0 | AL116: =AL50*Inputs!$E$228 -> 0 | AM116: =AM50*Inputs!$E$228 -> 0 | AN116: =AN50*Inputs!$E$228 -> 0 | AO116: =AO50*Inputs!$E$228 -> 0 | AP116: =AP50*Inputs!$E$228 -> 0 | AQ116: =AQ50*Inputs!$E$228 -> 0 | AR116: =AR50*Inputs!$E$228 -> 0 | AS116: =AS50*Inputs!$E$228 -> 0 | AT116: =AT50*Inputs!$E$228 -> 0 | AU116: =AU50*Inputs!$E$228 -> 0 | AV116: =AV50*Inputs!$E$228 -> 0 | AW116: =AW50*Inputs!$E$228 -> 0 | AX116: =AX50*Inputs!$E$228 -> 0 | AY116: =AY50*Inputs!$E$228 -> 0 | AZ116: =AZ50*Inputs!$E$228 -> 0 | BA116: =BA50*Inputs!$E$228 -> 0 | BB116: =BB50*Inputs!$E$228 -> 0 | BC116: =BC50*Inputs!$E$228 -> 0 | BD116: =BD50*Inputs!$E$228 -> 0
C117: =SUM(G117:BD117) -> 0 | D117: Royalty base | E117: $mm nominal | G117: =IF(G$33=0,0,IF(Inputs!$E$30="gross",G115,G116)) -> 0 | H117: =IF(H$33=0,0,IF(Inputs!$E$30="gross",H115,H116)) -> 0 | I117: =IF(I$33=0,0,IF(Inputs!$E$30="gross",I115,I116)) -> 0 | J117: =IF(J$33=0,0,IF(Inputs!$E$30="gross",J115,J116)) -> 0 | K117: =IF(K$33=0,0,IF(Inputs!$E$30="gross",K115,K116)) -> 0 | L117: =IF(L$33=0,0,IF(Inputs!$E$30="gross",L115,L116)) -> 0 | M117: =IF(M$33=0,0,IF(Inputs!$E$30="gross",M115,M116)) -> 0 | N117: =IF(N$33=0,0,IF(Inputs!$E$30="gross",N115,N116)) -> 0 | O117: =IF(O$33=0,0,IF(Inputs!$E$30="gross",O115,O116)) -> 0 | P117: =IF(P$33=0,0,IF(Inputs!$E$30="gross",P115,P116)) -> 0 | Q117: =IF(Q$33=0,0,IF(Inputs!$E$30="gross",Q115,Q116)) -> 0 | R117: =IF(R$33=0,0,IF(Inputs!$E$30="gross",R115,R116)) -> 0 | S117: =IF(S$33=0,0,IF(Inputs!$E$30="gross",S115,S116)) -> 0 | T117: =IF(T$33=0,0,IF(Inputs!$E$30="gross",T115,T116)) -> 0 | U117: =IF(U$33=0,0,IF(Inputs!$E$30="gross",U115,U116)) -> 0 | V117: =IF(V$33=0,0,IF(Inputs!$E$30="gross",V115,V116)) -> 0 | W117: =IF(W$33=0,0,IF(Inputs!$E$30="gross",W115,W116)) -> 0 | X117: =IF(X$33=0,0,IF(Inputs!$E$30="gross",X115,X116)) -> 0 | Y117: =IF(Y$33=0,0,IF(Inputs!$E$30="gross",Y115,Y116)) -> 0 | Z117: =IF(Z$33=0,0,IF(Inputs!$E$30="gross",Z115,Z116)) -> 0 | AA117: =IF(AA$33=0,0,IF(Inputs!$E$30="gross",AA115,AA116)) -> 0 | AB117: =IF(AB$33=0,0,IF(Inputs!$E$30="gross",AB115,AB116)) -> 0 | AC117: =IF(AC$33=0,0,IF(Inputs!$E$30="gross",AC115,AC116)) -> 0 | AD117: =IF(AD$33=0,0,IF(Inputs!$E$30="gross",AD115,AD116)) -> 0 | AE117: =IF(AE$33=0,0,IF(Inputs!$E$30="gross",AE115,AE116)) -> 0 | AF117: =IF(AF$33=0,0,IF(Inputs!$E$30="gross",AF115,AF116)) -> 0 | AG117: =IF(AG$33=0,0,IF(Inputs!$E$30="gross",AG115,AG116)) -> 0 | AH117: =IF(AH$33=0,0,IF(Inputs!$E$30="gross",AH115,AH116)) -> 0 | AI117: =IF(AI$33=0,0,IF(Inputs!$E$30="gross",AI115,AI116)) -> 0 | AJ117: =IF(AJ$33=0,0,IF(Inputs!$E$30="gross",AJ115,AJ116)) -> 0 | AK117: =IF(AK$33=0,0,IF(Inputs!$E$30="gross",AK115,AK116)) -> 0 | AL117: =IF(AL$33=0,0,IF(Inputs!$E$30="gross",AL115,AL116)) -> 0 | AM117: =IF(AM$33=0,0,IF(Inputs!$E$30="gross",AM115,AM116)) -> 0 | AN117: =IF(AN$33=0,0,IF(Inputs!$E$30="gross",AN115,AN116)) -> 0 | AO117: =IF(AO$33=0,0,IF(Inputs!$E$30="gross",AO115,AO116)) -> 0 | AP117: =IF(AP$33=0,0,IF(Inputs!$E$30="gross",AP115,AP116)) -> 0 | AQ117: =IF(AQ$33=0,0,IF(Inputs!$E$30="gross",AQ115,AQ116)) -> 0 | AR117: =IF(AR$33=0,0,IF(Inputs!$E$30="gross",AR115,AR116)) -> 0 | AS117: =IF(AS$33=0,0,IF(Inputs!$E$30="gross",AS115,AS116)) -> 0 | AT117: =IF(AT$33=0,0,IF(Inputs!$E$30="gross",AT115,AT116)) -> 0 | AU117: =IF(AU$33=0,0,IF(Inputs!$E$30="gross",AU115,AU116)) -> 0 | AV117: =IF(AV$33=0,0,IF(Inputs!$E$30="gross",AV115,AV116)) -> 0 | AW117: =IF(AW$33=0,0,IF(Inputs!$E$30="gross",AW115,AW116)) -> 0 | AX117: =IF(AX$33=0,0,IF(Inputs!$E$30="gross",AX115,AX116)) -> 0 | AY117: =IF(AY$33=0,0,IF(Inputs!$E$30="gross",AY115,AY116)) -> 0 | AZ117: =IF(AZ$33=0,0,IF(Inputs!$E$30="gross",AZ115,AZ116)) -> 0 | BA117: =IF(BA$33=0,0,IF(Inputs!$E$30="gross",BA115,BA116)) -> 0 | BB117: =IF(BB$33=0,0,IF(Inputs!$E$30="gross",BB115,BB116)) -> 0 | BC117: =IF(BC$33=0,0,IF(Inputs!$E$30="gross",BC115,BC116)) -> 0 | BD117: =IF(BD$33=0,0,IF(Inputs!$E$30="gross",BD115,BD116)) -> 0
D118: Rate | E118: % | G118: =CHOOSE(Inputs!$D$8,Inputs!$E$26,Inputs!$E$27,Inputs!$E$28,Inputs!$E$29)+Inputs!$E$36+Inputs!$E$37 -> 0.07 | H118: =CHOOSE(Inputs!$D$8,Inputs!$E$26,Inputs!$E$27,Inputs!$E$28,Inputs!$E$29)+Inputs!$E$36+Inputs!$E$37 -> 0.07 | I118: =CHOOSE(Inputs!$D$8,Inputs!$E$26,Inputs!$E$27,Inputs!$E$28,Inputs!$E$29)+Inputs!$E$36+Inputs!$E$37 -> 0.07 | J118: =CHOOSE(Inputs!$D$8,Inputs!$E$26,Inputs!$E$27,Inputs!$E$28,Inputs!$E$29)+Inputs!$E$36+Inputs!$E$37 -> 0.07 | K118: =CHOOSE(Inputs!$D$8,Inputs!$E$26,Inputs!$E$27,Inputs!$E$28,Inputs!$E$29)+Inputs!$E$36+Inputs!$E$37 -> 0.07 | L118: =CHOOSE(Inputs!$D$8,Inputs!$E$26,Inputs!$E$27,Inputs!$E$28,Inputs!$E$29)+Inputs!$E$36+Inputs!$E$37 -> 0.07 | M118: =CHOOSE(Inputs!$D$8,Inputs!$E$26,Inputs!$E$27,Inputs!$E$28,Inputs!$E$29)+Inputs!$E$36+Inputs!$E$37 -> 0.07 | N118: =CHOOSE(Inputs!$D$8,Inputs!$E$26,Inputs!$E$27,Inputs!$E$28,Inputs!$E$29)+Inputs!$E$36+Inputs!$E$37 -> 0.07 | O118: =CHOOSE(Inputs!$D$8,Inputs!$E$26,Inputs!$E$27,Inputs!$E$28,Inputs!$E$29)+Inputs!$E$36+Inputs!$E$37 -> 0.07 | P118: =CHOOSE(Inputs!$D$8,Inputs!$E$26,Inputs!$E$27,Inputs!$E$28,Inputs!$E$29)+Inputs!$E$36+Inputs!$E$37 -> 0.07 | Q118: =CHOOSE(Inputs!$D$8,Inputs!$E$26,Inputs!$E$27,Inputs!$E$28,Inputs!$E$29)+Inputs!$E$36+Inputs!$E$37 -> 0.07 | R118: =CHOOSE(Inputs!$D$8,Inputs!$E$26,Inputs!$E$27,Inputs!$E$28,Inputs!$E$29)+Inputs!$E$36+Inputs!$E$37 -> 0.07 | S118: =CHOOSE(Inputs!$D$8,Inputs!$E$26,Inputs!$E$27,Inputs!$E$28,Inputs!$E$29)+Inputs!$E$36+Inputs!$E$37 -> 0.07 | T118: =CHOOSE(Inputs!$D$8,Inputs!$E$26,Inputs!$E$27,Inputs!$E$28,Inputs!$E$29)+Inputs!$E$36+Inputs!$E$37 -> 0.07 | U118: =CHOOSE(Inputs!$D$8,Inputs!$E$26,Inputs!$E$27,Inputs!$E$28,Inputs!$E$29)+Inputs!$E$36+Inputs!$E$37 -> 0.07 | V118: =CHOOSE(Inputs!$D$8,Inputs!$E$26,Inputs!$E$27,Inputs!$E$28,Inputs!$E$29)+Inputs!$E$36+Inputs!$E$37 -> 0.07 | W118: =CHOOSE(Inputs!$D$8,Inputs!$E$26,Inputs!$E$27,Inputs!$E$28,Inputs!$E$29)+Inputs!$E$36+Inputs!$E$37 -> 0.07 | X118: =CHOOSE(Inputs!$D$8,Inputs!$E$26,Inputs!$E$27,Inputs!$E$28,Inputs!$E$29)+Inputs!$E$36+Inputs!$E$37 -> 0.07 | Y118: =CHOOSE(Inputs!$D$8,Inputs!$E$26,Inputs!$E$27,Inputs!$E$28,Inputs!$E$29)+Inputs!$E$36+Inputs!$E$37 -> 0.07 | Z118: =CHOOSE(Inputs!$D$8,Inputs!$E$26,Inputs!$E$27,Inputs!$E$28,Inputs!$E$29)+Inputs!$E$36+Inputs!$E$37 -> 0.07 | AA118: =CHOOSE(Inputs!$D$8,Inputs!$E$26,Inputs!$E$27,Inputs!$E$28,Inputs!$E$29)+Inputs!$E$36+Inputs!$E$37 -> 0.07 | AB118: =CHOOSE(Inputs!$D$8,Inputs!$E$26,Inputs!$E$27,Inputs!$E$28,Inputs!$E$29)+Inputs!$E$36+Inputs!$E$37 -> 0.07 | AC118: =CHOOSE(Inputs!$D$8,Inputs!$E$26,Inputs!$E$27,Inputs!$E$28,Inputs!$E$29)+Inputs!$E$36+Inputs!$E$37 -> 0.07 | AD118: =CHOOSE(Inputs!$D$8,Inputs!$E$26,Inputs!$E$27,Inputs!$E$28,Inputs!$E$29)+Inputs!$E$36+Inputs!$E$37 -> 0.07 | AE118: =CHOOSE(Inputs!$D$8,Inputs!$E$26,Inputs!$E$27,Inputs!$E$28,Inputs!$E$29)+Inputs!$E$36+Inputs!$E$37 -> 0.07 | AF118: =CHOOSE(Inputs!$D$8,Inputs!$E$26,Inputs!$E$27,Inputs!$E$28,Inputs!$E$29)+Inputs!$E$36+Inputs!$E$37 -> 0.07 | AG118: =CHOOSE(Inputs!$D$8,Inputs!$E$26,Inputs!$E$27,Inputs!$E$28,Inputs!$E$29)+Inputs!$E$36+Inputs!$E$37 -> 0.07 | AH118: =CHOOSE(Inputs!$D$8,Inputs!$E$26,Inputs!$E$27,Inputs!$E$28,Inputs!$E$29)+Inputs!$E$36+Inputs!$E$37 -> 0.07 | AI118: =CHOOSE(Inputs!$D$8,Inputs!$E$26,Inputs!$E$27,Inputs!$E$28,Inputs!$E$29)+Inputs!$E$36+Inputs!$E$37 -> 0.07 | AJ118: =CHOOSE(Inputs!$D$8,Inputs!$E$26,Inputs!$E$27,Inputs!$E$28,Inputs!$E$29)+Inputs!$E$36+Inputs!$E$37 -> 0.07 | AK118: =CHOOSE(Inputs!$D$8,Inputs!$E$26,Inputs!$E$27,Inputs!$E$28,Inputs!$E$29)+Inputs!$E$36+Inputs!$E$37 -> 0.07 | AL118: =CHOOSE(Inputs!$D$8,Inputs!$E$26,Inputs!$E$27,Inputs!$E$28,Inputs!$E$29)+Inputs!$E$36+Inputs!$E$37 -> 0.07 | AM118: =CHOOSE(Inputs!$D$8,Inputs!$E$26,Inputs!$E$27,Inputs!$E$28,Inputs!$E$29)+Inputs!$E$36+Inputs!$E$37 -> 0.07 | AN118: =CHOOSE(Inputs!$D$8,Inputs!$E$26,Inputs!$E$27,Inputs!$E$28,Inputs!$E$29)+Inputs!$E$36+Inputs!$E$37 -> 0.07 | AO118: =CHOOSE(Inputs!$D$8,Inputs!$E$26,Inputs!$E$27,Inputs!$E$28,Inputs!$E$29)+Inputs!$E$36+Inputs!$E$37 -> 0.07 | AP118: =CHOOSE(Inputs!$D$8,Inputs!$E$26,Inputs!$E$27,Inputs!$E$28,Inputs!$E$29)+Inputs!$E$36+Inputs!$E$37 -> 0.07 | AQ118: =CHOOSE(Inputs!$D$8,Inputs!$E$26,Inputs!$E$27,Inputs!$E$28,Inputs!$E$29)+Inputs!$E$36+Inputs!$E$37 -> 0.07 | AR118: =CHOOSE(Inputs!$D$8,Inputs!$E$26,Inputs!$E$27,Inputs!$E$28,Inputs!$E$29)+Inputs!$E$36+Inputs!$E$37 -> 0.07 | AS118: =CHOOSE(Inputs!$D$8,Inputs!$E$26,Inputs!$E$27,Inputs!$E$28,Inputs!$E$29)+Inputs!$E$36+Inputs!$E$37 -> 0.07 | AT118: =CHOOSE(Inputs!$D$8,Inputs!$E$26,Inputs!$E$27,Inputs!$E$28,Inputs!$E$29)+Inputs!$E$36+Inputs!$E$37 -> 0.07 | AU118: =CHOOSE(Inputs!$D$8,Inputs!$E$26,Inputs!$E$27,Inputs!$E$28,Inputs!$E$29)+Inputs!$E$36+Inputs!$E$37 -> 0.07 | AV118: =CHOOSE(Inputs!$D$8,Inputs!$E$26,Inputs!$E$27,Inputs!$E$28,Inputs!$E$29)+Inputs!$E$36+Inputs!$E$37 -> 0.07 | AW118: =CHOOSE(Inputs!$D$8,Inputs!$E$26,Inputs!$E$27,Inputs!$E$28,Inputs!$E$29)+Inputs!$E$36+Inputs!$E$37 -> 0.07 | AX118: =CHOOSE(Inputs!$D$8,Inputs!$E$26,Inputs!$E$27,Inputs!$E$28,Inputs!$E$29)+Inputs!$E$36+Inputs!$E$37 -> 0.07 | AY118: =CHOOSE(Inputs!$D$8,Inputs!$E$26,Inputs!$E$27,Inputs!$E$28,Inputs!$E$29)+Inputs!$E$36+Inputs!$E$37 -> 0.07 | AZ118: =CHOOSE(Inputs!$D$8,Inputs!$E$26,Inputs!$E$27,Inputs!$E$28,Inputs!$E$29)+Inputs!$E$36+Inputs!$E$37 -> 0.07 | BA118: =CHOOSE(Inputs!$D$8,Inputs!$E$26,Inputs!$E$27,Inputs!$E$28,Inputs!$E$29)+Inputs!$E$36+Inputs!$E$37 -> 0.07 | BB118: =CHOOSE(Inputs!$D$8,Inputs!$E$26,Inputs!$E$27,Inputs!$E$28,Inputs!$E$29)+Inputs!$E$36+Inputs!$E$37 -> 0.07 | BC118: =CHOOSE(Inputs!$D$8,Inputs!$E$26,Inputs!$E$27,Inputs!$E$28,Inputs!$E$29)+Inputs!$E$36+Inputs!$E$37 -> 0.07 | BD118: =CHOOSE(Inputs!$D$8,Inputs!$E$26,Inputs!$E$27,Inputs!$E$28,Inputs!$E$29)+Inputs!$E$36+Inputs!$E$37 -> 0.07
C119: =SUM(G119:BD119) -> 0 | D119: Royalty payable (co-product) | E119: $mm nominal | G119: =G117*G118 -> 0 | H119: =H117*H118 -> 0 | I119: =I117*I118 -> 0 | J119: =J117*J118 -> 0 | K119: 0 | L119: 0 | M119: 0 | N119: 0 | O119: 0 | P119: 0 | Q119: 0 | R119: 0 | S119: 0 | T119: 0 | U119: 0 | V119: 0 | W119: 0 | X119: 0 | Y119: 0 | Z119: 0 | AA119: 0 | AB119: 0 | AC119: 0 | AD119: 0 | AE119: 0 | AF119: 0 | AG119: 0 | AH119: 0 | AI119: 0 | AJ119: 0 | AK119: 0 | AL119: 0 | AM119: 0 | AN119: 0 | AO119: 0 | AP119: 0 | AQ119: 0 | AR119: 0 | AS119: 0 | AT119: 0 | AU119: 0 | AV119: 0 | AW119: 0 | AX119: 0 | AY119: 0 | AZ119: 0 | BA119: 0 | BB119: 0 | BC119: 0 | BD119: 0
D122: Variable rate royalty - revenue based (on primary product)
D123: Base | E123: $mm nominal | G123: =G110 -> 0 | H123: =H110 -> 0 | I123: 0 | J123: 0 | K123: 259.7837184 | L123: 618.2852498 | M123: 630.6509548 | N123: 643.2639739 | O123: 656.1292534 | P123: 669.2518384 | Q123: 682.6368752 | R123: 696.2896127 | S123: 710.215405 | T123: 724.4197131 | U123: 738.9081073 | V123: 753.6862695 | W123: 768.7599949 | X123: 784.1351947 | Y123: 799.8178986 | Z123: 815.8142566 | AA123: 832.1305417 | AB123: 848.7731526 | AC123: 865.7486156 | AD123: 883.0635879 | AE123: 900.7248597 | AF123: 918.7393569 | AG123: 937.114144 | AH123: 409.6527544 | AI123: 0 | AJ123: 0 | AK123: 0 | AL123: 0 | AM123: =AM110 -> 0 | AN123: 0 | AO123: 0 | AP123: 0 | AQ123: 0 | AR123: 0 | AS123: 0 | AT123: 0 | AU123: 0 | AV123: 0 | AW123: 0 | AX123: 0 | AY123: 0 | AZ123: 0 | BA123: 0 | BB123: 0 | BC123: 0 | BD123: 0
D125: Bracket 1 | E125: $mm nominal | G125: =MIN(G123,Inputs!$D$133) -> 0 | H125: =MIN(H123,Inputs!$D$133) -> 0 | I125: =MIN(I123,Inputs!$D$133) -> 0 | J125: =MIN(J123,Inputs!$D$133) -> 0 | K125: =MIN(K123,Inputs!$D$133) -> 0 | L125: =MIN(L123,Inputs!$D$133) -> 0 | M125: =MIN(M123,Inputs!$D$133) -> 0 | N125: =MIN(N123,Inputs!$D$133) -> 0 | O125: =MIN(O123,Inputs!$D$133) -> 0 | P125: =MIN(P123,Inputs!$D$133) -> 0 | Q125: =MIN(Q123,Inputs!$D$133) -> 0 | R125: =MIN(R123,Inputs!$D$133) -> 0 | S125: =MIN(S123,Inputs!$D$133) -> 0 | T125: =MIN(T123,Inputs!$D$133) -> 0 | U125: =MIN(U123,Inputs!$D$133) -> 0 | V125: =MIN(V123,Inputs!$D$133) -> 0 | W125: =MIN(W123,Inputs!$D$133) -> 0 | X125: =MIN(X123,Inputs!$D$133) -> 0 | Y125: =MIN(Y123,Inputs!$D$133) -> 0 | Z125: =MIN(Z123,Inputs!$D$133) -> 0 | AA125: =MIN(AA123,Inputs!$D$133) -> 0 | AB125: =MIN(AB123,Inputs!$D$133) -> 0 | AC125: =MIN(AC123,Inputs!$D$133) -> 0 | AD125: =MIN(AD123,Inputs!$D$133) -> 0 | AE125: =MIN(AE123,Inputs!$D$133) -> 0 | AF125: =MIN(AF123,Inputs!$D$133) -> 0 | AG125: =MIN(AG123,Inputs!$D$133) -> 0 | AH125: =MIN(AH123,Inputs!$D$133) -> 0 | AI125: =MIN(AI123,Inputs!$D$133) -> 0 | AJ125: =MIN(AJ123,Inputs!$D$133) -> 0 | AK125: =MIN(AK123,Inputs!$D$133) -> 0 | AL125: =MIN(AL123,Inputs!$D$133) -> 0 | AM125: =MIN(AM123,Inputs!$D$133) -> 0 | AN125: =MIN(AN123,Inputs!$D$133) -> 0 | AO125: =MIN(AO123,Inputs!$D$133) -> 0 | AP125: =MIN(AP123,Inputs!$D$133) -> 0 | AQ125: =MIN(AQ123,Inputs!$D$133) -> 0 | AR125: =MIN(AR123,Inputs!$D$133) -> 0 | AS125: =MIN(AS123,Inputs!$D$133) -> 0 | AT125: =MIN(AT123,Inputs!$D$133) -> 0 | AU125: =MIN(AU123,Inputs!$D$133) -> 0 | AV125: =MIN(AV123,Inputs!$D$133) -> 0 | AW125: =MIN(AW123,Inputs!$D$133) -> 0 | AX125: =MIN(AX123,Inputs!$D$133) -> 0 | AY125: =MIN(AY123,Inputs!$D$133) -> 0 | AZ125: =MIN(AZ123,Inputs!$D$133) -> 0 | BA125: =MIN(BA123,Inputs!$D$133) -> 0 | BB125: =MIN(BB123,Inputs!$D$133) -> 0 | BC125: =MIN(BC123,Inputs!$D$133) -> 0 | BD125: =MIN(BD123,Inputs!$D$133) -> 0
D126: Bracket 2 | E126: $mm nominal | G126: =(G$123>Inputs!$D133)*(G$123-Inputs!$D133-G127-G128-G129-G130-G131-G132-G133-G134) -> 0 | H126: =(H$123>Inputs!$D133)*(H$123-Inputs!$D133-H127-H128-H129-H130-H131-H132-H133-H134) -> 0 | I126: =(I$123>Inputs!$D133)*(I$123-Inputs!$D133-I127-I128-I129-I130-I131-I132-I133-I134) -> 0 | J126: =(J$123>Inputs!$D133)*(J$123-Inputs!$D133-J127-J128-J129-J130-J131-J132-J133-J134) -> 0 | K126: =(K$123>Inputs!$D133)*(K$123-Inputs!$D133-K127-K128-K129-K130-K131-K132-K133-K134) -> 0 | L126: =(L$123>Inputs!$D133)*(L$123-Inputs!$D133-L127-L128-L129-L130-L131-L132-L133-L134) -> 0 | M126: =(M$123>Inputs!$D133)*(M$123-Inputs!$D133-M127-M128-M129-M130-M131-M132-M133-M134) -> 0 | N126: =(N$123>Inputs!$D133)*(N$123-Inputs!$D133-N127-N128-N129-N130-N131-N132-N133-N134) -> 0 | O126: =(O$123>Inputs!$D133)*(O$123-Inputs!$D133-O127-O128-O129-O130-O131-O132-O133-O134) -> 0 | P126: =(P$123>Inputs!$D133)*(P$123-Inputs!$D133-P127-P128-P129-P130-P131-P132-P133-P134) -> 0 | Q126: =(Q$123>Inputs!$D133)*(Q$123-Inputs!$D133-Q127-Q128-Q129-Q130-Q131-Q132-Q133-Q134) -> 0 | R126: =(R$123>Inputs!$D133)*(R$123-Inputs!$D133-R127-R128-R129-R130-R131-R132-R133-R134) -> 0 | S126: =(S$123>Inputs!$D133)*(S$123-Inputs!$D133-S127-S128-S129-S130-S131-S132-S133-S134) -> 0 | T126: =(T$123>Inputs!$D133)*(T$123-Inputs!$D133-T127-T128-T129-T130-T131-T132-T133-T134) -> 0 | U126: =(U$123>Inputs!$D133)*(U$123-Inputs!$D133-U127-U128-U129-U130-U131-U132-U133-U134) -> 0 | V126: =(V$123>Inputs!$D133)*(V$123-Inputs!$D133-V127-V128-V129-V130-V131-V132-V133-V134) -> 0 | W126: =(W$123>Inputs!$D133)*(W$123-Inputs!$D133-W127-W128-W129-W130-W131-W132-W133-W134) -> 0 | X126: =(X$123>Inputs!$D133)*(X$123-Inputs!$D133-X127-X128-X129-X130-X131-X132-X133-X134) -> 0 | Y126: =(Y$123>Inputs!$D133)*(Y$123-Inputs!$D133-Y127-Y128-Y129-Y130-Y131-Y132-Y133-Y134) -> 0 | Z126: =(Z$123>Inputs!$D133)*(Z$123-Inputs!$D133-Z127-Z128-Z129-Z130-Z131-Z132-Z133-Z134) -> 0 | AA126: =(AA$123>Inputs!$D133)*(AA$123-Inputs!$D133-AA127-AA128-AA129-AA130-AA131-AA132-AA133-AA134) -> 0 | AB126: =(AB$123>Inputs!$D133)*(AB$123-Inputs!$D133-AB127-AB128-AB129-AB130-AB131-AB132-AB133-AB134) -> 0 | AC126: =(AC$123>Inputs!$D133)*(AC$123-Inputs!$D133-AC127-AC128-AC129-AC130-AC131-AC132-AC133-AC134) -> 0 | AD126: =(AD$123>Inputs!$D133)*(AD$123-Inputs!$D133-AD127-AD128-AD129-AD130-AD131-AD132-AD133-AD134) -> 0 | AE126: =(AE$123>Inputs!$D133)*(AE$123-Inputs!$D133-AE127-AE128-AE129-AE130-AE131-AE132-AE133-AE134) -> 0 | AF126: =(AF$123>Inputs!$D133)*(AF$123-Inputs!$D133-AF127-AF128-AF129-AF130-AF131-AF132-AF133-AF134) -> 0 | AG126: =(AG$123>Inputs!$D133)*(AG$123-Inputs!$D133-AG127-AG128-AG129-AG130-AG131-AG132-AG133-AG134) -> 0 | AH126: =(AH$123>Inputs!$D133)*(AH$123-Inputs!$D133-AH127-AH128-AH129-AH130-AH131-AH132-AH133-AH134) -> 0 | AI126: =(AI$123>Inputs!$D133)*(AI$123-Inputs!$D133-AI127-AI128-AI129-AI130-AI131-AI132-AI133-AI134) -> 0 | AJ126: =(AJ$123>Inputs!$D133)*(AJ$123-Inputs!$D133-AJ127-AJ128-AJ129-AJ130-AJ131-AJ132-AJ133-AJ134) -> 0 | AK126: =(AK$123>Inputs!$D133)*(AK$123-Inputs!$D133-AK127-AK128-AK129-AK130-AK131-AK132-AK133-AK134) -> 0 | AL126: =(AL$123>Inputs!$D133)*(AL$123-Inputs!$D133-AL127-AL128-AL129-AL130-AL131-AL132-AL133-AL134) -> 0 | AM126: =(AM$123>Inputs!$D133)*(AM$123-Inputs!$D133-AM127-AM128-AM129-AM130-AM131-AM132-AM133-AM134) -> 0 | AN126: =(AN$123>Inputs!$D133)*(AN$123-Inputs!$D133-AN127-AN128-AN129-AN130-AN131-AN132-AN133-AN134) -> 0 | AO126: =(AO$123>Inputs!$D133)*(AO$123-Inputs!$D133-AO127-AO128-AO129-AO130-AO131-AO132-AO133-AO134) -> 0 | AP126: =(AP$123>Inputs!$D133)*(AP$123-Inputs!$D133-AP127-AP128-AP129-AP130-AP131-AP132-AP133-AP134) -> 0 | AQ126: =(AQ$123>Inputs!$D133)*(AQ$123-Inputs!$D133-AQ127-AQ128-AQ129-AQ130-AQ131-AQ132-AQ133-AQ134) -> 0 | AR126: =(AR$123>Inputs!$D133)*(AR$123-Inputs!$D133-AR127-AR128-AR129-AR130-AR131-AR132-AR133-AR134) -> 0 | AS126: =(AS$123>Inputs!$D133)*(AS$123-Inputs!$D133-AS127-AS128-AS129-AS130-AS131-AS132-AS133-AS134) -> 0 | AT126: =(AT$123>Inputs!$D133)*(AT$123-Inputs!$D133-AT127-AT128-AT129-AT130-AT131-AT132-AT133-AT134) -> 0 | AU126: =(AU$123>Inputs!$D133)*(AU$123-Inputs!$D133-AU127-AU128-AU129-AU130-AU131-AU132-AU133-AU134) -> 0 | AV126: =(AV$123>Inputs!$D133)*(AV$123-Inputs!$D133-AV127-AV128-AV129-AV130-AV131-AV132-AV133-AV134) -> 0 | AW126: =(AW$123>Inputs!$D133)*(AW$123-Inputs!$D133-AW127-AW128-AW129-AW130-AW131-AW132-AW133-AW134) -> 0 | AX126: =(AX$123>Inputs!$D133)*(AX$123-Inputs!$D133-AX127-AX128-AX129-AX130-AX131-AX132-AX133-AX134) -> 0 | AY126: =(AY$123>Inputs!$D133)*(AY$123-Inputs!$D133-AY127-AY128-AY129-AY130-AY131-AY132-AY133-AY134) -> 0 | AZ126: =(AZ$123>Inputs!$D133)*(AZ$123-Inputs!$D133-AZ127-AZ128-AZ129-AZ130-AZ131-AZ132-AZ133-AZ134) -> 0 | BA126: =(BA$123>Inputs!$D133)*(BA$123-Inputs!$D133-BA127-BA128-BA129-BA130-BA131-BA132-BA133-BA134) -> 0 | BB126: =(BB$123>Inputs!$D133)*(BB$123-Inputs!$D133-BB127-BB128-BB129-BB130-BB131-BB132-BB133-BB134) -> 0 | BC126: =(BC$123>Inputs!$D133)*(BC$123-Inputs!$D133-BC127-BC128-BC129-BC130-BC131-BC132-BC133-BC134) -> 0 | BD126: =(BD$123>Inputs!$D133)*(BD$123-Inputs!$D133-BD127-BD128-BD129-BD130-BD131-BD132-BD133-BD134) -> 0
D127: Bracket 3 | E127: $mm nominal | G127: =(G$123>Inputs!$D134)*(G$123-Inputs!$D134-G128-G129-G130-G131-G132-G133-G134) -> 0 | H127: =(H$123>Inputs!$D134)*(H$123-Inputs!$D134-H128-H129-H130-H131-H132-H133-H134) -> 0 | I127: =(I$123>Inputs!$D134)*(I$123-Inputs!$D134-I128-I129-I130-I131-I132-I133-I134) -> 0 | J127: =(J$123>Inputs!$D134)*(J$123-Inputs!$D134-J128-J129-J130-J131-J132-J133-J134) -> 0 | K127: =(K$123>Inputs!$D134)*(K$123-Inputs!$D134-K128-K129-K130-K131-K132-K133-K134) -> 0 | L127: =(L$123>Inputs!$D134)*(L$123-Inputs!$D134-L128-L129-L130-L131-L132-L133-L134) -> 0 | M127: =(M$123>Inputs!$D134)*(M$123-Inputs!$D134-M128-M129-M130-M131-M132-M133-M134) -> 0 | N127: =(N$123>Inputs!$D134)*(N$123-Inputs!$D134-N128-N129-N130-N131-N132-N133-N134) -> 0 | O127: =(O$123>Inputs!$D134)*(O$123-Inputs!$D134-O128-O129-O130-O131-O132-O133-O134) -> 0 | P127: =(P$123>Inputs!$D134)*(P$123-Inputs!$D134-P128-P129-P130-P131-P132-P133-P134) -> 0 | Q127: =(Q$123>Inputs!$D134)*(Q$123-Inputs!$D134-Q128-Q129-Q130-Q131-Q132-Q133-Q134) -> 0 | R127: =(R$123>Inputs!$D134)*(R$123-Inputs!$D134-R128-R129-R130-R131-R132-R133-R134) -> 0 | S127: =(S$123>Inputs!$D134)*(S$123-Inputs!$D134-S128-S129-S130-S131-S132-S133-S134) -> 0 | T127: =(T$123>Inputs!$D134)*(T$123-Inputs!$D134-T128-T129-T130-T131-T132-T133-T134) -> 0 | U127: =(U$123>Inputs!$D134)*(U$123-Inputs!$D134-U128-U129-U130-U131-U132-U133-U134) -> 0 | V127: =(V$123>Inputs!$D134)*(V$123-Inputs!$D134-V128-V129-V130-V131-V132-V133-V134) -> 0 | W127: =(W$123>Inputs!$D134)*(W$123-Inputs!$D134-W128-W129-W130-W131-W132-W133-W134) -> 0 | X127: =(X$123>Inputs!$D134)*(X$123-Inputs!$D134-X128-X129-X130-X131-X132-X133-X134) -> 0 | Y127: =(Y$123>Inputs!$D134)*(Y$123-Inputs!$D134-Y128-Y129-Y130-Y131-Y132-Y133-Y134) -> 0 | Z127: =(Z$123>Inputs!$D134)*(Z$123-Inputs!$D134-Z128-Z129-Z130-Z131-Z132-Z133-Z134) -> 0 | AA127: =(AA$123>Inputs!$D134)*(AA$123-Inputs!$D134-AA128-AA129-AA130-AA131-AA132-AA133-AA134) -> 0 | AB127: =(AB$123>Inputs!$D134)*(AB$123-Inputs!$D134-AB128-AB129-AB130-AB131-AB132-AB133-AB134) -> 0 | AC127: =(AC$123>Inputs!$D134)*(AC$123-Inputs!$D134-AC128-AC129-AC130-AC131-AC132-AC133-AC134) -> 0 | AD127: =(AD$123>Inputs!$D134)*(AD$123-Inputs!$D134-AD128-AD129-AD130-AD131-AD132-AD133-AD134) -> 0 | AE127: =(AE$123>Inputs!$D134)*(AE$123-Inputs!$D134-AE128-AE129-AE130-AE131-AE132-AE133-AE134) -> 0 | AF127: =(AF$123>Inputs!$D134)*(AF$123-Inputs!$D134-AF128-AF129-AF130-AF131-AF132-AF133-AF134) -> 0 | AG127: =(AG$123>Inputs!$D134)*(AG$123-Inputs!$D134-AG128-AG129-AG130-AG131-AG132-AG133-AG134) -> 0 | AH127: =(AH$123>Inputs!$D134)*(AH$123-Inputs!$D134-AH128-AH129-AH130-AH131-AH132-AH133-AH134) -> 0 | AI127: =(AI$123>Inputs!$D134)*(AI$123-Inputs!$D134-AI128-AI129-AI130-AI131-AI132-AI133-AI134) -> 0 | AJ127: =(AJ$123>Inputs!$D134)*(AJ$123-Inputs!$D134-AJ128-AJ129-AJ130-AJ131-AJ132-AJ133-AJ134) -> 0 | AK127: =(AK$123>Inputs!$D134)*(AK$123-Inputs!$D134-AK128-AK129-AK130-AK131-AK132-AK133-AK134) -> 0 | AL127: =(AL$123>Inputs!$D134)*(AL$123-Inputs!$D134-AL128-AL129-AL130-AL131-AL132-AL133-AL134) -> 0 | AM127: =(AM$123>Inputs!$D134)*(AM$123-Inputs!$D134-AM128-AM129-AM130-AM131-AM132-AM133-AM134) -> 0 | AN127: =(AN$123>Inputs!$D134)*(AN$123-Inputs!$D134-AN128-AN129-AN130-AN131-AN132-AN133-AN134) -> 0 | AO127: =(AO$123>Inputs!$D134)*(AO$123-Inputs!$D134-AO128-AO129-AO130-AO131-AO132-AO133-AO134) -> 0 | AP127: =(AP$123>Inputs!$D134)*(AP$123-Inputs!$D134-AP128-AP129-AP130-AP131-AP132-AP133-AP134) -> 0 | AQ127: =(AQ$123>Inputs!$D134)*(AQ$123-Inputs!$D134-AQ128-AQ129-AQ130-AQ131-AQ132-AQ133-AQ134) -> 0 | AR127: =(AR$123>Inputs!$D134)*(AR$123-Inputs!$D134-AR128-AR129-AR130-AR131-AR132-AR133-AR134) -> 0 | AS127: =(AS$123>Inputs!$D134)*(AS$123-Inputs!$D134-AS128-AS129-AS130-AS131-AS132-AS133-AS134) -> 0 | AT127: =(AT$123>Inputs!$D134)*(AT$123-Inputs!$D134-AT128-AT129-AT130-AT131-AT132-AT133-AT134) -> 0 | AU127: =(AU$123>Inputs!$D134)*(AU$123-Inputs!$D134-AU128-AU129-AU130-AU131-AU132-AU133-AU134) -> 0 | AV127: =(AV$123>Inputs!$D134)*(AV$123-Inputs!$D134-AV128-AV129-AV130-AV131-AV132-AV133-AV134) -> 0 | AW127: =(AW$123>Inputs!$D134)*(AW$123-Inputs!$D134-AW128-AW129-AW130-AW131-AW132-AW133-AW134) -> 0 | AX127: =(AX$123>Inputs!$D134)*(AX$123-Inputs!$D134-AX128-AX129-AX130-AX131-AX132-AX133-AX134) -> 0 | AY127: =(AY$123>Inputs!$D134)*(AY$123-Inputs!$D134-AY128-AY129-AY130-AY131-AY132-AY133-AY134) -> 0 | AZ127: =(AZ$123>Inputs!$D134)*(AZ$123-Inputs!$D134-AZ128-AZ129-AZ130-AZ131-AZ132-AZ133-AZ134) -> 0 | BA127: =(BA$123>Inputs!$D134)*(BA$123-Inputs!$D134-BA128-BA129-BA130-BA131-BA132-BA133-BA134) -> 0 | BB127: =(BB$123>Inputs!$D134)*(BB$123-Inputs!$D134-BB128-BB129-BB130-BB131-BB132-BB133-BB134) -> 0 | BC127: =(BC$123>Inputs!$D134)*(BC$123-Inputs!$D134-BC128-BC129-BC130-BC131-BC132-BC133-BC134) -> 0 | BD127: =(BD$123>Inputs!$D134)*(BD$123-Inputs!$D134-BD128-BD129-BD130-BD131-BD132-BD133-BD134) -> 0
D128: Bracket 4 | E128: $mm nominal | G128: =(G$123>Inputs!$D135)*(G$123-Inputs!$D135-G129-G130-G131-G132-G133-G134) -> 0 | H128: =(H$123>Inputs!$D135)*(H$123-Inputs!$D135-H129-H130-H131-H132-H133-H134) -> 0 | I128: =(I$123>Inputs!$D135)*(I$123-Inputs!$D135-I129-I130-I131-I132-I133-I134) -> 0 | J128: =(J$123>Inputs!$D135)*(J$123-Inputs!$D135-J129-J130-J131-J132-J133-J134) -> 0 | K128: =(K$123>Inputs!$D135)*(K$123-Inputs!$D135-K129-K130-K131-K132-K133-K134) -> 0 | L128: =(L$123>Inputs!$D135)*(L$123-Inputs!$D135-L129-L130-L131-L132-L133-L134) -> 0 | M128: =(M$123>Inputs!$D135)*(M$123-Inputs!$D135-M129-M130-M131-M132-M133-M134) -> 0 | N128: =(N$123>Inputs!$D135)*(N$123-Inputs!$D135-N129-N130-N131-N132-N133-N134) -> 0 | O128: =(O$123>Inputs!$D135)*(O$123-Inputs!$D135-O129-O130-O131-O132-O133-O134) -> 0 | P128: =(P$123>Inputs!$D135)*(P$123-Inputs!$D135-P129-P130-P131-P132-P133-P134) -> 0 | Q128: =(Q$123>Inputs!$D135)*(Q$123-Inputs!$D135-Q129-Q130-Q131-Q132-Q133-Q134) -> 0 | R128: =(R$123>Inputs!$D135)*(R$123-Inputs!$D135-R129-R130-R131-R132-R133-R134) -> 0 | S128: =(S$123>Inputs!$D135)*(S$123-Inputs!$D135-S129-S130-S131-S132-S133-S134) -> 0 | T128: =(T$123>Inputs!$D135)*(T$123-Inputs!$D135-T129-T130-T131-T132-T133-T134) -> 0 | U128: =(U$123>Inputs!$D135)*(U$123-Inputs!$D135-U129-U130-U131-U132-U133-U134) -> 0 | V128: =(V$123>Inputs!$D135)*(V$123-Inputs!$D135-V129-V130-V131-V132-V133-V134) -> 0 | W128: =(W$123>Inputs!$D135)*(W$123-Inputs!$D135-W129-W130-W131-W132-W133-W134) -> 0 | X128: =(X$123>Inputs!$D135)*(X$123-Inputs!$D135-X129-X130-X131-X132-X133-X134) -> 0 | Y128: =(Y$123>Inputs!$D135)*(Y$123-Inputs!$D135-Y129-Y130-Y131-Y132-Y133-Y134) -> 0 | Z128: =(Z$123>Inputs!$D135)*(Z$123-Inputs!$D135-Z129-Z130-Z131-Z132-Z133-Z134) -> 0 | AA128: =(AA$123>Inputs!$D135)*(AA$123-Inputs!$D135-AA129-AA130-AA131-AA132-AA133-AA134) -> 0 | AB128: =(AB$123>Inputs!$D135)*(AB$123-Inputs!$D135-AB129-AB130-AB131-AB132-AB133-AB134) -> 0 | AC128: =(AC$123>Inputs!$D135)*(AC$123-Inputs!$D135-AC129-AC130-AC131-AC132-AC133-AC134) -> 0 | AD128: =(AD$123>Inputs!$D135)*(AD$123-Inputs!$D135-AD129-AD130-AD131-AD132-AD133-AD134) -> 0 | AE128: =(AE$123>Inputs!$D135)*(AE$123-Inputs!$D135-AE129-AE130-AE131-AE132-AE133-AE134) -> 0 | AF128: =(AF$123>Inputs!$D135)*(AF$123-Inputs!$D135-AF129-AF130-AF131-AF132-AF133-AF134) -> 0 | AG128: =(AG$123>Inputs!$D135)*(AG$123-Inputs!$D135-AG129-AG130-AG131-AG132-AG133-AG134) -> 0 | AH128: =(AH$123>Inputs!$D135)*(AH$123-Inputs!$D135-AH129-AH130-AH131-AH132-AH133-AH134) -> 0 | AI128: =(AI$123>Inputs!$D135)*(AI$123-Inputs!$D135-AI129-AI130-AI131-AI132-AI133-AI134) -> 0 | AJ128: =(AJ$123>Inputs!$D135)*(AJ$123-Inputs!$D135-AJ129-AJ130-AJ131-AJ132-AJ133-AJ134) -> 0 | AK128: =(AK$123>Inputs!$D135)*(AK$123-Inputs!$D135-AK129-AK130-AK131-AK132-AK133-AK134) -> 0 | AL128: =(AL$123>Inputs!$D135)*(AL$123-Inputs!$D135-AL129-AL130-AL131-AL132-AL133-AL134) -> 0 | AM128: =(AM$123>Inputs!$D135)*(AM$123-Inputs!$D135-AM129-AM130-AM131-AM132-AM133-AM134) -> 0 | AN128: =(AN$123>Inputs!$D135)*(AN$123-Inputs!$D135-AN129-AN130-AN131-AN132-AN133-AN134) -> 0 | AO128: =(AO$123>Inputs!$D135)*(AO$123-Inputs!$D135-AO129-AO130-AO131-AO132-AO133-AO134) -> 0 | AP128: =(AP$123>Inputs!$D135)*(AP$123-Inputs!$D135-AP129-AP130-AP131-AP132-AP133-AP134) -> 0 | AQ128: =(AQ$123>Inputs!$D135)*(AQ$123-Inputs!$D135-AQ129-AQ130-AQ131-AQ132-AQ133-AQ134) -> 0 | AR128: =(AR$123>Inputs!$D135)*(AR$123-Inputs!$D135-AR129-AR130-AR131-AR132-AR133-AR134) -> 0 | AS128: =(AS$123>Inputs!$D135)*(AS$123-Inputs!$D135-AS129-AS130-AS131-AS132-AS133-AS134) -> 0 | AT128: =(AT$123>Inputs!$D135)*(AT$123-Inputs!$D135-AT129-AT130-AT131-AT132-AT133-AT134) -> 0 | AU128: =(AU$123>Inputs!$D135)*(AU$123-Inputs!$D135-AU129-AU130-AU131-AU132-AU133-AU134) -> 0 | AV128: =(AV$123>Inputs!$D135)*(AV$123-Inputs!$D135-AV129-AV130-AV131-AV132-AV133-AV134) -> 0 | AW128: =(AW$123>Inputs!$D135)*(AW$123-Inputs!$D135-AW129-AW130-AW131-AW132-AW133-AW134) -> 0 | AX128: =(AX$123>Inputs!$D135)*(AX$123-Inputs!$D135-AX129-AX130-AX131-AX132-AX133-AX134) -> 0 | AY128: =(AY$123>Inputs!$D135)*(AY$123-Inputs!$D135-AY129-AY130-AY131-AY132-AY133-AY134) -> 0 | AZ128: =(AZ$123>Inputs!$D135)*(AZ$123-Inputs!$D135-AZ129-AZ130-AZ131-AZ132-AZ133-AZ134) -> 0 | BA128: =(BA$123>Inputs!$D135)*(BA$123-Inputs!$D135-BA129-BA130-BA131-BA132-BA133-BA134) -> 0 | BB128: =(BB$123>Inputs!$D135)*(BB$123-Inputs!$D135-BB129-BB130-BB131-BB132-BB133-BB134) -> 0 | BC128: =(BC$123>Inputs!$D135)*(BC$123-Inputs!$D135-BC129-BC130-BC131-BC132-BC133-BC134) -> 0 | BD128: =(BD$123>Inputs!$D135)*(BD$123-Inputs!$D135-BD129-BD130-BD131-BD132-BD133-BD134) -> 0
D129: Bracket 5 | E129: $mm nominal | G129: =(G$123>Inputs!$D136)*(G$123-Inputs!$D136-G130-G131-G132-G133-G134) -> 0 | H129: =(H$123>Inputs!$D136)*(H$123-Inputs!$D136-H130-H131-H132-H133-H134) -> 0 | I129: =(I$123>Inputs!$D136)*(I$123-Inputs!$D136-I130-I131-I132-I133-I134) -> 0 | J129: =(J$123>Inputs!$D136)*(J$123-Inputs!$D136-J130-J131-J132-J133-J134) -> 0 | K129: =(K$123>Inputs!$D136)*(K$123-Inputs!$D136-K130-K131-K132-K133-K134) -> 0 | L129: =(L$123>Inputs!$D136)*(L$123-Inputs!$D136-L130-L131-L132-L133-L134) -> 0 | M129: =(M$123>Inputs!$D136)*(M$123-Inputs!$D136-M130-M131-M132-M133-M134) -> 0 | N129: =(N$123>Inputs!$D136)*(N$123-Inputs!$D136-N130-N131-N132-N133-N134) -> 0 | O129: =(O$123>Inputs!$D136)*(O$123-Inputs!$D136-O130-O131-O132-O133-O134) -> 0 | P129: =(P$123>Inputs!$D136)*(P$123-Inputs!$D136-P130-P131-P132-P133-P134) -> 0 | Q129: =(Q$123>Inputs!$D136)*(Q$123-Inputs!$D136-Q130-Q131-Q132-Q133-Q134) -> 0 | R129: =(R$123>Inputs!$D136)*(R$123-Inputs!$D136-R130-R131-R132-R133-R134) -> 0 | S129: =(S$123>Inputs!$D136)*(S$123-Inputs!$D136-S130-S131-S132-S133-S134) -> 0 | T129: =(T$123>Inputs!$D136)*(T$123-Inputs!$D136-T130-T131-T132-T133-T134) -> 0 | U129: =(U$123>Inputs!$D136)*(U$123-Inputs!$D136-U130-U131-U132-U133-U134) -> 0 | V129: =(V$123>Inputs!$D136)*(V$123-Inputs!$D136-V130-V131-V132-V133-V134) -> 0 | W129: =(W$123>Inputs!$D136)*(W$123-Inputs!$D136-W130-W131-W132-W133-W134) -> 0 | X129: =(X$123>Inputs!$D136)*(X$123-Inputs!$D136-X130-X131-X132-X133-X134) -> 0 | Y129: =(Y$123>Inputs!$D136)*(Y$123-Inputs!$D136-Y130-Y131-Y132-Y133-Y134) -> 0 | Z129: =(Z$123>Inputs!$D136)*(Z$123-Inputs!$D136-Z130-Z131-Z132-Z133-Z134) -> 0 | AA129: =(AA$123>Inputs!$D136)*(AA$123-Inputs!$D136-AA130-AA131-AA132-AA133-AA134) -> 0 | AB129: =(AB$123>Inputs!$D136)*(AB$123-Inputs!$D136-AB130-AB131-AB132-AB133-AB134) -> 0 | AC129: =(AC$123>Inputs!$D136)*(AC$123-Inputs!$D136-AC130-AC131-AC132-AC133-AC134) -> 0 | AD129: =(AD$123>Inputs!$D136)*(AD$123-Inputs!$D136-AD130-AD131-AD132-AD133-AD134) -> 0 | AE129: =(AE$123>Inputs!$D136)*(AE$123-Inputs!$D136-AE130-AE131-AE132-AE133-AE134) -> 0 | AF129: =(AF$123>Inputs!$D136)*(AF$123-Inputs!$D136-AF130-AF131-AF132-AF133-AF134) -> 0 | AG129: =(AG$123>Inputs!$D136)*(AG$123-Inputs!$D136-AG130-AG131-AG132-AG133-AG134) -> 0 | AH129: =(AH$123>Inputs!$D136)*(AH$123-Inputs!$D136-AH130-AH131-AH132-AH133-AH134) -> 0 | AI129: =(AI$123>Inputs!$D136)*(AI$123-Inputs!$D136-AI130-AI131-AI132-AI133-AI134) -> 0 | AJ129: =(AJ$123>Inputs!$D136)*(AJ$123-Inputs!$D136-AJ130-AJ131-AJ132-AJ133-AJ134) -> 0 | AK129: =(AK$123>Inputs!$D136)*(AK$123-Inputs!$D136-AK130-AK131-AK132-AK133-AK134) -> 0 | AL129: =(AL$123>Inputs!$D136)*(AL$123-Inputs!$D136-AL130-AL131-AL132-AL133-AL134) -> 0 | AM129: =(AM$123>Inputs!$D136)*(AM$123-Inputs!$D136-AM130-AM131-AM132-AM133-AM134) -> 0 | AN129: =(AN$123>Inputs!$D136)*(AN$123-Inputs!$D136-AN130-AN131-AN132-AN133-AN134) -> 0 | AO129: =(AO$123>Inputs!$D136)*(AO$123-Inputs!$D136-AO130-AO131-AO132-AO133-AO134) -> 0 | AP129: =(AP$123>Inputs!$D136)*(AP$123-Inputs!$D136-AP130-AP131-AP132-AP133-AP134) -> 0 | AQ129: =(AQ$123>Inputs!$D136)*(AQ$123-Inputs!$D136-AQ130-AQ131-AQ132-AQ133-AQ134) -> 0 | AR129: =(AR$123>Inputs!$D136)*(AR$123-Inputs!$D136-AR130-AR131-AR132-AR133-AR134) -> 0 | AS129: =(AS$123>Inputs!$D136)*(AS$123-Inputs!$D136-AS130-AS131-AS132-AS133-AS134) -> 0 | AT129: =(AT$123>Inputs!$D136)*(AT$123-Inputs!$D136-AT130-AT131-AT132-AT133-AT134) -> 0 | AU129: =(AU$123>Inputs!$D136)*(AU$123-Inputs!$D136-AU130-AU131-AU132-AU133-AU134) -> 0 | AV129: =(AV$123>Inputs!$D136)*(AV$123-Inputs!$D136-AV130-AV131-AV132-AV133-AV134) -> 0 | AW129: =(AW$123>Inputs!$D136)*(AW$123-Inputs!$D136-AW130-AW131-AW132-AW133-AW134) -> 0 | AX129: =(AX$123>Inputs!$D136)*(AX$123-Inputs!$D136-AX130-AX131-AX132-AX133-AX134) -> 0 | AY129: =(AY$123>Inputs!$D136)*(AY$123-Inputs!$D136-AY130-AY131-AY132-AY133-AY134) -> 0 | AZ129: =(AZ$123>Inputs!$D136)*(AZ$123-Inputs!$D136-AZ130-AZ131-AZ132-AZ133-AZ134) -> 0 | BA129: =(BA$123>Inputs!$D136)*(BA$123-Inputs!$D136-BA130-BA131-BA132-BA133-BA134) -> 0 | BB129: =(BB$123>Inputs!$D136)*(BB$123-Inputs!$D136-BB130-BB131-BB132-BB133-BB134) -> 0 | BC129: =(BC$123>Inputs!$D136)*(BC$123-Inputs!$D136-BC130-BC131-BC132-BC133-BC134) -> 0 | BD129: =(BD$123>Inputs!$D136)*(BD$123-Inputs!$D136-BD130-BD131-BD132-BD133-BD134) -> 0
D130: Bracket 6 | E130: $mm nominal | G130: =(G$123>Inputs!$D137)*(G$123-Inputs!$D137-G131-G132-G133-G134) -> 0 | H130: =(H$123>Inputs!$D137)*(H$123-Inputs!$D137-H131-H132-H133-H134) -> 0 | I130: =(I$123>Inputs!$D137)*(I$123-Inputs!$D137-I131-I132-I133-I134) -> 0 | J130: =(J$123>Inputs!$D137)*(J$123-Inputs!$D137-J131-J132-J133-J134) -> 0 | K130: =(K$123>Inputs!$D137)*(K$123-Inputs!$D137-K131-K132-K133-K134) -> 0 | L130: =(L$123>Inputs!$D137)*(L$123-Inputs!$D137-L131-L132-L133-L134) -> 0 | M130: =(M$123>Inputs!$D137)*(M$123-Inputs!$D137-M131-M132-M133-M134) -> 0 | N130: =(N$123>Inputs!$D137)*(N$123-Inputs!$D137-N131-N132-N133-N134) -> 0 | O130: =(O$123>Inputs!$D137)*(O$123-Inputs!$D137-O131-O132-O133-O134) -> 0 | P130: =(P$123>Inputs!$D137)*(P$123-Inputs!$D137-P131-P132-P133-P134) -> 0 | Q130: =(Q$123>Inputs!$D137)*(Q$123-Inputs!$D137-Q131-Q132-Q133-Q134) -> 0 | R130: =(R$123>Inputs!$D137)*(R$123-Inputs!$D137-R131-R132-R133-R134) -> 0 | S130: =(S$123>Inputs!$D137)*(S$123-Inputs!$D137-S131-S132-S133-S134) -> 0 | T130: =(T$123>Inputs!$D137)*(T$123-Inputs!$D137-T131-T132-T133-T134) -> 0 | U130: =(U$123>Inputs!$D137)*(U$123-Inputs!$D137-U131-U132-U133-U134) -> 0 | V130: =(V$123>Inputs!$D137)*(V$123-Inputs!$D137-V131-V132-V133-V134) -> 0 | W130: =(W$123>Inputs!$D137)*(W$123-Inputs!$D137-W131-W132-W133-W134) -> 0 | X130: =(X$123>Inputs!$D137)*(X$123-Inputs!$D137-X131-X132-X133-X134) -> 0 | Y130: =(Y$123>Inputs!$D137)*(Y$123-Inputs!$D137-Y131-Y132-Y133-Y134) -> 0 | Z130: =(Z$123>Inputs!$D137)*(Z$123-Inputs!$D137-Z131-Z132-Z133-Z134) -> 0 | AA130: =(AA$123>Inputs!$D137)*(AA$123-Inputs!$D137-AA131-AA132-AA133-AA134) -> 0 | AB130: =(AB$123>Inputs!$D137)*(AB$123-Inputs!$D137-AB131-AB132-AB133-AB134) -> 0 | AC130: =(AC$123>Inputs!$D137)*(AC$123-Inputs!$D137-AC131-AC132-AC133-AC134) -> 0 | AD130: =(AD$123>Inputs!$D137)*(AD$123-Inputs!$D137-AD131-AD132-AD133-AD134) -> 0 | AE130: =(AE$123>Inputs!$D137)*(AE$123-Inputs!$D137-AE131-AE132-AE133-AE134) -> 0 | AF130: =(AF$123>Inputs!$D137)*(AF$123-Inputs!$D137-AF131-AF132-AF133-AF134) -> 0 | AG130: =(AG$123>Inputs!$D137)*(AG$123-Inputs!$D137-AG131-AG132-AG133-AG134) -> 0 | AH130: =(AH$123>Inputs!$D137)*(AH$123-Inputs!$D137-AH131-AH132-AH133-AH134) -> 0 | AI130: =(AI$123>Inputs!$D137)*(AI$123-Inputs!$D137-AI131-AI132-AI133-AI134) -> 0 | AJ130: =(AJ$123>Inputs!$D137)*(AJ$123-Inputs!$D137-AJ131-AJ132-AJ133-AJ134) -> 0 | AK130: =(AK$123>Inputs!$D137)*(AK$123-Inputs!$D137-AK131-AK132-AK133-AK134) -> 0 | AL130: =(AL$123>Inputs!$D137)*(AL$123-Inputs!$D137-AL131-AL132-AL133-AL134) -> 0 | AM130: =(AM$123>Inputs!$D137)*(AM$123-Inputs!$D137-AM131-AM132-AM133-AM134) -> 0 | AN130: =(AN$123>Inputs!$D137)*(AN$123-Inputs!$D137-AN131-AN132-AN133-AN134) -> 0 | AO130: =(AO$123>Inputs!$D137)*(AO$123-Inputs!$D137-AO131-AO132-AO133-AO134) -> 0 | AP130: =(AP$123>Inputs!$D137)*(AP$123-Inputs!$D137-AP131-AP132-AP133-AP134) -> 0 | AQ130: =(AQ$123>Inputs!$D137)*(AQ$123-Inputs!$D137-AQ131-AQ132-AQ133-AQ134) -> 0 | AR130: =(AR$123>Inputs!$D137)*(AR$123-Inputs!$D137-AR131-AR132-AR133-AR134) -> 0 | AS130: =(AS$123>Inputs!$D137)*(AS$123-Inputs!$D137-AS131-AS132-AS133-AS134) -> 0 | AT130: =(AT$123>Inputs!$D137)*(AT$123-Inputs!$D137-AT131-AT132-AT133-AT134) -> 0 | AU130: =(AU$123>Inputs!$D137)*(AU$123-Inputs!$D137-AU131-AU132-AU133-AU134) -> 0 | AV130: =(AV$123>Inputs!$D137)*(AV$123-Inputs!$D137-AV131-AV132-AV133-AV134) -> 0 | AW130: =(AW$123>Inputs!$D137)*(AW$123-Inputs!$D137-AW131-AW132-AW133-AW134) -> 0 | AX130: =(AX$123>Inputs!$D137)*(AX$123-Inputs!$D137-AX131-AX132-AX133-AX134) -> 0 | AY130: =(AY$123>Inputs!$D137)*(AY$123-Inputs!$D137-AY131-AY132-AY133-AY134) -> 0 | AZ130: =(AZ$123>Inputs!$D137)*(AZ$123-Inputs!$D137-AZ131-AZ132-AZ133-AZ134) -> 0 | BA130: =(BA$123>Inputs!$D137)*(BA$123-Inputs!$D137-BA131-BA132-BA133-BA134) -> 0 | BB130: =(BB$123>Inputs!$D137)*(BB$123-Inputs!$D137-BB131-BB132-BB133-BB134) -> 0 | BC130: =(BC$123>Inputs!$D137)*(BC$123-Inputs!$D137-BC131-BC132-BC133-BC134) -> 0 | BD130: =(BD$123>Inputs!$D137)*(BD$123-Inputs!$D137-BD131-BD132-BD133-BD134) -> 0
D131: Bracket 7 | E131: $mm nominal | G131: =(G$123>Inputs!$D138)*(G$123-Inputs!$D138-G132-G133-G134) -> 0 | H131: =(H$123>Inputs!$D138)*(H$123-Inputs!$D138-H132-H133-H134) -> 0 | I131: =(I$123>Inputs!$D138)*(I$123-Inputs!$D138-I132-I133-I134) -> 0 | J131: =(J$123>Inputs!$D138)*(J$123-Inputs!$D138-J132-J133-J134) -> 0 | K131: =(K$123>Inputs!$D138)*(K$123-Inputs!$D138-K132-K133-K134) -> 0 | L131: =(L$123>Inputs!$D138)*(L$123-Inputs!$D138-L132-L133-L134) -> 0 | M131: =(M$123>Inputs!$D138)*(M$123-Inputs!$D138-M132-M133-M134) -> 0 | N131: =(N$123>Inputs!$D138)*(N$123-Inputs!$D138-N132-N133-N134) -> 0 | O131: =(O$123>Inputs!$D138)*(O$123-Inputs!$D138-O132-O133-O134) -> 0 | P131: =(P$123>Inputs!$D138)*(P$123-Inputs!$D138-P132-P133-P134) -> 0 | Q131: =(Q$123>Inputs!$D138)*(Q$123-Inputs!$D138-Q132-Q133-Q134) -> 0 | R131: =(R$123>Inputs!$D138)*(R$123-Inputs!$D138-R132-R133-R134) -> 0 | S131: =(S$123>Inputs!$D138)*(S$123-Inputs!$D138-S132-S133-S134) -> 0 | T131: =(T$123>Inputs!$D138)*(T$123-Inputs!$D138-T132-T133-T134) -> 0 | U131: =(U$123>Inputs!$D138)*(U$123-Inputs!$D138-U132-U133-U134) -> 0 | V131: =(V$123>Inputs!$D138)*(V$123-Inputs!$D138-V132-V133-V134) -> 0 | W131: =(W$123>Inputs!$D138)*(W$123-Inputs!$D138-W132-W133-W134) -> 0 | X131: =(X$123>Inputs!$D138)*(X$123-Inputs!$D138-X132-X133-X134) -> 0 | Y131: =(Y$123>Inputs!$D138)*(Y$123-Inputs!$D138-Y132-Y133-Y134) -> 0 | Z131: =(Z$123>Inputs!$D138)*(Z$123-Inputs!$D138-Z132-Z133-Z134) -> 0 | AA131: =(AA$123>Inputs!$D138)*(AA$123-Inputs!$D138-AA132-AA133-AA134) -> 0 | AB131: =(AB$123>Inputs!$D138)*(AB$123-Inputs!$D138-AB132-AB133-AB134) -> 0 | AC131: =(AC$123>Inputs!$D138)*(AC$123-Inputs!$D138-AC132-AC133-AC134) -> 0 | AD131: =(AD$123>Inputs!$D138)*(AD$123-Inputs!$D138-AD132-AD133-AD134) -> 0 | AE131: =(AE$123>Inputs!$D138)*(AE$123-Inputs!$D138-AE132-AE133-AE134) -> 0 | AF131: =(AF$123>Inputs!$D138)*(AF$123-Inputs!$D138-AF132-AF133-AF134) -> 0 | AG131: =(AG$123>Inputs!$D138)*(AG$123-Inputs!$D138-AG132-AG133-AG134) -> 0 | AH131: =(AH$123>Inputs!$D138)*(AH$123-Inputs!$D138-AH132-AH133-AH134) -> 0 | AI131: =(AI$123>Inputs!$D138)*(AI$123-Inputs!$D138-AI132-AI133-AI134) -> 0 | AJ131: =(AJ$123>Inputs!$D138)*(AJ$123-Inputs!$D138-AJ132-AJ133-AJ134) -> 0 | AK131: =(AK$123>Inputs!$D138)*(AK$123-Inputs!$D138-AK132-AK133-AK134) -> 0 | AL131: =(AL$123>Inputs!$D138)*(AL$123-Inputs!$D138-AL132-AL133-AL134) -> 0 | AM131: =(AM$123>Inputs!$D138)*(AM$123-Inputs!$D138-AM132-AM133-AM134) -> 0 | AN131: =(AN$123>Inputs!$D138)*(AN$123-Inputs!$D138-AN132-AN133-AN134) -> 0 | AO131: =(AO$123>Inputs!$D138)*(AO$123-Inputs!$D138-AO132-AO133-AO134) -> 0 | AP131: =(AP$123>Inputs!$D138)*(AP$123-Inputs!$D138-AP132-AP133-AP134) -> 0 | AQ131: =(AQ$123>Inputs!$D138)*(AQ$123-Inputs!$D138-AQ132-AQ133-AQ134) -> 0 | AR131: =(AR$123>Inputs!$D138)*(AR$123-Inputs!$D138-AR132-AR133-AR134) -> 0 | AS131: =(AS$123>Inputs!$D138)*(AS$123-Inputs!$D138-AS132-AS133-AS134) -> 0 | AT131: =(AT$123>Inputs!$D138)*(AT$123-Inputs!$D138-AT132-AT133-AT134) -> 0 | AU131: =(AU$123>Inputs!$D138)*(AU$123-Inputs!$D138-AU132-AU133-AU134) -> 0 | AV131: =(AV$123>Inputs!$D138)*(AV$123-Inputs!$D138-AV132-AV133-AV134) -> 0 | AW131: =(AW$123>Inputs!$D138)*(AW$123-Inputs!$D138-AW132-AW133-AW134) -> 0 | AX131: =(AX$123>Inputs!$D138)*(AX$123-Inputs!$D138-AX132-AX133-AX134) -> 0 | AY131: =(AY$123>Inputs!$D138)*(AY$123-Inputs!$D138-AY132-AY133-AY134) -> 0 | AZ131: =(AZ$123>Inputs!$D138)*(AZ$123-Inputs!$D138-AZ132-AZ133-AZ134) -> 0 | BA131: =(BA$123>Inputs!$D138)*(BA$123-Inputs!$D138-BA132-BA133-BA134) -> 0 | BB131: =(BB$123>Inputs!$D138)*(BB$123-Inputs!$D138-BB132-BB133-BB134) -> 0 | BC131: =(BC$123>Inputs!$D138)*(BC$123-Inputs!$D138-BC132-BC133-BC134) -> 0 | BD131: =(BD$123>Inputs!$D138)*(BD$123-Inputs!$D138-BD132-BD133-BD134) -> 0
D132: Bracket 8 | E132: $mm nominal | G132: =(G$123>Inputs!$D139)*(G$123-Inputs!$D139-G133-G134) -> 0 | H132: =(H$123>Inputs!$D139)*(H$123-Inputs!$D139-H133-H134) -> 0 | I132: =(I$123>Inputs!$D139)*(I$123-Inputs!$D139-I133-I134) -> 0 | J132: =(J$123>Inputs!$D139)*(J$123-Inputs!$D139-J133-J134) -> 0 | K132: =(K$123>Inputs!$D139)*(K$123-Inputs!$D139-K133-K134) -> 0 | L132: =(L$123>Inputs!$D139)*(L$123-Inputs!$D139-L133-L134) -> 0 | M132: =(M$123>Inputs!$D139)*(M$123-Inputs!$D139-M133-M134) -> 0 | N132: =(N$123>Inputs!$D139)*(N$123-Inputs!$D139-N133-N134) -> 0 | O132: =(O$123>Inputs!$D139)*(O$123-Inputs!$D139-O133-O134) -> 0 | P132: =(P$123>Inputs!$D139)*(P$123-Inputs!$D139-P133-P134) -> 0 | Q132: =(Q$123>Inputs!$D139)*(Q$123-Inputs!$D139-Q133-Q134) -> 0 | R132: =(R$123>Inputs!$D139)*(R$123-Inputs!$D139-R133-R134) -> 0 | S132: =(S$123>Inputs!$D139)*(S$123-Inputs!$D139-S133-S134) -> 0 | T132: =(T$123>Inputs!$D139)*(T$123-Inputs!$D139-T133-T134) -> 0 | U132: =(U$123>Inputs!$D139)*(U$123-Inputs!$D139-U133-U134) -> 0 | V132: =(V$123>Inputs!$D139)*(V$123-Inputs!$D139-V133-V134) -> 0 | W132: =(W$123>Inputs!$D139)*(W$123-Inputs!$D139-W133-W134) -> 0 | X132: =(X$123>Inputs!$D139)*(X$123-Inputs!$D139-X133-X134) -> 0 | Y132: =(Y$123>Inputs!$D139)*(Y$123-Inputs!$D139-Y133-Y134) -> 0 | Z132: =(Z$123>Inputs!$D139)*(Z$123-Inputs!$D139-Z133-Z134) -> 0 | AA132: =(AA$123>Inputs!$D139)*(AA$123-Inputs!$D139-AA133-AA134) -> 0 | AB132: =(AB$123>Inputs!$D139)*(AB$123-Inputs!$D139-AB133-AB134) -> 0 | AC132: =(AC$123>Inputs!$D139)*(AC$123-Inputs!$D139-AC133-AC134) -> 0 | AD132: =(AD$123>Inputs!$D139)*(AD$123-Inputs!$D139-AD133-AD134) -> 0 | AE132: =(AE$123>Inputs!$D139)*(AE$123-Inputs!$D139-AE133-AE134) -> 0 | AF132: =(AF$123>Inputs!$D139)*(AF$123-Inputs!$D139-AF133-AF134) -> 0 | AG132: =(AG$123>Inputs!$D139)*(AG$123-Inputs!$D139-AG133-AG134) -> 0 | AH132: =(AH$123>Inputs!$D139)*(AH$123-Inputs!$D139-AH133-AH134) -> 0 | AI132: =(AI$123>Inputs!$D139)*(AI$123-Inputs!$D139-AI133-AI134) -> 0 | AJ132: =(AJ$123>Inputs!$D139)*(AJ$123-Inputs!$D139-AJ133-AJ134) -> 0 | AK132: =(AK$123>Inputs!$D139)*(AK$123-Inputs!$D139-AK133-AK134) -> 0 | AL132: =(AL$123>Inputs!$D139)*(AL$123-Inputs!$D139-AL133-AL134) -> 0 | AM132: =(AM$123>Inputs!$D139)*(AM$123-Inputs!$D139-AM133-AM134) -> 0 | AN132: =(AN$123>Inputs!$D139)*(AN$123-Inputs!$D139-AN133-AN134) -> 0 | AO132: =(AO$123>Inputs!$D139)*(AO$123-Inputs!$D139-AO133-AO134) -> 0 | AP132: =(AP$123>Inputs!$D139)*(AP$123-Inputs!$D139-AP133-AP134) -> 0 | AQ132: =(AQ$123>Inputs!$D139)*(AQ$123-Inputs!$D139-AQ133-AQ134) -> 0 | AR132: =(AR$123>Inputs!$D139)*(AR$123-Inputs!$D139-AR133-AR134) -> 0 | AS132: =(AS$123>Inputs!$D139)*(AS$123-Inputs!$D139-AS133-AS134) -> 0 | AT132: =(AT$123>Inputs!$D139)*(AT$123-Inputs!$D139-AT133-AT134) -> 0 | AU132: =(AU$123>Inputs!$D139)*(AU$123-Inputs!$D139-AU133-AU134) -> 0 | AV132: =(AV$123>Inputs!$D139)*(AV$123-Inputs!$D139-AV133-AV134) -> 0 | AW132: =(AW$123>Inputs!$D139)*(AW$123-Inputs!$D139-AW133-AW134) -> 0 | AX132: =(AX$123>Inputs!$D139)*(AX$123-Inputs!$D139-AX133-AX134) -> 0 | AY132: =(AY$123>Inputs!$D139)*(AY$123-Inputs!$D139-AY133-AY134) -> 0 | AZ132: =(AZ$123>Inputs!$D139)*(AZ$123-Inputs!$D139-AZ133-AZ134) -> 0 | BA132: =(BA$123>Inputs!$D139)*(BA$123-Inputs!$D139-BA133-BA134) -> 0 | BB132: =(BB$123>Inputs!$D139)*(BB$123-Inputs!$D139-BB133-BB134) -> 0 | BC132: =(BC$123>Inputs!$D139)*(BC$123-Inputs!$D139-BC133-BC134) -> 0 | BD132: =(BD$123>Inputs!$D139)*(BD$123-Inputs!$D139-BD133-BD134) -> 0
D133: Bracket 9 | E133: $mm nominal | G133: =(G$123>Inputs!$D140)*(G$123-Inputs!$D140-G134) -> 0 | H133: =(H$123>Inputs!$D140)*(H$123-Inputs!$D140-H134) -> 0 | I133: =(I$123>Inputs!$D140)*(I$123-Inputs!$D140-I134) -> 0 | J133: =(J$123>Inputs!$D140)*(J$123-Inputs!$D140-J134) -> 0 | K133: =(K$123>Inputs!$D140)*(K$123-Inputs!$D140-K134) -> 0 | L133: =(L$123>Inputs!$D140)*(L$123-Inputs!$D140-L134) -> 0 | M133: =(M$123>Inputs!$D140)*(M$123-Inputs!$D140-M134) -> 0 | N133: =(N$123>Inputs!$D140)*(N$123-Inputs!$D140-N134) -> 0 | O133: =(O$123>Inputs!$D140)*(O$123-Inputs!$D140-O134) -> 0 | P133: =(P$123>Inputs!$D140)*(P$123-Inputs!$D140-P134) -> 0 | Q133: =(Q$123>Inputs!$D140)*(Q$123-Inputs!$D140-Q134) -> 0 | R133: =(R$123>Inputs!$D140)*(R$123-Inputs!$D140-R134) -> 0 | S133: =(S$123>Inputs!$D140)*(S$123-Inputs!$D140-S134) -> 0 | T133: =(T$123>Inputs!$D140)*(T$123-Inputs!$D140-T134) -> 0 | U133: =(U$123>Inputs!$D140)*(U$123-Inputs!$D140-U134) -> 0 | V133: =(V$123>Inputs!$D140)*(V$123-Inputs!$D140-V134) -> 0 | W133: =(W$123>Inputs!$D140)*(W$123-Inputs!$D140-W134) -> 0 | X133: =(X$123>Inputs!$D140)*(X$123-Inputs!$D140-X134) -> 0 | Y133: =(Y$123>Inputs!$D140)*(Y$123-Inputs!$D140-Y134) -> 0 | Z133: =(Z$123>Inputs!$D140)*(Z$123-Inputs!$D140-Z134) -> 0 | AA133: =(AA$123>Inputs!$D140)*(AA$123-Inputs!$D140-AA134) -> 0 | AB133: =(AB$123>Inputs!$D140)*(AB$123-Inputs!$D140-AB134) -> 0 | AC133: =(AC$123>Inputs!$D140)*(AC$123-Inputs!$D140-AC134) -> 0 | AD133: =(AD$123>Inputs!$D140)*(AD$123-Inputs!$D140-AD134) -> 0 | AE133: =(AE$123>Inputs!$D140)*(AE$123-Inputs!$D140-AE134) -> 0 | AF133: =(AF$123>Inputs!$D140)*(AF$123-Inputs!$D140-AF134) -> 0 | AG133: =(AG$123>Inputs!$D140)*(AG$123-Inputs!$D140-AG134) -> 0 | AH133: =(AH$123>Inputs!$D140)*(AH$123-Inputs!$D140-AH134) -> 0 | AI133: =(AI$123>Inputs!$D140)*(AI$123-Inputs!$D140-AI134) -> 0 | AJ133: =(AJ$123>Inputs!$D140)*(AJ$123-Inputs!$D140-AJ134) -> 0 | AK133: =(AK$123>Inputs!$D140)*(AK$123-Inputs!$D140-AK134) -> 0 | AL133: =(AL$123>Inputs!$D140)*(AL$123-Inputs!$D140-AL134) -> 0 | AM133: =(AM$123>Inputs!$D140)*(AM$123-Inputs!$D140-AM134) -> 0 | AN133: =(AN$123>Inputs!$D140)*(AN$123-Inputs!$D140-AN134) -> 0 | AO133: =(AO$123>Inputs!$D140)*(AO$123-Inputs!$D140-AO134) -> 0 | AP133: =(AP$123>Inputs!$D140)*(AP$123-Inputs!$D140-AP134) -> 0 | AQ133: =(AQ$123>Inputs!$D140)*(AQ$123-Inputs!$D140-AQ134) -> 0 | AR133: =(AR$123>Inputs!$D140)*(AR$123-Inputs!$D140-AR134) -> 0 | AS133: =(AS$123>Inputs!$D140)*(AS$123-Inputs!$D140-AS134) -> 0 | AT133: =(AT$123>Inputs!$D140)*(AT$123-Inputs!$D140-AT134) -> 0 | AU133: =(AU$123>Inputs!$D140)*(AU$123-Inputs!$D140-AU134) -> 0 | AV133: =(AV$123>Inputs!$D140)*(AV$123-Inputs!$D140-AV134) -> 0 | AW133: =(AW$123>Inputs!$D140)*(AW$123-Inputs!$D140-AW134) -> 0 | AX133: =(AX$123>Inputs!$D140)*(AX$123-Inputs!$D140-AX134) -> 0 | AY133: =(AY$123>Inputs!$D140)*(AY$123-Inputs!$D140-AY134) -> 0 | AZ133: =(AZ$123>Inputs!$D140)*(AZ$123-Inputs!$D140-AZ134) -> 0 | BA133: =(BA$123>Inputs!$D140)*(BA$123-Inputs!$D140-BA134) -> 0 | BB133: =(BB$123>Inputs!$D140)*(BB$123-Inputs!$D140-BB134) -> 0 | BC133: =(BC$123>Inputs!$D140)*(BC$123-Inputs!$D140-BC134) -> 0 | BD133: =(BD$123>Inputs!$D140)*(BD$123-Inputs!$D140-BD134) -> 0
D134: Bracket 10 | E134: $mm nominal | G134: =(G$123>Inputs!$D141)*(G$123-Inputs!$D141) -> 0 | H134: =(H$123>Inputs!$D141)*(H$123-Inputs!$D141) -> 0 | I134: =(I$123>Inputs!$D141)*(I$123-Inputs!$D141) -> 0 | J134: =(J$123>Inputs!$D141)*(J$123-Inputs!$D141) -> 0 | K134: =(K$123>Inputs!$D141)*(K$123-Inputs!$D141) -> 259.7837184 | L134: =(L$123>Inputs!$D141)*(L$123-Inputs!$D141) -> 618.2852498 | M134: =(M$123>Inputs!$D141)*(M$123-Inputs!$D141) -> 630.6509548 | N134: =(N$123>Inputs!$D141)*(N$123-Inputs!$D141) -> 643.2639739 | O134: =(O$123>Inputs!$D141)*(O$123-Inputs!$D141) -> 656.1292534 | P134: =(P$123>Inputs!$D141)*(P$123-Inputs!$D141) -> 669.2518384 | Q134: =(Q$123>Inputs!$D141)*(Q$123-Inputs!$D141) -> 682.6368752 | R134: =(R$123>Inputs!$D141)*(R$123-Inputs!$D141) -> 696.2896127 | S134: =(S$123>Inputs!$D141)*(S$123-Inputs!$D141) -> 710.215405 | T134: =(T$123>Inputs!$D141)*(T$123-Inputs!$D141) -> 724.4197131 | U134: =(U$123>Inputs!$D141)*(U$123-Inputs!$D141) -> 738.9081073 | V134: =(V$123>Inputs!$D141)*(V$123-Inputs!$D141) -> 753.6862695 | W134: =(W$123>Inputs!$D141)*(W$123-Inputs!$D141) -> 768.7599949 | X134: =(X$123>Inputs!$D141)*(X$123-Inputs!$D141) -> 784.1351947 | Y134: =(Y$123>Inputs!$D141)*(Y$123-Inputs!$D141) -> 799.8178986 | Z134: =(Z$123>Inputs!$D141)*(Z$123-Inputs!$D141) -> 815.8142566 | AA134: =(AA$123>Inputs!$D141)*(AA$123-Inputs!$D141) -> 832.1305417 | AB134: =(AB$123>Inputs!$D141)*(AB$123-Inputs!$D141) -> 848.7731526 | AC134: =(AC$123>Inputs!$D141)*(AC$123-Inputs!$D141) -> 865.7486156 | AD134: =(AD$123>Inputs!$D141)*(AD$123-Inputs!$D141) -> 883.0635879 | AE134: =(AE$123>Inputs!$D141)*(AE$123-Inputs!$D141) -> 900.7248597 | AF134: =(AF$123>Inputs!$D141)*(AF$123-Inputs!$D141) -> 918.7393569 | AG134: =(AG$123>Inputs!$D141)*(AG$123-Inputs!$D141) -> 937.114144 | AH134: =(AH$123>Inputs!$D141)*(AH$123-Inputs!$D141) -> 409.6527544 | AI134: =(AI$123>Inputs!$D141)*(AI$123-Inputs!$D141) -> 0 | AJ134: =(AJ$123>Inputs!$D141)*(AJ$123-Inputs!$D141) -> 0 | AK134: =(AK$123>Inputs!$D141)*(AK$123-Inputs!$D141) -> 0 | AL134: =(AL$123>Inputs!$D141)*(AL$123-Inputs!$D141) -> 0 | AM134: =(AM$123>Inputs!$D141)*(AM$123-Inputs!$D141) -> 0 | AN134: =(AN$123>Inputs!$D141)*(AN$123-Inputs!$D141) -> 0 | AO134: =(AO$123>Inputs!$D141)*(AO$123-Inputs!$D141) -> 0 | AP134: =(AP$123>Inputs!$D141)*(AP$123-Inputs!$D141) -> 0 | AQ134: =(AQ$123>Inputs!$D141)*(AQ$123-Inputs!$D141) -> 0 | AR134: =(AR$123>Inputs!$D141)*(AR$123-Inputs!$D141) -> 0 | AS134: =(AS$123>Inputs!$D141)*(AS$123-Inputs!$D141) -> 0 | AT134: =(AT$123>Inputs!$D141)*(AT$123-Inputs!$D141) -> 0 | AU134: =(AU$123>Inputs!$D141)*(AU$123-Inputs!$D141) -> 0 | AV134: =(AV$123>Inputs!$D141)*(AV$123-Inputs!$D141) -> 0 | AW134: =(AW$123>Inputs!$D141)*(AW$123-Inputs!$D141) -> 0 | AX134: =(AX$123>Inputs!$D141)*(AX$123-Inputs!$D141) -> 0 | AY134: =(AY$123>Inputs!$D141)*(AY$123-Inputs!$D141) -> 0 | AZ134: =(AZ$123>Inputs!$D141)*(AZ$123-Inputs!$D141) -> 0 | BA134: =(BA$123>Inputs!$D141)*(BA$123-Inputs!$D141) -> 0 | BB134: =(BB$123>Inputs!$D141)*(BB$123-Inputs!$D141) -> 0 | BC134: =(BC$123>Inputs!$D141)*(BC$123-Inputs!$D141) -> 0 | BD134: =(BD$123>Inputs!$D141)*(BD$123-Inputs!$D141) -> 0
A136: =SUM(G136:BD136)=SUM(G123:BD123) -> TRUE | D136: Total | E136: $mm nominal | G136: =SUM(G125:G134) -> 0 | H136: 0 | I136: 0 | J136: 0 | K136: 259.7837184 | L136: 618.2852498 | M136: 630.6509548 | N136: 643.2639739 | O136: 656.1292534 | P136: 669.2518384 | Q136: 682.6368752 | R136: 696.2896127 | S136: 710.215405 | T136: 724.4197131 | U136: 738.9081073 | V136: 753.6862695 | W136: 768.7599949 | X136: 784.1351947 | Y136: 799.8178986 | Z136: 815.8142566 | AA136: 832.1305417 | AB136: 848.7731526 | AC136: 865.7486156 | AD136: 883.0635879 | AE136: 900.7248597 | AF136: 918.7393569 | AG136: 937.114144 | AH136: 409.6527544 | AI136: 0 | AJ136: 0 | AK136: 0 | AL136: 0 | AM136: =SUM(AM125:AM134) -> 0 | AN136: 0 | AO136: 0 | AP136: 0 | AQ136: 0 | AR136: 0 | AS136: 0 | AT136: 0 | AU136: 0 | AV136: 0 | AW136: 0 | AX136: 0 | AY136: 0 | AZ136: 0 | BA136: 0 | BB136: 0 | BC136: 0 | BD136: 0
D138: Average royalty rate | E138: % | G138: =SUMPRODUCT(G125:G134,Inputs!$E$133:$E$142)/IF(Model!G123>0,Model!G123,1) -> 0 | H138: =SUMPRODUCT(H125:H134,Inputs!$E$133:$E$142)/IF(Model!H123>0,Model!H123,1) -> 0 | I138: =SUMPRODUCT(I125:I134,Inputs!$E$133:$E$142)/IF(Model!I123>0,Model!I123,1) -> 0 | J138: =SUMPRODUCT(J125:J134,Inputs!$E$133:$E$142)/IF(Model!J123>0,Model!J123,1) -> 0 | K138: =SUMPRODUCT(K125:K134,Inputs!$E$133:$E$142)/IF(Model!K123>0,Model!K123,1) -> 0 | L138: =SUMPRODUCT(L125:L134,Inputs!$E$133:$E$142)/IF(Model!L123>0,Model!L123,1) -> 0 | M138: =SUMPRODUCT(M125:M134,Inputs!$E$133:$E$142)/IF(Model!M123>0,Model!M123,1) -> 0 | N138: =SUMPRODUCT(N125:N134,Inputs!$E$133:$E$142)/IF(Model!N123>0,Model!N123,1) -> 0 | O138: =SUMPRODUCT(O125:O134,Inputs!$E$133:$E$142)/IF(Model!O123>0,Model!O123,1) -> 0 | P138: =SUMPRODUCT(P125:P134,Inputs!$E$133:$E$142)/IF(Model!P123>0,Model!P123,1) -> 0 | Q138: =SUMPRODUCT(Q125:Q134,Inputs!$E$133:$E$142)/IF(Model!Q123>0,Model!Q123,1) -> 0 | R138: =SUMPRODUCT(R125:R134,Inputs!$E$133:$E$142)/IF(Model!R123>0,Model!R123,1) -> 0 | S138: =SUMPRODUCT(S125:S134,Inputs!$E$133:$E$142)/IF(Model!S123>0,Model!S123,1) -> 0 | T138: =SUMPRODUCT(T125:T134,Inputs!$E$133:$E$142)/IF(Model!T123>0,Model!T123,1) -> 0 | U138: =SUMPRODUCT(U125:U134,Inputs!$E$133:$E$142)/IF(Model!U123>0,Model!U123,1) -> 0 | V138: =SUMPRODUCT(V125:V134,Inputs!$E$133:$E$142)/IF(Model!V123>0,Model!V123,1) -> 0 | W138: =SUMPRODUCT(W125:W134,Inputs!$E$133:$E$142)/IF(Model!W123>0,Model!W123,1) -> 0 | X138: =SUMPRODUCT(X125:X134,Inputs!$E$133:$E$142)/IF(Model!X123>0,Model!X123,1) -> 0 | Y138: =SUMPRODUCT(Y125:Y134,Inputs!$E$133:$E$142)/IF(Model!Y123>0,Model!Y123,1) -> 0 | Z138: =SUMPRODUCT(Z125:Z134,Inputs!$E$133:$E$142)/IF(Model!Z123>0,Model!Z123,1) -> 0 | AA138: =SUMPRODUCT(AA125:AA134,Inputs!$E$133:$E$142)/IF(Model!AA123>0,Model!AA123,1) -> 0 | AB138: =SUMPRODUCT(AB125:AB134,Inputs!$E$133:$E$142)/IF(Model!AB123>0,Model!AB123,1) -> 0 | AC138: =SUMPRODUCT(AC125:AC134,Inputs!$E$133:$E$142)/IF(Model!AC123>0,Model!AC123,1) -> 0 | AD138: =SUMPRODUCT(AD125:AD134,Inputs!$E$133:$E$142)/IF(Model!AD123>0,Model!AD123,1) -> 0 | AE138: =SUMPRODUCT(AE125:AE134,Inputs!$E$133:$E$142)/IF(Model!AE123>0,Model!AE123,1) -> 0 | AF138: =SUMPRODUCT(AF125:AF134,Inputs!$E$133:$E$142)/IF(Model!AF123>0,Model!AF123,1) -> 0 | AG138: =SUMPRODUCT(AG125:AG134,Inputs!$E$133:$E$142)/IF(Model!AG123>0,Model!AG123,1) -> 0 | AH138: =SUMPRODUCT(AH125:AH134,Inputs!$E$133:$E$142)/IF(Model!AH123>0,Model!AH123,1) -> 0 | AI138: =SUMPRODUCT(AI125:AI134,Inputs!$E$133:$E$142)/IF(Model!AI123>0,Model!AI123,1) -> 0 | AJ138: =SUMPRODUCT(AJ125:AJ134,Inputs!$E$133:$E$142)/IF(Model!AJ123>0,Model!AJ123,1) -> 0 | AK138: =SUMPRODUCT(AK125:AK134,Inputs!$E$133:$E$142)/IF(Model!AK123>0,Model!AK123,1) -> 0 | AL138: =SUMPRODUCT(AL125:AL134,Inputs!$E$133:$E$142)/IF(Model!AL123>0,Model!AL123,1) -> 0 | AM138: =SUMPRODUCT(AM125:AM134,Inputs!$E$133:$E$142)/IF(Model!AM123>0,Model!AM123,1) -> 0 | AN138: =SUMPRODUCT(AN125:AN134,Inputs!$E$133:$E$142)/IF(Model!AN123>0,Model!AN123,1) -> 0 | AO138: =SUMPRODUCT(AO125:AO134,Inputs!$E$133:$E$142)/IF(Model!AO123>0,Model!AO123,1) -> 0 | AP138: =SUMPRODUCT(AP125:AP134,Inputs!$E$133:$E$142)/IF(Model!AP123>0,Model!AP123,1) -> 0 | AQ138: =SUMPRODUCT(AQ125:AQ134,Inputs!$E$133:$E$142)/IF(Model!AQ123>0,Model!AQ123,1) -> 0 | AR138: =SUMPRODUCT(AR125:AR134,Inputs!$E$133:$E$142)/IF(Model!AR123>0,Model!AR123,1) -> 0 | AS138: =SUMPRODUCT(AS125:AS134,Inputs!$E$133:$E$142)/IF(Model!AS123>0,Model!AS123,1) -> 0 | AT138: =SUMPRODUCT(AT125:AT134,Inputs!$E$133:$E$142)/IF(Model!AT123>0,Model!AT123,1) -> 0 | AU138: =SUMPRODUCT(AU125:AU134,Inputs!$E$133:$E$142)/IF(Model!AU123>0,Model!AU123,1) -> 0 | AV138: =SUMPRODUCT(AV125:AV134,Inputs!$E$133:$E$142)/IF(Model!AV123>0,Model!AV123,1) -> 0 | AW138: =SUMPRODUCT(AW125:AW134,Inputs!$E$133:$E$142)/IF(Model!AW123>0,Model!AW123,1) -> 0 | AX138: =SUMPRODUCT(AX125:AX134,Inputs!$E$133:$E$142)/IF(Model!AX123>0,Model!AX123,1) -> 0 | AY138: =SUMPRODUCT(AY125:AY134,Inputs!$E$133:$E$142)/IF(Model!AY123>0,Model!AY123,1) -> 0 | AZ138: =SUMPRODUCT(AZ125:AZ134,Inputs!$E$133:$E$142)/IF(Model!AZ123>0,Model!AZ123,1) -> 0 | BA138: =SUMPRODUCT(BA125:BA134,Inputs!$E$133:$E$142)/IF(Model!BA123>0,Model!BA123,1) -> 0 | BB138: =SUMPRODUCT(BB125:BB134,Inputs!$E$133:$E$142)/IF(Model!BB123>0,Model!BB123,1) -> 0 | BC138: =SUMPRODUCT(BC125:BC134,Inputs!$E$133:$E$142)/IF(Model!BC123>0,Model!BC123,1) -> 0 | BD138: =SUMPRODUCT(BD125:BD134,Inputs!$E$133:$E$142)/IF(Model!BD123>0,Model!BD123,1) -> 0
C139: =SUM(G139:BD139) -> 0 | D139: Variable rate royalty (revenue) payable | E139: $mm nominal | G139: =G138*G123 -> 0 | H139: 0 | I139: 0 | J139: 0 | K139: 0 | L139: 0 | M139: 0 | N139: 0 | O139: 0 | P139: 0 | Q139: 0 | R139: 0 | S139: 0 | T139: 0 | U139: 0 | V139: 0 | W139: 0 | X139: 0 | Y139: 0 | Z139: 0 | AA139: 0 | AB139: 0 | AC139: 0 | AD139: 0 | AE139: 0 | AF139: 0 | AG139: 0 | AH139: 0 | AI139: 0 | AJ139: 0 | AK139: 0 | AL139: 0 | AM139: =AM138*AM123 -> 0 | AN139: 0 | AO139: 0 | AP139: 0 | AQ139: 0 | AR139: 0 | AS139: 0 | AT139: 0 | AU139: 0 | AV139: 0 | AW139: 0 | AX139: 0 | AY139: 0 | AZ139: 0 | BA139: 0 | BB139: 0 | BC139: 0 | BD139: 0
D142: Variable rate royalty - price based, non-marginal (on primary product)
D143: Base | G143: =G110 -> 0 | H143: 0 | I143: 0 | J143: 0 | K143: 259.7837184 | L143: 618.2852498 | M143: 630.6509548 | N143: 643.2639739 | O143: 656.1292534 | P143: 669.2518384 | Q143: 682.6368752 | R143: 696.2896127 | S143: 710.215405 | T143: 724.4197131 | U143: 738.9081073 | V143: 753.6862695 | W143: 768.7599949 | X143: 784.1351947 | Y143: 799.8178986 | Z143: 815.8142566 | AA143: 832.1305417 | AB143: 848.7731526 | AC143: 865.7486156 | AD143: 883.0635879 | AE143: 900.7248597 | AF143: 918.7393569 | AG143: 937.114144 | AH143: 409.6527544 | AI143: 0 | AJ143: 0 | AK143: 0 | AL143: 0 | AM143: =AM110 -> 0 | AN143: 0 | AO143: 0 | AP143: 0 | AQ143: 0 | AR143: 0 | AS143: 0 | AT143: 0 | AU143: 0 | AV143: 0 | AW143: 0 | AX143: 0 | AY143: 0 | AZ143: 0 | BA143: 0 | BB143: 0 | BC143: 0 | BD143: 0
D145: Price bracket 1 | E145: % | G145: =IF(IF(Inputs!$E$207 = 2, Inputs!F$210, Inputs!F$211) < Inputs!$D148, Inputs!$E147, "") ->  | H145: =IF(IF(Inputs!$E$207 = 2, Inputs!G$210, Inputs!G$211) < Inputs!$D148, Inputs!$E147, "") ->  | I145: =IF(IF(Inputs!$E$207 = 2, Inputs!H$210, Inputs!H$211) < Inputs!$D148, Inputs!$E147, "") ->  | J145: =IF(IF(Inputs!$E$207 = 2, Inputs!I$210, Inputs!I$211) < Inputs!$D148, Inputs!$E147, "") ->  | K145: =IF(IF(Inputs!$E$207 = 2, Inputs!J$210, Inputs!J$211) < Inputs!$D148, Inputs!$E147, "") ->  | L145: =IF(IF(Inputs!$E$207 = 2, Inputs!K$210, Inputs!K$211) < Inputs!$D148, Inputs!$E147, "") ->  | M145: =IF(IF(Inputs!$E$207 = 2, Inputs!L$210, Inputs!L$211) < Inputs!$D148, Inputs!$E147, "") ->  | N145: =IF(IF(Inputs!$E$207 = 2, Inputs!M$210, Inputs!M$211) < Inputs!$D148, Inputs!$E147, "") ->  | O145: =IF(IF(Inputs!$E$207 = 2, Inputs!N$210, Inputs!N$211) < Inputs!$D148, Inputs!$E147, "") ->  | P145: =IF(IF(Inputs!$E$207 = 2, Inputs!O$210, Inputs!O$211) < Inputs!$D148, Inputs!$E147, "") ->  | Q145: =IF(IF(Inputs!$E$207 = 2, Inputs!P$210, Inputs!P$211) < Inputs!$D148, Inputs!$E147, "") ->  | R145: =IF(IF(Inputs!$E$207 = 2, Inputs!Q$210, Inputs!Q$211) < Inputs!$D148, Inputs!$E147, "") ->  | S145: =IF(IF(Inputs!$E$207 = 2, Inputs!R$210, Inputs!R$211) < Inputs!$D148, Inputs!$E147, "") ->  | T145: =IF(IF(Inputs!$E$207 = 2, Inputs!S$210, Inputs!S$211) < Inputs!$D148, Inputs!$E147, "") ->  | U145: =IF(IF(Inputs!$E$207 = 2, Inputs!T$210, Inputs!T$211) < Inputs!$D148, Inputs!$E147, "") ->  | V145: =IF(IF(Inputs!$E$207 = 2, Inputs!U$210, Inputs!U$211) < Inputs!$D148, Inputs!$E147, "") ->  | W145: =IF(IF(Inputs!$E$207 = 2, Inputs!V$210, Inputs!V$211) < Inputs!$D148, Inputs!$E147, "") ->  | X145: =IF(IF(Inputs!$E$207 = 2, Inputs!W$210, Inputs!W$211) < Inputs!$D148, Inputs!$E147, "") ->  | Y145: =IF(IF(Inputs!$E$207 = 2, Inputs!X$210, Inputs!X$211) < Inputs!$D148, Inputs!$E147, "") ->  | Z145: =IF(IF(Inputs!$E$207 = 2, Inputs!Y$210, Inputs!Y$211) < Inputs!$D148, Inputs!$E147, "") ->  | AA145: =IF(IF(Inputs!$E$207 = 2, Inputs!Z$210, Inputs!Z$211) < Inputs!$D148, Inputs!$E147, "") ->  | AB145: =IF(IF(Inputs!$E$207 = 2, Inputs!AA$210, Inputs!AA$211) < Inputs!$D148, Inputs!$E147, "") ->  | AC145: =IF(IF(Inputs!$E$207 = 2, Inputs!AB$210, Inputs!AB$211) < Inputs!$D148, Inputs!$E147, "") ->  | AD145: =IF(IF(Inputs!$E$207 = 2, Inputs!AC$210, Inputs!AC$211) < Inputs!$D148, Inputs!$E147, "") ->  | AE145: =IF(IF(Inputs!$E$207 = 2, Inputs!AD$210, Inputs!AD$211) < Inputs!$D148, Inputs!$E147, "") ->  | AF145: =IF(IF(Inputs!$E$207 = 2, Inputs!AE$210, Inputs!AE$211) < Inputs!$D148, Inputs!$E147, "") ->  | AG145: =IF(IF(Inputs!$E$207 = 2, Inputs!AF$210, Inputs!AF$211) < Inputs!$D148, Inputs!$E147, "") ->  | AH145: =IF(IF(Inputs!$E$207 = 2, Inputs!AG$210, Inputs!AG$211) < Inputs!$D148, Inputs!$E147, "") ->  | AI145: =IF(IF(Inputs!$E$207 = 2, Inputs!AH$210, Inputs!AH$211) < Inputs!$D148, Inputs!$E147, "") ->  | AJ145: =IF(IF(Inputs!$E$207 = 2, Inputs!AI$210, Inputs!AI$211) < Inputs!$D148, Inputs!$E147, "") ->  | AK145: =IF(IF(Inputs!$E$207 = 2, Inputs!AJ$210, Inputs!AJ$211) < Inputs!$D148, Inputs!$E147, "") ->  | AL145: =IF(IF(Inputs!$E$207 = 2, Inputs!AK$210, Inputs!AK$211) < Inputs!$D148, Inputs!$E147, "") ->  | AM145: =IF(IF(Inputs!$E$207 = 2, Inputs!AL$210, Inputs!AL$211) < Inputs!$D148, Inputs!$E147, "") ->  | AN145: =IF(IF(Inputs!$E$207 = 2, Inputs!AM$210, Inputs!AM$211) < Inputs!$D148, Inputs!$E147, "") ->  | AO145: =IF(IF(Inputs!$E$207 = 2, Inputs!AN$210, Inputs!AN$211) < Inputs!$D148, Inputs!$E147, "") ->  | AP145: =IF(IF(Inputs!$E$207 = 2, Inputs!AO$210, Inputs!AO$211) < Inputs!$D148, Inputs!$E147, "") ->  | AQ145: =IF(IF(Inputs!$E$207 = 2, Inputs!AP$210, Inputs!AP$211) < Inputs!$D148, Inputs!$E147, "") ->  | AR145: =IF(IF(Inputs!$E$207 = 2, Inputs!AQ$210, Inputs!AQ$211) < Inputs!$D148, Inputs!$E147, "") ->  | AS145: =IF(IF(Inputs!$E$207 = 2, Inputs!AR$210, Inputs!AR$211) < Inputs!$D148, Inputs!$E147, "") ->  | AT145: =IF(IF(Inputs!$E$207 = 2, Inputs!AS$210, Inputs!AS$211) < Inputs!$D148, Inputs!$E147, "") ->  | AU145: =IF(IF(Inputs!$E$207 = 2, Inputs!AT$210, Inputs!AT$211) < Inputs!$D148, Inputs!$E147, "") ->  | AV145: =IF(IF(Inputs!$E$207 = 2, Inputs!AU$210, Inputs!AU$211) < Inputs!$D148, Inputs!$E147, "") ->  | AW145: =IF(IF(Inputs!$E$207 = 2, Inputs!AV$210, Inputs!AV$211) < Inputs!$D148, Inputs!$E147, "") ->  | AX145: =IF(IF(Inputs!$E$207 = 2, Inputs!AW$210, Inputs!AW$211) < Inputs!$D148, Inputs!$E147, "") ->  | AY145: =IF(IF(Inputs!$E$207 = 2, Inputs!AX$210, Inputs!AX$211) < Inputs!$D148, Inputs!$E147, "") ->  | AZ145: =IF(IF(Inputs!$E$207 = 2, Inputs!AY$210, Inputs!AY$211) < Inputs!$D148, Inputs!$E147, "") ->  | BA145: =IF(IF(Inputs!$E$207 = 2, Inputs!AZ$210, Inputs!AZ$211) < Inputs!$D148, Inputs!$E147, "") ->  | BB145: =IF(IF(Inputs!$E$207 = 2, Inputs!BA$210, Inputs!BA$211) < Inputs!$D148, Inputs!$E147, "") ->  | BC145: =IF(IF(Inputs!$E$207 = 2, Inputs!BB$210, Inputs!BB$211) < Inputs!$D148, Inputs!$E147, "") ->  | BD145: =IF(IF(Inputs!$E$207 = 2, Inputs!BC$210, Inputs!BC$211) < Inputs!$D148, Inputs!$E147, "") -> 
D146: Price bracket 2 | E146: % | G146: =IF(IF(Inputs!$E$207 = 2, Inputs!F$210, Inputs!F$211) >= Inputs!$D148, IF(IF(Inputs!$E$207 = 2, Inputs!F$210, Inputs!F$211) < Inputs!$D149, Inputs!$E148, ""), "") ->  | H146: =IF(IF(Inputs!$E$207 = 2, Inputs!G$210, Inputs!G$211) >= Inputs!$D148, IF(IF(Inputs!$E$207 = 2, Inputs!G$210, Inputs!G$211) < Inputs!$D149, Inputs!$E148, ""), "") ->  | I146: =IF(IF(Inputs!$E$207 = 2, Inputs!H$210, Inputs!H$211) >= Inputs!$D148, IF(IF(Inputs!$E$207 = 2, Inputs!H$210, Inputs!H$211) < Inputs!$D149, Inputs!$E148, ""), "") ->  | J146: =IF(IF(Inputs!$E$207 = 2, Inputs!I$210, Inputs!I$211) >= Inputs!$D148, IF(IF(Inputs!$E$207 = 2, Inputs!I$210, Inputs!I$211) < Inputs!$D149, Inputs!$E148, ""), "") ->  | K146: =IF(IF(Inputs!$E$207 = 2, Inputs!J$210, Inputs!J$211) >= Inputs!$D148, IF(IF(Inputs!$E$207 = 2, Inputs!J$210, Inputs!J$211) < Inputs!$D149, Inputs!$E148, ""), "") ->  | L146: =IF(IF(Inputs!$E$207 = 2, Inputs!K$210, Inputs!K$211) >= Inputs!$D148, IF(IF(Inputs!$E$207 = 2, Inputs!K$210, Inputs!K$211) < Inputs!$D149, Inputs!$E148, ""), "") ->  | M146: =IF(IF(Inputs!$E$207 = 2, Inputs!L$210, Inputs!L$211) >= Inputs!$D148, IF(IF(Inputs!$E$207 = 2, Inputs!L$210, Inputs!L$211) < Inputs!$D149, Inputs!$E148, ""), "") ->  | N146: =IF(IF(Inputs!$E$207 = 2, Inputs!M$210, Inputs!M$211) >= Inputs!$D148, IF(IF(Inputs!$E$207 = 2, Inputs!M$210, Inputs!M$211) < Inputs!$D149, Inputs!$E148, ""), "") ->  | O146: =IF(IF(Inputs!$E$207 = 2, Inputs!N$210, Inputs!N$211) >= Inputs!$D148, IF(IF(Inputs!$E$207 = 2, Inputs!N$210, Inputs!N$211) < Inputs!$D149, Inputs!$E148, ""), "") ->  | P146: =IF(IF(Inputs!$E$207 = 2, Inputs!O$210, Inputs!O$211) >= Inputs!$D148, IF(IF(Inputs!$E$207 = 2, Inputs!O$210, Inputs!O$211) < Inputs!$D149, Inputs!$E148, ""), "") ->  | Q146: =IF(IF(Inputs!$E$207 = 2, Inputs!P$210, Inputs!P$211) >= Inputs!$D148, IF(IF(Inputs!$E$207 = 2, Inputs!P$210, Inputs!P$211) < Inputs!$D149, Inputs!$E148, ""), "") ->  | R146: =IF(IF(Inputs!$E$207 = 2, Inputs!Q$210, Inputs!Q$211) >= Inputs!$D148, IF(IF(Inputs!$E$207 = 2, Inputs!Q$210, Inputs!Q$211) < Inputs!$D149, Inputs!$E148, ""), "") ->  | S146: =IF(IF(Inputs!$E$207 = 2, Inputs!R$210, Inputs!R$211) >= Inputs!$D148, IF(IF(Inputs!$E$207 = 2, Inputs!R$210, Inputs!R$211) < Inputs!$D149, Inputs!$E148, ""), "") ->  | T146: =IF(IF(Inputs!$E$207 = 2, Inputs!S$210, Inputs!S$211) >= Inputs!$D148, IF(IF(Inputs!$E$207 = 2, Inputs!S$210, Inputs!S$211) < Inputs!$D149, Inputs!$E148, ""), "") ->  | U146: =IF(IF(Inputs!$E$207 = 2, Inputs!T$210, Inputs!T$211) >= Inputs!$D148, IF(IF(Inputs!$E$207 = 2, Inputs!T$210, Inputs!T$211) < Inputs!$D149, Inputs!$E148, ""), "") ->  | V146: =IF(IF(Inputs!$E$207 = 2, Inputs!U$210, Inputs!U$211) >= Inputs!$D148, IF(IF(Inputs!$E$207 = 2, Inputs!U$210, Inputs!U$211) < Inputs!$D149, Inputs!$E148, ""), "") ->  | W146: =IF(IF(Inputs!$E$207 = 2, Inputs!V$210, Inputs!V$211) >= Inputs!$D148, IF(IF(Inputs!$E$207 = 2, Inputs!V$210, Inputs!V$211) < Inputs!$D149, Inputs!$E148, ""), "") ->  | X146: =IF(IF(Inputs!$E$207 = 2, Inputs!W$210, Inputs!W$211) >= Inputs!$D148, IF(IF(Inputs!$E$207 = 2, Inputs!W$210, Inputs!W$211) < Inputs!$D149, Inputs!$E148, ""), "") ->  | Y146: =IF(IF(Inputs!$E$207 = 2, Inputs!X$210, Inputs!X$211) >= Inputs!$D148, IF(IF(Inputs!$E$207 = 2, Inputs!X$210, Inputs!X$211) < Inputs!$D149, Inputs!$E148, ""), "") ->  | Z146: =IF(IF(Inputs!$E$207 = 2, Inputs!Y$210, Inputs!Y$211) >= Inputs!$D148, IF(IF(Inputs!$E$207 = 2, Inputs!Y$210, Inputs!Y$211) < Inputs!$D149, Inputs!$E148, ""), "") ->  | AA146: =IF(IF(Inputs!$E$207 = 2, Inputs!Z$210, Inputs!Z$211) >= Inputs!$D148, IF(IF(Inputs!$E$207 = 2, Inputs!Z$210, Inputs!Z$211) < Inputs!$D149, Inputs!$E148, ""), "") ->  | AB146: =IF(IF(Inputs!$E$207 = 2, Inputs!AA$210, Inputs!AA$211) >= Inputs!$D148, IF(IF(Inputs!$E$207 = 2, Inputs!AA$210, Inputs!AA$211) < Inputs!$D149, Inputs!$E148, ""), "") ->  | AC146: =IF(IF(Inputs!$E$207 = 2, Inputs!AB$210, Inputs!AB$211) >= Inputs!$D148, IF(IF(Inputs!$E$207 = 2, Inputs!AB$210, Inputs!AB$211) < Inputs!$D149, Inputs!$E148, ""), "") ->  | AD146: =IF(IF(Inputs!$E$207 = 2, Inputs!AC$210, Inputs!AC$211) >= Inputs!$D148, IF(IF(Inputs!$E$207 = 2, Inputs!AC$210, Inputs!AC$211) < Inputs!$D149, Inputs!$E148, ""), "") ->  | AE146: =IF(IF(Inputs!$E$207 = 2, Inputs!AD$210, Inputs!AD$211) >= Inputs!$D148, IF(IF(Inputs!$E$207 = 2, Inputs!AD$210, Inputs!AD$211) < Inputs!$D149, Inputs!$E148, ""), "") ->  | AF146: =IF(IF(Inputs!$E$207 = 2, Inputs!AE$210, Inputs!AE$211) >= Inputs!$D148, IF(IF(Inputs!$E$207 = 2, Inputs!AE$210, Inputs!AE$211) < Inputs!$D149, Inputs!$E148, ""), "") ->  | AG146: =IF(IF(Inputs!$E$207 = 2, Inputs!AF$210, Inputs!AF$211) >= Inputs!$D148, IF(IF(Inputs!$E$207 = 2, Inputs!AF$210, Inputs!AF$211) < Inputs!$D149, Inputs!$E148, ""), "") ->  | AH146: =IF(IF(Inputs!$E$207 = 2, Inputs!AG$210, Inputs!AG$211) >= Inputs!$D148, IF(IF(Inputs!$E$207 = 2, Inputs!AG$210, Inputs!AG$211) < Inputs!$D149, Inputs!$E148, ""), "") ->  | AI146: =IF(IF(Inputs!$E$207 = 2, Inputs!AH$210, Inputs!AH$211) >= Inputs!$D148, IF(IF(Inputs!$E$207 = 2, Inputs!AH$210, Inputs!AH$211) < Inputs!$D149, Inputs!$E148, ""), "") ->  | AJ146: =IF(IF(Inputs!$E$207 = 2, Inputs!AI$210, Inputs!AI$211) >= Inputs!$D148, IF(IF(Inputs!$E$207 = 2, Inputs!AI$210, Inputs!AI$211) < Inputs!$D149, Inputs!$E148, ""), "") ->  | AK146: =IF(IF(Inputs!$E$207 = 2, Inputs!AJ$210, Inputs!AJ$211) >= Inputs!$D148, IF(IF(Inputs!$E$207 = 2, Inputs!AJ$210, Inputs!AJ$211) < Inputs!$D149, Inputs!$E148, ""), "") ->  | AL146: =IF(IF(Inputs!$E$207 = 2, Inputs!AK$210, Inputs!AK$211) >= Inputs!$D148, IF(IF(Inputs!$E$207 = 2, Inputs!AK$210, Inputs!AK$211) < Inputs!$D149, Inputs!$E148, ""), "") ->  | AM146: =IF(IF(Inputs!$E$207 = 2, Inputs!AL$210, Inputs!AL$211) >= Inputs!$D148, IF(IF(Inputs!$E$207 = 2, Inputs!AL$210, Inputs!AL$211) < Inputs!$D149, Inputs!$E148, ""), "") ->  | AN146: =IF(IF(Inputs!$E$207 = 2, Inputs!AM$210, Inputs!AM$211) >= Inputs!$D148, IF(IF(Inputs!$E$207 = 2, Inputs!AM$210, Inputs!AM$211) < Inputs!$D149, Inputs!$E148, ""), "") ->  | AO146: =IF(IF(Inputs!$E$207 = 2, Inputs!AN$210, Inputs!AN$211) >= Inputs!$D148, IF(IF(Inputs!$E$207 = 2, Inputs!AN$210, Inputs!AN$211) < Inputs!$D149, Inputs!$E148, ""), "") ->  | AP146: =IF(IF(Inputs!$E$207 = 2, Inputs!AO$210, Inputs!AO$211) >= Inputs!$D148, IF(IF(Inputs!$E$207 = 2, Inputs!AO$210, Inputs!AO$211) < Inputs!$D149, Inputs!$E148, ""), "") ->  | AQ146: =IF(IF(Inputs!$E$207 = 2, Inputs!AP$210, Inputs!AP$211) >= Inputs!$D148, IF(IF(Inputs!$E$207 = 2, Inputs!AP$210, Inputs!AP$211) < Inputs!$D149, Inputs!$E148, ""), "") ->  | AR146: =IF(IF(Inputs!$E$207 = 2, Inputs!AQ$210, Inputs!AQ$211) >= Inputs!$D148, IF(IF(Inputs!$E$207 = 2, Inputs!AQ$210, Inputs!AQ$211) < Inputs!$D149, Inputs!$E148, ""), "") ->  | AS146: =IF(IF(Inputs!$E$207 = 2, Inputs!AR$210, Inputs!AR$211) >= Inputs!$D148, IF(IF(Inputs!$E$207 = 2, Inputs!AR$210, Inputs!AR$211) < Inputs!$D149, Inputs!$E148, ""), "") ->  | AT146: =IF(IF(Inputs!$E$207 = 2, Inputs!AS$210, Inputs!AS$211) >= Inputs!$D148, IF(IF(Inputs!$E$207 = 2, Inputs!AS$210, Inputs!AS$211) < Inputs!$D149, Inputs!$E148, ""), "") ->  | AU146: =IF(IF(Inputs!$E$207 = 2, Inputs!AT$210, Inputs!AT$211) >= Inputs!$D148, IF(IF(Inputs!$E$207 = 2, Inputs!AT$210, Inputs!AT$211) < Inputs!$D149, Inputs!$E148, ""), "") ->  | AV146: =IF(IF(Inputs!$E$207 = 2, Inputs!AU$210, Inputs!AU$211) >= Inputs!$D148, IF(IF(Inputs!$E$207 = 2, Inputs!AU$210, Inputs!AU$211) < Inputs!$D149, Inputs!$E148, ""), "") ->  | AW146: =IF(IF(Inputs!$E$207 = 2, Inputs!AV$210, Inputs!AV$211) >= Inputs!$D148, IF(IF(Inputs!$E$207 = 2, Inputs!AV$210, Inputs!AV$211) < Inputs!$D149, Inputs!$E148, ""), "") ->  | AX146: =IF(IF(Inputs!$E$207 = 2, Inputs!AW$210, Inputs!AW$211) >= Inputs!$D148, IF(IF(Inputs!$E$207 = 2, Inputs!AW$210, Inputs!AW$211) < Inputs!$D149, Inputs!$E148, ""), "") ->  | AY146: =IF(IF(Inputs!$E$207 = 2, Inputs!AX$210, Inputs!AX$211) >= Inputs!$D148, IF(IF(Inputs!$E$207 = 2, Inputs!AX$210, Inputs!AX$211) < Inputs!$D149, Inputs!$E148, ""), "") ->  | AZ146: =IF(IF(Inputs!$E$207 = 2, Inputs!AY$210, Inputs!AY$211) >= Inputs!$D148, IF(IF(Inputs!$E$207 = 2, Inputs!AY$210, Inputs!AY$211) < Inputs!$D149, Inputs!$E148, ""), "") ->  | BA146: =IF(IF(Inputs!$E$207 = 2, Inputs!AZ$210, Inputs!AZ$211) >= Inputs!$D148, IF(IF(Inputs!$E$207 = 2, Inputs!AZ$210, Inputs!AZ$211) < Inputs!$D149, Inputs!$E148, ""), "") ->  | BB146: =IF(IF(Inputs!$E$207 = 2, Inputs!BA$210, Inputs!BA$211) >= Inputs!$D148, IF(IF(Inputs!$E$207 = 2, Inputs!BA$210, Inputs!BA$211) < Inputs!$D149, Inputs!$E148, ""), "") ->  | BC146: =IF(IF(Inputs!$E$207 = 2, Inputs!BB$210, Inputs!BB$211) >= Inputs!$D148, IF(IF(Inputs!$E$207 = 2, Inputs!BB$210, Inputs!BB$211) < Inputs!$D149, Inputs!$E148, ""), "") ->  | BD146: =IF(IF(Inputs!$E$207 = 2, Inputs!BC$210, Inputs!BC$211) >= Inputs!$D148, IF(IF(Inputs!$E$207 = 2, Inputs!BC$210, Inputs!BC$211) < Inputs!$D149, Inputs!$E148, ""), "") -> 
D147: Price bracket 3 | E147: % | G147: =IF(IF(Inputs!$E$207 = 2, Inputs!F$210, Inputs!F$211) >= Inputs!$D149, IF(IF(Inputs!$E$207 = 2, Inputs!F$210, Inputs!F$211) < Inputs!$D150, Inputs!$E149, ""), "") ->  | H147: =IF(IF(Inputs!$E$207 = 2, Inputs!G$210, Inputs!G$211) >= Inputs!$D149, IF(IF(Inputs!$E$207 = 2, Inputs!G$210, Inputs!G$211) < Inputs!$D150, Inputs!$E149, ""), "") ->  | I147: =IF(IF(Inputs!$E$207 = 2, Inputs!H$210, Inputs!H$211) >= Inputs!$D149, IF(IF(Inputs!$E$207 = 2, Inputs!H$210, Inputs!H$211) < Inputs!$D150, Inputs!$E149, ""), "") ->  | J147: =IF(IF(Inputs!$E$207 = 2, Inputs!I$210, Inputs!I$211) >= Inputs!$D149, IF(IF(Inputs!$E$207 = 2, Inputs!I$210, Inputs!I$211) < Inputs!$D150, Inputs!$E149, ""), "") ->  | K147: =IF(IF(Inputs!$E$207 = 2, Inputs!J$210, Inputs!J$211) >= Inputs!$D149, IF(IF(Inputs!$E$207 = 2, Inputs!J$210, Inputs!J$211) < Inputs!$D150, Inputs!$E149, ""), "") ->  | L147: =IF(IF(Inputs!$E$207 = 2, Inputs!K$210, Inputs!K$211) >= Inputs!$D149, IF(IF(Inputs!$E$207 = 2, Inputs!K$210, Inputs!K$211) < Inputs!$D150, Inputs!$E149, ""), "") ->  | M147: =IF(IF(Inputs!$E$207 = 2, Inputs!L$210, Inputs!L$211) >= Inputs!$D149, IF(IF(Inputs!$E$207 = 2, Inputs!L$210, Inputs!L$211) < Inputs!$D150, Inputs!$E149, ""), "") ->  | N147: =IF(IF(Inputs!$E$207 = 2, Inputs!M$210, Inputs!M$211) >= Inputs!$D149, IF(IF(Inputs!$E$207 = 2, Inputs!M$210, Inputs!M$211) < Inputs!$D150, Inputs!$E149, ""), "") ->  | O147: =IF(IF(Inputs!$E$207 = 2, Inputs!N$210, Inputs!N$211) >= Inputs!$D149, IF(IF(Inputs!$E$207 = 2, Inputs!N$210, Inputs!N$211) < Inputs!$D150, Inputs!$E149, ""), "") ->  | P147: =IF(IF(Inputs!$E$207 = 2, Inputs!O$210, Inputs!O$211) >= Inputs!$D149, IF(IF(Inputs!$E$207 = 2, Inputs!O$210, Inputs!O$211) < Inputs!$D150, Inputs!$E149, ""), "") ->  | Q147: =IF(IF(Inputs!$E$207 = 2, Inputs!P$210, Inputs!P$211) >= Inputs!$D149, IF(IF(Inputs!$E$207 = 2, Inputs!P$210, Inputs!P$211) < Inputs!$D150, Inputs!$E149, ""), "") ->  | R147: =IF(IF(Inputs!$E$207 = 2, Inputs!Q$210, Inputs!Q$211) >= Inputs!$D149, IF(IF(Inputs!$E$207 = 2, Inputs!Q$210, Inputs!Q$211) < Inputs!$D150, Inputs!$E149, ""), "") ->  | S147: =IF(IF(Inputs!$E$207 = 2, Inputs!R$210, Inputs!R$211) >= Inputs!$D149, IF(IF(Inputs!$E$207 = 2, Inputs!R$210, Inputs!R$211) < Inputs!$D150, Inputs!$E149, ""), "") ->  | T147: =IF(IF(Inputs!$E$207 = 2, Inputs!S$210, Inputs!S$211) >= Inputs!$D149, IF(IF(Inputs!$E$207 = 2, Inputs!S$210, Inputs!S$211) < Inputs!$D150, Inputs!$E149, ""), "") ->  | U147: =IF(IF(Inputs!$E$207 = 2, Inputs!T$210, Inputs!T$211) >= Inputs!$D149, IF(IF(Inputs!$E$207 = 2, Inputs!T$210, Inputs!T$211) < Inputs!$D150, Inputs!$E149, ""), "") ->  | V147: =IF(IF(Inputs!$E$207 = 2, Inputs!U$210, Inputs!U$211) >= Inputs!$D149, IF(IF(Inputs!$E$207 = 2, Inputs!U$210, Inputs!U$211) < Inputs!$D150, Inputs!$E149, ""), "") ->  | W147: =IF(IF(Inputs!$E$207 = 2, Inputs!V$210, Inputs!V$211) >= Inputs!$D149, IF(IF(Inputs!$E$207 = 2, Inputs!V$210, Inputs!V$211) < Inputs!$D150, Inputs!$E149, ""), "") ->  | X147: =IF(IF(Inputs!$E$207 = 2, Inputs!W$210, Inputs!W$211) >= Inputs!$D149, IF(IF(Inputs!$E$207 = 2, Inputs!W$210, Inputs!W$211) < Inputs!$D150, Inputs!$E149, ""), "") ->  | Y147: =IF(IF(Inputs!$E$207 = 2, Inputs!X$210, Inputs!X$211) >= Inputs!$D149, IF(IF(Inputs!$E$207 = 2, Inputs!X$210, Inputs!X$211) < Inputs!$D150, Inputs!$E149, ""), "") ->  | Z147: =IF(IF(Inputs!$E$207 = 2, Inputs!Y$210, Inputs!Y$211) >= Inputs!$D149, IF(IF(Inputs!$E$207 = 2, Inputs!Y$210, Inputs!Y$211) < Inputs!$D150, Inputs!$E149, ""), "") ->  | AA147: =IF(IF(Inputs!$E$207 = 2, Inputs!Z$210, Inputs!Z$211) >= Inputs!$D149, IF(IF(Inputs!$E$207 = 2, Inputs!Z$210, Inputs!Z$211) < Inputs!$D150, Inputs!$E149, ""), "") ->  | AB147: =IF(IF(Inputs!$E$207 = 2, Inputs!AA$210, Inputs!AA$211) >= Inputs!$D149, IF(IF(Inputs!$E$207 = 2, Inputs!AA$210, Inputs!AA$211) < Inputs!$D150, Inputs!$E149, ""), "") ->  | AC147: =IF(IF(Inputs!$E$207 = 2, Inputs!AB$210, Inputs!AB$211) >= Inputs!$D149, IF(IF(Inputs!$E$207 = 2, Inputs!AB$210, Inputs!AB$211) < Inputs!$D150, Inputs!$E149, ""), "") ->  | AD147: =IF(IF(Inputs!$E$207 = 2, Inputs!AC$210, Inputs!AC$211) >= Inputs!$D149, IF(IF(Inputs!$E$207 = 2, Inputs!AC$210, Inputs!AC$211) < Inputs!$D150, Inputs!$E149, ""), "") ->  | AE147: =IF(IF(Inputs!$E$207 = 2, Inputs!AD$210, Inputs!AD$211) >= Inputs!$D149, IF(IF(Inputs!$E$207 = 2, Inputs!AD$210, Inputs!AD$211) < Inputs!$D150, Inputs!$E149, ""), "") ->  | AF147: =IF(IF(Inputs!$E$207 = 2, Inputs!AE$210, Inputs!AE$211) >= Inputs!$D149, IF(IF(Inputs!$E$207 = 2, Inputs!AE$210, Inputs!AE$211) < Inputs!$D150, Inputs!$E149, ""), "") ->  | AG147: =IF(IF(Inputs!$E$207 = 2, Inputs!AF$210, Inputs!AF$211) >= Inputs!$D149, IF(IF(Inputs!$E$207 = 2, Inputs!AF$210, Inputs!AF$211) < Inputs!$D150, Inputs!$E149, ""), "") ->  | AH147: =IF(IF(Inputs!$E$207 = 2, Inputs!AG$210, Inputs!AG$211) >= Inputs!$D149, IF(IF(Inputs!$E$207 = 2, Inputs!AG$210, Inputs!AG$211) < Inputs!$D150, Inputs!$E149, ""), "") ->  | AI147: =IF(IF(Inputs!$E$207 = 2, Inputs!AH$210, Inputs!AH$211) >= Inputs!$D149, IF(IF(Inputs!$E$207 = 2, Inputs!AH$210, Inputs!AH$211) < Inputs!$D150, Inputs!$E149, ""), "") ->  | AJ147: =IF(IF(Inputs!$E$207 = 2, Inputs!AI$210, Inputs!AI$211) >= Inputs!$D149, IF(IF(Inputs!$E$207 = 2, Inputs!AI$210, Inputs!AI$211) < Inputs!$D150, Inputs!$E149, ""), "") ->  | AK147: =IF(IF(Inputs!$E$207 = 2, Inputs!AJ$210, Inputs!AJ$211) >= Inputs!$D149, IF(IF(Inputs!$E$207 = 2, Inputs!AJ$210, Inputs!AJ$211) < Inputs!$D150, Inputs!$E149, ""), "") ->  | AL147: =IF(IF(Inputs!$E$207 = 2, Inputs!AK$210, Inputs!AK$211) >= Inputs!$D149, IF(IF(Inputs!$E$207 = 2, Inputs!AK$210, Inputs!AK$211) < Inputs!$D150, Inputs!$E149, ""), "") ->  | AM147: =IF(IF(Inputs!$E$207 = 2, Inputs!AL$210, Inputs!AL$211) >= Inputs!$D149, IF(IF(Inputs!$E$207 = 2, Inputs!AL$210, Inputs!AL$211) < Inputs!$D150, Inputs!$E149, ""), "") ->  | AN147: =IF(IF(Inputs!$E$207 = 2, Inputs!AM$210, Inputs!AM$211) >= Inputs!$D149, IF(IF(Inputs!$E$207 = 2, Inputs!AM$210, Inputs!AM$211) < Inputs!$D150, Inputs!$E149, ""), "") ->  | AO147: =IF(IF(Inputs!$E$207 = 2, Inputs!AN$210, Inputs!AN$211) >= Inputs!$D149, IF(IF(Inputs!$E$207 = 2, Inputs!AN$210, Inputs!AN$211) < Inputs!$D150, Inputs!$E149, ""), "") ->  | AP147: =IF(IF(Inputs!$E$207 = 2, Inputs!AO$210, Inputs!AO$211) >= Inputs!$D149, IF(IF(Inputs!$E$207 = 2, Inputs!AO$210, Inputs!AO$211) < Inputs!$D150, Inputs!$E149, ""), "") ->  | AQ147: =IF(IF(Inputs!$E$207 = 2, Inputs!AP$210, Inputs!AP$211) >= Inputs!$D149, IF(IF(Inputs!$E$207 = 2, Inputs!AP$210, Inputs!AP$211) < Inputs!$D150, Inputs!$E149, ""), "") ->  | AR147: =IF(IF(Inputs!$E$207 = 2, Inputs!AQ$210, Inputs!AQ$211) >= Inputs!$D149, IF(IF(Inputs!$E$207 = 2, Inputs!AQ$210, Inputs!AQ$211) < Inputs!$D150, Inputs!$E149, ""), "") ->  | AS147: =IF(IF(Inputs!$E$207 = 2, Inputs!AR$210, Inputs!AR$211) >= Inputs!$D149, IF(IF(Inputs!$E$207 = 2, Inputs!AR$210, Inputs!AR$211) < Inputs!$D150, Inputs!$E149, ""), "") ->  | AT147: =IF(IF(Inputs!$E$207 = 2, Inputs!AS$210, Inputs!AS$211) >= Inputs!$D149, IF(IF(Inputs!$E$207 = 2, Inputs!AS$210, Inputs!AS$211) < Inputs!$D150, Inputs!$E149, ""), "") ->  | AU147: =IF(IF(Inputs!$E$207 = 2, Inputs!AT$210, Inputs!AT$211) >= Inputs!$D149, IF(IF(Inputs!$E$207 = 2, Inputs!AT$210, Inputs!AT$211) < Inputs!$D150, Inputs!$E149, ""), "") ->  | AV147: =IF(IF(Inputs!$E$207 = 2, Inputs!AU$210, Inputs!AU$211) >= Inputs!$D149, IF(IF(Inputs!$E$207 = 2, Inputs!AU$210, Inputs!AU$211) < Inputs!$D150, Inputs!$E149, ""), "") ->  | AW147: =IF(IF(Inputs!$E$207 = 2, Inputs!AV$210, Inputs!AV$211) >= Inputs!$D149, IF(IF(Inputs!$E$207 = 2, Inputs!AV$210, Inputs!AV$211) < Inputs!$D150, Inputs!$E149, ""), "") ->  | AX147: =IF(IF(Inputs!$E$207 = 2, Inputs!AW$210, Inputs!AW$211) >= Inputs!$D149, IF(IF(Inputs!$E$207 = 2, Inputs!AW$210, Inputs!AW$211) < Inputs!$D150, Inputs!$E149, ""), "") ->  | AY147: =IF(IF(Inputs!$E$207 = 2, Inputs!AX$210, Inputs!AX$211) >= Inputs!$D149, IF(IF(Inputs!$E$207 = 2, Inputs!AX$210, Inputs!AX$211) < Inputs!$D150, Inputs!$E149, ""), "") ->  | AZ147: =IF(IF(Inputs!$E$207 = 2, Inputs!AY$210, Inputs!AY$211) >= Inputs!$D149, IF(IF(Inputs!$E$207 = 2, Inputs!AY$210, Inputs!AY$211) < Inputs!$D150, Inputs!$E149, ""), "") ->  | BA147: =IF(IF(Inputs!$E$207 = 2, Inputs!AZ$210, Inputs!AZ$211) >= Inputs!$D149, IF(IF(Inputs!$E$207 = 2, Inputs!AZ$210, Inputs!AZ$211) < Inputs!$D150, Inputs!$E149, ""), "") ->  | BB147: =IF(IF(Inputs!$E$207 = 2, Inputs!BA$210, Inputs!BA$211) >= Inputs!$D149, IF(IF(Inputs!$E$207 = 2, Inputs!BA$210, Inputs!BA$211) < Inputs!$D150, Inputs!$E149, ""), "") ->  | BC147: =IF(IF(Inputs!$E$207 = 2, Inputs!BB$210, Inputs!BB$211) >= Inputs!$D149, IF(IF(Inputs!$E$207 = 2, Inputs!BB$210, Inputs!BB$211) < Inputs!$D150, Inputs!$E149, ""), "") ->  | BD147: =IF(IF(Inputs!$E$207 = 2, Inputs!BC$210, Inputs!BC$211) >= Inputs!$D149, IF(IF(Inputs!$E$207 = 2, Inputs!BC$210, Inputs!BC$211) < Inputs!$D150, Inputs!$E149, ""), "") -> 
D148: Price bracket 4 | E148: % | G148: =IF(IF(Inputs!$E$207 = 2, Inputs!F$210, Inputs!F$211) >= Inputs!$D150, IF(IF(Inputs!$E$207 = 2, Inputs!F$210, Inputs!F$211) < Inputs!$D151, Inputs!$E150, ""), "") ->  | H148: =IF(IF(Inputs!$E$207 = 2, Inputs!G$210, Inputs!G$211) >= Inputs!$D150, IF(IF(Inputs!$E$207 = 2, Inputs!G$210, Inputs!G$211) < Inputs!$D151, Inputs!$E150, ""), "") ->  | I148: =IF(IF(Inputs!$E$207 = 2, Inputs!H$210, Inputs!H$211) >= Inputs!$D150, IF(IF(Inputs!$E$207 = 2, Inputs!H$210, Inputs!H$211) < Inputs!$D151, Inputs!$E150, ""), "") ->  | J148: =IF(IF(Inputs!$E$207 = 2, Inputs!I$210, Inputs!I$211) >= Inputs!$D150, IF(IF(Inputs!$E$207 = 2, Inputs!I$210, Inputs!I$211) < Inputs!$D151, Inputs!$E150, ""), "") ->  | K148: =IF(IF(Inputs!$E$207 = 2, Inputs!J$210, Inputs!J$211) >= Inputs!$D150, IF(IF(Inputs!$E$207 = 2, Inputs!J$210, Inputs!J$211) < Inputs!$D151, Inputs!$E150, ""), "") ->  | L148: =IF(IF(Inputs!$E$207 = 2, Inputs!K$210, Inputs!K$211) >= Inputs!$D150, IF(IF(Inputs!$E$207 = 2, Inputs!K$210, Inputs!K$211) < Inputs!$D151, Inputs!$E150, ""), "") ->  | M148: =IF(IF(Inputs!$E$207 = 2, Inputs!L$210, Inputs!L$211) >= Inputs!$D150, IF(IF(Inputs!$E$207 = 2, Inputs!L$210, Inputs!L$211) < Inputs!$D151, Inputs!$E150, ""), "") ->  | N148: =IF(IF(Inputs!$E$207 = 2, Inputs!M$210, Inputs!M$211) >= Inputs!$D150, IF(IF(Inputs!$E$207 = 2, Inputs!M$210, Inputs!M$211) < Inputs!$D151, Inputs!$E150, ""), "") ->  | O148: =IF(IF(Inputs!$E$207 = 2, Inputs!N$210, Inputs!N$211) >= Inputs!$D150, IF(IF(Inputs!$E$207 = 2, Inputs!N$210, Inputs!N$211) < Inputs!$D151, Inputs!$E150, ""), "") ->  | P148: =IF(IF(Inputs!$E$207 = 2, Inputs!O$210, Inputs!O$211) >= Inputs!$D150, IF(IF(Inputs!$E$207 = 2, Inputs!O$210, Inputs!O$211) < Inputs!$D151, Inputs!$E150, ""), "") ->  | Q148: =IF(IF(Inputs!$E$207 = 2, Inputs!P$210, Inputs!P$211) >= Inputs!$D150, IF(IF(Inputs!$E$207 = 2, Inputs!P$210, Inputs!P$211) < Inputs!$D151, Inputs!$E150, ""), "") ->  | R148: =IF(IF(Inputs!$E$207 = 2, Inputs!Q$210, Inputs!Q$211) >= Inputs!$D150, IF(IF(Inputs!$E$207 = 2, Inputs!Q$210, Inputs!Q$211) < Inputs!$D151, Inputs!$E150, ""), "") ->  | S148: =IF(IF(Inputs!$E$207 = 2, Inputs!R$210, Inputs!R$211) >= Inputs!$D150, IF(IF(Inputs!$E$207 = 2, Inputs!R$210, Inputs!R$211) < Inputs!$D151, Inputs!$E150, ""), "") ->  | T148: =IF(IF(Inputs!$E$207 = 2, Inputs!S$210, Inputs!S$211) >= Inputs!$D150, IF(IF(Inputs!$E$207 = 2, Inputs!S$210, Inputs!S$211) < Inputs!$D151, Inputs!$E150, ""), "") ->  | U148: =IF(IF(Inputs!$E$207 = 2, Inputs!T$210, Inputs!T$211) >= Inputs!$D150, IF(IF(Inputs!$E$207 = 2, Inputs!T$210, Inputs!T$211) < Inputs!$D151, Inputs!$E150, ""), "") ->  | V148: =IF(IF(Inputs!$E$207 = 2, Inputs!U$210, Inputs!U$211) >= Inputs!$D150, IF(IF(Inputs!$E$207 = 2, Inputs!U$210, Inputs!U$211) < Inputs!$D151, Inputs!$E150, ""), "") ->  | W148: =IF(IF(Inputs!$E$207 = 2, Inputs!V$210, Inputs!V$211) >= Inputs!$D150, IF(IF(Inputs!$E$207 = 2, Inputs!V$210, Inputs!V$211) < Inputs!$D151, Inputs!$E150, ""), "") ->  | X148: =IF(IF(Inputs!$E$207 = 2, Inputs!W$210, Inputs!W$211) >= Inputs!$D150, IF(IF(Inputs!$E$207 = 2, Inputs!W$210, Inputs!W$211) < Inputs!$D151, Inputs!$E150, ""), "") ->  | Y148: =IF(IF(Inputs!$E$207 = 2, Inputs!X$210, Inputs!X$211) >= Inputs!$D150, IF(IF(Inputs!$E$207 = 2, Inputs!X$210, Inputs!X$211) < Inputs!$D151, Inputs!$E150, ""), "") ->  | Z148: =IF(IF(Inputs!$E$207 = 2, Inputs!Y$210, Inputs!Y$211) >= Inputs!$D150, IF(IF(Inputs!$E$207 = 2, Inputs!Y$210, Inputs!Y$211) < Inputs!$D151, Inputs!$E150, ""), "") ->  | AA148: =IF(IF(Inputs!$E$207 = 2, Inputs!Z$210, Inputs!Z$211) >= Inputs!$D150, IF(IF(Inputs!$E$207 = 2, Inputs!Z$210, Inputs!Z$211) < Inputs!$D151, Inputs!$E150, ""), "") ->  | AB148: =IF(IF(Inputs!$E$207 = 2, Inputs!AA$210, Inputs!AA$211) >= Inputs!$D150, IF(IF(Inputs!$E$207 = 2, Inputs!AA$210, Inputs!AA$211) < Inputs!$D151, Inputs!$E150, ""), "") ->  | AC148: =IF(IF(Inputs!$E$207 = 2, Inputs!AB$210, Inputs!AB$211) >= Inputs!$D150, IF(IF(Inputs!$E$207 = 2, Inputs!AB$210, Inputs!AB$211) < Inputs!$D151, Inputs!$E150, ""), "") ->  | AD148: =IF(IF(Inputs!$E$207 = 2, Inputs!AC$210, Inputs!AC$211) >= Inputs!$D150, IF(IF(Inputs!$E$207 = 2, Inputs!AC$210, Inputs!AC$211) < Inputs!$D151, Inputs!$E150, ""), "") ->  | AE148: =IF(IF(Inputs!$E$207 = 2, Inputs!AD$210, Inputs!AD$211) >= Inputs!$D150, IF(IF(Inputs!$E$207 = 2, Inputs!AD$210, Inputs!AD$211) < Inputs!$D151, Inputs!$E150, ""), "") ->  | AF148: =IF(IF(Inputs!$E$207 = 2, Inputs!AE$210, Inputs!AE$211) >= Inputs!$D150, IF(IF(Inputs!$E$207 = 2, Inputs!AE$210, Inputs!AE$211) < Inputs!$D151, Inputs!$E150, ""), "") ->  | AG148: =IF(IF(Inputs!$E$207 = 2, Inputs!AF$210, Inputs!AF$211) >= Inputs!$D150, IF(IF(Inputs!$E$207 = 2, Inputs!AF$210, Inputs!AF$211) < Inputs!$D151, Inputs!$E150, ""), "") ->  | AH148: =IF(IF(Inputs!$E$207 = 2, Inputs!AG$210, Inputs!AG$211) >= Inputs!$D150, IF(IF(Inputs!$E$207 = 2, Inputs!AG$210, Inputs!AG$211) < Inputs!$D151, Inputs!$E150, ""), "") ->  | AI148: =IF(IF(Inputs!$E$207 = 2, Inputs!AH$210, Inputs!AH$211) >= Inputs!$D150, IF(IF(Inputs!$E$207 = 2, Inputs!AH$210, Inputs!AH$211) < Inputs!$D151, Inputs!$E150, ""), "") ->  | AJ148: =IF(IF(Inputs!$E$207 = 2, Inputs!AI$210, Inputs!AI$211) >= Inputs!$D150, IF(IF(Inputs!$E$207 = 2, Inputs!AI$210, Inputs!AI$211) < Inputs!$D151, Inputs!$E150, ""), "") ->  | AK148: =IF(IF(Inputs!$E$207 = 2, Inputs!AJ$210, Inputs!AJ$211) >= Inputs!$D150, IF(IF(Inputs!$E$207 = 2, Inputs!AJ$210, Inputs!AJ$211) < Inputs!$D151, Inputs!$E150, ""), "") ->  | AL148: =IF(IF(Inputs!$E$207 = 2, Inputs!AK$210, Inputs!AK$211) >= Inputs!$D150, IF(IF(Inputs!$E$207 = 2, Inputs!AK$210, Inputs!AK$211) < Inputs!$D151, Inputs!$E150, ""), "") ->  | AM148: =IF(IF(Inputs!$E$207 = 2, Inputs!AL$210, Inputs!AL$211) >= Inputs!$D150, IF(IF(Inputs!$E$207 = 2, Inputs!AL$210, Inputs!AL$211) < Inputs!$D151, Inputs!$E150, ""), "") ->  | AN148: =IF(IF(Inputs!$E$207 = 2, Inputs!AM$210, Inputs!AM$211) >= Inputs!$D150, IF(IF(Inputs!$E$207 = 2, Inputs!AM$210, Inputs!AM$211) < Inputs!$D151, Inputs!$E150, ""), "") ->  | AO148: =IF(IF(Inputs!$E$207 = 2, Inputs!AN$210, Inputs!AN$211) >= Inputs!$D150, IF(IF(Inputs!$E$207 = 2, Inputs!AN$210, Inputs!AN$211) < Inputs!$D151, Inputs!$E150, ""), "") ->  | AP148: =IF(IF(Inputs!$E$207 = 2, Inputs!AO$210, Inputs!AO$211) >= Inputs!$D150, IF(IF(Inputs!$E$207 = 2, Inputs!AO$210, Inputs!AO$211) < Inputs!$D151, Inputs!$E150, ""), "") ->  | AQ148: =IF(IF(Inputs!$E$207 = 2, Inputs!AP$210, Inputs!AP$211) >= Inputs!$D150, IF(IF(Inputs!$E$207 = 2, Inputs!AP$210, Inputs!AP$211) < Inputs!$D151, Inputs!$E150, ""), "") ->  | AR148: =IF(IF(Inputs!$E$207 = 2, Inputs!AQ$210, Inputs!AQ$211) >= Inputs!$D150, IF(IF(Inputs!$E$207 = 2, Inputs!AQ$210, Inputs!AQ$211) < Inputs!$D151, Inputs!$E150, ""), "") ->  | AS148: =IF(IF(Inputs!$E$207 = 2, Inputs!AR$210, Inputs!AR$211) >= Inputs!$D150, IF(IF(Inputs!$E$207 = 2, Inputs!AR$210, Inputs!AR$211) < Inputs!$D151, Inputs!$E150, ""), "") ->  | AT148: =IF(IF(Inputs!$E$207 = 2, Inputs!AS$210, Inputs!AS$211) >= Inputs!$D150, IF(IF(Inputs!$E$207 = 2, Inputs!AS$210, Inputs!AS$211) < Inputs!$D151, Inputs!$E150, ""), "") ->  | AU148: =IF(IF(Inputs!$E$207 = 2, Inputs!AT$210, Inputs!AT$211) >= Inputs!$D150, IF(IF(Inputs!$E$207 = 2, Inputs!AT$210, Inputs!AT$211) < Inputs!$D151, Inputs!$E150, ""), "") ->  | AV148: =IF(IF(Inputs!$E$207 = 2, Inputs!AU$210, Inputs!AU$211) >= Inputs!$D150, IF(IF(Inputs!$E$207 = 2, Inputs!AU$210, Inputs!AU$211) < Inputs!$D151, Inputs!$E150, ""), "") ->  | AW148: =IF(IF(Inputs!$E$207 = 2, Inputs!AV$210, Inputs!AV$211) >= Inputs!$D150, IF(IF(Inputs!$E$207 = 2, Inputs!AV$210, Inputs!AV$211) < Inputs!$D151, Inputs!$E150, ""), "") ->  | AX148: =IF(IF(Inputs!$E$207 = 2, Inputs!AW$210, Inputs!AW$211) >= Inputs!$D150, IF(IF(Inputs!$E$207 = 2, Inputs!AW$210, Inputs!AW$211) < Inputs!$D151, Inputs!$E150, ""), "") ->  | AY148: =IF(IF(Inputs!$E$207 = 2, Inputs!AX$210, Inputs!AX$211) >= Inputs!$D150, IF(IF(Inputs!$E$207 = 2, Inputs!AX$210, Inputs!AX$211) < Inputs!$D151, Inputs!$E150, ""), "") ->  | AZ148: =IF(IF(Inputs!$E$207 = 2, Inputs!AY$210, Inputs!AY$211) >= Inputs!$D150, IF(IF(Inputs!$E$207 = 2, Inputs!AY$210, Inputs!AY$211) < Inputs!$D151, Inputs!$E150, ""), "") ->  | BA148: =IF(IF(Inputs!$E$207 = 2, Inputs!AZ$210, Inputs!AZ$211) >= Inputs!$D150, IF(IF(Inputs!$E$207 = 2, Inputs!AZ$210, Inputs!AZ$211) < Inputs!$D151, Inputs!$E150, ""), "") ->  | BB148: =IF(IF(Inputs!$E$207 = 2, Inputs!BA$210, Inputs!BA$211) >= Inputs!$D150, IF(IF(Inputs!$E$207 = 2, Inputs!BA$210, Inputs!BA$211) < Inputs!$D151, Inputs!$E150, ""), "") ->  | BC148: =IF(IF(Inputs!$E$207 = 2, Inputs!BB$210, Inputs!BB$211) >= Inputs!$D150, IF(IF(Inputs!$E$207 = 2, Inputs!BB$210, Inputs!BB$211) < Inputs!$D151, Inputs!$E150, ""), "") ->  | BD148: =IF(IF(Inputs!$E$207 = 2, Inputs!BC$210, Inputs!BC$211) >= Inputs!$D150, IF(IF(Inputs!$E$207 = 2, Inputs!BC$210, Inputs!BC$211) < Inputs!$D151, Inputs!$E150, ""), "") -> 
D149: Price bracket 5 | E149: % | G149: =IF(IF(Inputs!$E$207 = 2, Inputs!F$210, Inputs!F$211) >= Inputs!$D151, IF(IF(Inputs!$E$207 = 2, Inputs!F$210, Inputs!F$211) < Inputs!$D152, Inputs!$E151, ""), "") ->  | H149: =IF(IF(Inputs!$E$207 = 2, Inputs!G$210, Inputs!G$211) >= Inputs!$D151, IF(IF(Inputs!$E$207 = 2, Inputs!G$210, Inputs!G$211) < Inputs!$D152, Inputs!$E151, ""), "") ->  | I149: =IF(IF(Inputs!$E$207 = 2, Inputs!H$210, Inputs!H$211) >= Inputs!$D151, IF(IF(Inputs!$E$207 = 2, Inputs!H$210, Inputs!H$211) < Inputs!$D152, Inputs!$E151, ""), "") ->  | J149: =IF(IF(Inputs!$E$207 = 2, Inputs!I$210, Inputs!I$211) >= Inputs!$D151, IF(IF(Inputs!$E$207 = 2, Inputs!I$210, Inputs!I$211) < Inputs!$D152, Inputs!$E151, ""), "") ->  | K149: =IF(IF(Inputs!$E$207 = 2, Inputs!J$210, Inputs!J$211) >= Inputs!$D151, IF(IF(Inputs!$E$207 = 2, Inputs!J$210, Inputs!J$211) < Inputs!$D152, Inputs!$E151, ""), "") ->  | L149: =IF(IF(Inputs!$E$207 = 2, Inputs!K$210, Inputs!K$211) >= Inputs!$D151, IF(IF(Inputs!$E$207 = 2, Inputs!K$210, Inputs!K$211) < Inputs!$D152, Inputs!$E151, ""), "") ->  | M149: =IF(IF(Inputs!$E$207 = 2, Inputs!L$210, Inputs!L$211) >= Inputs!$D151, IF(IF(Inputs!$E$207 = 2, Inputs!L$210, Inputs!L$211) < Inputs!$D152, Inputs!$E151, ""), "") ->  | N149: =IF(IF(Inputs!$E$207 = 2, Inputs!M$210, Inputs!M$211) >= Inputs!$D151, IF(IF(Inputs!$E$207 = 2, Inputs!M$210, Inputs!M$211) < Inputs!$D152, Inputs!$E151, ""), "") ->  | O149: =IF(IF(Inputs!$E$207 = 2, Inputs!N$210, Inputs!N$211) >= Inputs!$D151, IF(IF(Inputs!$E$207 = 2, Inputs!N$210, Inputs!N$211) < Inputs!$D152, Inputs!$E151, ""), "") ->  | P149: =IF(IF(Inputs!$E$207 = 2, Inputs!O$210, Inputs!O$211) >= Inputs!$D151, IF(IF(Inputs!$E$207 = 2, Inputs!O$210, Inputs!O$211) < Inputs!$D152, Inputs!$E151, ""), "") ->  | Q149: =IF(IF(Inputs!$E$207 = 2, Inputs!P$210, Inputs!P$211) >= Inputs!$D151, IF(IF(Inputs!$E$207 = 2, Inputs!P$210, Inputs!P$211) < Inputs!$D152, Inputs!$E151, ""), "") ->  | R149: =IF(IF(Inputs!$E$207 = 2, Inputs!Q$210, Inputs!Q$211) >= Inputs!$D151, IF(IF(Inputs!$E$207 = 2, Inputs!Q$210, Inputs!Q$211) < Inputs!$D152, Inputs!$E151, ""), "") ->  | S149: =IF(IF(Inputs!$E$207 = 2, Inputs!R$210, Inputs!R$211) >= Inputs!$D151, IF(IF(Inputs!$E$207 = 2, Inputs!R$210, Inputs!R$211) < Inputs!$D152, Inputs!$E151, ""), "") ->  | T149: =IF(IF(Inputs!$E$207 = 2, Inputs!S$210, Inputs!S$211) >= Inputs!$D151, IF(IF(Inputs!$E$207 = 2, Inputs!S$210, Inputs!S$211) < Inputs!$D152, Inputs!$E151, ""), "") ->  | U149: =IF(IF(Inputs!$E$207 = 2, Inputs!T$210, Inputs!T$211) >= Inputs!$D151, IF(IF(Inputs!$E$207 = 2, Inputs!T$210, Inputs!T$211) < Inputs!$D152, Inputs!$E151, ""), "") ->  | V149: =IF(IF(Inputs!$E$207 = 2, Inputs!U$210, Inputs!U$211) >= Inputs!$D151, IF(IF(Inputs!$E$207 = 2, Inputs!U$210, Inputs!U$211) < Inputs!$D152, Inputs!$E151, ""), "") ->  | W149: =IF(IF(Inputs!$E$207 = 2, Inputs!V$210, Inputs!V$211) >= Inputs!$D151, IF(IF(Inputs!$E$207 = 2, Inputs!V$210, Inputs!V$211) < Inputs!$D152, Inputs!$E151, ""), "") ->  | X149: =IF(IF(Inputs!$E$207 = 2, Inputs!W$210, Inputs!W$211) >= Inputs!$D151, IF(IF(Inputs!$E$207 = 2, Inputs!W$210, Inputs!W$211) < Inputs!$D152, Inputs!$E151, ""), "") ->  | Y149: =IF(IF(Inputs!$E$207 = 2, Inputs!X$210, Inputs!X$211) >= Inputs!$D151, IF(IF(Inputs!$E$207 = 2, Inputs!X$210, Inputs!X$211) < Inputs!$D152, Inputs!$E151, ""), "") ->  | Z149: =IF(IF(Inputs!$E$207 = 2, Inputs!Y$210, Inputs!Y$211) >= Inputs!$D151, IF(IF(Inputs!$E$207 = 2, Inputs!Y$210, Inputs!Y$211) < Inputs!$D152, Inputs!$E151, ""), "") ->  | AA149: =IF(IF(Inputs!$E$207 = 2, Inputs!Z$210, Inputs!Z$211) >= Inputs!$D151, IF(IF(Inputs!$E$207 = 2, Inputs!Z$210, Inputs!Z$211) < Inputs!$D152, Inputs!$E151, ""), "") ->  | AB149: =IF(IF(Inputs!$E$207 = 2, Inputs!AA$210, Inputs!AA$211) >= Inputs!$D151, IF(IF(Inputs!$E$207 = 2, Inputs!AA$210, Inputs!AA$211) < Inputs!$D152, Inputs!$E151, ""), "") ->  | AC149: =IF(IF(Inputs!$E$207 = 2, Inputs!AB$210, Inputs!AB$211) >= Inputs!$D151, IF(IF(Inputs!$E$207 = 2, Inputs!AB$210, Inputs!AB$211) < Inputs!$D152, Inputs!$E151, ""), "") ->  | AD149: =IF(IF(Inputs!$E$207 = 2, Inputs!AC$210, Inputs!AC$211) >= Inputs!$D151, IF(IF(Inputs!$E$207 = 2, Inputs!AC$210, Inputs!AC$211) < Inputs!$D152, Inputs!$E151, ""), "") ->  | AE149: =IF(IF(Inputs!$E$207 = 2, Inputs!AD$210, Inputs!AD$211) >= Inputs!$D151, IF(IF(Inputs!$E$207 = 2, Inputs!AD$210, Inputs!AD$211) < Inputs!$D152, Inputs!$E151, ""), "") ->  | AF149: =IF(IF(Inputs!$E$207 = 2, Inputs!AE$210, Inputs!AE$211) >= Inputs!$D151, IF(IF(Inputs!$E$207 = 2, Inputs!AE$210, Inputs!AE$211) < Inputs!$D152, Inputs!$E151, ""), "") ->  | AG149: =IF(IF(Inputs!$E$207 = 2, Inputs!AF$210, Inputs!AF$211) >= Inputs!$D151, IF(IF(Inputs!$E$207 = 2, Inputs!AF$210, Inputs!AF$211) < Inputs!$D152, Inputs!$E151, ""), "") ->  | AH149: =IF(IF(Inputs!$E$207 = 2, Inputs!AG$210, Inputs!AG$211) >= Inputs!$D151, IF(IF(Inputs!$E$207 = 2, Inputs!AG$210, Inputs!AG$211) < Inputs!$D152, Inputs!$E151, ""), "") ->  | AI149: =IF(IF(Inputs!$E$207 = 2, Inputs!AH$210, Inputs!AH$211) >= Inputs!$D151, IF(IF(Inputs!$E$207 = 2, Inputs!AH$210, Inputs!AH$211) < Inputs!$D152, Inputs!$E151, ""), "") ->  | AJ149: =IF(IF(Inputs!$E$207 = 2, Inputs!AI$210, Inputs!AI$211) >= Inputs!$D151, IF(IF(Inputs!$E$207 = 2, Inputs!AI$210, Inputs!AI$211) < Inputs!$D152, Inputs!$E151, ""), "") ->  | AK149: =IF(IF(Inputs!$E$207 = 2, Inputs!AJ$210, Inputs!AJ$211) >= Inputs!$D151, IF(IF(Inputs!$E$207 = 2, Inputs!AJ$210, Inputs!AJ$211) < Inputs!$D152, Inputs!$E151, ""), "") ->  | AL149: =IF(IF(Inputs!$E$207 = 2, Inputs!AK$210, Inputs!AK$211) >= Inputs!$D151, IF(IF(Inputs!$E$207 = 2, Inputs!AK$210, Inputs!AK$211) < Inputs!$D152, Inputs!$E151, ""), "") ->  | AM149: =IF(IF(Inputs!$E$207 = 2, Inputs!AL$210, Inputs!AL$211) >= Inputs!$D151, IF(IF(Inputs!$E$207 = 2, Inputs!AL$210, Inputs!AL$211) < Inputs!$D152, Inputs!$E151, ""), "") ->  | AN149: =IF(IF(Inputs!$E$207 = 2, Inputs!AM$210, Inputs!AM$211) >= Inputs!$D151, IF(IF(Inputs!$E$207 = 2, Inputs!AM$210, Inputs!AM$211) < Inputs!$D152, Inputs!$E151, ""), "") ->  | AO149: =IF(IF(Inputs!$E$207 = 2, Inputs!AN$210, Inputs!AN$211) >= Inputs!$D151, IF(IF(Inputs!$E$207 = 2, Inputs!AN$210, Inputs!AN$211) < Inputs!$D152, Inputs!$E151, ""), "") ->  | AP149: =IF(IF(Inputs!$E$207 = 2, Inputs!AO$210, Inputs!AO$211) >= Inputs!$D151, IF(IF(Inputs!$E$207 = 2, Inputs!AO$210, Inputs!AO$211) < Inputs!$D152, Inputs!$E151, ""), "") ->  | AQ149: =IF(IF(Inputs!$E$207 = 2, Inputs!AP$210, Inputs!AP$211) >= Inputs!$D151, IF(IF(Inputs!$E$207 = 2, Inputs!AP$210, Inputs!AP$211) < Inputs!$D152, Inputs!$E151, ""), "") ->  | AR149: =IF(IF(Inputs!$E$207 = 2, Inputs!AQ$210, Inputs!AQ$211) >= Inputs!$D151, IF(IF(Inputs!$E$207 = 2, Inputs!AQ$210, Inputs!AQ$211) < Inputs!$D152, Inputs!$E151, ""), "") ->  | AS149: =IF(IF(Inputs!$E$207 = 2, Inputs!AR$210, Inputs!AR$211) >= Inputs!$D151, IF(IF(Inputs!$E$207 = 2, Inputs!AR$210, Inputs!AR$211) < Inputs!$D152, Inputs!$E151, ""), "") ->  | AT149: =IF(IF(Inputs!$E$207 = 2, Inputs!AS$210, Inputs!AS$211) >= Inputs!$D151, IF(IF(Inputs!$E$207 = 2, Inputs!AS$210, Inputs!AS$211) < Inputs!$D152, Inputs!$E151, ""), "") ->  | AU149: =IF(IF(Inputs!$E$207 = 2, Inputs!AT$210, Inputs!AT$211) >= Inputs!$D151, IF(IF(Inputs!$E$207 = 2, Inputs!AT$210, Inputs!AT$211) < Inputs!$D152, Inputs!$E151, ""), "") ->  | AV149: =IF(IF(Inputs!$E$207 = 2, Inputs!AU$210, Inputs!AU$211) >= Inputs!$D151, IF(IF(Inputs!$E$207 = 2, Inputs!AU$210, Inputs!AU$211) < Inputs!$D152, Inputs!$E151, ""), "") ->  | AW149: =IF(IF(Inputs!$E$207 = 2, Inputs!AV$210, Inputs!AV$211) >= Inputs!$D151, IF(IF(Inputs!$E$207 = 2, Inputs!AV$210, Inputs!AV$211) < Inputs!$D152, Inputs!$E151, ""), "") ->  | AX149: =IF(IF(Inputs!$E$207 = 2, Inputs!AW$210, Inputs!AW$211) >= Inputs!$D151, IF(IF(Inputs!$E$207 = 2, Inputs!AW$210, Inputs!AW$211) < Inputs!$D152, Inputs!$E151, ""), "") ->  | AY149: =IF(IF(Inputs!$E$207 = 2, Inputs!AX$210, Inputs!AX$211) >= Inputs!$D151, IF(IF(Inputs!$E$207 = 2, Inputs!AX$210, Inputs!AX$211) < Inputs!$D152, Inputs!$E151, ""), "") ->  | AZ149: =IF(IF(Inputs!$E$207 = 2, Inputs!AY$210, Inputs!AY$211) >= Inputs!$D151, IF(IF(Inputs!$E$207 = 2, Inputs!AY$210, Inputs!AY$211) < Inputs!$D152, Inputs!$E151, ""), "") ->  | BA149: =IF(IF(Inputs!$E$207 = 2, Inputs!AZ$210, Inputs!AZ$211) >= Inputs!$D151, IF(IF(Inputs!$E$207 = 2, Inputs!AZ$210, Inputs!AZ$211) < Inputs!$D152, Inputs!$E151, ""), "") ->  | BB149: =IF(IF(Inputs!$E$207 = 2, Inputs!BA$210, Inputs!BA$211) >= Inputs!$D151, IF(IF(Inputs!$E$207 = 2, Inputs!BA$210, Inputs!BA$211) < Inputs!$D152, Inputs!$E151, ""), "") ->  | BC149: =IF(IF(Inputs!$E$207 = 2, Inputs!BB$210, Inputs!BB$211) >= Inputs!$D151, IF(IF(Inputs!$E$207 = 2, Inputs!BB$210, Inputs!BB$211) < Inputs!$D152, Inputs!$E151, ""), "") ->  | BD149: =IF(IF(Inputs!$E$207 = 2, Inputs!BC$210, Inputs!BC$211) >= Inputs!$D151, IF(IF(Inputs!$E$207 = 2, Inputs!BC$210, Inputs!BC$211) < Inputs!$D152, Inputs!$E151, ""), "") -> 
